Workbook

Sheet Start
B54: Show/hide data tables (for information only) - macros must be activated

Sheet main
B3: intended use parameters
B4: active substance/product | C4: examplamine | H4: rate unit | I4: g/ha | J4: =IF(OR(applic_rate_unit="L/ha",applic_rate_unit="mL/m²"),"d (L/kg)","") ->  | K4: 1
B5: intended use | C5: 00-001
B7: # applications | C7: 3 | E7: %-ile selection | F7: fixed
B9: application rate | C9: 100
B10: drift scenario | C10: arable crops
B11: interval (d) | C11: 10
B13: compartment
B14: aquatic environment - water | C14: =IF(AND(LEFT(compartment,4)="aqua",MID(compartment,23,3)="sed"), "→ enter sediment exposure parameters on worksheet 'sed'", "") -> 
B16: mult. application assessment
B17: residue dynamics | C17: =IF(LEFT(mult_applic,3)="eff","currently not applied in regulation","") -> 
B19: DT50/MAF selection | E19: =IF(LEFT(compartment,4)="aqua", IF(MID(compartment,23,3)="wat","DisT50 wat", IF(MID(compartment,23,3)="sed","DegT50 ws","DT50")), "DT50") -> DisT50 wat | F19: =IF(LEFT(compartment,4)="terr","MAFplant","") ->  | G19: =IF(LEFT(compartment,4)="terr","MAFsoil","") -> 
B20: DisT50 wat | C20: =IF(ISERROR(MATCH(dt50_type,INDIRECT("dt50_select_"&LEFT(compartment,4)),0)), 1, HLOOKUP(dt50_type,INDIRECT("dt50_value_"&LEFT(compartment,4)),2,FALSE)) -> 10 | D20: ← DT50 | E20: 10 | F20: =IF(LEFT(compartment,4)="terr", IF(MIN(interval_applic1:INDEX(interval_applic,no_applic-1)), 2.3*(MIN(interval_applic1:INDEX(interval_applic,no_applic-1))), 2.3), "") ->  | G20: =IF(LEFT(compartment,4)="terr", IF(MIN(interval_applic1:INDEX(interval_applic,no_applic-1)), 6*(MIN(interval_applic1:INDEX(interval_applic,no_applic-1))), 6), "") ->  | I20: =IF( OR(AND(no_applic>1,peak_single_crit,NOT(parameter="PECtwa")),AND(no_applic>1,twa_single_crit,parameter="PECtwa")), "small ratio DT50/applic. int. → consider fewer applications around applic. #"&single_applic_crit, IF( AND(LEFT(compartment,4)="aqua",MID(compartment,23,3)="sed",f_accu_plat>0), "accumulation in sediment by f-accu = "&ROUND(f_accu_plat+1,2)&" is considered in PECsed value", "")) -> 
B21: k | C21: =LN(2)/dt50_value -> 0.06931471806 | D21: =IF(LEFT(compartment,4)="terr","MAF","") ->  | E21: =IF(AND(LEFT(compartment,4)="terr",LEFT(dt50_type,3)<>"MAF"), IF(MIN(interval_applic1:INDEX(interval_applic,no_applic-1)), ROUND((1-EXP(-no_applic*LN(2)/INDEX(dt50_value_aqua,2)*(MIN(interval_applic1:INDEX(interval_applic,no_applic-1))))) /(1-EXP(-LN(2)/INDEX(dt50_value_aqua,2)*(MIN(interval_applic1:INDEX(interval_applic,no_applic-1))))),1), 1), "") ->  | F21: =IF(LEFT(compartment,4)="terr",ROUND((1-EXP(-no_applic*LN(2)/2.3))/(1-EXP(-LN(2)/2.3)),1),"") ->  | G21: =IF(LEFT(compartment,4)="terr",ROUND((1-EXP(-no_applic*LN(2)/6))/(1-EXP(-LN(2)/6)),1),"") ->  | I21: =IF(SUM(vd_rate_final), IF(AND(dt50_value<1,LEFT(vd!vd_rate_select,4)="calc"), "DT50 of "&ROUND(dt50_value*24,1)&" h is < 1 d" &" → v/d reduced to max. 24-h amount of "&TEXT(dt50_act_red,"0 %"), ""), "") -> 
B23: =IF(LEFT(compartment,4)="aqua","exposure type",IF(compartment="terrestrial arthropods","vdf (2D/3D correction)",IF(compartment="terrestrial plants","interception (off-crop)",""))) -> exposure type
B24: PECini/PECact | D24: =IF(parameter="PECtwa","twa int. (d)","") ->  | E24: 21 | H24: PEC unit | I24: µg/L | J24: factor | K24: =IF(ISERROR(MATCH(PEC_unit,INDIRECT("select_PEC_"&LEFT(compartment,4)&"_"&MID(compartment,23,3)),0)), 1, VLOOKUP(applic_rate_unit,INDIRECT("matrix_rate_PEC_"&LEFT(compartment,4)&"_"&MID(compartment,23,3)), MATCH(PEC_unit,OFFSET(INDIRECT("matrix_rate_PEC_"&LEFT(compartment,4)&"_"&MID(compartment,23,3)),,,1),FALSE),FALSE)) *IF(N(parameter)=0, 1, IF(LEFT(select_parameter,3)="vdf",1/parameter,1-parameter)) -> 0.3333333333
B26: report data
B27: =HLOOKUP(compartment,report_table_content,ROW()-MATCH("report data",B:B,0)+1,FALSE) -> active substance/product: | C27: =IF(active_substance_product<>"",active_substance_product,"") -> examplamine | H27: report
B28: intended use: | C28: =IF(intended_use<>"",intended_use,"") -> 00-001 | H28: document | I28: NA
B29: application parameters: | C29: =no_applic&" × " &IF(MIN(applic_rate1:INDEX(applic_rate,,no_applic))<MAX(applic_rate1:INDEX(applic_rate,,no_applic)), MIN(applic_rate1:INDEX(applic_rate,,no_applic))&"-"&MAX(applic_rate1:INDEX(applic_rate,,no_applic)), MIN(applic_rate1:INDEX(applic_rate,,no_applic))) &" "&applic_rate_unit &IF(no_applic>1, ", "&"interval " &IF(MIN(interval_applic1:INDEX(interval_applic,,no_applic))<MAX(interval_applic1:INDEX(interval_applic,,no_applic)), MIN(interval_applic1:INDEX(interval_applic,,no_applic))&"-"&MAX(interval_applic1:INDEX(interval_applic,,no_applic)), MIN(interval_applic1:INDEX(interval_applic,,no_applic)))&" d", "") &IF(SUM(vd_rate_final),"; v/d considered for applic. #"&vd_applic_crit,"") -> 3 × 100 g/ha, interval 10 d
B30: DisT50 water phase (SFO): | C30: =IF(LEFT(mult_applic,3)="eff", "cumulation of effects (based on "&select_fitting_approach&"-fitted dose-response curve)", IF(ISERROR(MATCH(dt50_type,INDIRECT("dt50_select_"&LEFT(compartment,4)),0)), "", HLOOKUP(dt50_type,INDIRECT("dt50_value_"&LEFT(compartment,4)),2+(LEFT(compartment,4)="terr"),FALSE) &IF(AND(no_applic>1,LEFT(compartment,4)="terr"), " (PEC calculations actually based on " &IF(LEFT(dt50_type,3)="MAF", "assumed DT50 of "&IF(MID(dt50_type,4,5)="plant",2.3,6)&" × " &IF(MIN(interval_applic1:INDEX(interval_applic,no_applic-1)),(MIN(interval_applic1:INDEX(interval_applic,no_applic-1))),1)&" d = ", "DT50 of ") &HLOOKUP(dt50_type,INDIRECT("dt50_value_"&LEFT(compartment,4)),2,FALSE)&" d)", IF(LEFT(compartment,4)="aqua", " d", "")))) -> 10 d
B31: scenario, drift percentile: | C31: =IF(ISTEXT(INDEX(factor,,1))*(no_applic>=1),INDEX(factor,,1),"") &IF(ISTEXT(INDEX(factor,,2))*(no_applic>=2),", "&INDEX(factor,,2),"") &IF(ISTEXT(INDEX(factor,,3))*(no_applic>=3),", "&INDEX(factor,,3),"") &IF(ISTEXT(INDEX(factor,,4))*(no_applic>=4),", "&INDEX(factor,,4),"") &IF(ISTEXT(INDEX(factor,,5))*(no_applic>=5),", "&INDEX(factor,,5),"") &IF(ISTEXT(INDEX(factor,,6))*(no_applic>=6),", "&INDEX(factor,,6),"") &IF(ISTEXT(INDEX(factor,,7))*(no_applic>=7),", "&INDEX(factor,,7),"") &IF(ISTEXT(INDEX(factor,,8))*(no_applic>=8),", "&INDEX(factor,,8),"") &IF(ISTEXT(INDEX(factor,,9))*(no_applic>=9),", "&INDEX(factor,,9),"") &IF(ISTEXT(INDEX(factor,,10))*(no_applic>=10),", "&INDEX(factor,,10),"") &IF(ISTEXT(INDEX(factor,,11))*(no_applic>=11),", "&INDEX(factor,,11),"") &IF(ISTEXT(INDEX(factor,,12))*(no_applic>=12),", "&INDEX(factor,,12),"") &IF(ISNUMBER(FIND("no drift",factor)),"",", "&INDEX(drift_percentile,,IF(select_perc_type="MAF-crit",13,no_applic))) &IF(select_perc_type="MAF-crit"," (reflecting residue dynamics)","") -> arable crops, 77 %-ile
B32: PEC type: | C32: =IF(ISERROR(MATCH(parameter,INDIRECT("select_"&LEFT(select_parameter,3)),0)), "", IF(parameter="PECtwa", parameter&", twa interval "&twa_int_value&" d", parameter)) -> PECini/PECact
B34: ="PEC calculation ("&PEC_unit&")" -> PEC calculation (µg/L)
C35: dist. (m) | D35: (final) drift-% | E35: drift only | F35: (critical) v/d-% | G35: v/d only | H35: no drift reduction | I35: 50% drift reduction | J35: 75% drift reduction | K35: 90% drift reduction
C36: =VLOOKUP(INDEX(factor,MAX(((factor1:INDEX(factor,no_applic))<>"")*(COLUMN(factor1:INDEX(factor,no_applic))-2))),drift_percent_01m,COLUMN()-1,FALSE) -> 1 | D36: =IF( VLOOKUP(INDEX(factor,MAX(((factor1:INDEX(factor,no_applic))<>"")*(COLUMN(factor1:INDEX(factor,no_applic))-2))),drift_percent_01m, IF(select_perc_type="MAF-crit",13,no_applic)+2,FALSE), VLOOKUP(INDEX(factor,MAX(((factor1:INDEX(factor,no_applic))<>"")*(COLUMN(factor1:INDEX(factor,no_applic))-2))),drift_percent_01m, IF(select_perc_type="MAF-crit",13,no_applic)+2,FALSE), "-/-") -> 0.0201 | E36: =IF(IF(parameter="PECtwa",drift_only!twa_max_01m,drift_only!peak_max_01m), IF(parameter="PECtwa",drift_only!twa_max_01m,drift_only!peak_max_01m)*scenario_factor, "-/-") -> 1.1725 | F36: =IF(vd_perc_final_01m<>0,vd_perc_final_01m,"-/-") -> -/- | G36: =IF(vd_rate_final_01m<>0,vd_rate_final_01m*scenario_factor,"-/-") -> -/- | H36: =IF(LEFT(mult_applic,3)="eff", 'drift_cum-effect'!peak_max_00p_01m, IF(parameter="PECtwa",drift_red_no!twa_max_01m,drift_red_no!peak_max_01m)*scenario_factor) -> 1.1725 | I36: =IF(SUM(ISNUMBER(FIND("knapsack",factor))*1)+SUM(ISNUMBER(FIND("gardening",factor))*1)+SUM(ISNUMBER(FIND("no drift",factor))*1), "", IF(LEFT(mult_applic,3)="eff", 'drift_cum-effect'!peak_max_50p_01m, IF(parameter="PECtwa",drift_red_50!twa_max_01m,drift_red_50!peak_max_01m)*scenario_factor)) -> 0.58625 | J36: =IF(SUM(ISNUMBER(FIND("knapsack",factor))*1)+SUM(ISNUMBER(FIND("gardening",factor))*1)+SUM(ISNUMBER(FIND("no drift",factor))*1), "", IF(LEFT(mult_applic,3)="eff", 'drift_cum-effect'!peak_max_75p_01m, IF(parameter="PECtwa",drift_red_75!twa_max_01m,drift_red_75!peak_max_01m)*scenario_factor)) -> 0.293125 | K36: =IF(SUM(ISNUMBER(FIND("knapsack",factor))*1)+SUM(ISNUMBER(FIND("gardening",factor))*1)+SUM(ISNUMBER(FIND("no drift",factor))*1), "", IF(LEFT(mult_applic,3)="eff", 'drift_cum-effect'!peak_max_90p_01m, IF(parameter="PECtwa",drift_red_90!twa_max_01m,drift_red_90!peak_max_01m)*scenario_factor)) -> 0.11725 | L36: =IF(AND(LEFT(compartment,4)="aqua",water_solubility_20<>""), IF(LEN(vd_limit_wat_sol),"← v/d limited by water solubility!",""), "") -> 
C37: =VLOOKUP(INDEX(factor,MAX(((factor1:INDEX(factor,no_applic))<>"")*(COLUMN(factor1:INDEX(factor,no_applic))-2))),drift_percent_05m,COLUMN()-1,FALSE) -> 5 | D37: =IF( VLOOKUP(INDEX(factor,MAX(((factor1:INDEX(factor,no_applic))<>"")*(COLUMN(factor1:INDEX(factor,no_applic))-2))),drift_percent_05m, IF(select_perc_type="MAF-crit",13,no_applic)+2,FALSE), VLOOKUP(INDEX(factor,MAX(((factor1:INDEX(factor,no_applic))<>"")*(COLUMN(factor1:INDEX(factor,no_applic))-2))),drift_percent_05m, IF(select_perc_type="MAF-crit",13,no_applic)+2,FALSE), "-/-") -> 0.0041 | E37: =IF(IF(parameter="PECtwa",drift_only!twa_max_05m,drift_only!peak_max_05m), IF(parameter="PECtwa",drift_only!twa_max_05m,drift_only!peak_max_05m)*scenario_factor, "-/-") -> 0.2391666667 | F37: =IF(vd_perc_final_05m<>0,vd_perc_final_05m,"-/-") -> -/- | G37: =IF(vd_rate_final_05m<>0,vd_rate_final_05m*scenario_factor,"-/-") -> -/- | H37: =IF(LEFT(mult_applic,3)="eff", 'drift_cum-effect'!peak_max_00p_05m, IF(parameter="PECtwa",drift_red_no!twa_max_05m,drift_red_no!peak_max_05m)*scenario_factor) -> 0.2391666667 | I37: =IF(SUM(ISNUMBER(FIND("knapsack",factor))*1)+SUM(ISNUMBER(FIND("gardening",factor))*1)+SUM(ISNUMBER(FIND("no drift",factor))*1), "", IF(LEFT(mult_applic,3)="eff", 'drift_cum-effect'!peak_max_50p_05m, IF(parameter="PECtwa",drift_red_50!twa_max_05m,drift_red_50!peak_max_05m)*scenario_factor)) -> 0.1195833333 | J37: =IF(SUM(ISNUMBER(FIND("knapsack",factor))*1)+SUM(ISNUMBER(FIND("gardening",factor))*1)+SUM(ISNUMBER(FIND("no drift",factor))*1), "", IF(LEFT(mult_applic,3)="eff", 'drift_cum-effect'!peak_max_75p_05m, IF(parameter="PECtwa",drift_red_75!twa_max_05m,drift_red_75!peak_max_05m)*scenario_factor)) -> 0.05979166667 | K37: =IF(SUM(ISNUMBER(FIND("knapsack",factor))*1)+SUM(ISNUMBER(FIND("gardening",factor))*1)+SUM(ISNUMBER(FIND("no drift",factor))*1), "", IF(LEFT(mult_applic,3)="eff", 'drift_cum-effect'!peak_max_90p_05m, IF(parameter="PECtwa",drift_red_90!twa_max_05m,drift_red_90!peak_max_05m)*scenario_factor)) -> 0.02391666667
C38: =IF(OR(LEFT(compartment,4)="aqua",report_doc="CA"), VLOOKUP(INDEX(factor,MAX(((factor1:INDEX(factor,no_applic))<>"")*(COLUMN(factor1:INDEX(factor,no_applic))-2))),drift_percent_10m,COLUMN()-1,FALSE), "") -> 10 | D38: =IF(OR(LEFT(compartment,4)="aqua",report_doc="CA"), IF( VLOOKUP(INDEX(factor,MAX(((factor1:INDEX(factor,no_applic))<>"")*(COLUMN(factor1:INDEX(factor,no_applic))-2))),drift_percent_10m, IF(select_perc_type="MAF-crit",13,no_applic)+2,FALSE), VLOOKUP(INDEX(factor,MAX(((factor1:INDEX(factor,no_applic))<>"")*(COLUMN(factor1:INDEX(factor,no_applic))-2))),drift_percent_10m, IF(select_perc_type="MAF-crit",13,no_applic)+2,FALSE), "-/-"), "") -> 0.002 | E38: =IF(OR(LEFT(compartment,4)="aqua",report_doc="CA"), IF(IF(parameter="PECtwa",drift_only!twa_max_10m,drift_only!peak_max_10m)*scenario_factor, IF(parameter="PECtwa",drift_only!twa_max_10m,drift_only!peak_max_10m)*scenario_factor, "-/-"), "") -> 0.1166666667 | F38: =IF(OR(LEFT(compartment,4)="aqua",report_doc="CA"), IF(vd_perc_final_10m<>0,vd_perc_final_10m,"-/-"), "") -> -/- | G38: =IF(OR(LEFT(compartment,4)="aqua",report_doc="CA"), IF(vd_rate_final_10m<>0,vd_rate_final_10m*scenario_factor,"-/-"), "") -> -/- | H38: =IF(OR(LEFT(compartment,4)="aqua",report_doc="CA"), IF(LEFT(mult_applic,3)="eff", 'drift_cum-effect'!peak_max_00p_10m, IF(parameter="PECtwa",drift_red_no!twa_max_10m,drift_red_no!peak_max_10m)*scenario_factor), "") -> 0.1166666667 | I38: =IF(SUM(ISNUMBER(FIND("knapsack",factor))*1)+SUM(ISNUMBER(FIND("gardening",factor))*1)+SUM(ISNUMBER(FIND("no drift",factor))*1), "", IF(OR(LEFT(compartment,4)="aqua",report_doc="CA"), IF(LEFT(mult_applic,3)="eff", 'drift_cum-effect'!peak_max_50p_10m, IF(parameter="PECtwa",drift_red_50!twa_max_10m,drift_red_50!peak_max_10m)*scenario_factor), "")) -> 0.05833333333 | J38: =IF(SUM(ISNUMBER(FIND("knapsack",factor))*1)+SUM(ISNUMBER(FIND("gardening",factor))*1)+SUM(ISNUMBER(FIND("no drift",factor))*1), "", IF(OR(LEFT(compartment,4)="aqua",report_doc="CA"), IF(LEFT(mult_applic,3)="eff", 'drift_cum-effect'!peak_max_75p_10m, IF(parameter="PECtwa",drift_red_75!twa_max_10m,drift_red_75!peak_max_10m)*scenario_factor), "")) -> 0.02916666667 | K38: =IF(SUM(ISNUMBER(FIND("knapsack",factor))*1)+SUM(ISNUMBER(FIND("gardening",factor))*1)+SUM(ISNUMBER(FIND("no drift",factor))*1), "", IF(OR(LEFT(compartment,4)="aqua",report_doc="CA"), IF(LEFT(mult_applic,3)="eff", 'drift_cum-effect'!peak_max_90p_10m, IF(parameter="PECtwa",drift_red_90!twa_max_10m,drift_red_90!peak_max_10m)*scenario_factor), "")) -> 0.01166666667
C39: =IF(LEFT(compartment,4)="aqua", VLOOKUP(INDEX(factor,MAX(((factor1:INDEX(factor,no_applic))<>"")*(COLUMN(factor1:INDEX(factor,no_applic))-2))),drift_percent_15m,COLUMN()-1,FALSE), "") -> 15 | D39: =IF(LEFT(compartment,4)="aqua", IF( VLOOKUP(INDEX(factor,MAX(((factor1:INDEX(factor,no_applic))<>"")*(COLUMN(factor1:INDEX(factor,no_applic))-2))),drift_percent_15m, IF(select_perc_type="MAF-crit",13,no_applic)+2,FALSE), VLOOKUP(INDEX(factor,MAX(((factor1:INDEX(factor,no_applic))<>"")*(COLUMN(factor1:INDEX(factor,no_applic))-2))),drift_percent_15m, IF(select_perc_type="MAF-crit",13,no_applic)+2,FALSE), "-/-"), "") -> 0.0014 | E39: =IF(LEFT(compartment,4)="aqua", IF(IF(parameter="PECtwa",drift_only!twa_max_15m,drift_only!peak_max_15m)*scenario_factor, IF(parameter="PECtwa",drift_only!twa_max_15m,drift_only!peak_max_15m)*scenario_factor, "-/-"), "") -> 0.08166666667 | F39: =IF(LEFT(compartment,4)="aqua", IF(vd_perc_final_15m<>0,vd_perc_final_15m,"-/-"), "") -> -/- | G39: =IF(LEFT(compartment,4)="aqua", IF(vd_rate_final_15m<>0,vd_rate_final_15m*scenario_factor,"-/-"), "") -> -/- | H39: =IF(LEFT(compartment,4)="aqua", IF(LEFT(mult_applic,3)="eff", 'drift_cum-effect'!peak_max_00p_15m, IF(parameter="PECtwa",drift_red_no!twa_max_15m,drift_red_no!peak_max_15m)*scenario_factor), "") -> 0.08166666667 | I39: =IF(SUM(ISNUMBER(FIND("knapsack",factor))*1)+SUM(ISNUMBER(FIND("gardening",factor))*1)+SUM(ISNUMBER(FIND("no drift",factor))*1), "", IF(LEFT(compartment,4)="aqua", IF(LEFT(mult_applic,3)="eff", 'drift_cum-effect'!peak_max_50p_15m, IF(parameter="PECtwa",drift_red_50!twa_max_15m,drift_red_50!peak_max_15m)*scenario_factor), "")) -> 0.04083333333 | J39: =IF(SUM(ISNUMBER(FIND("knapsack",factor))*1)+SUM(ISNUMBER(FIND("gardening",factor))*1)+SUM(ISNUMBER(FIND("no drift",factor))*1), "", IF(LEFT(compartment,4)="aqua", IF(LEFT(mult_applic,3)="eff", 'drift_cum-effect'!peak_max_75p_15m, IF(parameter="PECtwa",drift_red_75!twa_max_15m,drift_red_75!peak_max_15m)*scenario_factor), "")) -> 0.02041666667 | K39: =IF(SUM(ISNUMBER(FIND("knapsack",factor))*1)+SUM(ISNUMBER(FIND("gardening",factor))*1)+SUM(ISNUMBER(FIND("no drift",factor))*1), "", IF(LEFT(compartment,4)="aqua", IF(LEFT(mult_applic,3)="eff", 'drift_cum-effect'!peak_max_90p_15m, IF(parameter="PECtwa",drift_red_90!twa_max_15m,drift_red_90!peak_max_15m)*scenario_factor), "")) -> 0.008166666667
C40: =IF(LEFT(compartment,4)="aqua", VLOOKUP(INDEX(factor,MAX(((factor1:INDEX(factor,no_applic))<>"")*(COLUMN(factor1:INDEX(factor,no_applic))-2))),drift_percent_20m,COLUMN()-1,FALSE), "") -> 20 | D40: =IF(LEFT(compartment,4)="aqua", IF( VLOOKUP(INDEX(factor,MAX(((factor1:INDEX(factor,no_applic))<>"")*(COLUMN(factor1:INDEX(factor,no_applic))-2))),drift_percent_20m, IF(select_perc_type="MAF-crit",13,no_applic)+2,FALSE), VLOOKUP(INDEX(factor,MAX(((factor1:INDEX(factor,no_applic))<>"")*(COLUMN(factor1:INDEX(factor,no_applic))-2))),drift_percent_20m, IF(select_perc_type="MAF-crit",13,no_applic)+2,FALSE), "-/-"), "") -> 0.001 | E40: =IF(LEFT(compartment,4)="aqua", IF(IF(parameter="PECtwa",drift_only!twa_max_20m,drift_only!peak_max_20m)*scenario_factor, IF(parameter="PECtwa",drift_only!twa_max_20m,drift_only!peak_max_20m)*scenario_factor, "-/-"), "") -> 0.05833333333 | F40: =IF(LEFT(compartment,4)="aqua", IF(vd_perc_final_20m<>0,vd_perc_final_20m,"-/-"), "") -> -/- | G40: =IF(LEFT(compartment,4)="aqua", IF(vd_rate_final_20m<>0,vd_rate_final_20m*scenario_factor,"-/-"), "") -> -/- | H40: =IF(LEFT(compartment,4)="aqua", IF(LEFT(mult_applic,3)="eff", 'drift_cum-effect'!peak_max_00p_20m, IF(parameter="PECtwa",drift_red_no!twa_max_20m,drift_red_no!peak_max_20m)*scenario_factor), "") -> 0.05833333333 | I40: =IF(SUM(ISNUMBER(FIND("knapsack",factor))*1)+SUM(ISNUMBER(FIND("gardening",factor))*1)+SUM(ISNUMBER(FIND("no drift",factor))*1), "", IF(LEFT(compartment,4)="aqua", IF(LEFT(mult_applic,3)="eff", 'drift_cum-effect'!peak_max_50p_20m, IF(parameter="PECtwa",drift_red_50!twa_max_20m,drift_red_50!peak_max_20m)*scenario_factor), "")) -> 0.02916666667 | J40: =IF(SUM(ISNUMBER(FIND("knapsack",factor))*1)+SUM(ISNUMBER(FIND("gardening",factor))*1)+SUM(ISNUMBER(FIND("no drift",factor))*1), "", IF(LEFT(compartment,4)="aqua", IF(LEFT(mult_applic,3)="eff", 'drift_cum-effect'!peak_max_75p_20m, IF(parameter="PECtwa",drift_red_75!twa_max_20m,drift_red_75!peak_max_20m)*scenario_factor), "")) -> 0.01458333333 | K40: =IF(SUM(ISNUMBER(FIND("knapsack",factor))*1)+SUM(ISNUMBER(FIND("gardening",factor))*1)+SUM(ISNUMBER(FIND("no drift",factor))*1), "", IF(LEFT(compartment,4)="aqua", IF(LEFT(mult_applic,3)="eff", 'drift_cum-effect'!peak_max_90p_20m, IF(parameter="PECtwa",drift_red_90!twa_max_20m,drift_red_90!peak_max_20m)*scenario_factor), "")) -> 0.005833333333
B42: ecotoxicity data
B43: test species | C43: Daphnia magna | E43: endpt. type | F43: EC50 | G43: =IF(LEFT(mult_applic,3)="eff","→ enter dose-response information on worksheet 'cum-eff'","") -> 
B45: relevant effect value | C45: 25 | D45: =PEC_unit -> µg/L | E45: =IF(risk_desc_type="PEC/RAC","RAC","") ->  | F45: =IF(risk_desc_type="PEC/RAC",rel_effect_value/rel_TER_criterion,"") ->  | G45: =IF(risk_desc_type="PEC/RAC",PEC_unit,"") -> 
B46: ="relevant "&IF(risk_desc_type="TER","TER criterion",IF(risk_desc_type="PEC/RAC","assessment factor","correction factor")) -> relevant TER criterion | C46: 100 | E46: =IF(risk_desc_type="HQ (arthrop.)","HQ crit.","") ->  | F46: 2
B48: risk descriptor type | C48: TER | D48: =IF(AND(LEFT(compartment,4)<>"aqua",risk_desc_type="PEC/RAC"),"→ PEC/RAC approach only applicable for aquatic systems", IF(AND(compartment<>"terrestrial arthropods",risk_desc_type="HQ (arthrop.)"),"→ HQ approach only applicable for terrestrial arthropods", "")) -> 
B50: =IF(risk_desc_type="TER","TER",IF(risk_desc_type="PEC/RAC","PEC/RAC","HQ"))&" calculation" -> TER calculation
C51: dist. (m) | H51: no drift reduction | I51: 50% drift reduction | J51: 75% drift reduction | K51: 90% drift reduction
C52: =dist_matrix_final -> 1 | H52: =IF((ISNUMBER(PEC_matrix_final)*(PEC_matrix_final<>0)), IF(risk_desc_type="TER",ROUND(IF(ISNUMBER(rel_effect_value),rel_effect_value,0)/PEC_matrix_final,1), IF(risk_desc_type="PEC/RAC",ROUND(IF(ISNUMBER(rel_effect_value),PEC_matrix_final/reg_accept_conc,0),3), IF(risk_desc_type="HQ (arthrop.)",ROUND(IF(ISNUMBER(rel_effect_value),PEC_matrix_final*rel_TER_criterion/rel_effect_value,0),3),""))), "") -> 21.3 | I52: 42.6 | J52: 85.3 | K52: 213.2
C53: 5 | H53: 104.5 | I53: 209.1 | J53: 418.1 | K53: 1045.3
C54: 10 | H54: 214.3 | I54: 428.6 | J54: 857.1 | K54: 2142.9
C55: 15 | H55: 306.1 | I55: 612.2 | J55: 1224.5 | K55: 3061.2
C56: 20 | H56: 428.6 | I56: 857.1 | J56: 1714.3 | K56: 4285.7
B58: risk mitigation measures
C59: dist. (m) | D59: drift red. index | E59: req'd drift reduction | H59: =IF(SUM(ISNUMBER(FIND("knapsack",factor))*1),"For applications with knapsack sprayers:", IF(SUM(ISNUMBER(FIND("gardening",factor))*1),"For applications in home gardening:", IF(SUM(ISNUMBER(FIND("no drift",factor))*1),"For applications in greenhouses:", ""))) -> 
C60: =dist_matrix_final -> 1 | D60: =IF(risk_desc_type="TER",IF(ISNUMBER(TER_final_01m),4-SUM((TER_final_01m>=rel_TER_criterion)*1),""), IF(risk_desc_type="PEC/RAC",IF(ISNUMBER(TER_final_01m),4-SUM((TER_final_01m<=1)*1),""), IF(risk_desc_type="HQ (arthrop.)",IF(ISNUMBER(TER_final_01m),4-SUM((TER_final_01m<=rel_HQ_criterion)*1),""), ""))) -> 3 | E60: =IF(ISNUMBER(D60),CHOOSE(D60+1,"none","50%","75%","90%","insufficient"),"") -> 90% | H60: =IF(SUM(ISNUMBER(FIND("knapsack",factor))*1)+SUM(ISNUMBER(FIND("gardening",factor))*1)+SUM(ISNUMBER(FIND("no drift",factor))*1), "- drift reduction cannot be considered for risk mitigation", "") -> 
C61: 5 | D61: =IF(risk_desc_type="TER",IF(ISNUMBER(TER_final_05m),4-SUM((TER_final_05m>=rel_TER_criterion)*1),""), IF(risk_desc_type="PEC/RAC",IF(ISNUMBER(TER_final_05m),4-SUM((TER_final_05m<=1)*1),""), IF(risk_desc_type="HQ (arthrop.)",IF(ISNUMBER(TER_final_05m),4-SUM((TER_final_05m<=rel_HQ_criterion)*1),""), ""))) -> 0 | E61: =IF(ISNUMBER(D61),CHOOSE(D61+1,"none","50%","75%","90%","insufficient"),"") -> none | H61: =IF(SUM(ISNUMBER(FIND("knapsack",factor))*1),"- drift reduction and buffer zones not applicable for terrestrial habitats", IF(SUM(ISNUMBER(FIND("gardening",factor))*1),"- buffer zones to terrestrial habitats cannot be considered for risk mitigation", IF(SUM(ISNUMBER(FIND("no drift",factor))*1),"- buffer zone values provided for information only", ""))) -> 
C62: 10 | D62: =IF(risk_desc_type="TER",IF(ISNUMBER(TER_final_10m),4-SUM((TER_final_10m>=rel_TER_criterion)*1),""), IF(risk_desc_type="PEC/RAC",IF(ISNUMBER(TER_final_10m),4-SUM((TER_final_10m<=1)*1),""), IF(risk_desc_type="HQ (arthrop.)",IF(ISNUMBER(TER_final_10m),4-SUM((TER_final_10m<=rel_HQ_criterion)*1),""), ""))) -> 0 | E62: =IF(ISNUMBER(D62),CHOOSE(D62+1,"none","50%","75%","90%","insufficient"),"") -> none | H62: =IF(SUM(ISNUMBER(FIND("gardening",factor))*1), "- buffer zones > 10 m to water bodies cannot be considered for risk mitigation", "") -> 
C63: 15 | D63: =IF(risk_desc_type="TER",IF(ISNUMBER(TER_final_15m),4-SUM((TER_final_15m>=rel_TER_criterion)*1),""), IF(risk_desc_type="PEC/RAC",IF(ISNUMBER(TER_final_15m),4-SUM((TER_final_15m<=1)*1),""), IF(risk_desc_type="HQ (arthrop.)",IF(ISNUMBER(TER_final_15m),4-SUM((TER_final_15m<=rel_HQ_criterion)*1),""), ""))) -> 0 | E63: =IF(ISNUMBER(D63),CHOOSE(D63+1,"none","50%","75%","90%","insufficient"),"") -> none
C64: 20 | D64: =IF(risk_desc_type="TER",IF(ISNUMBER(TER_final_20m),4-SUM((TER_final_20m>=rel_TER_criterion)*1),""), IF(risk_desc_type="PEC/RAC",IF(ISNUMBER(TER_final_20m),4-SUM((TER_final_20m<=1)*1),""), IF(risk_desc_type="HQ (arthrop.)",IF(ISNUMBER(TER_final_20m),4-SUM((TER_final_20m<=rel_HQ_criterion)*1),""), ""))) -> 0 | E64: =IF(ISNUMBER(D64),CHOOSE(D64+1,"none","50%","75%","90%","insufficient"),"") -> none | G64: restriction | H64: =IF(report_doc="NA", INDEX(matrix_restriction,MATCH(MIN(drift_red_index),INDEX(matrix_restriction,,1),0),MATCH(MAX(drift_red_index),INDEX(matrix_restriction,1,),0)), "") -> NW605/606
H66: no drift reduction | I66: 50% drift reduction | J66: 75% drift reduction | K66: 90% drift reduction
G67: req'd dist. (m) | H67: =IF(SUM(INDEX(TER_matrix_final,,COLUMN()-7)), IF(risk_desc_type="TER", IF(SUM((INDEX(TER_matrix_final,,COLUMN()-7)>=rel_TER_criterion)*(INDEX(TER_matrix_final,,COLUMN()-7)<>"")), INDEX(dist_matrix_final,6-SUM((INDEX(TER_matrix_final,,COLUMN()-7)>=rel_TER_criterion)*1)), "insufficient"), IF(risk_desc_type="PEC/RAC", IF(SUM((INDEX(TER_matrix_final,,COLUMN()-7)<=1)*(INDEX(TER_matrix_final,,COLUMN()-7)<>"")), INDEX(dist_matrix_final,COUNT(dist_matrix_final)+1-SUM((INDEX(TER_matrix_final,,COLUMN()-7)<=1)*1)), "insufficient"), IF(risk_desc_type="HQ (arthrop.)", IF(SUM((INDEX(TER_matrix_final,,COLUMN()-7)<=rel_HQ_criterion)*(INDEX(TER_matrix_final,,COLUMN()-7)<>"")), INDEX(dist_matrix_final,COUNT(dist_matrix_final)+1-SUM((INDEX(TER_matrix_final,,COLUMN()-7)<=rel_HQ_criterion)*1)), "insufficient"), ""))), "") -> 5 | I67: 5 | J67: 5 | K67: 1

Sheet vd
B3: physico-chemical data
B4: vapour pressure meas. (Pa)
B5: at temperature (°C or K) | D5: =IF(vapour_pressure_temp="","", IF(vapour_pressure_temp<=100,"°C","K")) -> 
B6: vapour pressure, 20 °C (Pa) | C6: =IF(vapour_pressure_temp="", vapour_pressure_meas, ROUND(EXP(-((95000/8.3143)*((1/293.15)-(1/(vapour_pressure_temp+273.15*(vapour_pressure_temp<=100)))))+LN(vapour_pressure_meas)),15)) -> 0 | E6: ="substance is "&HLOOKUP(vapour_pressure_20,volatility_class_def,2) -> substance is nonvolatile
B7: water solubility meas. (mg/L)
B8: at temperature (°C or K) | D8: =IF(water_solubility_temp="","", IF(water_solubility_temp<=100,"°C","K")) -> 
B9: water solubility, 20 °C (mg/L) | C9: =IF(water_solubility_meas="", "", IF(water_solubility_temp="", water_solubility_meas, ROUND(EXP(-((27000/8.3143)*((1/293.15)-(1/(water_solubility_temp+273.15*(water_solubility_temp<=100)))))+LN(water_solubility_meas)),15))) ->  | E9: =IF(MID(compartment,23,3)="sed",water_solubility_20*((300*perc_in_sed)/(10*sed_layer*sed_density)*(1+f_accu_plat)),"") ->  | F9: =IF(MID(compartment,23,3)="sed","mg/kg (expressed as sed. concentration)","") -> 
B11: intended use parameters
B12: active substance/product | C12: =IF(main!active_substance_product<>"",main!active_substance_product,"") -> examplamine
B13: intended use | C13: =IF(main!intended_use<>"",main!intended_use,"") -> 00-001
B15: select critical applic. for v/d | C15: final application rate | E15: =IF(LEFT(mult_applic,3)="res", IF(select_vd_applic_crit="final application rate","worst case for equal application rates and intervals", IF((RIGHT(select_vd_applic_crit,6)<>RIGHT(parameter,6))-(RIGHT(select_vd_applic_crit,4)="rate"), "exposure types for drift and v/d must match", "check overall PEC to select worst-case approach")), IF(select_vd_applic_crit="max. application rate","relevant when considering effect cumulation","not relevant when considering effect cumulation")) -> worst case for equal application rates and intervals
B16: critical application # | C16: =IF(select_vd_applic_crit="final application rate",no_applic, IF(select_vd_applic_crit="max. application rate",MAX((MAX(act_applic_rate)=act_applic_rate)*COLUMN(act_applic_rate)), IF(select_vd_applic_crit="max. drift PECact",MATCH(drift_only!peak_max_01m,drift_only!peak_amount_01m,0), IF(select_vd_applic_crit="max. drift PECtwa",MATCH(drift_only!twa_max_01m,drift_only!twa_sum_01m,0))))) -> 3 | E16: =IF(LEFT(select_vd_applic_crit,3)="max","currently not applied in regulation","") -> 
B17: critical application rate | C17: =INDEX(act_applic_rate,vd_applic_crit) -> 100 | D17: =applic_rate_unit -> g/ha
B18: relevant applic. rate for v/d | C18: =ROUND( INDEX(act_applic_rate,vd_applic_crit) *(1-IF(vd_rate_select="measured data",0,VLOOKUP(crit_drift_scenario,vd_percent_01m,2,FALSE))), 3) -> 99.748 | D18: =applic_rate_unit -> g/ha | E18: =IF( OR(vd_rate_select="measured data",VLOOKUP(crit_drift_scenario,vd_percent_01m,2,FALSE)=0), "", "(reduced by drift loss of "&ROUND(100*VLOOKUP(crit_drift_scenario,vd_percent_01m,2,FALSE),3)&" %)") -> (reduced by drift loss of 0,252 %)
B20: critical drift scenario | C20: =INDEX(act_factor,vd_applic_crit) -> arable crops
B22: field-related parameters
B23: crop interception | C23: 1 | E23: =IF(crop_interception=1,"worst case","select upper limit for critical application for v/d") -> worst case
B25: greenhouse-related parameters | D25: default | E25: user input
B26: greenhouse area (m²) | C26: =IF(grnhouse_area_user,grnhouse_area_user,grnhouse_area_default) -> 300 | D26: 300
B27: greenhouse volume, VG (m³) | C27: =IF(grnhouse_vol_user,grnhouse_vol_user,grnhouse_vol_default) -> 1000 | D27: 1000
B28: air exchange rate, XR (VG/h) | C28: =IF(grnhouse_exchange_user,grnhouse_exchange_user,grnhouse_exchange_default) -> 24.5 | D28: 24.5
B30: applied amount/greenhouse | C30: =grnhouse_area*applic_rate_vd /IF(RIGHT(applic_rate_unit,2)="ha",10000,1) -> 2.99244 | D30: =LEFT(applic_rate_unit,SEARCH("/",applic_rate_unit)-1) -> g
B32: deposition percentages
B33: calculated values | C33: dist. (m) | D33: v/d (plants) | E33: v/d (soil) | F33: v/d (calc.)
C34: =VLOOKUP(crit_drift_scenario,vd_percent_01m,3,FALSE) -> 1 | D34: =VLOOKUP(crit_drift_scenario,vd_percent_01m,HLOOKUP(vapour_pressure_20,volatility_class_def,3,TRUE)+5,FALSE) -> 0 | E34: =VLOOKUP(crit_drift_scenario,vd_percent_01m,HLOOKUP(vapour_pressure_20,volatility_class_def,3,TRUE)+9,FALSE) -> 0 | F34: =crop_interception*D34+(1-crop_interception)*E34 -> 0
C35: =VLOOKUP(crit_drift_scenario,vd_percent_05m,3,FALSE) -> 5 | D35: =VLOOKUP(crit_drift_scenario,vd_percent_05m,HLOOKUP(vapour_pressure_20,volatility_class_def,3,TRUE)+5,FALSE) -> 0 | E35: =VLOOKUP(crit_drift_scenario,vd_percent_05m,HLOOKUP(vapour_pressure_20,volatility_class_def,3,TRUE)+9,FALSE) -> 0 | F35: =crop_interception*D35+(1-crop_interception)*E35 -> 0
C36: =VLOOKUP(crit_drift_scenario,vd_percent_10m,3,FALSE) -> 10 | D36: =VLOOKUP(crit_drift_scenario,vd_percent_10m,HLOOKUP(vapour_pressure_20,volatility_class_def,3,TRUE)+5,FALSE) -> 0 | E36: =VLOOKUP(crit_drift_scenario,vd_percent_10m,HLOOKUP(vapour_pressure_20,volatility_class_def,3,TRUE)+9,FALSE) -> 0 | F36: =crop_interception*D36+(1-crop_interception)*E36 -> 0
C37: =VLOOKUP(crit_drift_scenario,vd_percent_15m,3,FALSE) -> 15 | D37: =VLOOKUP(crit_drift_scenario,vd_percent_15m,HLOOKUP(vapour_pressure_20,volatility_class_def,3,TRUE)+5,FALSE) -> 0 | E37: =VLOOKUP(crit_drift_scenario,vd_percent_15m,HLOOKUP(vapour_pressure_20,volatility_class_def,3,TRUE)+9,FALSE) -> 0 | F37: =crop_interception*D37+(1-crop_interception)*E37 -> 0
C38: =VLOOKUP(crit_drift_scenario,vd_percent_20m,3,FALSE) -> 20 | D38: =VLOOKUP(crit_drift_scenario,vd_percent_20m,HLOOKUP(vapour_pressure_20,volatility_class_def,3,TRUE)+5,FALSE) -> 0 | E38: =VLOOKUP(crit_drift_scenario,vd_percent_20m,HLOOKUP(vapour_pressure_20,volatility_class_def,3,TRUE)+9,FALSE) -> 0 | F38: =crop_interception*D38+(1-crop_interception)*E38 -> 0
B40: measured data | E40: dist. (m) | F40: v/d (meas.)
B41: (where available) | E41: =VLOOKUP(crit_drift_scenario,vd_percent_01m,3,FALSE) -> 1
B42: crop interception in study | C42: 1 | E42: =VLOOKUP(crit_drift_scenario,vd_percent_05m,3,FALSE) -> 5
B43: corr. factor for interception | C43: =(crop_interception*0.75+(1-crop_interception)*0.25)/(crop_interc_study*0.75+(1-crop_interc_study)*0.25) -> 1 | E43: =VLOOKUP(crit_drift_scenario,vd_percent_10m,3,FALSE) -> 10
E44: =VLOOKUP(crit_drift_scenario,vd_percent_15m,3,FALSE) -> 15
E45: =VLOOKUP(crit_drift_scenario,vd_percent_20m,3,FALSE) -> 20
B47: deposition rates
B48: calculated values | D48: dist. (m) | E48: v/d-% | F48: ="v/d ("&applic_rate_unit&")" -> v/d (g/ha)
D49: =VLOOKUP(crit_drift_scenario,vd_percent_01m,3,FALSE) -> 1 | E49: =IF(AND(LEFT(compartment,4)="aqua",water_solubility_20<>""), IF( (applic_rate_vd *INDIRECT("vd_percent_"&LEFT(vd_rate_select,4))*IF(AND(dt50_value<1,LEFT(vd_rate_select,4)="calc"),dt50_act_red,1) *IF(LEFT(vd_rate_select,4)="meas",cf_interc_study,1) *(main!scenario_factor/(10^((LEFT(PEC_unit,1)="µ")*3)))) >IF(MID(compartment,23,3)="sed",water_solubility_20_sed,water_solubility_20), IF(MID(compartment,23,3)="sed",water_solubility_20_sed,water_solubility_20)*(10^((LEFT(PEC_unit,1)="µ")*3)) /(main!scenario_factor*applic_rate_vd), INDIRECT("vd_percent_"&LEFT(vd_rate_select,4))*IF(AND(dt50_value<1,LEFT(vd_rate_select,4)="calc"),dt50_act_red,1) *IF(LEFT(vd_rate_select,4)="meas",cf_interc_study,1)), INDIRECT("vd_percent_"&LEFT(vd_rate_select,4))*IF(AND(dt50_value<1,LEFT(vd_rate_select,4)="calc"),dt50_act_red,1) *IF(LEFT(vd_rate_select,4)="meas",cf_interc_study,1)) -> 0 | F49: =IF(AND(LEFT(compartment,4)="aqua",water_solubility_20<>""), IF( (applic_rate_vd *INDIRECT("vd_percent_"&LEFT(vd_rate_select,4))*IF(AND(dt50_value<1,LEFT(vd_rate_select,4)="calc"),dt50_act_red,1) *IF(LEFT(vd_rate_select,4)="meas",cf_interc_study,1) *(main!scenario_factor/(10^((LEFT(PEC_unit,1)="µ")*3)))) >IF(MID(compartment,23,3)="sed",water_solubility_20_sed,water_solubility_20), IF(MID(compartment,23,3)="sed",water_solubility_20_sed,water_solubility_20)*(10^((LEFT(PEC_unit,1)="µ")*3)) /main!scenario_factor, applic_rate_vd *INDIRECT("vd_percent_"&LEFT(vd_rate_select,4))*IF(AND(dt50_value<1,LEFT(vd_rate_select,4)="calc"),dt50_act_red,1) *IF(LEFT(vd_rate_select,4)="meas",cf_interc_study,1)), applic_rate_vd *INDIRECT("vd_percent_"&LEFT(vd_rate_select,4))*IF(AND(dt50_value<1,LEFT(vd_rate_select,4)="calc"),dt50_act_red,1) *IF(LEFT(vd_rate_select,4)="meas",cf_interc_study,1)) -> 0 | G49: =IF(AND(LEFT(compartment,4)="aqua",water_solubility_20<>""), IF( (applic_rate_vd *INDIRECT("vd_percent_"&LEFT(vd_rate_select,4))*IF(AND(dt50_value<1,LEFT(vd_rate_select,4)="calc"),dt50_act_red,1) *IF(LEFT(vd_rate_select,4)="meas",cf_interc_study,1) *(main!scenario_factor/(10^((LEFT(PEC_unit,1)="µ")*3)))) >IF(MID(compartment,23,3)="sed",water_solubility_20_sed,water_solubility_20), "← limited by water solubility!", ""), "") -> 
B50: =IF(AND(dt50_value<1,LEFT(vd!vd_rate_select,4)="calc"), "DT50 of "&ROUND(dt50_value*24,1)&" h is < 1 d", "") ->  | D50: =VLOOKUP(crit_drift_scenario,vd_percent_05m,3,FALSE) -> 5 | E50: 0 | F50: 0
B51: =IF(AND(dt50_value<1,LEFT(vd!vd_rate_select,4)="calc"), "→ v/d reduced to max. 24-h amount of "&TEXT(dt50_act_red,"0 %"), "") ->  | D51: =VLOOKUP(crit_drift_scenario,vd_percent_10m,3,FALSE) -> 10 | E51: 0 | F51: 0
D52: =VLOOKUP(crit_drift_scenario,vd_percent_15m,3,FALSE) -> 15 | E52: 0 | F52: 0
D53: =VLOOKUP(crit_drift_scenario,vd_percent_20m,3,FALSE) -> 20 | E53: 0 | F53: 0

Sheet vd_24h_FOCUS (hidden)
B3: =IF(vd!crit_drift_scenario="greenhouse (no drift)","temp. resolution of v/d not supported","") ->  | E3: rate unit | F3: =applic_rate_unit -> g/ha
B4: =IF(vd!crit_drift_scenario="greenhouse (no drift)","by data for the greenhouse scenario","") -> 
E5: dep. unit | F5: mg/m² | H5: factor | I5: =VLOOKUP(applic_rate_unit,matrix_rate_PEC_terr_, MATCH(dep_unit,OFFSET(matrix_rate_PEC_terr_,,,1),FALSE),FALSE) -> 0.1
D7: dist. (m) | E7: =VLOOKUP(vd!crit_drift_scenario,vd_percent_01m,3,FALSE) -> 1 | F7: =VLOOKUP(vd!crit_drift_scenario,vd_percent_05m,3,FALSE) -> 5 | G7: =VLOOKUP(vd!crit_drift_scenario,vd_percent_10m,3,FALSE) -> 10 | H7: =VLOOKUP(vd!crit_drift_scenario,vd_percent_15m,3,FALSE) -> 15 | I7: =VLOOKUP(vd!crit_drift_scenario,vd_percent_20m,3,FALSE) -> 20
B8: time (h) | C8: ="v/d per h"&CHAR(10)&IF(VLOOKUP(vd!crit_drift_scenario,vd_percent_01m,4,FALSE)-1,"high crop","arable crop") -> v/d per h arable crop | D8: v/d in 24 h no dissip. | E8: =TRANSPOSE(INDIRECT("vd!vd_percent_"&LEFT(vd!vd_rate_select,4)) *IF(LEFT(vd!vd_rate_select,4)="meas",vd!cf_interc_study,1)) -> 0 | F8: 0 | G8: 0 | H8: 0 | I8: 0
B9: =TRANSPOSE(OFFSET(vd_data!vd_dynamics_time,0,0,1,24))&" - "&TRANSPOSE(OFFSET(vd_data!vd_dynamics_time,0,1,1,24)) -> 0 - 1 | C9: =TRANSPOSE(OFFSET( IF(VLOOKUP(vd!crit_drift_scenario,vd_percent_01m,4,FALSE)-1,vd_data!vd_dynamics_high,vd_data!vd_dynamics_arable), 0,1,1,24)) -> 0.09090909091 | E9: =applic_rate_vd*(C9:C32)*(E8:I8)*rate_dep_factor -> 0 | F9: 0 | G9: 0 | H9: 0 | I9: 0
B10: 1 - 2 | C10: 0.09090909091 | E10: 0 | F10: 0 | G10: 0 | H10: 0 | I10: 0
B11: 2 - 3 | C11: 0.09090909091 | E11: 0 | F11: 0 | G11: 0 | H11: 0 | I11: 0
B12: 3 - 4 | C12: 0.09090909091 | E12: 0 | F12: 0 | G12: 0 | H12: 0 | I12: 0
B13: 4 - 5 | C13: 0.04545454545 | E13: 0 | F13: 0 | G13: 0 | H13: 0 | I13: 0
B14: 5 - 6 | C14: 0.04545454545 | E14: 0 | F14: 0 | G14: 0 | H14: 0 | I14: 0
B15: 6 - 7 | C15: 0.04545454545 | E15: 0 | F15: 0 | G15: 0 | H15: 0 | I15: 0
B16: 7 - 8 | C16: 0.04545454545 | E16: 0 | F16: 0 | G16: 0 | H16: 0 | I16: 0
B17: 8 - 9 | C17: 0.04545454545 | E17: 0 | F17: 0 | G17: 0 | H17: 0 | I17: 0
B18: 9 - 10 | C18: 0.04545454545 | E18: 0 | F18: 0 | G18: 0 | H18: 0 | I18: 0
B19: 10 - 11 | C19: 0.04545454545 | E19: 0 | F19: 0 | G19: 0 | H19: 0 | I19: 0
B20: 11 - 12 | C20: 0.04545454545 | E20: 0 | F20: 0 | G20: 0 | H20: 0 | I20: 0
B21: 12 - 13 | C21: 0.02272727273 | E21: 0 | F21: 0 | G21: 0 | H21: 0 | I21: 0
B22: 13 - 14 | C22: 0.02272727273 | E22: 0 | F22: 0 | G22: 0 | H22: 0 | I22: 0
B23: 14 - 15 | C23: 0.02272727273 | E23: 0 | F23: 0 | G23: 0 | H23: 0 | I23: 0
B24: 15 - 16 | C24: 0.02272727273 | E24: 0 | F24: 0 | G24: 0 | H24: 0 | I24: 0
B25: 16 - 17 | C25: 0.02272727273 | E25: 0 | F25: 0 | G25: 0 | H25: 0 | I25: 0
B26: 17 - 18 | C26: 0.02272727273 | E26: 0 | F26: 0 | G26: 0 | H26: 0 | I26: 0
B27: 18 - 19 | C27: 0.02272727273 | E27: 0 | F27: 0 | G27: 0 | H27: 0 | I27: 0
B28: 19 - 20 | C28: 0.02272727273 | E28: 0 | F28: 0 | G28: 0 | H28: 0 | I28: 0
B29: 20 - 21 | C29: 0.02272727273 | E29: 0 | F29: 0 | G29: 0 | H29: 0 | I29: 0
B30: 21 - 22 | C30: 0.02272727273 | E30: 0 | F30: 0 | G30: 0 | H30: 0 | I30: 0
B31: 22 - 23 | C31: 0.02272727273 | E31: 0 | F31: 0 | G31: 0 | H31: 0 | I31: 0
B32: 23 - 24 | C32: 0.02272727273 | E32: 0 | F32: 0 | G32: 0 | H32: 0 | I32: 0
B33: 0 - 24 | C33: =SUM(C9:C32) -> 1 | E33: =SUM(E9:E32) -> 0 | F33: 0 | G33: 0 | H33: 0 | I33: 0

Sheet sed
B3: sediment exposure parameters
B4: % in sediment (end of study) | C4: 1
B5: K(f)oc | C5: 5000 | E5: sed. layer | F5: =IF(K_f_oc<500,2,1) -> 1 | G5: cm
B7: PECsed related to | C7: wet weight | E7: sed. density | F7: =IF(LEFT(sed_wet_dry,3)="wet",1.3,2.5) -> 1.3 | G7: g/cm³
B9: DegT50 wat.-sed. system (d) | C9: =IF(AND(LEFT(compartment,4)="aqua",MID(compartment,23,3)="sed"),dt50_value,"") ->  | E9: f-accu-plat. | F9: =IF(select_accu="f-accu-plat.", IF(ISNUMBER(dt50_sed_value), IF(dt50_sed_value<110,0,EXP(-LN(2)/dt50_sed_value*365)/(1-EXP(-LN(2)/dt50_sed_value*365))), 0), 0) -> 0

Sheet cum-eff
B3: dose-response information
C4: effect level | D4: dose level | E4: probit | F4: =IF(LEN(probit_slope_user)+LEN(probit_intercept_user), IF(LEN(probit_slope_user)*LEN(probit_intercept_user),"user","calc./user"), "calculated") -> calculated | G4: user value | H4: logit | I4: =IF(LEN(logit_slope_user)+LEN(logit_intercept_user), IF(LEN(logit_slope_user)*LEN(logit_intercept_user),"user","calc./user"), "calculated") -> calculated | J4: user value
B5: lower dose and effect | C5: 0.25 | D5: 10 | E5: slope | F5: =IF(LEN(probit_slope_user), probit_slope_user, IF(LEN(effect_lower)*LEN(dose_lower)*LEN(effect_higher)*LEN(dose_higher), (NORMINV(effect_lower,0,1)-NORMINV(effect_higher,0,1))/(LN(dose_lower)-LN(dose_higher)), "")) -> 0.7361088863 | H5: slope | I5: =IF(LEN(logit_slope_user), logit_slope_user, IF(LEN(effect_lower)*LEN(dose_lower)*LEN(effect_higher)*LEN(dose_higher), (LN(effect_lower/effect_higher)-LN((1-effect_lower)/(1-effect_higher)))/(LN(dose_lower)-LN(dose_higher)), "")) -> 1.198977847
B6: higher dose and effect | C6: 0.5 | D6: 25 | E6: intercept | F6: =IF(LEN(probit_intercept_user), probit_intercept_user, IF(LEN(effect_lower)*LEN(dose_lower)*LEN(effect_higher)*LEN(dose_higher), NORMINV(effect_higher,0,1)-probit_slope*LN(dose_higher), "")) -> -2.369443099 | H6: intercept | I6: =IF(LEN(logit_intercept_user), logit_intercept_user, IF(LEN(effect_lower)*LEN(dose_lower)*LEN(effect_higher)*LEN(dose_higher), LN(effect_higher/(1-effect_higher))-logit_slope*LN(dose_higher), "")) -> -3.859360805
B8: dose-response fitting | C8: probit
B11: prediction
D12: dose level | F12: effect level | I12: effect level
B13: dose → effect | D13: 143 | E13: probit | F13: =IF(ISNUMBER(dose_user)*(dose_user>0)*ISNUMBER(probit_slope)*ISNUMBER(probit_intercept), (NORMDIST(probit_slope*LN(dose_user)+probit_intercept,0,1,TRUE)), "") -> 0.9003854419 | H13: logit | I13: =IF(ISNUMBER(dose_user)*(dose_user>0)*ISNUMBER(logit_slope)*ISNUMBER(logit_intercept), 1/(1+EXP(-logit_slope*LN(dose_user)-logit_intercept)), "") -> 0.8900233828
C15: effect level | F15: dose level | I15: dose level
B16: effect → dose | C16: 0.1 | E16: probit | F16: =IF(ISNUMBER(effect_user)*(effect_user>0)*(effect_user<1)*ISNUMBER(probit_slope)*ISNUMBER(probit_intercept), EXP((NORMINV(effect_user,0,1)-probit_intercept)/probit_slope), "") -> 4.383707604 | H16: logit | I16: =IF(ISNUMBER(effect_user)*(effect_user>0)*(effect_user<1)*ISNUMBER(logit_slope)*ISNUMBER(logit_intercept), EXP((LN(effect_user/(1-effect_user))-logit_intercept)/logit_slope), "") -> 4

Sheet check_single_applic (hidden)
B3: drift reduction | C3: 0
B5: single application drift rate 1 m / 3 m (90. perc.) | C5: =IF(no_applic>=(COLUMN()-2), INDEX(act_applic_rate,COLUMN()-2) *VLOOKUP(INDEX(act_factor,COLUMN()-2),drift_percent_01m,1+2,0) *(1-drift_reduction), "") -> 2.77 | D5: 2.77 | E5: 2.77
B7: v/d rate 1 m / 3 m | C7: =IF(no_applic>=(COLUMN()-2),vd_rate_final_01m,"") -> 0 | D7: 0 | E7: 0
B9: actual rate 1 m / 3 m | C9: =IF(no_applic>=(COLUMN()-2), IF(ISNUMBER(drift_rate_01m),drift_rate_01m,0) +IF(ISNUMBER(vd_rate_01m),vd_rate_01m,0), "") -> 2.77 | D9: 2.77 | E9: 2.77
B11: twa interval d | C11: =twa_int_value -> 21 | F11: k | G11: =k_deg -> 0.06931471806
B13: max. peak amount | C13: =MAX(actual_rate_01m) -> 2.77 | D13: > mult. act | E13: =MAX(actual_rate_01m)>drift_red_no!peak_max_01m -> FALSE
B14: max. twa(sum) | C14: =MAX(actual_rate_01m)*(1-EXP(-k_deg_copy*twa_int_copy))/(k_deg_copy*twa_int_copy) -> 1.459096871 | D14: > mult. twa | E14: =(MAX(actual_rate_01m)*(1-EXP(-k_deg_copy*twa_int_copy))/(k_deg_copy*twa_int_copy))>drift_red_no!twa_max_01m -> FALSE
B15: for applic. # | C15: =MATCH(MAX(drift_rate_01m),drift_rate_01m,0) -> 1

Sheet drift_only (hidden)
B3: drift reduction | C3: 0
B5: drift rate 1 m / 3 m | C5: =IF(no_applic_copy>=(COLUMN()-2), INDEX(act_applic_rate,COLUMN()-2) *VLOOKUP(INDEX(act_factor,COLUMN()-2),drift_percent_01m,IF(select_perc_type="MAF-crit",13,no_applic_copy)+2,0) *(1-drift_reduction), "") -> 2.01 | D5: 2.01 | E5: 2.01
B6: drift rate 5 m | C6: =IF(no_applic_copy>=(COLUMN()-2), INDEX(act_applic_rate,COLUMN()-2) *VLOOKUP(INDEX(act_factor,COLUMN()-2),drift_percent_05m,IF(select_perc_type="MAF-crit",13,no_applic_copy)+2,0) *(1-drift_reduction), "") -> 0.41 | D6: 0.41 | E6: 0.41
B7: drift rate 10 m | C7: =IF(no_applic_copy>=(COLUMN()-2), INDEX(act_applic_rate,COLUMN()-2) *VLOOKUP(INDEX(act_factor,COLUMN()-2),drift_percent_10m,IF(select_perc_type="MAF-crit",13,no_applic_copy)+2,0) *(1-drift_reduction), "") -> 0.2 | D7: 0.2 | E7: 0.2
B8: drift rate 15 m | C8: =IF(no_applic_copy>=(COLUMN()-2), INDEX(act_applic_rate,COLUMN()-2) *VLOOKUP(INDEX(act_factor,COLUMN()-2),drift_percent_15m,IF(select_perc_type="MAF-crit",13,no_applic_copy)+2,0) *(1-drift_reduction), "") -> 0.14 | D8: 0.14 | E8: 0.14
B9: drift rate 20 m | C9: =IF(no_applic_copy>=(COLUMN()-2), (INDEX(act_applic_rate,COLUMN()-2)) *VLOOKUP(INDEX(act_factor,COLUMN()-2),drift_percent_20m,IF(select_perc_type="MAF-crit",13,no_applic_copy)+2,0) *(1-drift_reduction), "") -> 0.1 | D9: 0.1 | E9: 0.1
B10: interval (d) | C10: =act_interval_applic -> 10 | D10: 10
B12: twa interval d | C12: =twa_int_value -> 21 | D12: # applic. | E12: =no_applic -> 3 | F12: k | G12: =k_deg -> 0.06931471806
C14: 1 m / 3 m | D14: 5 m | E14: 10 m | F14: 15 m | G14: 20 m
B15: max. peak amount | C15: =MAX(peak_amount_01m) -> 3.5175 | D15: =MAX(peak_amount_05m) -> 0.7175 | E15: =MAX(peak_amount_10m) -> 0.35 | F15: =MAX(peak_amount_15m) -> 0.245 | G15: =MAX(peak_amount_20m) -> 0.175
B16: max. twa(sum) | C16: =MAX(twa_sum_01m) -> 2.3248194 | D16: =MAX(twa_sum_05m) -> 0.4742168925 | E16: =MAX(twa_sum_10m) -> 0.2313253134 | F16: =MAX(twa_sum_15m) -> 0.1619277194 | G16: =MAX(twa_sum_20m) -> 0.1156626567
B19: 1 m / 3 m distance
B20: begin interval | C20: =IF(interval_actual<>"",SUM(interval_actual1:INDEX(interval_actual,,COLUMN()-2))-interval_actual,IF(drift_rate_01m<>"",SUM(interval_actual1:INDEX(interval_actual,,COLUMN()-2)),"")) -> 0 | D20: 10 | E20: 20
B21: end interval | C21: =IF(interval_actual<>"",SUM(interval_actual1:INDEX(interval_actual,,COLUMN()-2)),IF(drift_rate_01m<>"",SUM(interval_actual1:INDEX(interval_actual,,COLUMN()-2))+twa_int_copy,"")) -> 10 | D21: 20 | E21: 41
B22: peak amount | C22: =IF(drift_rate_01m<>"",drift_rate_01m,"") -> 2.01 | D22: =IF(OFFSET(drift_rate_01m,,1)<>"",OFFSET(drift_rate_01m,,1)+final_amount_01m,"") -> 3.015 | E22: 3.5175
B23: final amount | C23: =IF(drift_rate_01m<>"",peak_amount_01m*EXP(-k_deg_copy*IF(interval_actual<>"",interval_actual,twa_int_copy)),"") -> 1.005 | D23: 1.5075 | E23: 0.8204858869
B25: twa calculation interval | C25: =IF(drift_rate_01m<>"",int_applic_begin_01m&"-"&int_applic_begin_01m+twa_int_copy&" d","") -> 0-21 d | D25: 10-31 d | E25: 20-41 d
B26: twa(sum) | C26: =IF(INDEX(drift_rate_01m,,COLUMN()-2)<>"", SUM(C22:INDEX(peak_amount_01m,,no_applic_copy) *IF(((C20:INDEX(int_applic_begin_01m,,no_applic_copy)-C20)<twa_int_copy)*((C21:INDEX(int_applic_end_01m,,no_applic_copy)-C20)<=twa_int_copy), (C21:INDEX(int_applic_end_01m,,no_applic_copy)-C20:INDEX(int_applic_begin_01m,,no_applic_copy)) *(1-EXP(-k_deg_copy*(C21:INDEX(int_applic_end_01m,,no_applic_copy)-C20:INDEX(int_applic_begin_01m,,no_applic_copy)))) /(k_deg_copy*(C21:INDEX(int_applic_end_01m,,no_applic_copy)-C20:INDEX(int_applic_begin_01m,,no_applic_copy))), IF(((C20:INDEX(int_applic_begin_01m,,no_applic_copy)-C20)<twa_int_copy)+((C21:INDEX(int_applic_end_01m,,no_applic_copy)-C20)<=twa_int_copy), (C20+twa_int_copy-C20:INDEX(int_applic_begin_01m,,no_applic_copy)) *(1-EXP(-k_deg_copy*(C20+twa_int_copy-C20:INDEX(int_applic_begin_01m,,no_applic_copy)))) /(k_deg_copy*(C20+twa_int_copy-C20:INDEX(int_applic_begin_01m,,no_applic_copy))), 0) ) /twa_int_copy), "") -> 1.887908293 | D26: =IF(INDEX(drift_rate_01m,,COLUMN()-2)<>"", SUM(D22:INDEX(peak_amount_01m,,no_applic_copy) *IF(((D20:INDEX(int_applic_begin_01m,,no_applic_copy)-D20)<twa_int_copy)*((D21:INDEX(int_applic_end_01m,,no_applic_copy)-D20)<=twa_int_copy), (D21:INDEX(int_applic_end_01m,,no_applic_copy)-D20:INDEX(int_applic_begin_01m,,no_applic_copy)) *(1-EXP(-k_deg_copy*(D21:INDEX(int_applic_end_01m,,no_applic_copy)-D20:INDEX(int_applic_begin_01m,,no_applic_copy)))) /(k_deg_copy*(D21:INDEX(int_applic_end_01m,,no_applic_copy)-D20:INDEX(int_applic_begin_01m,,no_applic_copy))), IF(((D20:INDEX(int_applic_begin_01m,,no_applic_copy)-D20)<twa_int_copy)+((D21:INDEX(int_applic_end_01m,,no_applic_copy)-D20)<=twa_int_copy), (D20+twa_int_copy-D20:INDEX(int_applic_begin_01m,,no_applic_copy)) *(1-EXP(-k_deg_copy*(D20+twa_int_copy-D20:INDEX(int_applic_begin_01m,,no_applic_copy)))) /(k_deg_copy*(D20+twa_int_copy-D20:INDEX(int_applic_begin_01m,,no_applic_copy))), 0) ) /twa_int_copy), "") -> 2.3248194 | E26: =IF(INDEX(drift_rate_01m,,COLUMN()-2)<>"", SUM(E22:INDEX(peak_amount_01m,,no_applic_copy) *IF(((E20:INDEX(int_applic_begin_01m,,no_applic_copy)-E20)<twa_int_copy)*((E21:INDEX(int_applic_end_01m,,no_applic_copy)-E20)<=twa_int_copy), (E21:INDEX(int_applic_end_01m,,no_applic_copy)-E20:INDEX(int_applic_begin_01m,,no_applic_copy)) *(1-EXP(-k_deg_copy*(E21:INDEX(int_applic_end_01m,,no_applic_copy)-E20:INDEX(int_applic_begin_01m,,no_applic_copy)))) /(k_deg_copy*(E21:INDEX(int_applic_end_01m,,no_applic_copy)-E20:INDEX(int_applic_begin_01m,,no_applic_copy))), IF(((E20:INDEX(int_applic_begin_01m,,no_applic_copy)-E20)<twa_int_copy)+((E21:INDEX(int_applic_end_01m,,no_applic_copy)-E20)<=twa_int_copy), (E20+twa_int_copy-E20:INDEX(int_applic_begin_01m,,no_applic_copy)) *(1-EXP(-k_deg_copy*(E20+twa_int_copy-E20:INDEX(int_applic_begin_01m,,no_applic_copy)))) /(k_deg_copy*(E20+twa_int_copy-E20:INDEX(int_applic_begin_01m,,no_applic_copy))), 0) ) /twa_int_copy), "") -> 1.852842327 | F26: =IF(INDEX(drift_rate_01m,,COLUMN()-2)<>"", SUM(F22:INDEX(peak_amount_01m,,no_applic_copy) *IF(((F20:INDEX(int_applic_begin_01m,,no_applic_copy)-F20)<twa_int_copy)*((F21:INDEX(int_applic_end_01m,,no_applic_copy)-F20)<=twa_int_copy), (F21:INDEX(int_applic_end_01m,,no_applic_copy)-F20:INDEX(int_applic_begin_01m,,no_applic_copy)) *(1-EXP(-k_deg_copy*(F21:INDEX(int_applic_end_01m,,no_applic_copy)-F20:INDEX(int_applic_begin_01m,,no_applic_copy)))) /(k_deg_copy*(F21:INDEX(int_applic_end_01m,,no_applic_copy)-F20:INDEX(int_applic_begin_01m,,no_applic_copy))), IF(((F20:INDEX(int_applic_begin_01m,,no_applic_copy)-F20)<twa_int_copy)+((F21:INDEX(int_applic_end_01m,,no_applic_copy)-F20)<=twa_int_copy), (F20+twa_int_copy-F20:INDEX(int_applic_begin_01m,,no_applic_copy)) *(1-EXP(-k_deg_copy*(F20+twa_int_copy-F20:INDEX(int_applic_begin_01m,,no_applic_copy)))) /(k_deg_copy*(F20+twa_int_copy-F20:INDEX(int_applic_begin_01m,,no_applic_copy))), 0) ) /twa_int_copy), "") ->  | G26: =IF(INDEX(drift_rate_01m,,COLUMN()-2)<>"", SUM(G22:INDEX(peak_amount_01m,,no_applic_copy) *IF(((G20:INDEX(int_applic_begin_01m,,no_applic_copy)-G20)<twa_int_copy)*((G21:INDEX(int_applic_end_01m,,no_applic_copy)-G20)<=twa_int_copy), (G21:INDEX(int_applic_end_01m,,no_applic_copy)-G20:INDEX(int_applic_begin_01m,,no_applic_copy)) *(1-EXP(-k_deg_copy*(G21:INDEX(int_applic_end_01m,,no_applic_copy)-G20:INDEX(int_applic_begin_01m,,no_applic_copy)))) /(k_deg_copy*(G21:INDEX(int_applic_end_01m,,no_applic_copy)-G20:INDEX(int_applic_begin_01m,,no_applic_copy))), IF(((G20:INDEX(int_applic_begin_01m,,no_applic_copy)-G20)<twa_int_copy)+((G21:INDEX(int_applic_end_01m,,no_applic_copy)-G20)<=twa_int_copy), (G20+twa_int_copy-G20:INDEX(int_applic_begin_01m,,no_applic_copy)) *(1-EXP(-k_deg_copy*(G20+twa_int_copy-G20:INDEX(int_applic_begin_01m,,no_applic_copy)))) /(k_deg_copy*(G20+twa_int_copy-G20:INDEX(int_applic_begin_01m,,no_applic_copy))), 0) ) /twa_int_copy), "") ->  | H26: =IF(INDEX(drift_rate_01m,,COLUMN()-2)<>"", SUM(H22:INDEX(peak_amount_01m,,no_applic_copy) *IF(((H20:INDEX(int_applic_begin_01m,,no_applic_copy)-H20)<twa_int_copy)*((H21:INDEX(int_applic_end_01m,,no_applic_copy)-H20)<=twa_int_copy), (H21:INDEX(int_applic_end_01m,,no_applic_copy)-H20:INDEX(int_applic_begin_01m,,no_applic_copy)) *(1-EXP(-k_deg_copy*(H21:INDEX(int_applic_end_01m,,no_applic_copy)-H20:INDEX(int_applic_begin_01m,,no_applic_copy)))) /(k_deg_copy*(H21:INDEX(int_applic_end_01m,,no_applic_copy)-H20:INDEX(int_applic_begin_01m,,no_applic_copy))), IF(((H20:INDEX(int_applic_begin_01m,,no_applic_copy)-H20)<twa_int_copy)+((H21:INDEX(int_applic_end_01m,,no_applic_copy)-H20)<=twa_int_copy), (H20+twa_int_copy-H20:INDEX(int_applic_begin_01m,,no_applic_copy)) *(1-EXP(-k_deg_copy*(H20+twa_int_copy-H20:INDEX(int_applic_begin_01m,,no_applic_copy)))) /(k_deg_copy*(H20+twa_int_copy-H20:INDEX(int_applic_begin_01m,,no_applic_copy))), 0) ) /twa_int_copy), "") ->  | I26: =IF(INDEX(drift_rate_01m,,COLUMN()-2)<>"", SUM(I22:INDEX(peak_amount_01m,,no_applic_copy) *IF(((I20:INDEX(int_applic_begin_01m,,no_applic_copy)-I20)<twa_int_copy)*((I21:INDEX(int_applic_end_01m,,no_applic_copy)-I20)<=twa_int_copy), (I21:INDEX(int_applic_end_01m,,no_applic_copy)-I20:INDEX(int_applic_begin_01m,,no_applic_copy)) *(1-EXP(-k_deg_copy*(I21:INDEX(int_applic_end_01m,,no_applic_copy)-I20:INDEX(int_applic_begin_01m,,no_applic_copy)))) /(k_deg_copy*(I21:INDEX(int_applic_end_01m,,no_applic_copy)-I20:INDEX(int_applic_begin_01m,,no_applic_copy))), IF(((I20:INDEX(int_applic_begin_01m,,no_applic_copy)-I20)<twa_int_copy)+((I21:INDEX(int_applic_end_01m,,no_applic_copy)-I20)<=twa_int_copy), (I20+twa_int_copy-I20:INDEX(int_applic_begin_01m,,no_applic_copy)) *(1-EXP(-k_deg_copy*(I20+twa_int_copy-I20:INDEX(int_applic_begin_01m,,no_applic_copy)))) /(k_deg_copy*(I20+twa_int_copy-I20:INDEX(int_applic_begin_01m,,no_applic_copy))), 0) ) /twa_int_copy), "") ->  | J26: =IF(INDEX(drift_rate_01m,,COLUMN()-2)<>"", SUM(J22:INDEX(peak_amount_01m,,no_applic_copy) *IF(((J20:INDEX(int_applic_begin_01m,,no_applic_copy)-J20)<twa_int_copy)*((J21:INDEX(int_applic_end_01m,,no_applic_copy)-J20)<=twa_int_copy), (J21:INDEX(int_applic_end_01m,,no_applic_copy)-J20:INDEX(int_applic_begin_01m,,no_applic_copy)) *(1-EXP(-k_deg_copy*(J21:INDEX(int_applic_end_01m,,no_applic_copy)-J20:INDEX(int_applic_begin_01m,,no_applic_copy)))) /(k_deg_copy*(J21:INDEX(int_applic_end_01m,,no_applic_copy)-J20:INDEX(int_applic_begin_01m,,no_applic_copy))), IF(((J20:INDEX(int_applic_begin_01m,,no_applic_copy)-J20)<twa_int_copy)+((J21:INDEX(int_applic_end_01m,,no_applic_copy)-J20)<=twa_int_copy), (J20+twa_int_copy-J20:INDEX(int_applic_begin_01m,,no_applic_copy)) *(1-EXP(-k_deg_copy*(J20+twa_int_copy-J20:INDEX(int_applic_begin_01m,,no_applic_copy)))) /(k_deg_copy*(J20+twa_int_copy-J20:INDEX(int_applic_begin_01m,,no_applic_copy))), 0) ) /twa_int_copy), "") ->  | K26: =IF(INDEX(drift_rate_01m,,COLUMN()-2)<>"", SUM(K22:INDEX(peak_amount_01m,,no_applic_copy) *IF(((K20:INDEX(int_applic_begin_01m,,no_applic_copy)-K20)<twa_int_copy)*((K21:INDEX(int_applic_end_01m,,no_applic_copy)-K20)<=twa_int_copy), (K21:INDEX(int_applic_end_01m,,no_applic_copy)-K20:INDEX(int_applic_begin_01m,,no_applic_copy)) *(1-EXP(-k_deg_copy*(K21:INDEX(int_applic_end_01m,,no_applic_copy)-K20:INDEX(int_applic_begin_01m,,no_applic_copy)))) /(k_deg_copy*(K21:INDEX(int_applic_end_01m,,no_applic_copy)-K20:INDEX(int_applic_begin_01m,,no_applic_copy))), IF(((K20:INDEX(int_applic_begin_01m,,no_applic_copy)-K20)<twa_int_copy)+((K21:INDEX(int_applic_end_01m,,no_applic_copy)-K20)<=twa_int_copy), (K20+twa_int_copy-K20:INDEX(int_applic_begin_01m,,no_applic_copy)) *(1-EXP(-k_deg_copy*(K20+twa_int_copy-K20:INDEX(int_applic_begin_01m,,no_applic_copy)))) /(k_deg_copy*(K20+twa_int_copy-K20:INDEX(int_applic_begin_01m,,no_applic_copy))), 0) ) /twa_int_copy), "") ->  | L26: =IF(INDEX(drift_rate_01m,,COLUMN()-2)<>"", SUM(L22:INDEX(peak_amount_01m,,no_applic_copy) *IF(((L20:INDEX(int_applic_begin_01m,,no_applic_copy)-L20)<twa_int_copy)*((L21:INDEX(int_applic_end_01m,,no_applic_copy)-L20)<=twa_int_copy), (L21:INDEX(int_applic_end_01m,,no_applic_copy)-L20:INDEX(int_applic_begin_01m,,no_applic_copy)) *(1-EXP(-k_deg_copy*(L21:INDEX(int_applic_end_01m,,no_applic_copy)-L20:INDEX(int_applic_begin_01m,,no_applic_copy)))) /(k_deg_copy*(L21:INDEX(int_applic_end_01m,,no_applic_copy)-L20:INDEX(int_applic_begin_01m,,no_applic_copy))), IF(((L20:INDEX(int_applic_begin_01m,,no_applic_copy)-L20)<twa_int_copy)+((L21:INDEX(int_applic_end_01m,,no_applic_copy)-L20)<=twa_int_copy), (L20+twa_int_copy-L20:INDEX(int_applic_begin_01m,,no_applic_copy)) *(1-EXP(-k_deg_copy*(L20+twa_int_copy-L20:INDEX(int_applic_begin_01m,,no_applic_copy)))) /(k_deg_copy*(L20+twa_int_copy-L20:INDEX(int_applic_begin_01m,,no_applic_copy))), 0) ) /twa_int_copy), "") ->  | M26: =IF(INDEX(drift_rate_01m,,COLUMN()-2)<>"", SUM(M22:INDEX(peak_amount_01m,,no_applic_copy) *IF(((M20:INDEX(int_applic_begin_01m,,no_applic_copy)-M20)<twa_int_copy)*((M21:INDEX(int_applic_end_01m,,no_applic_copy)-M20)<=twa_int_copy), (M21:INDEX(int_applic_end_01m,,no_applic_copy)-M20:INDEX(int_applic_begin_01m,,no_applic_copy)) *(1-EXP(-k_deg_copy*(M21:INDEX(int_applic_end_01m,,no_applic_copy)-M20:INDEX(int_applic_begin_01m,,no_applic_copy)))) /(k_deg_copy*(M21:INDEX(int_applic_end_01m,,no_applic_copy)-M20:INDEX(int_applic_begin_01m,,no_applic_copy))), IF(((M20:INDEX(int_applic_begin_01m,,no_applic_copy)-M20)<twa_int_copy)+((M21:INDEX(int_applic_end_01m,,no_applic_copy)-M20)<=twa_int_copy), (M20+twa_int_copy-M20:INDEX(int_applic_begin_01m,,no_applic_copy)) *(1-EXP(-k_deg_copy*(M20+twa_int_copy-M20:INDEX(int_applic_begin_01m,,no_applic_copy)))) /(k_deg_copy*(M20+twa_int_copy-M20:INDEX(int_applic_begin_01m,,no_applic_copy))), 0) ) /twa_int_copy), "") ->  | N26: =IF(INDEX(drift_rate_01m,,COLUMN()-2)<>"", SUM(N22:INDEX(peak_amount_01m,,no_applic_copy) *IF(((N20:INDEX(int_applic_begin_01m,,no_applic_copy)-N20)<twa_int_copy)*((N21:INDEX(int_applic_end_01m,,no_applic_copy)-N20)<=twa_int_copy), (N21:INDEX(int_applic_end_01m,,no_applic_copy)-N20:INDEX(int_applic_begin_01m,,no_applic_copy)) *(1-EXP(-k_deg_copy*(N21:INDEX(int_applic_end_01m,,no_applic_copy)-N20:INDEX(int_applic_begin_01m,,no_applic_copy)))) /(k_deg_copy*(N21:INDEX(int_applic_end_01m,,no_applic_copy)-N20:INDEX(int_applic_begin_01m,,no_applic_copy))), IF(((N20:INDEX(int_applic_begin_01m,,no_applic_copy)-N20)<twa_int_copy)+((N21:INDEX(int_applic_end_01m,,no_applic_copy)-N20)<=twa_int_copy), (N20+twa_int_copy-N20:INDEX(int_applic_begin_01m,,no_applic_copy)) *(1-EXP(-k_deg_copy*(N20+twa_int_copy-N20:INDEX(int_applic_begin_01m,,no_applic_copy)))) /(k_deg_copy*(N20+twa_int_copy-N20:INDEX(int_applic_begin_01m,,no_applic_copy))), 0) ) /twa_int_copy), "") -> 
B28: max. peak amount | C28: =MAX(peak_amount_01m) -> 3.5175
B29: max. twa(sum) | C29: =MAX(twa_sum_01m) -> 2.3248194
B32: 5 m distance
B33: begin interval | C33: =IF(interval_actual<>"",SUM(interval_actual1:INDEX(interval_actual,,COLUMN()-2))-interval_actual,IF(drift_rate_05m<>"",SUM(interval_actual1:INDEX(interval_actual,,COLUMN()-2)),"")) -> 0 | D33: 10 | E33: 20
B34: end interval | C34: =IF(interval_actual<>"",SUM(interval_actual1:INDEX(interval_actual,,COLUMN()-2)),IF(drift_rate_05m<>"",SUM(interval_actual1:INDEX(interval_actual,,COLUMN()-2))+twa_int_copy,"")) -> 10 | D34: 20 | E34: 41
B35: peak amount | C35: =IF(drift_rate_05m<>"",drift_rate_05m,"") -> 0.41 | D35: =IF(OFFSET(drift_rate_05m,,1)<>"",OFFSET(drift_rate_05m,,1)+final_amount_05m,"") -> 0.615 | E35: 0.7175
B36: final amount | C36: =IF(drift_rate_05m<>"",peak_amount_05m*EXP(-k_deg_copy*IF(interval_actual<>"",interval_actual,twa_int_copy)),"") -> 0.205 | D36: 0.3075 | E36: 0.1673627929
B38: twa calculation interval | C38: =IF(drift_rate_05m<>"",int_applic_begin_05m&"-"&int_applic_begin_05m+twa_int_copy&" d","") -> 0-21 d | D38: 10-31 d | E38: 20-41 d
B39: twa(sum) | C39: =IF(INDEX(drift_rate_05m,,COLUMN()-2)<>"", SUM(C35:INDEX(peak_amount_05m,,no_applic_copy) *IF(((C33:INDEX(int_applic_begin_05m,,no_applic_copy)-C33)<twa_int_copy)*((C34:INDEX(int_applic_end_05m,,no_applic_copy)-C33)<=twa_int_copy), (C34:INDEX(int_applic_end_05m,,no_applic_copy)-C33:INDEX(int_applic_begin_05m,,no_applic_copy)) *(1-EXP(-k_deg_copy*(C34:INDEX(int_applic_end_05m,,no_applic_copy)-C33:INDEX(int_applic_begin_05m,,no_applic_copy)))) /(k_deg_copy*(C34:INDEX(int_applic_end_05m,,no_applic_copy)-C33:INDEX(int_applic_begin_05m,,no_applic_copy))), IF(((C33:INDEX(int_applic_begin_05m,,no_applic_copy)-C33)<twa_int_copy)+((C34:INDEX(int_applic_end_05m,,no_applic_copy)-C33)<=twa_int_copy), (C33+twa_int_copy-C33:INDEX(int_applic_begin_05m,,no_applic_copy)) *(1-EXP(-k_deg_copy*(C33+twa_int_copy-C33:INDEX(int_applic_begin_05m,,no_applic_copy)))) /(k_deg_copy*(C33+twa_int_copy-C33:INDEX(int_applic_begin_05m,,no_applic_copy))), 0) ) /twa_int_copy), "") -> 0.3850957215 | D39: =IF(INDEX(drift_rate_05m,,COLUMN()-2)<>"", SUM(D35:INDEX(peak_amount_05m,,no_applic_copy) *IF(((D33:INDEX(int_applic_begin_05m,,no_applic_copy)-D33)<twa_int_copy)*((D34:INDEX(int_applic_end_05m,,no_applic_copy)-D33)<=twa_int_copy), (D34:INDEX(int_applic_end_05m,,no_applic_copy)-D33:INDEX(int_applic_begin_05m,,no_applic_copy)) *(1-EXP(-k_deg_copy*(D34:INDEX(int_applic_end_05m,,no_applic_copy)-D33:INDEX(int_applic_begin_05m,,no_applic_copy)))) /(k_deg_copy*(D34:INDEX(int_applic_end_05m,,no_applic_copy)-D33:INDEX(int_applic_begin_05m,,no_applic_copy))), IF(((D33:INDEX(int_applic_begin_05m,,no_applic_copy)-D33)<twa_int_copy)+((D34:INDEX(int_applic_end_05m,,no_applic_copy)-D33)<=twa_int_copy), (D33+twa_int_copy-D33:INDEX(int_applic_begin_05m,,no_applic_copy)) *(1-EXP(-k_deg_copy*(D33+twa_int_copy-D33:INDEX(int_applic_begin_05m,,no_applic_copy)))) /(k_deg_copy*(D33+twa_int_copy-D33:INDEX(int_applic_begin_05m,,no_applic_copy))), 0) ) /twa_int_copy), "") -> 0.4742168925 | E39: =IF(INDEX(drift_rate_05m,,COLUMN()-2)<>"", SUM(E35:INDEX(peak_amount_05m,,no_applic_copy) *IF(((E33:INDEX(int_applic_begin_05m,,no_applic_copy)-E33)<twa_int_copy)*((E34:INDEX(int_applic_end_05m,,no_applic_copy)-E33)<=twa_int_copy), (E34:INDEX(int_applic_end_05m,,no_applic_copy)-E33:INDEX(int_applic_begin_05m,,no_applic_copy)) *(1-EXP(-k_deg_copy*(E34:INDEX(int_applic_end_05m,,no_applic_copy)-E33:INDEX(int_applic_begin_05m,,no_applic_copy)))) /(k_deg_copy*(E34:INDEX(int_applic_end_05m,,no_applic_copy)-E33:INDEX(int_applic_begin_05m,,no_applic_copy))), IF(((E33:INDEX(int_applic_begin_05m,,no_applic_copy)-E33)<twa_int_copy)+((E34:INDEX(int_applic_end_05m,,no_applic_copy)-E33)<=twa_int_copy), (E33+twa_int_copy-E33:INDEX(int_applic_begin_05m,,no_applic_copy)) *(1-EXP(-k_deg_copy*(E33+twa_int_copy-E33:INDEX(int_applic_begin_05m,,no_applic_copy)))) /(k_deg_copy*(E33+twa_int_copy-E33:INDEX(int_applic_begin_05m,,no_applic_copy))), 0) ) /twa_int_copy), "") -> 0.3779429622 | F39: =IF(INDEX(drift_rate_05m,,COLUMN()-2)<>"", SUM(F35:INDEX(peak_amount_05m,,no_applic_copy) *IF(((F33:INDEX(int_applic_begin_05m,,no_applic_copy)-F33)<twa_int_copy)*((F34:INDEX(int_applic_end_05m,,no_applic_copy)-F33)<=twa_int_copy), (F34:INDEX(int_applic_end_05m,,no_applic_copy)-F33:INDEX(int_applic_begin_05m,,no_applic_copy)) *(1-EXP(-k_deg_copy*(F34:INDEX(int_applic_end_05m,,no_applic_copy)-F33:INDEX(int_applic_begin_05m,,no_applic_copy)))) /(k_deg_copy*(F34:INDEX(int_applic_end_05m,,no_applic_copy)-F33:INDEX(int_applic_begin_05m,,no_applic_copy))), IF(((F33:INDEX(int_applic_begin_05m,,no_applic_copy)-F33)<twa_int_copy)+((F34:INDEX(int_applic_end_05m,,no_applic_copy)-F33)<=twa_int_copy), (F33+twa_int_copy-F33:INDEX(int_applic_begin_05m,,no_applic_copy)) *(1-EXP(-k_deg_copy*(F33+twa_int_copy-F33:INDEX(int_applic_begin_05m,,no_applic_copy)))) /(k_deg_copy*(F33+twa_int_copy-F33:INDEX(int_applic_begin_05m,,no_applic_copy))), 0) ) /twa_int_copy), "") ->  | G39: =IF(INDEX(drift_rate_05m,,COLUMN()-2)<>"", SUM(G35:INDEX(peak_amount_05m,,no_applic_copy) *IF(((G33:INDEX(int_applic_begin_05m,,no_applic_copy)-G33)<twa_int_copy)*((G34:INDEX(int_applic_end_05m,,no_applic_copy)-G33)<=twa_int_copy), (G34:INDEX(int_applic_end_05m,,no_applic_copy)-G33:INDEX(int_applic_begin_05m,,no_applic_copy)) *(1-EXP(-k_deg_copy*(G34:INDEX(int_applic_end_05m,,no_applic_copy)-G33:INDEX(int_applic_begin_05m,,no_applic_copy)))) /(k_deg_copy*(G34:INDEX(int_applic_end_05m,,no_applic_copy)-G33:INDEX(int_applic_begin_05m,,no_applic_copy))), IF(((G33:INDEX(int_applic_begin_05m,,no_applic_copy)-G33)<twa_int_copy)+((G34:INDEX(int_applic_end_05m,,no_applic_copy)-G33)<=twa_int_copy), (G33+twa_int_copy-G33:INDEX(int_applic_begin_05m,,no_applic_copy)) *(1-EXP(-k_deg_copy*(G33+twa_int_copy-G33:INDEX(int_applic_begin_05m,,no_applic_copy)))) /(k_deg_copy*(G33+twa_int_copy-G33:INDEX(int_applic_begin_05m,,no_applic_copy))), 0) ) /twa_int_copy), "") ->  | H39: =IF(INDEX(drift_rate_05m,,COLUMN()-2)<>"", SUM(H35:INDEX(peak_amount_05m,,no_applic_copy) *IF(((H33:INDEX(int_applic_begin_05m,,no_applic_copy)-H33)<twa_int_copy)*((H34:INDEX(int_applic_end_05m,,no_applic_copy)-H33)<=twa_int_copy), (H34:INDEX(int_applic_end_05m,,no_applic_copy)-H33:INDEX(int_applic_begin_05m,,no_applic_copy)) *(1-EXP(-k_deg_copy*(H34:INDEX(int_applic_end_05m,,no_applic_copy)-H33:INDEX(int_applic_begin_05m,,no_applic_copy)))) /(k_deg_copy*(H34:INDEX(int_applic_end_05m,,no_applic_copy)-H33:INDEX(int_applic_begin_05m,,no_applic_copy))), IF(((H33:INDEX(int_applic_begin_05m,,no_applic_copy)-H33)<twa_int_copy)+((H34:INDEX(int_applic_end_05m,,no_applic_copy)-H33)<=twa_int_copy), (H33+twa_int_copy-H33:INDEX(int_applic_begin_05m,,no_applic_copy)) *(1-EXP(-k_deg_copy*(H33+twa_int_copy-H33:INDEX(int_applic_begin_05m,,no_applic_copy)))) /(k_deg_copy*(H33+twa_int_copy-H33:INDEX(int_applic_begin_05m,,no_applic_copy))), 0) ) /twa_int_copy), "") ->  | I39: =IF(INDEX(drift_rate_05m,,COLUMN()-2)<>"", SUM(I35:INDEX(peak_amount_05m,,no_applic_copy) *IF(((I33:INDEX(int_applic_begin_05m,,no_applic_copy)-I33)<twa_int_copy)*((I34:INDEX(int_applic_end_05m,,no_applic_copy)-I33)<=twa_int_copy), (I34:INDEX(int_applic_end_05m,,no_applic_copy)-I33:INDEX(int_applic_begin_05m,,no_applic_copy)) *(1-EXP(-k_deg_copy*(I34:INDEX(int_applic_end_05m,,no_applic_copy)-I33:INDEX(int_applic_begin_05m,,no_applic_copy)))) /(k_deg_copy*(I34:INDEX(int_applic_end_05m,,no_applic_copy)-I33:INDEX(int_applic_begin_05m,,no_applic_copy))), IF(((I33:INDEX(int_applic_begin_05m,,no_applic_copy)-I33)<twa_int_copy)+((I34:INDEX(int_applic_end_05m,,no_applic_copy)-I33)<=twa_int_copy), (I33+twa_int_copy-I33:INDEX(int_applic_begin_05m,,no_applic_copy)) *(1-EXP(-k_deg_copy*(I33+twa_int_copy-I33:INDEX(int_applic_begin_05m,,no_applic_copy)))) /(k_deg_copy*(I33+twa_int_copy-I33:INDEX(int_applic_begin_05m,,no_applic_copy))), 0) ) /twa_int_copy), "") ->  | J39: =IF(INDEX(drift_rate_05m,,COLUMN()-2)<>"", SUM(J35:INDEX(peak_amount_05m,,no_applic_copy) *IF(((J33:INDEX(int_applic_begin_05m,,no_applic_copy)-J33)<twa_int_copy)*((J34:INDEX(int_applic_end_05m,,no_applic_copy)-J33)<=twa_int_copy), (J34:INDEX(int_applic_end_05m,,no_applic_copy)-J33:INDEX(int_applic_begin_05m,,no_applic_copy)) *(1-EXP(-k_deg_copy*(J34:INDEX(int_applic_end_05m,,no_applic_copy)-J33:INDEX(int_applic_begin_05m,,no_applic_copy)))) /(k_deg_copy*(J34:INDEX(int_applic_end_05m,,no_applic_copy)-J33:INDEX(int_applic_begin_05m,,no_applic_copy))), IF(((J33:INDEX(int_applic_begin_05m,,no_applic_copy)-J33)<twa_int_copy)+((J34:INDEX(int_applic_end_05m,,no_applic_copy)-J33)<=twa_int_copy), (J33+twa_int_copy-J33:INDEX(int_applic_begin_05m,,no_applic_copy)) *(1-EXP(-k_deg_copy*(J33+twa_int_copy-J33:INDEX(int_applic_begin_05m,,no_applic_copy)))) /(k_deg_copy*(J33+twa_int_copy-J33:INDEX(int_applic_begin_05m,,no_applic_copy))), 0) ) /twa_int_copy), "") ->  | K39: =IF(INDEX(drift_rate_05m,,COLUMN()-2)<>"", SUM(K35:INDEX(peak_amount_05m,,no_applic_copy) *IF(((K33:INDEX(int_applic_begin_05m,,no_applic_copy)-K33)<twa_int_copy)*((K34:INDEX(int_applic_end_05m,,no_applic_copy)-K33)<=twa_int_copy), (K34:INDEX(int_applic_end_05m,,no_applic_copy)-K33:INDEX(int_applic_begin_05m,,no_applic_copy)) *(1-EXP(-k_deg_copy*(K34:INDEX(int_applic_end_05m,,no_applic_copy)-K33:INDEX(int_applic_begin_05m,,no_applic_copy)))) /(k_deg_copy*(K34:INDEX(int_applic_end_05m,,no_applic_copy)-K33:INDEX(int_applic_begin_05m,,no_applic_copy))), IF(((K33:INDEX(int_applic_begin_05m,,no_applic_copy)-K33)<twa_int_copy)+((K34:INDEX(int_applic_end_05m,,no_applic_copy)-K33)<=twa_int_copy), (K33+twa_int_copy-K33:INDEX(int_applic_begin_05m,,no_applic_copy)) *(1-EXP(-k_deg_copy*(K33+twa_int_copy-K33:INDEX(int_applic_begin_05m,,no_applic_copy)))) /(k_deg_copy*(K33+twa_int_copy-K33:INDEX(int_applic_begin_05m,,no_applic_copy))), 0) ) /twa_int_copy), "") ->  | L39: =IF(INDEX(drift_rate_05m,,COLUMN()-2)<>"", SUM(L35:INDEX(peak_amount_05m,,no_applic_copy) *IF(((L33:INDEX(int_applic_begin_05m,,no_applic_copy)-L33)<twa_int_copy)*((L34:INDEX(int_applic_end_05m,,no_applic_copy)-L33)<=twa_int_copy), (L34:INDEX(int_applic_end_05m,,no_applic_copy)-L33:INDEX(int_applic_begin_05m,,no_applic_copy)) *(1-EXP(-k_deg_copy*(L34:INDEX(int_applic_end_05m,,no_applic_copy)-L33:INDEX(int_applic_begin_05m,,no_applic_copy)))) /(k_deg_copy*(L34:INDEX(int_applic_end_05m,,no_applic_copy)-L33:INDEX(int_applic_begin_05m,,no_applic_copy))), IF(((L33:INDEX(int_applic_begin_05m,,no_applic_copy)-L33)<twa_int_copy)+((L34:INDEX(int_applic_end_05m,,no_applic_copy)-L33)<=twa_int_copy), (L33+twa_int_copy-L33:INDEX(int_applic_begin_05m,,no_applic_copy)) *(1-EXP(-k_deg_copy*(L33+twa_int_copy-L33:INDEX(int_applic_begin_05m,,no_applic_copy)))) /(k_deg_copy*(L33+twa_int_copy-L33:INDEX(int_applic_begin_05m,,no_applic_copy))), 0) ) /twa_int_copy), "") ->  | M39: =IF(INDEX(drift_rate_05m,,COLUMN()-2)<>"", SUM(M35:INDEX(peak_amount_05m,,no_applic_copy) *IF(((M33:INDEX(int_applic_begin_05m,,no_applic_copy)-M33)<twa_int_copy)*((M34:INDEX(int_applic_end_05m,,no_applic_copy)-M33)<=twa_int_copy), (M34:INDEX(int_applic_end_05m,,no_applic_copy)-M33:INDEX(int_applic_begin_05m,,no_applic_copy)) *(1-EXP(-k_deg_copy*(M34:INDEX(int_applic_end_05m,,no_applic_copy)-M33:INDEX(int_applic_begin_05m,,no_applic_copy)))) /(k_deg_copy*(M34:INDEX(int_applic_end_05m,,no_applic_copy)-M33:INDEX(int_applic_begin_05m,,no_applic_copy))), IF(((M33:INDEX(int_applic_begin_05m,,no_applic_copy)-M33)<twa_int_copy)+((M34:INDEX(int_applic_end_05m,,no_applic_copy)-M33)<=twa_int_copy), (M33+twa_int_copy-M33:INDEX(int_applic_begin_05m,,no_applic_copy)) *(1-EXP(-k_deg_copy*(M33+twa_int_copy-M33:INDEX(int_applic_begin_05m,,no_applic_copy)))) /(k_deg_copy*(M33+twa_int_copy-M33:INDEX(int_applic_begin_05m,,no_applic_copy))), 0) ) /twa_int_copy), "") ->  | N39: =IF(INDEX(drift_rate_05m,,COLUMN()-2)<>"", SUM(N35:INDEX(peak_amount_05m,,no_applic_copy) *IF(((N33:INDEX(int_applic_begin_05m,,no_applic_copy)-N33)<twa_int_copy)*((N34:INDEX(int_applic_end_05m,,no_applic_copy)-N33)<=twa_int_copy), (N34:INDEX(int_applic_end_05m,,no_applic_copy)-N33:INDEX(int_applic_begin_05m,,no_applic_copy)) *(1-EXP(-k_deg_copy*(N34:INDEX(int_applic_end_05m,,no_applic_copy)-N33:INDEX(int_applic_begin_05m,,no_applic_copy)))) /(k_deg_copy*(N34:INDEX(int_applic_end_05m,,no_applic_copy)-N33:INDEX(int_applic_begin_05m,,no_applic_copy))), IF(((N33:INDEX(int_applic_begin_05m,,no_applic_copy)-N33)<twa_int_copy)+((N34:INDEX(int_applic_end_05m,,no_applic_copy)-N33)<=twa_int_copy), (N33+twa_int_copy-N33:INDEX(int_applic_begin_05m,,no_applic_copy)) *(1-EXP(-k_deg_copy*(N33+twa_int_copy-N33:INDEX(int_applic_begin_05m,,no_applic_copy)))) /(k_deg_copy*(N33+twa_int_copy-N33:INDEX(int_applic_begin_05m,,no_applic_copy))), 0) ) /twa_int_copy), "") -> 
B41: max. peak amount | C41: =MAX(peak_amount_05m) -> 0.7175
B42: max. twa(sum) | C42: =MAX(twa_sum_05m) -> 0.4742168925
B45: 10 m distance
B46: begin interval | C46: =IF(interval_actual<>"",SUM(interval_actual1:INDEX(interval_actual,,COLUMN()-2))-interval_actual,IF(drift_rate_10m<>"",SUM(interval_actual1:INDEX(interval_actual,,COLUMN()-2)),"")) -> 0 | D46: 10 | E46: 20
B47: end interval | C47: =IF(interval_actual<>"",SUM(interval_actual1:INDEX(interval_actual,,COLUMN()-2)),IF(drift_rate_10m<>"",SUM(interval_actual1:INDEX(interval_actual,,COLUMN()-2))+twa_int_copy,"")) -> 10 | D47: 20 | E47: 41
B48: peak amount | C48: =IF(drift_rate_10m<>"",drift_rate_10m,"") -> 0.2 | D48: =IF(OFFSET(drift_rate_10m,,1)<>"",OFFSET(drift_rate_10m,,1)+final_amount_10m,"") -> 0.3 | E48: 0.35
B49: final amount | C49: =IF(drift_rate_10m<>"",peak_amount_10m*EXP(-k_deg_copy*IF(interval_actual<>"",interval_actual,twa_int_copy)),"") -> 0.1 | D49: 0.15 | E49: 0.08164038676
B51: twa calculation interval | C51: =IF(drift_rate_10m<>"",int_applic_begin_10m&"-"&int_applic_begin_10m+twa_int_copy&" d","") -> 0-21 d | D51: 10-31 d | E51: 20-41 d
B52: twa(sum) | C52: =IF(INDEX(drift_rate_10m,,COLUMN()-2)<>"", SUM(C48:INDEX(peak_amount_10m,,no_applic_copy) *IF(((C46:INDEX(int_applic_begin_10m,,no_applic_copy)-C46)<twa_int_copy)*((C47:INDEX(int_applic_end_10m,,no_applic_copy)-C46)<=twa_int_copy), (C47:INDEX(int_applic_end_10m,,no_applic_copy)-C46:INDEX(int_applic_begin_10m,,no_applic_copy)) *(1-EXP(-k_deg_copy*(C47:INDEX(int_applic_end_10m,,no_applic_copy)-C46:INDEX(int_applic_begin_10m,,no_applic_copy)))) /(k_deg_copy*(C47:INDEX(int_applic_end_10m,,no_applic_copy)-C46:INDEX(int_applic_begin_10m,,no_applic_copy))), IF(((C46:INDEX(int_applic_begin_10m,,no_applic_copy)-C46)<twa_int_copy)+((C47:INDEX(int_applic_end_10m,,no_applic_copy)-C46)<=twa_int_copy), (C46+twa_int_copy-C46:INDEX(int_applic_begin_10m,,no_applic_copy)) *(1-EXP(-k_deg_copy*(C46+twa_int_copy-C46:INDEX(int_applic_begin_10m,,no_applic_copy)))) /(k_deg_copy*(C46+twa_int_copy-C46:INDEX(int_applic_begin_10m,,no_applic_copy))), 0) ) /twa_int_copy), "") -> 0.1878515715 | D52: =IF(INDEX(drift_rate_10m,,COLUMN()-2)<>"", SUM(D48:INDEX(peak_amount_10m,,no_applic_copy) *IF(((D46:INDEX(int_applic_begin_10m,,no_applic_copy)-D46)<twa_int_copy)*((D47:INDEX(int_applic_end_10m,,no_applic_copy)-D46)<=twa_int_copy), (D47:INDEX(int_applic_end_10m,,no_applic_copy)-D46:INDEX(int_applic_begin_10m,,no_applic_copy)) *(1-EXP(-k_deg_copy*(D47:INDEX(int_applic_end_10m,,no_applic_copy)-D46:INDEX(int_applic_begin_10m,,no_applic_copy)))) /(k_deg_copy*(D47:INDEX(int_applic_end_10m,,no_applic_copy)-D46:INDEX(int_applic_begin_10m,,no_applic_copy))), IF(((D46:INDEX(int_applic_begin_10m,,no_applic_copy)-D46)<twa_int_copy)+((D47:INDEX(int_applic_end_10m,,no_applic_copy)-D46)<=twa_int_copy), (D46+twa_int_copy-D46:INDEX(int_applic_begin_10m,,no_applic_copy)) *(1-EXP(-k_deg_copy*(D46+twa_int_copy-D46:INDEX(int_applic_begin_10m,,no_applic_copy)))) /(k_deg_copy*(D46+twa_int_copy-D46:INDEX(int_applic_begin_10m,,no_applic_copy))), 0) ) /twa_int_copy), "") -> 0.2313253134 | E52: =IF(INDEX(drift_rate_10m,,COLUMN()-2)<>"", SUM(E48:INDEX(peak_amount_10m,,no_applic_copy) *IF(((E46:INDEX(int_applic_begin_10m,,no_applic_copy)-E46)<twa_int_copy)*((E47:INDEX(int_applic_end_10m,,no_applic_copy)-E46)<=twa_int_copy), (E47:INDEX(int_applic_end_10m,,no_applic_copy)-E46:INDEX(int_applic_begin_10m,,no_applic_copy)) *(1-EXP(-k_deg_copy*(E47:INDEX(int_applic_end_10m,,no_applic_copy)-E46:INDEX(int_applic_begin_10m,,no_applic_copy)))) /(k_deg_copy*(E47:INDEX(int_applic_end_10m,,no_applic_copy)-E46:INDEX(int_applic_begin_10m,,no_applic_copy))), IF(((E46:INDEX(int_applic_begin_10m,,no_applic_copy)-E46)<twa_int_copy)+((E47:INDEX(int_applic_end_10m,,no_applic_copy)-E46)<=twa_int_copy), (E46+twa_int_copy-E46:INDEX(int_applic_begin_10m,,no_applic_copy)) *(1-EXP(-k_deg_copy*(E46+twa_int_copy-E46:INDEX(int_applic_begin_10m,,no_applic_copy)))) /(k_deg_copy*(E46+twa_int_copy-E46:INDEX(int_applic_begin_10m,,no_applic_copy))), 0) ) /twa_int_copy), "") -> 0.1843624206 | F52: =IF(INDEX(drift_rate_10m,,COLUMN()-2)<>"", SUM(F48:INDEX(peak_amount_10m,,no_applic_copy) *IF(((F46:INDEX(int_applic_begin_10m,,no_applic_copy)-F46)<twa_int_copy)*((F47:INDEX(int_applic_end_10m,,no_applic_copy)-F46)<=twa_int_copy), (F47:INDEX(int_applic_end_10m,,no_applic_copy)-F46:INDEX(int_applic_begin_10m,,no_applic_copy)) *(1-EXP(-k_deg_copy*(F47:INDEX(int_applic_end_10m,,no_applic_copy)-F46:INDEX(int_applic_begin_10m,,no_applic_copy)))) /(k_deg_copy*(F47:INDEX(int_applic_end_10m,,no_applic_copy)-F46:INDEX(int_applic_begin_10m,,no_applic_copy))), IF(((F46:INDEX(int_applic_begin_10m,,no_applic_copy)-F46)<twa_int_copy)+((F47:INDEX(int_applic_end_10m,,no_applic_copy)-F46)<=twa_int_copy), (F46+twa_int_copy-F46:INDEX(int_applic_begin_10m,,no_applic_copy)) *(1-EXP(-k_deg_copy*(F46+twa_int_copy-F46:INDEX(int_applic_begin_10m,,no_applic_copy)))) /(k_deg_copy*(F46+twa_int_copy-F46:INDEX(int_applic_begin_10m,,no_applic_copy))), 0) ) /twa_int_copy), "") ->  | G52: =IF(INDEX(drift_rate_10m,,COLUMN()-2)<>"", SUM(G48:INDEX(peak_amount_10m,,no_applic_copy) *IF(((G46:INDEX(int_applic_begin_10m,,no_applic_copy)-G46)<twa_int_copy)*((G47:INDEX(int_applic_end_10m,,no_applic_copy)-G46)<=twa_int_copy), (G47:INDEX(int_applic_end_10m,,no_applic_copy)-G46:INDEX(int_applic_begin_10m,,no_applic_copy)) *(1-EXP(-k_deg_copy*(G47:INDEX(int_applic_end_10m,,no_applic_copy)-G46:INDEX(int_applic_begin_10m,,no_applic_copy)))) /(k_deg_copy*(G47:INDEX(int_applic_end_10m,,no_applic_copy)-G46:INDEX(int_applic_begin_10m,,no_applic_copy))), IF(((G46:INDEX(int_applic_begin_10m,,no_applic_copy)-G46)<twa_int_copy)+((G47:INDEX(int_applic_end_10m,,no_applic_copy)-G46)<=twa_int_copy), (G46+twa_int_copy-G46:INDEX(int_applic_begin_10m,,no_applic_copy)) *(1-EXP(-k_deg_copy*(G46+twa_int_copy-G46:INDEX(int_applic_begin_10m,,no_applic_copy)))) /(k_deg_copy*(G46+twa_int_copy-G46:INDEX(int_applic_begin_10m,,no_applic_copy))), 0) ) /twa_int_copy), "") ->  | H52: =IF(INDEX(drift_rate_10m,,COLUMN()-2)<>"", SUM(H48:INDEX(peak_amount_10m,,no_applic_copy) *IF(((H46:INDEX(int_applic_begin_10m,,no_applic_copy)-H46)<twa_int_copy)*((H47:INDEX(int_applic_end_10m,,no_applic_copy)-H46)<=twa_int_copy), (H47:INDEX(int_applic_end_10m,,no_applic_copy)-H46:INDEX(int_applic_begin_10m,,no_applic_copy)) *(1-EXP(-k_deg_copy*(H47:INDEX(int_applic_end_10m,,no_applic_copy)-H46:INDEX(int_applic_begin_10m,,no_applic_copy)))) /(k_deg_copy*(H47:INDEX(int_applic_end_10m,,no_applic_copy)-H46:INDEX(int_applic_begin_10m,,no_applic_copy))), IF(((H46:INDEX(int_applic_begin_10m,,no_applic_copy)-H46)<twa_int_copy)+((H47:INDEX(int_applic_end_10m,,no_applic_copy)-H46)<=twa_int_copy), (H46+twa_int_copy-H46:INDEX(int_applic_begin_10m,,no_applic_copy)) *(1-EXP(-k_deg_copy*(H46+twa_int_copy-H46:INDEX(int_applic_begin_10m,,no_applic_copy)))) /(k_deg_copy*(H46+twa_int_copy-H46:INDEX(int_applic_begin_10m,,no_applic_copy))), 0) ) /twa_int_copy), "") ->  | I52: =IF(INDEX(drift_rate_10m,,COLUMN()-2)<>"", SUM(I48:INDEX(peak_amount_10m,,no_applic_copy) *IF(((I46:INDEX(int_applic_begin_10m,,no_applic_copy)-I46)<twa_int_copy)*((I47:INDEX(int_applic_end_10m,,no_applic_copy)-I46)<=twa_int_copy), (I47:INDEX(int_applic_end_10m,,no_applic_copy)-I46:INDEX(int_applic_begin_10m,,no_applic_copy)) *(1-EXP(-k_deg_copy*(I47:INDEX(int_applic_end_10m,,no_applic_copy)-I46:INDEX(int_applic_begin_10m,,no_applic_copy)))) /(k_deg_copy*(I47:INDEX(int_applic_end_10m,,no_applic_copy)-I46:INDEX(int_applic_begin_10m,,no_applic_copy))), IF(((I46:INDEX(int_applic_begin_10m,,no_applic_copy)-I46)<twa_int_copy)+((I47:INDEX(int_applic_end_10m,,no_applic_copy)-I46)<=twa_int_copy), (I46+twa_int_copy-I46:INDEX(int_applic_begin_10m,,no_applic_copy)) *(1-EXP(-k_deg_copy*(I46+twa_int_copy-I46:INDEX(int_applic_begin_10m,,no_applic_copy)))) /(k_deg_copy*(I46+twa_int_copy-I46:INDEX(int_applic_begin_10m,,no_applic_copy))), 0) ) /twa_int_copy), "") ->  | J52: =IF(INDEX(drift_rate_10m,,COLUMN()-2)<>"", SUM(J48:INDEX(peak_amount_10m,,no_applic_copy) *IF(((J46:INDEX(int_applic_begin_10m,,no_applic_copy)-J46)<twa_int_copy)*((J47:INDEX(int_applic_end_10m,,no_applic_copy)-J46)<=twa_int_copy), (J47:INDEX(int_applic_end_10m,,no_applic_copy)-J46:INDEX(int_applic_begin_10m,,no_applic_copy)) *(1-EXP(-k_deg_copy*(J47:INDEX(int_applic_end_10m,,no_applic_copy)-J46:INDEX(int_applic_begin_10m,,no_applic_copy)))) /(k_deg_copy*(J47:INDEX(int_applic_end_10m,,no_applic_copy)-J46:INDEX(int_applic_begin_10m,,no_applic_copy))), IF(((J46:INDEX(int_applic_begin_10m,,no_applic_copy)-J46)<twa_int_copy)+((J47:INDEX(int_applic_end_10m,,no_applic_copy)-J46)<=twa_int_copy), (J46+twa_int_copy-J46:INDEX(int_applic_begin_10m,,no_applic_copy)) *(1-EXP(-k_deg_copy*(J46+twa_int_copy-J46:INDEX(int_applic_begin_10m,,no_applic_copy)))) /(k_deg_copy*(J46+twa_int_copy-J46:INDEX(int_applic_begin_10m,,no_applic_copy))), 0) ) /twa_int_copy), "") ->  | K52: =IF(INDEX(drift_rate_10m,,COLUMN()-2)<>"", SUM(K48:INDEX(peak_amount_10m,,no_applic_copy) *IF(((K46:INDEX(int_applic_begin_10m,,no_applic_copy)-K46)<twa_int_copy)*((K47:INDEX(int_applic_end_10m,,no_applic_copy)-K46)<=twa_int_copy), (K47:INDEX(int_applic_end_10m,,no_applic_copy)-K46:INDEX(int_applic_begin_10m,,no_applic_copy)) *(1-EXP(-k_deg_copy*(K47:INDEX(int_applic_end_10m,,no_applic_copy)-K46:INDEX(int_applic_begin_10m,,no_applic_copy)))) /(k_deg_copy*(K47:INDEX(int_applic_end_10m,,no_applic_copy)-K46:INDEX(int_applic_begin_10m,,no_applic_copy))), IF(((K46:INDEX(int_applic_begin_10m,,no_applic_copy)-K46)<twa_int_copy)+((K47:INDEX(int_applic_end_10m,,no_applic_copy)-K46)<=twa_int_copy), (K46+twa_int_copy-K46:INDEX(int_applic_begin_10m,,no_applic_copy)) *(1-EXP(-k_deg_copy*(K46+twa_int_copy-K46:INDEX(int_applic_begin_10m,,no_applic_copy)))) /(k_deg_copy*(K46+twa_int_copy-K46:INDEX(int_applic_begin_10m,,no_applic_copy))), 0) ) /twa_int_copy), "") ->  | L52: =IF(INDEX(drift_rate_10m,,COLUMN()-2)<>"", SUM(L48:INDEX(peak_amount_10m,,no_applic_copy) *IF(((L46:INDEX(int_applic_begin_10m,,no_applic_copy)-L46)<twa_int_copy)*((L47:INDEX(int_applic_end_10m,,no_applic_copy)-L46)<=twa_int_copy), (L47:INDEX(int_applic_end_10m,,no_applic_copy)-L46:INDEX(int_applic_begin_10m,,no_applic_copy)) *(1-EXP(-k_deg_copy*(L47:INDEX(int_applic_end_10m,,no_applic_copy)-L46:INDEX(int_applic_begin_10m,,no_applic_copy)))) /(k_deg_copy*(L47:INDEX(int_applic_end_10m,,no_applic_copy)-L46:INDEX(int_applic_begin_10m,,no_applic_copy))), IF(((L46:INDEX(int_applic_begin_10m,,no_applic_copy)-L46)<twa_int_copy)+((L47:INDEX(int_applic_end_10m,,no_applic_copy)-L46)<=twa_int_copy), (L46+twa_int_copy-L46:INDEX(int_applic_begin_10m,,no_applic_copy)) *(1-EXP(-k_deg_copy*(L46+twa_int_copy-L46:INDEX(int_applic_begin_10m,,no_applic_copy)))) /(k_deg_copy*(L46+twa_int_copy-L46:INDEX(int_applic_begin_10m,,no_applic_copy))), 0) ) /twa_int_copy), "") ->  | M52: =IF(INDEX(drift_rate_10m,,COLUMN()-2)<>"", SUM(M48:INDEX(peak_amount_10m,,no_applic_copy) *IF(((M46:INDEX(int_applic_begin_10m,,no_applic_copy)-M46)<twa_int_copy)*((M47:INDEX(int_applic_end_10m,,no_applic_copy)-M46)<=twa_int_copy), (M47:INDEX(int_applic_end_10m,,no_applic_copy)-M46:INDEX(int_applic_begin_10m,,no_applic_copy)) *(1-EXP(-k_deg_copy*(M47:INDEX(int_applic_end_10m,,no_applic_copy)-M46:INDEX(int_applic_begin_10m,,no_applic_copy)))) /(k_deg_copy*(M47:INDEX(int_applic_end_10m,,no_applic_copy)-M46:INDEX(int_applic_begin_10m,,no_applic_copy))), IF(((M46:INDEX(int_applic_begin_10m,,no_applic_copy)-M46)<twa_int_copy)+((M47:INDEX(int_applic_end_10m,,no_applic_copy)-M46)<=twa_int_copy), (M46+twa_int_copy-M46:INDEX(int_applic_begin_10m,,no_applic_copy)) *(1-EXP(-k_deg_copy*(M46+twa_int_copy-M46:INDEX(int_applic_begin_10m,,no_applic_copy)))) /(k_deg_copy*(M46+twa_int_copy-M46:INDEX(int_applic_begin_10m,,no_applic_copy))), 0) ) /twa_int_copy), "") ->  | N52: =IF(INDEX(drift_rate_10m,,COLUMN()-2)<>"", SUM(N48:INDEX(peak_amount_10m,,no_applic_copy) *IF(((N46:INDEX(int_applic_begin_10m,,no_applic_copy)-N46)<twa_int_copy)*((N47:INDEX(int_applic_end_10m,,no_applic_copy)-N46)<=twa_int_copy), (N47:INDEX(int_applic_end_10m,,no_applic_copy)-N46:INDEX(int_applic_begin_10m,,no_applic_copy)) *(1-EXP(-k_deg_copy*(N47:INDEX(int_applic_end_10m,,no_applic_copy)-N46:INDEX(int_applic_begin_10m,,no_applic_copy)))) /(k_deg_copy*(N47:INDEX(int_applic_end_10m,,no_applic_copy)-N46:INDEX(int_applic_begin_10m,,no_applic_copy))), IF(((N46:INDEX(int_applic_begin_10m,,no_applic_copy)-N46)<twa_int_copy)+((N47:INDEX(int_applic_end_10m,,no_applic_copy)-N46)<=twa_int_copy), (N46+twa_int_copy-N46:INDEX(int_applic_begin_10m,,no_applic_copy)) *(1-EXP(-k_deg_copy*(N46+twa_int_copy-N46:INDEX(int_applic_begin_10m,,no_applic_copy)))) /(k_deg_copy*(N46+twa_int_copy-N46:INDEX(int_applic_begin_10m,,no_applic_copy))), 0) ) /twa_int_copy), "") -> 
B54: max. peak amount | C54: =MAX(peak_amount_10m) -> 0.35
B55: max. twa(sum) | C55: =MAX(twa_sum_10m) -> 0.2313253134
B58: 15 m distance
B59: begin interval | C59: =IF(interval_actual<>"",SUM(interval_actual1:INDEX(interval_actual,,COLUMN()-2))-interval_actual,IF(drift_rate_15m<>"",SUM(interval_actual1:INDEX(interval_actual,,COLUMN()-2)),"")) -> 0 | D59: 10 | E59: 20
B60: end interval | C60: =IF(interval_actual<>"",SUM(interval_actual1:INDEX(interval_actual,,COLUMN()-2)),IF(drift_rate_15m<>"",SUM(interval_actual1:INDEX(interval_actual,,COLUMN()-2))+twa_int_copy,"")) -> 10 | D60: 20 | E60: 41
B61: peak amount | C61: =IF(drift_rate_15m<>"",drift_rate_15m,"") -> 0.14 | D61: =IF(OFFSET(drift_rate_15m,,1)<>"",OFFSET(drift_rate_15m,,1)+final_amount_15m,"") -> 0.21 | E61: 0.245
B62: final amount | C62: =IF(drift_rate_15m<>"",peak_amount_15m*EXP(-k_deg_copy*IF(interval_actual<>"",interval_actual,twa_int_copy)),"") -> 0.07 | D62: 0.105 | E62: 0.05714827073
B64: twa calculation interval | C64: =IF(drift_rate_15m<>"",int_applic_begin_15m&"-"&int_applic_begin_15m+twa_int_copy&" d","") -> 0-21 d | D64: 10-31 d | E64: 20-41 d
B65: twa(sum) | C65: =IF(INDEX(drift_rate_15m,,COLUMN()-2)<>"", SUM(C61:INDEX(peak_amount_15m,,no_applic_copy) *IF(((C59:INDEX(int_applic_begin_15m,,no_applic_copy)-C59)<twa_int_copy)*((C60:INDEX(int_applic_end_15m,,no_applic_copy)-C59)<=twa_int_copy), (C60:INDEX(int_applic_end_15m,,no_applic_copy)-C59:INDEX(int_applic_begin_15m,,no_applic_copy)) *(1-EXP(-k_deg_copy*(C60:INDEX(int_applic_end_15m,,no_applic_copy)-C59:INDEX(int_applic_begin_15m,,no_applic_copy)))) /(k_deg_copy*(C60:INDEX(int_applic_end_15m,,no_applic_copy)-C59:INDEX(int_applic_begin_15m,,no_applic_copy))), IF(((C59:INDEX(int_applic_begin_15m,,no_applic_copy)-C59)<twa_int_copy)+((C60:INDEX(int_applic_end_15m,,no_applic_copy)-C59)<=twa_int_copy), (C59+twa_int_copy-C59:INDEX(int_applic_begin_15m,,no_applic_copy)) *(1-EXP(-k_deg_copy*(C59+twa_int_copy-C59:INDEX(int_applic_begin_15m,,no_applic_copy)))) /(k_deg_copy*(C59+twa_int_copy-C59:INDEX(int_applic_begin_15m,,no_applic_copy))), 0) ) /twa_int_copy), "") -> 0.1314961 | D65: =IF(INDEX(drift_rate_15m,,COLUMN()-2)<>"", SUM(D61:INDEX(peak_amount_15m,,no_applic_copy) *IF(((D59:INDEX(int_applic_begin_15m,,no_applic_copy)-D59)<twa_int_copy)*((D60:INDEX(int_applic_end_15m,,no_applic_copy)-D59)<=twa_int_copy), (D60:INDEX(int_applic_end_15m,,no_applic_copy)-D59:INDEX(int_applic_begin_15m,,no_applic_copy)) *(1-EXP(-k_deg_copy*(D60:INDEX(int_applic_end_15m,,no_applic_copy)-D59:INDEX(int_applic_begin_15m,,no_applic_copy)))) /(k_deg_copy*(D60:INDEX(int_applic_end_15m,,no_applic_copy)-D59:INDEX(int_applic_begin_15m,,no_applic_copy))), IF(((D59:INDEX(int_applic_begin_15m,,no_applic_copy)-D59)<twa_int_copy)+((D60:INDEX(int_applic_end_15m,,no_applic_copy)-D59)<=twa_int_copy), (D59+twa_int_copy-D59:INDEX(int_applic_begin_15m,,no_applic_copy)) *(1-EXP(-k_deg_copy*(D59+twa_int_copy-D59:INDEX(int_applic_begin_15m,,no_applic_copy)))) /(k_deg_copy*(D59+twa_int_copy-D59:INDEX(int_applic_begin_15m,,no_applic_copy))), 0) ) /twa_int_copy), "") -> 0.1619277194 | E65: =IF(INDEX(drift_rate_15m,,COLUMN()-2)<>"", SUM(E61:INDEX(peak_amount_15m,,no_applic_copy) *IF(((E59:INDEX(int_applic_begin_15m,,no_applic_copy)-E59)<twa_int_copy)*((E60:INDEX(int_applic_end_15m,,no_applic_copy)-E59)<=twa_int_copy), (E60:INDEX(int_applic_end_15m,,no_applic_copy)-E59:INDEX(int_applic_begin_15m,,no_applic_copy)) *(1-EXP(-k_deg_copy*(E60:INDEX(int_applic_end_15m,,no_applic_copy)-E59:INDEX(int_applic_begin_15m,,no_applic_copy)))) /(k_deg_copy*(E60:INDEX(int_applic_end_15m,,no_applic_copy)-E59:INDEX(int_applic_begin_15m,,no_applic_copy))), IF(((E59:INDEX(int_applic_begin_15m,,no_applic_copy)-E59)<twa_int_copy)+((E60:INDEX(int_applic_end_15m,,no_applic_copy)-E59)<=twa_int_copy), (E59+twa_int_copy-E59:INDEX(int_applic_begin_15m,,no_applic_copy)) *(1-EXP(-k_deg_copy*(E59+twa_int_copy-E59:INDEX(int_applic_begin_15m,,no_applic_copy)))) /(k_deg_copy*(E59+twa_int_copy-E59:INDEX(int_applic_begin_15m,,no_applic_copy))), 0) ) /twa_int_copy), "") -> 0.1290536944 | F65: =IF(INDEX(drift_rate_15m,,COLUMN()-2)<>"", SUM(F61:INDEX(peak_amount_15m,,no_applic_copy) *IF(((F59:INDEX(int_applic_begin_15m,,no_applic_copy)-F59)<twa_int_copy)*((F60:INDEX(int_applic_end_15m,,no_applic_copy)-F59)<=twa_int_copy), (F60:INDEX(int_applic_end_15m,,no_applic_copy)-F59:INDEX(int_applic_begin_15m,,no_applic_copy)) *(1-EXP(-k_deg_copy*(F60:INDEX(int_applic_end_15m,,no_applic_copy)-F59:INDEX(int_applic_begin_15m,,no_applic_copy)))) /(k_deg_copy*(F60:INDEX(int_applic_end_15m,,no_applic_copy)-F59:INDEX(int_applic_begin_15m,,no_applic_copy))), IF(((F59:INDEX(int_applic_begin_15m,,no_applic_copy)-F59)<twa_int_copy)+((F60:INDEX(int_applic_end_15m,,no_applic_copy)-F59)<=twa_int_copy), (F59+twa_int_copy-F59:INDEX(int_applic_begin_15m,,no_applic_copy)) *(1-EXP(-k_deg_copy*(F59+twa_int_copy-F59:INDEX(int_applic_begin_15m,,no_applic_copy)))) /(k_deg_copy*(F59+twa_int_copy-F59:INDEX(int_applic_begin_15m,,no_applic_copy))), 0) ) /twa_int_copy), "") ->  | G65: =IF(INDEX(drift_rate_15m,,COLUMN()-2)<>"", SUM(G61:INDEX(peak_amount_15m,,no_applic_copy) *IF(((G59:INDEX(int_applic_begin_15m,,no_applic_copy)-G59)<twa_int_copy)*((G60:INDEX(int_applic_end_15m,,no_applic_copy)-G59)<=twa_int_copy), (G60:INDEX(int_applic_end_15m,,no_applic_copy)-G59:INDEX(int_applic_begin_15m,,no_applic_copy)) *(1-EXP(-k_deg_copy*(G60:INDEX(int_applic_end_15m,,no_applic_copy)-G59:INDEX(int_applic_begin_15m,,no_applic_copy)))) /(k_deg_copy*(G60:INDEX(int_applic_end_15m,,no_applic_copy)-G59:INDEX(int_applic_begin_15m,,no_applic_copy))), IF(((G59:INDEX(int_applic_begin_15m,,no_applic_copy)-G59)<twa_int_copy)+((G60:INDEX(int_applic_end_15m,,no_applic_copy)-G59)<=twa_int_copy), (G59+twa_int_copy-G59:INDEX(int_applic_begin_15m,,no_applic_copy)) *(1-EXP(-k_deg_copy*(G59+twa_int_copy-G59:INDEX(int_applic_begin_15m,,no_applic_copy)))) /(k_deg_copy*(G59+twa_int_copy-G59:INDEX(int_applic_begin_15m,,no_applic_copy))), 0) ) /twa_int_copy), "") ->  | H65: =IF(INDEX(drift_rate_15m,,COLUMN()-2)<>"", SUM(H61:INDEX(peak_amount_15m,,no_applic_copy) *IF(((H59:INDEX(int_applic_begin_15m,,no_applic_copy)-H59)<twa_int_copy)*((H60:INDEX(int_applic_end_15m,,no_applic_copy)-H59)<=twa_int_copy), (H60:INDEX(int_applic_end_15m,,no_applic_copy)-H59:INDEX(int_applic_begin_15m,,no_applic_copy)) *(1-EXP(-k_deg_copy*(H60:INDEX(int_applic_end_15m,,no_applic_copy)-H59:INDEX(int_applic_begin_15m,,no_applic_copy)))) /(k_deg_copy*(H60:INDEX(int_applic_end_15m,,no_applic_copy)-H59:INDEX(int_applic_begin_15m,,no_applic_copy))), IF(((H59:INDEX(int_applic_begin_15m,,no_applic_copy)-H59)<twa_int_copy)+((H60:INDEX(int_applic_end_15m,,no_applic_copy)-H59)<=twa_int_copy), (H59+twa_int_copy-H59:INDEX(int_applic_begin_15m,,no_applic_copy)) *(1-EXP(-k_deg_copy*(H59+twa_int_copy-H59:INDEX(int_applic_begin_15m,,no_applic_copy)))) /(k_deg_copy*(H59+twa_int_copy-H59:INDEX(int_applic_begin_15m,,no_applic_copy))), 0) ) /twa_int_copy), "") ->  | I65: =IF(INDEX(drift_rate_15m,,COLUMN()-2)<>"", SUM(I61:INDEX(peak_amount_15m,,no_applic_copy) *IF(((I59:INDEX(int_applic_begin_15m,,no_applic_copy)-I59)<twa_int_copy)*((I60:INDEX(int_applic_end_15m,,no_applic_copy)-I59)<=twa_int_copy), (I60:INDEX(int_applic_end_15m,,no_applic_copy)-I59:INDEX(int_applic_begin_15m,,no_applic_copy)) *(1-EXP(-k_deg_copy*(I60:INDEX(int_applic_end_15m,,no_applic_copy)-I59:INDEX(int_applic_begin_15m,,no_applic_copy)))) /(k_deg_copy*(I60:INDEX(int_applic_end_15m,,no_applic_copy)-I59:INDEX(int_applic_begin_15m,,no_applic_copy))), IF(((I59:INDEX(int_applic_begin_15m,,no_applic_copy)-I59)<twa_int_copy)+((I60:INDEX(int_applic_end_15m,,no_applic_copy)-I59)<=twa_int_copy), (I59+twa_int_copy-I59:INDEX(int_applic_begin_15m,,no_applic_copy)) *(1-EXP(-k_deg_copy*(I59+twa_int_copy-I59:INDEX(int_applic_begin_15m,,no_applic_copy)))) /(k_deg_copy*(I59+twa_int_copy-I59:INDEX(int_applic_begin_15m,,no_applic_copy))), 0) ) /twa_int_copy), "") ->  | J65: =IF(INDEX(drift_rate_15m,,COLUMN()-2)<>"", SUM(J61:INDEX(peak_amount_15m,,no_applic_copy) *IF(((J59:INDEX(int_applic_begin_15m,,no_applic_copy)-J59)<twa_int_copy)*((J60:INDEX(int_applic_end_15m,,no_applic_copy)-J59)<=twa_int_copy), (J60:INDEX(int_applic_end_15m,,no_applic_copy)-J59:INDEX(int_applic_begin_15m,,no_applic_copy)) *(1-EXP(-k_deg_copy*(J60:INDEX(int_applic_end_15m,,no_applic_copy)-J59:INDEX(int_applic_begin_15m,,no_applic_copy)))) /(k_deg_copy*(J60:INDEX(int_applic_end_15m,,no_applic_copy)-J59:INDEX(int_applic_begin_15m,,no_applic_copy))), IF(((J59:INDEX(int_applic_begin_15m,,no_applic_copy)-J59)<twa_int_copy)+((J60:INDEX(int_applic_end_15m,,no_applic_copy)-J59)<=twa_int_copy), (J59+twa_int_copy-J59:INDEX(int_applic_begin_15m,,no_applic_copy)) *(1-EXP(-k_deg_copy*(J59+twa_int_copy-J59:INDEX(int_applic_begin_15m,,no_applic_copy)))) /(k_deg_copy*(J59+twa_int_copy-J59:INDEX(int_applic_begin_15m,,no_applic_copy))), 0) ) /twa_int_copy), "") ->  | K65: =IF(INDEX(drift_rate_15m,,COLUMN()-2)<>"", SUM(K61:INDEX(peak_amount_15m,,no_applic_copy) *IF(((K59:INDEX(int_applic_begin_15m,,no_applic_copy)-K59)<twa_int_copy)*((K60:INDEX(int_applic_end_15m,,no_applic_copy)-K59)<=twa_int_copy), (K60:INDEX(int_applic_end_15m,,no_applic_copy)-K59:INDEX(int_applic_begin_15m,,no_applic_copy)) *(1-EXP(-k_deg_copy*(K60:INDEX(int_applic_end_15m,,no_applic_copy)-K59:INDEX(int_applic_begin_15m,,no_applic_copy)))) /(k_deg_copy*(K60:INDEX(int_applic_end_15m,,no_applic_copy)-K59:INDEX(int_applic_begin_15m,,no_applic_copy))), IF(((K59:INDEX(int_applic_begin_15m,,no_applic_copy)-K59)<twa_int_copy)+((K60:INDEX(int_applic_end_15m,,no_applic_copy)-K59)<=twa_int_copy), (K59+twa_int_copy-K59:INDEX(int_applic_begin_15m,,no_applic_copy)) *(1-EXP(-k_deg_copy*(K59+twa_int_copy-K59:INDEX(int_applic_begin_15m,,no_applic_copy)))) /(k_deg_copy*(K59+twa_int_copy-K59:INDEX(int_applic_begin_15m,,no_applic_copy))), 0) ) /twa_int_copy), "") ->  | L65: =IF(INDEX(drift_rate_15m,,COLUMN()-2)<>"", SUM(L61:INDEX(peak_amount_15m,,no_applic_copy) *IF(((L59:INDEX(int_applic_begin_15m,,no_applic_copy)-L59)<twa_int_copy)*((L60:INDEX(int_applic_end_15m,,no_applic_copy)-L59)<=twa_int_copy), (L60:INDEX(int_applic_end_15m,,no_applic_copy)-L59:INDEX(int_applic_begin_15m,,no_applic_copy)) *(1-EXP(-k_deg_copy*(L60:INDEX(int_applic_end_15m,,no_applic_copy)-L59:INDEX(int_applic_begin_15m,,no_applic_copy)))) /(k_deg_copy*(L60:INDEX(int_applic_end_15m,,no_applic_copy)-L59:INDEX(int_applic_begin_15m,,no_applic_copy))), IF(((L59:INDEX(int_applic_begin_15m,,no_applic_copy)-L59)<twa_int_copy)+((L60:INDEX(int_applic_end_15m,,no_applic_copy)-L59)<=twa_int_copy), (L59+twa_int_copy-L59:INDEX(int_applic_begin_15m,,no_applic_copy)) *(1-EXP(-k_deg_copy*(L59+twa_int_copy-L59:INDEX(int_applic_begin_15m,,no_applic_copy)))) /(k_deg_copy*(L59+twa_int_copy-L59:INDEX(int_applic_begin_15m,,no_applic_copy))), 0) ) /twa_int_copy), "") ->  | M65: =IF(INDEX(drift_rate_15m,,COLUMN()-2)<>"", SUM(M61:INDEX(peak_amount_15m,,no_applic_copy) *IF(((M59:INDEX(int_applic_begin_15m,,no_applic_copy)-M59)<twa_int_copy)*((M60:INDEX(int_applic_end_15m,,no_applic_copy)-M59)<=twa_int_copy), (M60:INDEX(int_applic_end_15m,,no_applic_copy)-M59:INDEX(int_applic_begin_15m,,no_applic_copy)) *(1-EXP(-k_deg_copy*(M60:INDEX(int_applic_end_15m,,no_applic_copy)-M59:INDEX(int_applic_begin_15m,,no_applic_copy)))) /(k_deg_copy*(M60:INDEX(int_applic_end_15m,,no_applic_copy)-M59:INDEX(int_applic_begin_15m,,no_applic_copy))), IF(((M59:INDEX(int_applic_begin_15m,,no_applic_copy)-M59)<twa_int_copy)+((M60:INDEX(int_applic_end_15m,,no_applic_copy)-M59)<=twa_int_copy), (M59+twa_int_copy-M59:INDEX(int_applic_begin_15m,,no_applic_copy)) *(1-EXP(-k_deg_copy*(M59+twa_int_copy-M59:INDEX(int_applic_begin_15m,,no_applic_copy)))) /(k_deg_copy*(M59+twa_int_copy-M59:INDEX(int_applic_begin_15m,,no_applic_copy))), 0) ) /twa_int_copy), "") ->  | N65: =IF(INDEX(drift_rate_15m,,COLUMN()-2)<>"", SUM(N61:INDEX(peak_amount_15m,,no_applic_copy) *IF(((N59:INDEX(int_applic_begin_15m,,no_applic_copy)-N59)<twa_int_copy)*((N60:INDEX(int_applic_end_15m,,no_applic_copy)-N59)<=twa_int_copy), (N60:INDEX(int_applic_end_15m,,no_applic_copy)-N59:INDEX(int_applic_begin_15m,,no_applic_copy)) *(1-EXP(-k_deg_copy*(N60:INDEX(int_applic_end_15m,,no_applic_copy)-N59:INDEX(int_applic_begin_15m,,no_applic_copy)))) /(k_deg_copy*(N60:INDEX(int_applic_end_15m,,no_applic_copy)-N59:INDEX(int_applic_begin_15m,,no_applic_copy))), IF(((N59:INDEX(int_applic_begin_15m,,no_applic_copy)-N59)<twa_int_copy)+((N60:INDEX(int_applic_end_15m,,no_applic_copy)-N59)<=twa_int_copy), (N59+twa_int_copy-N59:INDEX(int_applic_begin_15m,,no_applic_copy)) *(1-EXP(-k_deg_copy*(N59+twa_int_copy-N59:INDEX(int_applic_begin_15m,,no_applic_copy)))) /(k_deg_copy*(N59+twa_int_copy-N59:INDEX(int_applic_begin_15m,,no_applic_copy))), 0) ) /twa_int_copy), "") -> 
B67: max. peak amount | C67: =MAX(peak_amount_15m) -> 0.245
B68: max. twa(sum) | C68: =MAX(twa_sum_15m) -> 0.1619277194
B71: 20 m distance
B72: begin interval | C72: =IF(interval_actual<>"",SUM(interval_actual1:INDEX(interval_actual,,COLUMN()-2))-interval_actual,IF(drift_rate_20m<>"",SUM(interval_actual1:INDEX(interval_actual,,COLUMN()-2)),"")) -> 0 | D72: 10 | E72: 20
B73: end interval | C73: =IF(interval_actual<>"",SUM(interval_actual1:INDEX(interval_actual,,COLUMN()-2)),IF(drift_rate_20m<>"",SUM(interval_actual1:INDEX(interval_actual,,COLUMN()-2))+twa_int_copy,"")) -> 10 | D73: 20 | E73: 41
B74: peak amount | C74: =IF(drift_rate_20m<>"",drift_rate_20m,"") -> 0.1 | D74: =IF(OFFSET(drift_rate_20m,,1)<>"",OFFSET(drift_rate_20m,,1)+final_amount_20m,"") -> 0.15 | E74: 0.175
B75: final amount | C75: =IF(drift_rate_20m<>"",peak_amount_20m*EXP(-k_deg_copy*IF(interval_actual<>"",interval_actual,twa_int_copy)),"") -> 0.05 | D75: 0.075 | E75: 0.04082019338
B77: twa calculation interval | C77: =IF(drift_rate_20m<>"",int_applic_begin_20m&"-"&int_applic_begin_20m+twa_int_copy&" d","") -> 0-21 d | D77: 10-31 d | E77: 20-41 d
B78: twa(sum) | C78: =IF(INDEX(drift_rate_20m,,COLUMN()-2)<>"", SUM(C74:INDEX(peak_amount_20m,,no_applic_copy) *IF(((C72:INDEX(int_applic_begin_20m,,no_applic_copy)-C72)<twa_int_copy)*((C73:INDEX(int_applic_end_20m,,no_applic_copy)-C72)<=twa_int_copy), (C73:INDEX(int_applic_end_20m,,no_applic_copy)-C72:INDEX(int_applic_begin_20m,,no_applic_copy)) *(1-EXP(-k_deg_copy*(C73:INDEX(int_applic_end_20m,,no_applic_copy)-C72:INDEX(int_applic_begin_20m,,no_applic_copy)))) /(k_deg_copy*(C73:INDEX(int_applic_end_20m,,no_applic_copy)-C72:INDEX(int_applic_begin_20m,,no_applic_copy))), IF(((C72:INDEX(int_applic_begin_20m,,no_applic_copy)-C72)<twa_int_copy)+((C73:INDEX(int_applic_end_20m,,no_applic_copy)-C72)<=twa_int_copy), (C72+twa_int_copy-C72:INDEX(int_applic_begin_20m,,no_applic_copy)) *(1-EXP(-k_deg_copy*(C72+twa_int_copy-C72:INDEX(int_applic_begin_20m,,no_applic_copy)))) /(k_deg_copy*(C72+twa_int_copy-C72:INDEX(int_applic_begin_20m,,no_applic_copy))), 0) ) /twa_int_copy), "") -> 0.09392578573 | D78: =IF(INDEX(drift_rate_20m,,COLUMN()-2)<>"", SUM(D74:INDEX(peak_amount_20m,,no_applic_copy) *IF(((D72:INDEX(int_applic_begin_20m,,no_applic_copy)-D72)<twa_int_copy)*((D73:INDEX(int_applic_end_20m,,no_applic_copy)-D72)<=twa_int_copy), (D73:INDEX(int_applic_end_20m,,no_applic_copy)-D72:INDEX(int_applic_begin_20m,,no_applic_copy)) *(1-EXP(-k_deg_copy*(D73:INDEX(int_applic_end_20m,,no_applic_copy)-D72:INDEX(int_applic_begin_20m,,no_applic_copy)))) /(k_deg_copy*(D73:INDEX(int_applic_end_20m,,no_applic_copy)-D72:INDEX(int_applic_begin_20m,,no_applic_copy))), IF(((D72:INDEX(int_applic_begin_20m,,no_applic_copy)-D72)<twa_int_copy)+((D73:INDEX(int_applic_end_20m,,no_applic_copy)-D72)<=twa_int_copy), (D72+twa_int_copy-D72:INDEX(int_applic_begin_20m,,no_applic_copy)) *(1-EXP(-k_deg_copy*(D72+twa_int_copy-D72:INDEX(int_applic_begin_20m,,no_applic_copy)))) /(k_deg_copy*(D72+twa_int_copy-D72:INDEX(int_applic_begin_20m,,no_applic_copy))), 0) ) /twa_int_copy), "") -> 0.1156626567 | E78: =IF(INDEX(drift_rate_20m,,COLUMN()-2)<>"", SUM(E74:INDEX(peak_amount_20m,,no_applic_copy) *IF(((E72:INDEX(int_applic_begin_20m,,no_applic_copy)-E72)<twa_int_copy)*((E73:INDEX(int_applic_end_20m,,no_applic_copy)-E72)<=twa_int_copy), (E73:INDEX(int_applic_end_20m,,no_applic_copy)-E72:INDEX(int_applic_begin_20m,,no_applic_copy)) *(1-EXP(-k_deg_copy*(E73:INDEX(int_applic_end_20m,,no_applic_copy)-E72:INDEX(int_applic_begin_20m,,no_applic_copy)))) /(k_deg_copy*(E73:INDEX(int_applic_end_20m,,no_applic_copy)-E72:INDEX(int_applic_begin_20m,,no_applic_copy))), IF(((E72:INDEX(int_applic_begin_20m,,no_applic_copy)-E72)<twa_int_copy)+((E73:INDEX(int_applic_end_20m,,no_applic_copy)-E72)<=twa_int_copy), (E72+twa_int_copy-E72:INDEX(int_applic_begin_20m,,no_applic_copy)) *(1-EXP(-k_deg_copy*(E72+twa_int_copy-E72:INDEX(int_applic_begin_20m,,no_applic_copy)))) /(k_deg_copy*(E72+twa_int_copy-E72:INDEX(int_applic_begin_20m,,no_applic_copy))), 0) ) /twa_int_copy), "") -> 0.09218121028 | F78: =IF(INDEX(drift_rate_20m,,COLUMN()-2)<>"", SUM(F74:INDEX(peak_amount_20m,,no_applic_copy) *IF(((F72:INDEX(int_applic_begin_20m,,no_applic_copy)-F72)<twa_int_copy)*((F73:INDEX(int_applic_end_20m,,no_applic_copy)-F72)<=twa_int_copy), (F73:INDEX(int_applic_end_20m,,no_applic_copy)-F72:INDEX(int_applic_begin_20m,,no_applic_copy)) *(1-EXP(-k_deg_copy*(F73:INDEX(int_applic_end_20m,,no_applic_copy)-F72:INDEX(int_applic_begin_20m,,no_applic_copy)))) /(k_deg_copy*(F73:INDEX(int_applic_end_20m,,no_applic_copy)-F72:INDEX(int_applic_begin_20m,,no_applic_copy))), IF(((F72:INDEX(int_applic_begin_20m,,no_applic_copy)-F72)<twa_int_copy)+((F73:INDEX(int_applic_end_20m,,no_applic_copy)-F72)<=twa_int_copy), (F72+twa_int_copy-F72:INDEX(int_applic_begin_20m,,no_applic_copy)) *(1-EXP(-k_deg_copy*(F72+twa_int_copy-F72:INDEX(int_applic_begin_20m,,no_applic_copy)))) /(k_deg_copy*(F72+twa_int_copy-F72:INDEX(int_applic_begin_20m,,no_applic_copy))), 0) ) /twa_int_copy), "") ->  | G78: =IF(INDEX(drift_rate_20m,,COLUMN()-2)<>"", SUM(G74:INDEX(peak_amount_20m,,no_applic_copy) *IF(((G72:INDEX(int_applic_begin_20m,,no_applic_copy)-G72)<twa_int_copy)*((G73:INDEX(int_applic_end_20m,,no_applic_copy)-G72)<=twa_int_copy), (G73:INDEX(int_applic_end_20m,,no_applic_copy)-G72:INDEX(int_applic_begin_20m,,no_applic_copy)) *(1-EXP(-k_deg_copy*(G73:INDEX(int_applic_end_20m,,no_applic_copy)-G72:INDEX(int_applic_begin_20m,,no_applic_copy)))) /(k_deg_copy*(G73:INDEX(int_applic_end_20m,,no_applic_copy)-G72:INDEX(int_applic_begin_20m,,no_applic_copy))), IF(((G72:INDEX(int_applic_begin_20m,,no_applic_copy)-G72)<twa_int_copy)+((G73:INDEX(int_applic_end_20m,,no_applic_copy)-G72)<=twa_int_copy), (G72+twa_int_copy-G72:INDEX(int_applic_begin_20m,,no_applic_copy)) *(1-EXP(-k_deg_copy*(G72+twa_int_copy-G72:INDEX(int_applic_begin_20m,,no_applic_copy)))) /(k_deg_copy*(G72+twa_int_copy-G72:INDEX(int_applic_begin_20m,,no_applic_copy))), 0) ) /twa_int_copy), "") ->  | H78: =IF(INDEX(drift_rate_20m,,COLUMN()-2)<>"", SUM(H74:INDEX(peak_amount_20m,,no_applic_copy) *IF(((H72:INDEX(int_applic_begin_20m,,no_applic_copy)-H72)<twa_int_copy)*((H73:INDEX(int_applic_end_20m,,no_applic_copy)-H72)<=twa_int_copy), (H73:INDEX(int_applic_end_20m,,no_applic_copy)-H72:INDEX(int_applic_begin_20m,,no_applic_copy)) *(1-EXP(-k_deg_copy*(H73:INDEX(int_applic_end_20m,,no_applic_copy)-H72:INDEX(int_applic_begin_20m,,no_applic_copy)))) /(k_deg_copy*(H73:INDEX(int_applic_end_20m,,no_applic_copy)-H72:INDEX(int_applic_begin_20m,,no_applic_copy))), IF(((H72:INDEX(int_applic_begin_20m,,no_applic_copy)-H72)<twa_int_copy)+((H73:INDEX(int_applic_end_20m,,no_applic_copy)-H72)<=twa_int_copy), (H72+twa_int_copy-H72:INDEX(int_applic_begin_20m,,no_applic_copy)) *(1-EXP(-k_deg_copy*(H72+twa_int_copy-H72:INDEX(int_applic_begin_20m,,no_applic_copy)))) /(k_deg_copy*(H72+twa_int_copy-H72:INDEX(int_applic_begin_20m,,no_applic_copy))), 0) ) /twa_int_copy), "") ->  | I78: =IF(INDEX(drift_rate_20m,,COLUMN()-2)<>"", SUM(I74:INDEX(peak_amount_20m,,no_applic_copy) *IF(((I72:INDEX(int_applic_begin_20m,,no_applic_copy)-I72)<twa_int_copy)*((I73:INDEX(int_applic_end_20m,,no_applic_copy)-I72)<=twa_int_copy), (I73:INDEX(int_applic_end_20m,,no_applic_copy)-I72:INDEX(int_applic_begin_20m,,no_applic_copy)) *(1-EXP(-k_deg_copy*(I73:INDEX(int_applic_end_20m,,no_applic_copy)-I72:INDEX(int_applic_begin_20m,,no_applic_copy)))) /(k_deg_copy*(I73:INDEX(int_applic_end_20m,,no_applic_copy)-I72:INDEX(int_applic_begin_20m,,no_applic_copy))), IF(((I72:INDEX(int_applic_begin_20m,,no_applic_copy)-I72)<twa_int_copy)+((I73:INDEX(int_applic_end_20m,,no_applic_copy)-I72)<=twa_int_copy), (I72+twa_int_copy-I72:INDEX(int_applic_begin_20m,,no_applic_copy)) *(1-EXP(-k_deg_copy*(I72+twa_int_copy-I72:INDEX(int_applic_begin_20m,,no_applic_copy)))) /(k_deg_copy*(I72+twa_int_copy-I72:INDEX(int_applic_begin_20m,,no_applic_copy))), 0) ) /twa_int_copy), "") ->  | J78: =IF(INDEX(drift_rate_20m,,COLUMN()-2)<>"", SUM(J74:INDEX(peak_amount_20m,,no_applic_copy) *IF(((J72:INDEX(int_applic_begin_20m,,no_applic_copy)-J72)<twa_int_copy)*((J73:INDEX(int_applic_end_20m,,no_applic_copy)-J72)<=twa_int_copy), (J73:INDEX(int_applic_end_20m,,no_applic_copy)-J72:INDEX(int_applic_begin_20m,,no_applic_copy)) *(1-EXP(-k_deg_copy*(J73:INDEX(int_applic_end_20m,,no_applic_copy)-J72:INDEX(int_applic_begin_20m,,no_applic_copy)))) /(k_deg_copy*(J73:INDEX(int_applic_end_20m,,no_applic_copy)-J72:INDEX(int_applic_begin_20m,,no_applic_copy))), IF(((J72:INDEX(int_applic_begin_20m,,no_applic_copy)-J72)<twa_int_copy)+((J73:INDEX(int_applic_end_20m,,no_applic_copy)-J72)<=twa_int_copy), (J72+twa_int_copy-J72:INDEX(int_applic_begin_20m,,no_applic_copy)) *(1-EXP(-k_deg_copy*(J72+twa_int_copy-J72:INDEX(int_applic_begin_20m,,no_applic_copy)))) /(k_deg_copy*(J72+twa_int_copy-J72:INDEX(int_applic_begin_20m,,no_applic_copy))), 0) ) /twa_int_copy), "") ->  | K78: =IF(INDEX(drift_rate_20m,,COLUMN()-2)<>"", SUM(K74:INDEX(peak_amount_20m,,no_applic_copy) *IF(((K72:INDEX(int_applic_begin_20m,,no_applic_copy)-K72)<twa_int_copy)*((K73:INDEX(int_applic_end_20m,,no_applic_copy)-K72)<=twa_int_copy), (K73:INDEX(int_applic_end_20m,,no_applic_copy)-K72:INDEX(int_applic_begin_20m,,no_applic_copy)) *(1-EXP(-k_deg_copy*(K73:INDEX(int_applic_end_20m,,no_applic_copy)-K72:INDEX(int_applic_begin_20m,,no_applic_copy)))) /(k_deg_copy*(K73:INDEX(int_applic_end_20m,,no_applic_copy)-K72:INDEX(int_applic_begin_20m,,no_applic_copy))), IF(((K72:INDEX(int_applic_begin_20m,,no_applic_copy)-K72)<twa_int_copy)+((K73:INDEX(int_applic_end_20m,,no_applic_copy)-K72)<=twa_int_copy), (K72+twa_int_copy-K72:INDEX(int_applic_begin_20m,,no_applic_copy)) *(1-EXP(-k_deg_copy*(K72+twa_int_copy-K72:INDEX(int_applic_begin_20m,,no_applic_copy)))) /(k_deg_copy*(K72+twa_int_copy-K72:INDEX(int_applic_begin_20m,,no_applic_copy))), 0) ) /twa_int_copy), "") ->  | L78: =IF(INDEX(drift_rate_20m,,COLUMN()-2)<>"", SUM(L74:INDEX(peak_amount_20m,,no_applic_copy) *IF(((L72:INDEX(int_applic_begin_20m,,no_applic_copy)-L72)<twa_int_copy)*((L73:INDEX(int_applic_end_20m,,no_applic_copy)-L72)<=twa_int_copy), (L73:INDEX(int_applic_end_20m,,no_applic_copy)-L72:INDEX(int_applic_begin_20m,,no_applic_copy)) *(1-EXP(-k_deg_copy*(L73:INDEX(int_applic_end_20m,,no_applic_copy)-L72:INDEX(int_applic_begin_20m,,no_applic_copy)))) /(k_deg_copy*(L73:INDEX(int_applic_end_20m,,no_applic_copy)-L72:INDEX(int_applic_begin_20m,,no_applic_copy))), IF(((L72:INDEX(int_applic_begin_20m,,no_applic_copy)-L72)<twa_int_copy)+((L73:INDEX(int_applic_end_20m,,no_applic_copy)-L72)<=twa_int_copy), (L72+twa_int_copy-L72:INDEX(int_applic_begin_20m,,no_applic_copy)) *(1-EXP(-k_deg_copy*(L72+twa_int_copy-L72:INDEX(int_applic_begin_20m,,no_applic_copy)))) /(k_deg_copy*(L72+twa_int_copy-L72:INDEX(int_applic_begin_20m,,no_applic_copy))), 0) ) /twa_int_copy), "") ->  | M78: =IF(INDEX(drift_rate_20m,,COLUMN()-2)<>"", SUM(M74:INDEX(peak_amount_20m,,no_applic_copy) *IF(((M72:INDEX(int_applic_begin_20m,,no_applic_copy)-M72)<twa_int_copy)*((M73:INDEX(int_applic_end_20m,,no_applic_copy)-M72)<=twa_int_copy), (M73:INDEX(int_applic_end_20m,,no_applic_copy)-M72:INDEX(int_applic_begin_20m,,no_applic_copy)) *(1-EXP(-k_deg_copy*(M73:INDEX(int_applic_end_20m,,no_applic_copy)-M72:INDEX(int_applic_begin_20m,,no_applic_copy)))) /(k_deg_copy*(M73:INDEX(int_applic_end_20m,,no_applic_copy)-M72:INDEX(int_applic_begin_20m,,no_applic_copy))), IF(((M72:INDEX(int_applic_begin_20m,,no_applic_copy)-M72)<twa_int_copy)+((M73:INDEX(int_applic_end_20m,,no_applic_copy)-M72)<=twa_int_copy), (M72+twa_int_copy-M72:INDEX(int_applic_begin_20m,,no_applic_copy)) *(1-EXP(-k_deg_copy*(M72+twa_int_copy-M72:INDEX(int_applic_begin_20m,,no_applic_copy)))) /(k_deg_copy*(M72+twa_int_copy-M72:INDEX(int_applic_begin_20m,,no_applic_copy))), 0) ) /twa_int_copy), "") ->  | N78: =IF(INDEX(drift_rate_20m,,COLUMN()-2)<>"", SUM(N74:INDEX(peak_amount_20m,,no_applic_copy) *IF(((N72:INDEX(int_applic_begin_20m,,no_applic_copy)-N72)<twa_int_copy)*((N73:INDEX(int_applic_end_20m,,no_applic_copy)-N72)<=twa_int_copy), (N73:INDEX(int_applic_end_20m,,no_applic_copy)-N72:INDEX(int_applic_begin_20m,,no_applic_copy)) *(1-EXP(-k_deg_copy*(N73:INDEX(int_applic_end_20m,,no_applic_copy)-N72:INDEX(int_applic_begin_20m,,no_applic_copy)))) /(k_deg_copy*(N73:INDEX(int_applic_end_20m,,no_applic_copy)-N72:INDEX(int_applic_begin_20m,,no_applic_copy))), IF(((N72:INDEX(int_applic_begin_20m,,no_applic_copy)-N72)<twa_int_copy)+((N73:INDEX(int_applic_end_20m,,no_applic_copy)-N72)<=twa_int_copy), (N72+twa_int_copy-N72:INDEX(int_applic_begin_20m,,no_applic_copy)) *(1-EXP(-k_deg_copy*(N72+twa_int_copy-N72:INDEX(int_applic_begin_20m,,no_applic_copy)))) /(k_deg_copy*(N72+twa_int_copy-N72:INDEX(int_applic_begin_20m,,no_applic_copy))), 0) ) /twa_int_copy), "") -> 
B80: max. peak amount | C80: =MAX(peak_amount_20m) -> 0.175
B81: max. twa(sum) | C81: =MAX(twa_sum_20m) -> 0.1156626567

Sheet drift_red_no (hidden)
B3: drift reduction | C3: 0
B5: drift rate 1 m / 3 m | C5: =IF(no_applic_copy>=(COLUMN()-2), INDEX(act_applic_rate,COLUMN()-2) *VLOOKUP(INDEX(act_factor,COLUMN()-2),drift_percent_01m,IF(select_perc_type="MAF-crit",13,no_applic_copy)+2,0) *(1-drift_reduction), "") -> 2.01 | D5: 2.01 | E5: 2.01
B6: drift rate 5 m | C6: =IF(no_applic_copy>=(COLUMN()-2), INDEX(act_applic_rate,COLUMN()-2) *VLOOKUP(INDEX(act_factor,COLUMN()-2),drift_percent_05m,IF(select_perc_type="MAF-crit",13,no_applic_copy)+2,0) *(1-drift_reduction), "") -> 0.41 | D6: 0.41 | E6: 0.41
B7: drift rate 10 m | C7: =IF(no_applic_copy>=(COLUMN()-2), INDEX(act_applic_rate,COLUMN()-2) *VLOOKUP(INDEX(act_factor,COLUMN()-2),drift_percent_10m,IF(select_perc_type="MAF-crit",13,no_applic_copy)+2,0) *(1-drift_reduction), "") -> 0.2 | D7: 0.2 | E7: 0.2
B8: drift rate 15 m | C8: =IF(no_applic_copy>=(COLUMN()-2), INDEX(act_applic_rate,COLUMN()-2) *VLOOKUP(INDEX(act_factor,COLUMN()-2),drift_percent_15m,IF(select_perc_type="MAF-crit",13,no_applic_copy)+2,0) *(1-drift_reduction), "") -> 0.14 | D8: 0.14 | E8: 0.14
B9: drift rate 20 m | C9: =IF(no_applic_copy>=(COLUMN()-2), (INDEX(act_applic_rate,COLUMN()-2)) *VLOOKUP(INDEX(act_factor,COLUMN()-2),drift_percent_20m,IF(select_perc_type="MAF-crit",13,no_applic_copy)+2,0) *(1-drift_reduction), "") -> 0.1 | D9: 0.1 | E9: 0.1
B11: v/d rate 1 m / 3 m | C11: =IF(vd_applic_crit=(COLUMN()-2),vd_rate_final_01m,"") ->  | E11: 0
B12: v/d rate 5 m | C12: =IF(vd_applic_crit=(COLUMN()-2),vd_rate_final_05m,"") ->  | E12: 0
B13: v/d rate 10 m | C13: =IF(vd_applic_crit=(COLUMN()-2),vd_rate_final_10m,"") ->  | E13: 0
B14: v/d rate 15 m | C14: =IF(vd_applic_crit=(COLUMN()-2),vd_rate_final_15m,"") ->  | E14: 0
B15: v/d rate 20 m | C15: =IF(vd_applic_crit=(COLUMN()-2),vd_rate_final_20m,"") ->  | E15: 0
B17: actual rate 1 m / 3 m | C17: =IF(no_applic_copy>=(COLUMN()-2), IF(ISNUMBER(drift_rate_01m),drift_rate_01m,0) +IF(ISNUMBER(vd_rate_01m),vd_rate_01m,0), "") -> 2.01 | D17: 2.01 | E17: 2.01
B18: actual rate 5 m | C18: =IF(no_applic_copy>=(COLUMN()-2), IF(ISNUMBER(drift_rate_05m),drift_rate_05m,0) +IF(ISNUMBER(vd_rate_05m),vd_rate_05m,0), "") -> 0.41 | D18: 0.41 | E18: 0.41
B19: actual rate 10 m | C19: =IF(no_applic_copy>=(COLUMN()-2), IF(ISNUMBER(drift_rate_10m),drift_rate_10m,0) +IF(ISNUMBER(vd_rate_10m),vd_rate_10m,0), "") -> 0.2 | D19: 0.2 | E19: 0.2
B20: actual rate 15 m | C20: =IF(no_applic_copy>=(COLUMN()-2), IF(ISNUMBER(drift_rate_15m),drift_rate_15m,0) +IF(ISNUMBER(vd_rate_15m),vd_rate_15m,0), "") -> 0.14 | D20: 0.14 | E20: 0.14
B21: actual rate 20 m | C21: =IF(no_applic_copy>=(COLUMN()-2), IF(ISNUMBER(drift_rate_20m),drift_rate_20m,0) +IF(ISNUMBER(vd_rate_20m),vd_rate_20m,0), "") -> 0.1 | D21: 0.1 | E21: 0.1
B22: interval (d) | C22: =act_interval_applic -> 10 | D22: 10
B24: twa interval d | C24: =twa_int_value -> 21 | D24: # applic. | E24: =no_applic -> 3 | F24: k | G24: =k_deg -> 0.06931471806
C26: 1 m / 3 m | D26: 5 m | E26: 10 m | F26: 15 m | G26: 20 m
B27: max. peak amount | C27: =MAX(peak_amount_01m) -> 3.5175 | D27: =MAX(peak_amount_05m) -> 0.7175 | E27: =MAX(peak_amount_10m) -> 0.35 | F27: =MAX(peak_amount_15m) -> 0.245 | G27: =MAX(peak_amount_20m) -> 0.175
B28: max. twa(sum) | C28: =MAX(twa_sum_01m) -> 2.3248194 | D28: =MAX(twa_sum_05m) -> 0.4742168925 | E28: =MAX(twa_sum_10m) -> 0.2313253134 | F28: =MAX(twa_sum_15m) -> 0.1619277194 | G28: =MAX(twa_sum_20m) -> 0.1156626567
B31: 1 m / 3 m distance
B32: begin interval | C32: =IF(interval_actual<>"",SUM(interval_actual1:INDEX(interval_actual,,COLUMN()-2))-interval_actual,IF(actual_rate_01m<>"",SUM(interval_actual1:INDEX(interval_actual,,COLUMN()-2)),"")) -> 0 | D32: 10 | E32: 20
B33: end interval | C33: =IF(interval_actual<>"",SUM(interval_actual1:INDEX(interval_actual,,COLUMN()-2)),IF(actual_rate_01m<>"",SUM(interval_actual1:INDEX(interval_actual,,COLUMN()-2))+twa_int_copy,"")) -> 10 | D33: 20 | E33: 41
B34: peak amount | C34: =IF(actual_rate_01m<>"",actual_rate_01m,"") -> 2.01 | D34: =IF(OFFSET(actual_rate_01m,,1)<>"",OFFSET(actual_rate_01m,,1)+final_amount_01m,"") -> 3.015 | E34: 3.5175
B35: final amount | C35: =IF(actual_rate_01m<>"",peak_amount_01m*EXP(-k_deg_copy*IF(interval_actual<>"",interval_actual,twa_int_copy)),"") -> 1.005 | D35: 1.5075 | E35: 0.8204858869
B37: twa calculation interval | C37: =IF(actual_rate_01m<>"",int_applic_begin_01m&"-"&int_applic_begin_01m+twa_int_copy&" d","") -> 0-21 d | D37: 10-31 d | E37: 20-41 d
B38: twa(sum) | C38: =IF(INDEX(actual_rate_01m,,COLUMN()-2)<>"", SUM(C34:INDEX(peak_amount_01m,,no_applic_copy) *IF(((C32:INDEX(int_applic_begin_01m,,no_applic_copy)-C32)<twa_int_copy)*((C33:INDEX(int_applic_end_01m,,no_applic_copy)-C32)<=twa_int_copy), (C33:INDEX(int_applic_end_01m,,no_applic_copy)-C32:INDEX(int_applic_begin_01m,,no_applic_copy)) *(1-EXP(-k_deg_copy*(C33:INDEX(int_applic_end_01m,,no_applic_copy)-C32:INDEX(int_applic_begin_01m,,no_applic_copy)))) /(k_deg_copy*(C33:INDEX(int_applic_end_01m,,no_applic_copy)-C32:INDEX(int_applic_begin_01m,,no_applic_copy))), IF(((C32:INDEX(int_applic_begin_01m,,no_applic_copy)-C32)<twa_int_copy)+((C33:INDEX(int_applic_end_01m,,no_applic_copy)-C32)<=twa_int_copy), (C32+twa_int_copy-C32:INDEX(int_applic_begin_01m,,no_applic_copy)) *(1-EXP(-k_deg_copy*(C32+twa_int_copy-C32:INDEX(int_applic_begin_01m,,no_applic_copy)))) /(k_deg_copy*(C32+twa_int_copy-C32:INDEX(int_applic_begin_01m,,no_applic_copy))), 0) ) /twa_int_copy), "") -> 1.887908293 | D38: =IF(INDEX(actual_rate_01m,,COLUMN()-2)<>"", SUM(D34:INDEX(peak_amount_01m,,no_applic_copy) *IF(((D32:INDEX(int_applic_begin_01m,,no_applic_copy)-D32)<twa_int_copy)*((D33:INDEX(int_applic_end_01m,,no_applic_copy)-D32)<=twa_int_copy), (D33:INDEX(int_applic_end_01m,,no_applic_copy)-D32:INDEX(int_applic_begin_01m,,no_applic_copy)) *(1-EXP(-k_deg_copy*(D33:INDEX(int_applic_end_01m,,no_applic_copy)-D32:INDEX(int_applic_begin_01m,,no_applic_copy)))) /(k_deg_copy*(D33:INDEX(int_applic_end_01m,,no_applic_copy)-D32:INDEX(int_applic_begin_01m,,no_applic_copy))), IF(((D32:INDEX(int_applic_begin_01m,,no_applic_copy)-D32)<twa_int_copy)+((D33:INDEX(int_applic_end_01m,,no_applic_copy)-D32)<=twa_int_copy), (D32+twa_int_copy-D32:INDEX(int_applic_begin_01m,,no_applic_copy)) *(1-EXP(-k_deg_copy*(D32+twa_int_copy-D32:INDEX(int_applic_begin_01m,,no_applic_copy)))) /(k_deg_copy*(D32+twa_int_copy-D32:INDEX(int_applic_begin_01m,,no_applic_copy))), 0) ) /twa_int_copy), "") -> 2.3248194 | E38: =IF(INDEX(actual_rate_01m,,COLUMN()-2)<>"", SUM(E34:INDEX(peak_amount_01m,,no_applic_copy) *IF(((E32:INDEX(int_applic_begin_01m,,no_applic_copy)-E32)<twa_int_copy)*((E33:INDEX(int_applic_end_01m,,no_applic_copy)-E32)<=twa_int_copy), (E33:INDEX(int_applic_end_01m,,no_applic_copy)-E32:INDEX(int_applic_begin_01m,,no_applic_copy)) *(1-EXP(-k_deg_copy*(E33:INDEX(int_applic_end_01m,,no_applic_copy)-E32:INDEX(int_applic_begin_01m,,no_applic_copy)))) /(k_deg_copy*(E33:INDEX(int_applic_end_01m,,no_applic_copy)-E32:INDEX(int_applic_begin_01m,,no_applic_copy))), IF(((E32:INDEX(int_applic_begin_01m,,no_applic_copy)-E32)<twa_int_copy)+((E33:INDEX(int_applic_end_01m,,no_applic_copy)-E32)<=twa_int_copy), (E32+twa_int_copy-E32:INDEX(int_applic_begin_01m,,no_applic_copy)) *(1-EXP(-k_deg_copy*(E32+twa_int_copy-E32:INDEX(int_applic_begin_01m,,no_applic_copy)))) /(k_deg_copy*(E32+twa_int_copy-E32:INDEX(int_applic_begin_01m,,no_applic_copy))), 0) ) /twa_int_copy), "") -> 1.852842327 | F38: =IF(INDEX(actual_rate_01m,,COLUMN()-2)<>"", SUM(F34:INDEX(peak_amount_01m,,no_applic_copy) *IF(((F32:INDEX(int_applic_begin_01m,,no_applic_copy)-F32)<twa_int_copy)*((F33:INDEX(int_applic_end_01m,,no_applic_copy)-F32)<=twa_int_copy), (F33:INDEX(int_applic_end_01m,,no_applic_copy)-F32:INDEX(int_applic_begin_01m,,no_applic_copy)) *(1-EXP(-k_deg_copy*(F33:INDEX(int_applic_end_01m,,no_applic_copy)-F32:INDEX(int_applic_begin_01m,,no_applic_copy)))) /(k_deg_copy*(F33:INDEX(int_applic_end_01m,,no_applic_copy)-F32:INDEX(int_applic_begin_01m,,no_applic_copy))), IF(((F32:INDEX(int_applic_begin_01m,,no_applic_copy)-F32)<twa_int_copy)+((F33:INDEX(int_applic_end_01m,,no_applic_copy)-F32)<=twa_int_copy), (F32+twa_int_copy-F32:INDEX(int_applic_begin_01m,,no_applic_copy)) *(1-EXP(-k_deg_copy*(F32+twa_int_copy-F32:INDEX(int_applic_begin_01m,,no_applic_copy)))) /(k_deg_copy*(F32+twa_int_copy-F32:INDEX(int_applic_begin_01m,,no_applic_copy))), 0) ) /twa_int_copy), "") ->  | G38: =IF(INDEX(actual_rate_01m,,COLUMN()-2)<>"", SUM(G34:INDEX(peak_amount_01m,,no_applic_copy) *IF(((G32:INDEX(int_applic_begin_01m,,no_applic_copy)-G32)<twa_int_copy)*((G33:INDEX(int_applic_end_01m,,no_applic_copy)-G32)<=twa_int_copy), (G33:INDEX(int_applic_end_01m,,no_applic_copy)-G32:INDEX(int_applic_begin_01m,,no_applic_copy)) *(1-EXP(-k_deg_copy*(G33:INDEX(int_applic_end_01m,,no_applic_copy)-G32:INDEX(int_applic_begin_01m,,no_applic_copy)))) /(k_deg_copy*(G33:INDEX(int_applic_end_01m,,no_applic_copy)-G32:INDEX(int_applic_begin_01m,,no_applic_copy))), IF(((G32:INDEX(int_applic_begin_01m,,no_applic_copy)-G32)<twa_int_copy)+((G33:INDEX(int_applic_end_01m,,no_applic_copy)-G32)<=twa_int_copy), (G32+twa_int_copy-G32:INDEX(int_applic_begin_01m,,no_applic_copy)) *(1-EXP(-k_deg_copy*(G32+twa_int_copy-G32:INDEX(int_applic_begin_01m,,no_applic_copy)))) /(k_deg_copy*(G32+twa_int_copy-G32:INDEX(int_applic_begin_01m,,no_applic_copy))), 0) ) /twa_int_copy), "") ->  | H38: =IF(INDEX(actual_rate_01m,,COLUMN()-2)<>"", SUM(H34:INDEX(peak_amount_01m,,no_applic_copy) *IF(((H32:INDEX(int_applic_begin_01m,,no_applic_copy)-H32)<twa_int_copy)*((H33:INDEX(int_applic_end_01m,,no_applic_copy)-H32)<=twa_int_copy), (H33:INDEX(int_applic_end_01m,,no_applic_copy)-H32:INDEX(int_applic_begin_01m,,no_applic_copy)) *(1-EXP(-k_deg_copy*(H33:INDEX(int_applic_end_01m,,no_applic_copy)-H32:INDEX(int_applic_begin_01m,,no_applic_copy)))) /(k_deg_copy*(H33:INDEX(int_applic_end_01m,,no_applic_copy)-H32:INDEX(int_applic_begin_01m,,no_applic_copy))), IF(((H32:INDEX(int_applic_begin_01m,,no_applic_copy)-H32)<twa_int_copy)+((H33:INDEX(int_applic_end_01m,,no_applic_copy)-H32)<=twa_int_copy), (H32+twa_int_copy-H32:INDEX(int_applic_begin_01m,,no_applic_copy)) *(1-EXP(-k_deg_copy*(H32+twa_int_copy-H32:INDEX(int_applic_begin_01m,,no_applic_copy)))) /(k_deg_copy*(H32+twa_int_copy-H32:INDEX(int_applic_begin_01m,,no_applic_copy))), 0) ) /twa_int_copy), "") ->  | I38: =IF(INDEX(actual_rate_01m,,COLUMN()-2)<>"", SUM(I34:INDEX(peak_amount_01m,,no_applic_copy) *IF(((I32:INDEX(int_applic_begin_01m,,no_applic_copy)-I32)<twa_int_copy)*((I33:INDEX(int_applic_end_01m,,no_applic_copy)-I32)<=twa_int_copy), (I33:INDEX(int_applic_end_01m,,no_applic_copy)-I32:INDEX(int_applic_begin_01m,,no_applic_copy)) *(1-EXP(-k_deg_copy*(I33:INDEX(int_applic_end_01m,,no_applic_copy)-I32:INDEX(int_applic_begin_01m,,no_applic_copy)))) /(k_deg_copy*(I33:INDEX(int_applic_end_01m,,no_applic_copy)-I32:INDEX(int_applic_begin_01m,,no_applic_copy))), IF(((I32:INDEX(int_applic_begin_01m,,no_applic_copy)-I32)<twa_int_copy)+((I33:INDEX(int_applic_end_01m,,no_applic_copy)-I32)<=twa_int_copy), (I32+twa_int_copy-I32:INDEX(int_applic_begin_01m,,no_applic_copy)) *(1-EXP(-k_deg_copy*(I32+twa_int_copy-I32:INDEX(int_applic_begin_01m,,no_applic_copy)))) /(k_deg_copy*(I32+twa_int_copy-I32:INDEX(int_applic_begin_01m,,no_applic_copy))), 0) ) /twa_int_copy), "") ->  | J38: =IF(INDEX(actual_rate_01m,,COLUMN()-2)<>"", SUM(J34:INDEX(peak_amount_01m,,no_applic_copy) *IF(((J32:INDEX(int_applic_begin_01m,,no_applic_copy)-J32)<twa_int_copy)*((J33:INDEX(int_applic_end_01m,,no_applic_copy)-J32)<=twa_int_copy), (J33:INDEX(int_applic_end_01m,,no_applic_copy)-J32:INDEX(int_applic_begin_01m,,no_applic_copy)) *(1-EXP(-k_deg_copy*(J33:INDEX(int_applic_end_01m,,no_applic_copy)-J32:INDEX(int_applic_begin_01m,,no_applic_copy)))) /(k_deg_copy*(J33:INDEX(int_applic_end_01m,,no_applic_copy)-J32:INDEX(int_applic_begin_01m,,no_applic_copy))), IF(((J32:INDEX(int_applic_begin_01m,,no_applic_copy)-J32)<twa_int_copy)+((J33:INDEX(int_applic_end_01m,,no_applic_copy)-J32)<=twa_int_copy), (J32+twa_int_copy-J32:INDEX(int_applic_begin_01m,,no_applic_copy)) *(1-EXP(-k_deg_copy*(J32+twa_int_copy-J32:INDEX(int_applic_begin_01m,,no_applic_copy)))) /(k_deg_copy*(J32+twa_int_copy-J32:INDEX(int_applic_begin_01m,,no_applic_copy))), 0) ) /twa_int_copy), "") ->  | K38: =IF(INDEX(actual_rate_01m,,COLUMN()-2)<>"", SUM(K34:INDEX(peak_amount_01m,,no_applic_copy) *IF(((K32:INDEX(int_applic_begin_01m,,no_applic_copy)-K32)<twa_int_copy)*((K33:INDEX(int_applic_end_01m,,no_applic_copy)-K32)<=twa_int_copy), (K33:INDEX(int_applic_end_01m,,no_applic_copy)-K32:INDEX(int_applic_begin_01m,,no_applic_copy)) *(1-EXP(-k_deg_copy*(K33:INDEX(int_applic_end_01m,,no_applic_copy)-K32:INDEX(int_applic_begin_01m,,no_applic_copy)))) /(k_deg_copy*(K33:INDEX(int_applic_end_01m,,no_applic_copy)-K32:INDEX(int_applic_begin_01m,,no_applic_copy))), IF(((K32:INDEX(int_applic_begin_01m,,no_applic_copy)-K32)<twa_int_copy)+((K33:INDEX(int_applic_end_01m,,no_applic_copy)-K32)<=twa_int_copy), (K32+twa_int_copy-K32:INDEX(int_applic_begin_01m,,no_applic_copy)) *(1-EXP(-k_deg_copy*(K32+twa_int_copy-K32:INDEX(int_applic_begin_01m,,no_applic_copy)))) /(k_deg_copy*(K32+twa_int_copy-K32:INDEX(int_applic_begin_01m,,no_applic_copy))), 0) ) /twa_int_copy), "") ->  | L38: =IF(INDEX(actual_rate_01m,,COLUMN()-2)<>"", SUM(L34:INDEX(peak_amount_01m,,no_applic_copy) *IF(((L32:INDEX(int_applic_begin_01m,,no_applic_copy)-L32)<twa_int_copy)*((L33:INDEX(int_applic_end_01m,,no_applic_copy)-L32)<=twa_int_copy), (L33:INDEX(int_applic_end_01m,,no_applic_copy)-L32:INDEX(int_applic_begin_01m,,no_applic_copy)) *(1-EXP(-k_deg_copy*(L33:INDEX(int_applic_end_01m,,no_applic_copy)-L32:INDEX(int_applic_begin_01m,,no_applic_copy)))) /(k_deg_copy*(L33:INDEX(int_applic_end_01m,,no_applic_copy)-L32:INDEX(int_applic_begin_01m,,no_applic_copy))), IF(((L32:INDEX(int_applic_begin_01m,,no_applic_copy)-L32)<twa_int_copy)+((L33:INDEX(int_applic_end_01m,,no_applic_copy)-L32)<=twa_int_copy), (L32+twa_int_copy-L32:INDEX(int_applic_begin_01m,,no_applic_copy)) *(1-EXP(-k_deg_copy*(L32+twa_int_copy-L32:INDEX(int_applic_begin_01m,,no_applic_copy)))) /(k_deg_copy*(L32+twa_int_copy-L32:INDEX(int_applic_begin_01m,,no_applic_copy))), 0) ) /twa_int_copy), "") ->  | M38: =IF(INDEX(actual_rate_01m,,COLUMN()-2)<>"", SUM(M34:INDEX(peak_amount_01m,,no_applic_copy) *IF(((M32:INDEX(int_applic_begin_01m,,no_applic_copy)-M32)<twa_int_copy)*((M33:INDEX(int_applic_end_01m,,no_applic_copy)-M32)<=twa_int_copy), (M33:INDEX(int_applic_end_01m,,no_applic_copy)-M32:INDEX(int_applic_begin_01m,,no_applic_copy)) *(1-EXP(-k_deg_copy*(M33:INDEX(int_applic_end_01m,,no_applic_copy)-M32:INDEX(int_applic_begin_01m,,no_applic_copy)))) /(k_deg_copy*(M33:INDEX(int_applic_end_01m,,no_applic_copy)-M32:INDEX(int_applic_begin_01m,,no_applic_copy))), IF(((M32:INDEX(int_applic_begin_01m,,no_applic_copy)-M32)<twa_int_copy)+((M33:INDEX(int_applic_end_01m,,no_applic_copy)-M32)<=twa_int_copy), (M32+twa_int_copy-M32:INDEX(int_applic_begin_01m,,no_applic_copy)) *(1-EXP(-k_deg_copy*(M32+twa_int_copy-M32:INDEX(int_applic_begin_01m,,no_applic_copy)))) /(k_deg_copy*(M32+twa_int_copy-M32:INDEX(int_applic_begin_01m,,no_applic_copy))), 0) ) /twa_int_copy), "") ->  | N38: =IF(INDEX(actual_rate_01m,,COLUMN()-2)<>"", SUM(N34:INDEX(peak_amount_01m,,no_applic_copy) *IF(((N32:INDEX(int_applic_begin_01m,,no_applic_copy)-N32)<twa_int_copy)*((N33:INDEX(int_applic_end_01m,,no_applic_copy)-N32)<=twa_int_copy), (N33:INDEX(int_applic_end_01m,,no_applic_copy)-N32:INDEX(int_applic_begin_01m,,no_applic_copy)) *(1-EXP(-k_deg_copy*(N33:INDEX(int_applic_end_01m,,no_applic_copy)-N32:INDEX(int_applic_begin_01m,,no_applic_copy)))) /(k_deg_copy*(N33:INDEX(int_applic_end_01m,,no_applic_copy)-N32:INDEX(int_applic_begin_01m,,no_applic_copy))), IF(((N32:INDEX(int_applic_begin_01m,,no_applic_copy)-N32)<twa_int_copy)+((N33:INDEX(int_applic_end_01m,,no_applic_copy)-N32)<=twa_int_copy), (N32+twa_int_copy-N32:INDEX(int_applic_begin_01m,,no_applic_copy)) *(1-EXP(-k_deg_copy*(N32+twa_int_copy-N32:INDEX(int_applic_begin_01m,,no_applic_copy)))) /(k_deg_copy*(N32+twa_int_copy-N32:INDEX(int_applic_begin_01m,,no_applic_copy))), 0) ) /twa_int_copy), "") -> 
B40: max. peak amount | C40: =MAX(peak_amount_01m) -> 3.5175
B41: max. twa(sum) | C41: =MAX(twa_sum_01m) -> 2.3248194
B44: 5 m distance
B45: begin interval | C45: =IF(interval_actual<>"",SUM(interval_actual1:INDEX(interval_actual,,COLUMN()-2))-interval_actual,IF(actual_rate_05m<>"",SUM(interval_actual1:INDEX(interval_actual,,COLUMN()-2)),"")) -> 0 | D45: 10 | E45: 20
B46: end interval | C46: =IF(interval_actual<>"",SUM(interval_actual1:INDEX(interval_actual,,COLUMN()-2)),IF(actual_rate_05m<>"",SUM(interval_actual1:INDEX(interval_actual,,COLUMN()-2))+twa_int_copy,"")) -> 10 | D46: 20 | E46: 41
B47: peak amount | C47: =IF(actual_rate_05m<>"",actual_rate_05m,"") -> 0.41 | D47: =IF(OFFSET(actual_rate_05m,,1)<>"",OFFSET(actual_rate_05m,,1)+final_amount_05m,"") -> 0.615 | E47: 0.7175
B48: final amount | C48: =IF(actual_rate_05m<>"",peak_amount_05m*EXP(-k_deg_copy*IF(interval_actual<>"",interval_actual,twa_int_copy)),"") -> 0.205 | D48: 0.3075 | E48: 0.1673627929
B50: twa calculation interval | C50: =IF(actual_rate_05m<>"",int_applic_begin_05m&"-"&int_applic_begin_05m+twa_int_copy&" d","") -> 0-21 d | D50: 10-31 d | E50: 20-41 d
B51: twa(sum) | C51: =IF(INDEX(actual_rate_05m,,COLUMN()-2)<>"", SUM(C47:INDEX(peak_amount_05m,,no_applic_copy) *IF(((C45:INDEX(int_applic_begin_05m,,no_applic_copy)-C45)<twa_int_copy)*((C46:INDEX(int_applic_end_05m,,no_applic_copy)-C45)<=twa_int_copy), (C46:INDEX(int_applic_end_05m,,no_applic_copy)-C45:INDEX(int_applic_begin_05m,,no_applic_copy)) *(1-EXP(-k_deg_copy*(C46:INDEX(int_applic_end_05m,,no_applic_copy)-C45:INDEX(int_applic_begin_05m,,no_applic_copy)))) /(k_deg_copy*(C46:INDEX(int_applic_end_05m,,no_applic_copy)-C45:INDEX(int_applic_begin_05m,,no_applic_copy))), IF(((C45:INDEX(int_applic_begin_05m,,no_applic_copy)-C45)<twa_int_copy)+((C46:INDEX(int_applic_end_05m,,no_applic_copy)-C45)<=twa_int_copy), (C45+twa_int_copy-C45:INDEX(int_applic_begin_05m,,no_applic_copy)) *(1-EXP(-k_deg_copy*(C45+twa_int_copy-C45:INDEX(int_applic_begin_05m,,no_applic_copy)))) /(k_deg_copy*(C45+twa_int_copy-C45:INDEX(int_applic_begin_05m,,no_applic_copy))), 0) ) /twa_int_copy), "") -> 0.3850957215 | D51: =IF(INDEX(actual_rate_05m,,COLUMN()-2)<>"", SUM(D47:INDEX(peak_amount_05m,,no_applic_copy) *IF(((D45:INDEX(int_applic_begin_05m,,no_applic_copy)-D45)<twa_int_copy)*((D46:INDEX(int_applic_end_05m,,no_applic_copy)-D45)<=twa_int_copy), (D46:INDEX(int_applic_end_05m,,no_applic_copy)-D45:INDEX(int_applic_begin_05m,,no_applic_copy)) *(1-EXP(-k_deg_copy*(D46:INDEX(int_applic_end_05m,,no_applic_copy)-D45:INDEX(int_applic_begin_05m,,no_applic_copy)))) /(k_deg_copy*(D46:INDEX(int_applic_end_05m,,no_applic_copy)-D45:INDEX(int_applic_begin_05m,,no_applic_copy))), IF(((D45:INDEX(int_applic_begin_05m,,no_applic_copy)-D45)<twa_int_copy)+((D46:INDEX(int_applic_end_05m,,no_applic_copy)-D45)<=twa_int_copy), (D45+twa_int_copy-D45:INDEX(int_applic_begin_05m,,no_applic_copy)) *(1-EXP(-k_deg_copy*(D45+twa_int_copy-D45:INDEX(int_applic_begin_05m,,no_applic_copy)))) /(k_deg_copy*(D45+twa_int_copy-D45:INDEX(int_applic_begin_05m,,no_applic_copy))), 0) ) /twa_int_copy), "") -> 0.4742168925 | E51: =IF(INDEX(actual_rate_05m,,COLUMN()-2)<>"", SUM(E47:INDEX(peak_amount_05m,,no_applic_copy) *IF(((E45:INDEX(int_applic_begin_05m,,no_applic_copy)-E45)<twa_int_copy)*((E46:INDEX(int_applic_end_05m,,no_applic_copy)-E45)<=twa_int_copy), (E46:INDEX(int_applic_end_05m,,no_applic_copy)-E45:INDEX(int_applic_begin_05m,,no_applic_copy)) *(1-EXP(-k_deg_copy*(E46:INDEX(int_applic_end_05m,,no_applic_copy)-E45:INDEX(int_applic_begin_05m,,no_applic_copy)))) /(k_deg_copy*(E46:INDEX(int_applic_end_05m,,no_applic_copy)-E45:INDEX(int_applic_begin_05m,,no_applic_copy))), IF(((E45:INDEX(int_applic_begin_05m,,no_applic_copy)-E45)<twa_int_copy)+((E46:INDEX(int_applic_end_05m,,no_applic_copy)-E45)<=twa_int_copy), (E45+twa_int_copy-E45:INDEX(int_applic_begin_05m,,no_applic_copy)) *(1-EXP(-k_deg_copy*(E45+twa_int_copy-E45:INDEX(int_applic_begin_05m,,no_applic_copy)))) /(k_deg_copy*(E45+twa_int_copy-E45:INDEX(int_applic_begin_05m,,no_applic_copy))), 0) ) /twa_int_copy), "") -> 0.3779429622 | F51: =IF(INDEX(actual_rate_05m,,COLUMN()-2)<>"", SUM(F47:INDEX(peak_amount_05m,,no_applic_copy) *IF(((F45:INDEX(int_applic_begin_05m,,no_applic_copy)-F45)<twa_int_copy)*((F46:INDEX(int_applic_end_05m,,no_applic_copy)-F45)<=twa_int_copy), (F46:INDEX(int_applic_end_05m,,no_applic_copy)-F45:INDEX(int_applic_begin_05m,,no_applic_copy)) *(1-EXP(-k_deg_copy*(F46:INDEX(int_applic_end_05m,,no_applic_copy)-F45:INDEX(int_applic_begin_05m,,no_applic_copy)))) /(k_deg_copy*(F46:INDEX(int_applic_end_05m,,no_applic_copy)-F45:INDEX(int_applic_begin_05m,,no_applic_copy))), IF(((F45:INDEX(int_applic_begin_05m,,no_applic_copy)-F45)<twa_int_copy)+((F46:INDEX(int_applic_end_05m,,no_applic_copy)-F45)<=twa_int_copy), (F45+twa_int_copy-F45:INDEX(int_applic_begin_05m,,no_applic_copy)) *(1-EXP(-k_deg_copy*(F45+twa_int_copy-F45:INDEX(int_applic_begin_05m,,no_applic_copy)))) /(k_deg_copy*(F45+twa_int_copy-F45:INDEX(int_applic_begin_05m,,no_applic_copy))), 0) ) /twa_int_copy), "") ->  | G51: =IF(INDEX(actual_rate_05m,,COLUMN()-2)<>"", SUM(G47:INDEX(peak_amount_05m,,no_applic_copy) *IF(((G45:INDEX(int_applic_begin_05m,,no_applic_copy)-G45)<twa_int_copy)*((G46:INDEX(int_applic_end_05m,,no_applic_copy)-G45)<=twa_int_copy), (G46:INDEX(int_applic_end_05m,,no_applic_copy)-G45:INDEX(int_applic_begin_05m,,no_applic_copy)) *(1-EXP(-k_deg_copy*(G46:INDEX(int_applic_end_05m,,no_applic_copy)-G45:INDEX(int_applic_begin_05m,,no_applic_copy)))) /(k_deg_copy*(G46:INDEX(int_applic_end_05m,,no_applic_copy)-G45:INDEX(int_applic_begin_05m,,no_applic_copy))), IF(((G45:INDEX(int_applic_begin_05m,,no_applic_copy)-G45)<twa_int_copy)+((G46:INDEX(int_applic_end_05m,,no_applic_copy)-G45)<=twa_int_copy), (G45+twa_int_copy-G45:INDEX(int_applic_begin_05m,,no_applic_copy)) *(1-EXP(-k_deg_copy*(G45+twa_int_copy-G45:INDEX(int_applic_begin_05m,,no_applic_copy)))) /(k_deg_copy*(G45+twa_int_copy-G45:INDEX(int_applic_begin_05m,,no_applic_copy))), 0) ) /twa_int_copy), "") ->  | H51: =IF(INDEX(actual_rate_05m,,COLUMN()-2)<>"", SUM(H47:INDEX(peak_amount_05m,,no_applic_copy) *IF(((H45:INDEX(int_applic_begin_05m,,no_applic_copy)-H45)<twa_int_copy)*((H46:INDEX(int_applic_end_05m,,no_applic_copy)-H45)<=twa_int_copy), (H46:INDEX(int_applic_end_05m,,no_applic_copy)-H45:INDEX(int_applic_begin_05m,,no_applic_copy)) *(1-EXP(-k_deg_copy*(H46:INDEX(int_applic_end_05m,,no_applic_copy)-H45:INDEX(int_applic_begin_05m,,no_applic_copy)))) /(k_deg_copy*(H46:INDEX(int_applic_end_05m,,no_applic_copy)-H45:INDEX(int_applic_begin_05m,,no_applic_copy))), IF(((H45:INDEX(int_applic_begin_05m,,no_applic_copy)-H45)<twa_int_copy)+((H46:INDEX(int_applic_end_05m,,no_applic_copy)-H45)<=twa_int_copy), (H45+twa_int_copy-H45:INDEX(int_applic_begin_05m,,no_applic_copy)) *(1-EXP(-k_deg_copy*(H45+twa_int_copy-H45:INDEX(int_applic_begin_05m,,no_applic_copy)))) /(k_deg_copy*(H45+twa_int_copy-H45:INDEX(int_applic_begin_05m,,no_applic_copy))), 0) ) /twa_int_copy), "") ->  | I51: =IF(INDEX(actual_rate_05m,,COLUMN()-2)<>"", SUM(I47:INDEX(peak_amount_05m,,no_applic_copy) *IF(((I45:INDEX(int_applic_begin_05m,,no_applic_copy)-I45)<twa_int_copy)*((I46:INDEX(int_applic_end_05m,,no_applic_copy)-I45)<=twa_int_copy), (I46:INDEX(int_applic_end_05m,,no_applic_copy)-I45:INDEX(int_applic_begin_05m,,no_applic_copy)) *(1-EXP(-k_deg_copy*(I46:INDEX(int_applic_end_05m,,no_applic_copy)-I45:INDEX(int_applic_begin_05m,,no_applic_copy)))) /(k_deg_copy*(I46:INDEX(int_applic_end_05m,,no_applic_copy)-I45:INDEX(int_applic_begin_05m,,no_applic_copy))), IF(((I45:INDEX(int_applic_begin_05m,,no_applic_copy)-I45)<twa_int_copy)+((I46:INDEX(int_applic_end_05m,,no_applic_copy)-I45)<=twa_int_copy), (I45+twa_int_copy-I45:INDEX(int_applic_begin_05m,,no_applic_copy)) *(1-EXP(-k_deg_copy*(I45+twa_int_copy-I45:INDEX(int_applic_begin_05m,,no_applic_copy)))) /(k_deg_copy*(I45+twa_int_copy-I45:INDEX(int_applic_begin_05m,,no_applic_copy))), 0) ) /twa_int_copy), "") ->  | J51: =IF(INDEX(actual_rate_05m,,COLUMN()-2)<>"", SUM(J47:INDEX(peak_amount_05m,,no_applic_copy) *IF(((J45:INDEX(int_applic_begin_05m,,no_applic_copy)-J45)<twa_int_copy)*((J46:INDEX(int_applic_end_05m,,no_applic_copy)-J45)<=twa_int_copy), (J46:INDEX(int_applic_end_05m,,no_applic_copy)-J45:INDEX(int_applic_begin_05m,,no_applic_copy)) *(1-EXP(-k_deg_copy*(J46:INDEX(int_applic_end_05m,,no_applic_copy)-J45:INDEX(int_applic_begin_05m,,no_applic_copy)))) /(k_deg_copy*(J46:INDEX(int_applic_end_05m,,no_applic_copy)-J45:INDEX(int_applic_begin_05m,,no_applic_copy))), IF(((J45:INDEX(int_applic_begin_05m,,no_applic_copy)-J45)<twa_int_copy)+((J46:INDEX(int_applic_end_05m,,no_applic_copy)-J45)<=twa_int_copy), (J45+twa_int_copy-J45:INDEX(int_applic_begin_05m,,no_applic_copy)) *(1-EXP(-k_deg_copy*(J45+twa_int_copy-J45:INDEX(int_applic_begin_05m,,no_applic_copy)))) /(k_deg_copy*(J45+twa_int_copy-J45:INDEX(int_applic_begin_05m,,no_applic_copy))), 0) ) /twa_int_copy), "") ->  | K51: =IF(INDEX(actual_rate_05m,,COLUMN()-2)<>"", SUM(K47:INDEX(peak_amount_05m,,no_applic_copy) *IF(((K45:INDEX(int_applic_begin_05m,,no_applic_copy)-K45)<twa_int_copy)*((K46:INDEX(int_applic_end_05m,,no_applic_copy)-K45)<=twa_int_copy), (K46:INDEX(int_applic_end_05m,,no_applic_copy)-K45:INDEX(int_applic_begin_05m,,no_applic_copy)) *(1-EXP(-k_deg_copy*(K46:INDEX(int_applic_end_05m,,no_applic_copy)-K45:INDEX(int_applic_begin_05m,,no_applic_copy)))) /(k_deg_copy*(K46:INDEX(int_applic_end_05m,,no_applic_copy)-K45:INDEX(int_applic_begin_05m,,no_applic_copy))), IF(((K45:INDEX(int_applic_begin_05m,,no_applic_copy)-K45)<twa_int_copy)+((K46:INDEX(int_applic_end_05m,,no_applic_copy)-K45)<=twa_int_copy), (K45+twa_int_copy-K45:INDEX(int_applic_begin_05m,,no_applic_copy)) *(1-EXP(-k_deg_copy*(K45+twa_int_copy-K45:INDEX(int_applic_begin_05m,,no_applic_copy)))) /(k_deg_copy*(K45+twa_int_copy-K45:INDEX(int_applic_begin_05m,,no_applic_copy))), 0) ) /twa_int_copy), "") ->  | L51: =IF(INDEX(actual_rate_05m,,COLUMN()-2)<>"", SUM(L47:INDEX(peak_amount_05m,,no_applic_copy) *IF(((L45:INDEX(int_applic_begin_05m,,no_applic_copy)-L45)<twa_int_copy)*((L46:INDEX(int_applic_end_05m,,no_applic_copy)-L45)<=twa_int_copy), (L46:INDEX(int_applic_end_05m,,no_applic_copy)-L45:INDEX(int_applic_begin_05m,,no_applic_copy)) *(1-EXP(-k_deg_copy*(L46:INDEX(int_applic_end_05m,,no_applic_copy)-L45:INDEX(int_applic_begin_05m,,no_applic_copy)))) /(k_deg_copy*(L46:INDEX(int_applic_end_05m,,no_applic_copy)-L45:INDEX(int_applic_begin_05m,,no_applic_copy))), IF(((L45:INDEX(int_applic_begin_05m,,no_applic_copy)-L45)<twa_int_copy)+((L46:INDEX(int_applic_end_05m,,no_applic_copy)-L45)<=twa_int_copy), (L45+twa_int_copy-L45:INDEX(int_applic_begin_05m,,no_applic_copy)) *(1-EXP(-k_deg_copy*(L45+twa_int_copy-L45:INDEX(int_applic_begin_05m,,no_applic_copy)))) /(k_deg_copy*(L45+twa_int_copy-L45:INDEX(int_applic_begin_05m,,no_applic_copy))), 0) ) /twa_int_copy), "") ->  | M51: =IF(INDEX(actual_rate_05m,,COLUMN()-2)<>"", SUM(M47:INDEX(peak_amount_05m,,no_applic_copy) *IF(((M45:INDEX(int_applic_begin_05m,,no_applic_copy)-M45)<twa_int_copy)*((M46:INDEX(int_applic_end_05m,,no_applic_copy)-M45)<=twa_int_copy), (M46:INDEX(int_applic_end_05m,,no_applic_copy)-M45:INDEX(int_applic_begin_05m,,no_applic_copy)) *(1-EXP(-k_deg_copy*(M46:INDEX(int_applic_end_05m,,no_applic_copy)-M45:INDEX(int_applic_begin_05m,,no_applic_copy)))) /(k_deg_copy*(M46:INDEX(int_applic_end_05m,,no_applic_copy)-M45:INDEX(int_applic_begin_05m,,no_applic_copy))), IF(((M45:INDEX(int_applic_begin_05m,,no_applic_copy)-M45)<twa_int_copy)+((M46:INDEX(int_applic_end_05m,,no_applic_copy)-M45)<=twa_int_copy), (M45+twa_int_copy-M45:INDEX(int_applic_begin_05m,,no_applic_copy)) *(1-EXP(-k_deg_copy*(M45+twa_int_copy-M45:INDEX(int_applic_begin_05m,,no_applic_copy)))) /(k_deg_copy*(M45+twa_int_copy-M45:INDEX(int_applic_begin_05m,,no_applic_copy))), 0) ) /twa_int_copy), "") ->  | N51: =IF(INDEX(actual_rate_05m,,COLUMN()-2)<>"", SUM(N47:INDEX(peak_amount_05m,,no_applic_copy) *IF(((N45:INDEX(int_applic_begin_05m,,no_applic_copy)-N45)<twa_int_copy)*((N46:INDEX(int_applic_end_05m,,no_applic_copy)-N45)<=twa_int_copy), (N46:INDEX(int_applic_end_05m,,no_applic_copy)-N45:INDEX(int_applic_begin_05m,,no_applic_copy)) *(1-EXP(-k_deg_copy*(N46:INDEX(int_applic_end_05m,,no_applic_copy)-N45:INDEX(int_applic_begin_05m,,no_applic_copy)))) /(k_deg_copy*(N46:INDEX(int_applic_end_05m,,no_applic_copy)-N45:INDEX(int_applic_begin_05m,,no_applic_copy))), IF(((N45:INDEX(int_applic_begin_05m,,no_applic_copy)-N45)<twa_int_copy)+((N46:INDEX(int_applic_end_05m,,no_applic_copy)-N45)<=twa_int_copy), (N45+twa_int_copy-N45:INDEX(int_applic_begin_05m,,no_applic_copy)) *(1-EXP(-k_deg_copy*(N45+twa_int_copy-N45:INDEX(int_applic_begin_05m,,no_applic_copy)))) /(k_deg_copy*(N45+twa_int_copy-N45:INDEX(int_applic_begin_05m,,no_applic_copy))), 0) ) /twa_int_copy), "") -> 
B53: max. peak amount | C53: =MAX(peak_amount_05m) -> 0.7175
B54: max. twa(sum) | C54: =MAX(twa_sum_05m) -> 0.4742168925
B57: 10 m distance
B58: begin interval | C58: =IF(interval_actual<>"",SUM(interval_actual1:INDEX(interval_actual,,COLUMN()-2))-interval_actual,IF(actual_rate_10m<>"",SUM(interval_actual1:INDEX(interval_actual,,COLUMN()-2)),"")) -> 0 | D58: 10 | E58: 20
B59: end interval | C59: =IF(interval_actual<>"",SUM(interval_actual1:INDEX(interval_actual,,COLUMN()-2)),IF(actual_rate_10m<>"",SUM(interval_actual1:INDEX(interval_actual,,COLUMN()-2))+twa_int_copy,"")) -> 10 | D59: 20 | E59: 41
B60: peak amount | C60: =IF(actual_rate_10m<>"",actual_rate_10m,"") -> 0.2 | D60: =IF(OFFSET(actual_rate_10m,,1)<>"",OFFSET(actual_rate_10m,,1)+final_amount_10m,"") -> 0.3 | E60: 0.35
B61: final amount | C61: =IF(actual_rate_10m<>"",peak_amount_10m*EXP(-k_deg_copy*IF(interval_actual<>"",interval_actual,twa_int_copy)),"") -> 0.1 | D61: 0.15 | E61: 0.08164038676
B63: twa calculation interval | C63: =IF(actual_rate_10m<>"",int_applic_begin_10m&"-"&int_applic_begin_10m+twa_int_copy&" d","") -> 0-21 d | D63: 10-31 d | E63: 20-41 d
B64: twa(sum) | C64: =IF(INDEX(actual_rate_10m,,COLUMN()-2)<>"", SUM(C60:INDEX(peak_amount_10m,,no_applic_copy) *IF(((C58:INDEX(int_applic_begin_10m,,no_applic_copy)-C58)<twa_int_copy)*((C59:INDEX(int_applic_end_10m,,no_applic_copy)-C58)<=twa_int_copy), (C59:INDEX(int_applic_end_10m,,no_applic_copy)-C58:INDEX(int_applic_begin_10m,,no_applic_copy)) *(1-EXP(-k_deg_copy*(C59:INDEX(int_applic_end_10m,,no_applic_copy)-C58:INDEX(int_applic_begin_10m,,no_applic_copy)))) /(k_deg_copy*(C59:INDEX(int_applic_end_10m,,no_applic_copy)-C58:INDEX(int_applic_begin_10m,,no_applic_copy))), IF(((C58:INDEX(int_applic_begin_10m,,no_applic_copy)-C58)<twa_int_copy)+((C59:INDEX(int_applic_end_10m,,no_applic_copy)-C58)<=twa_int_copy), (C58+twa_int_copy-C58:INDEX(int_applic_begin_10m,,no_applic_copy)) *(1-EXP(-k_deg_copy*(C58+twa_int_copy-C58:INDEX(int_applic_begin_10m,,no_applic_copy)))) /(k_deg_copy*(C58+twa_int_copy-C58:INDEX(int_applic_begin_10m,,no_applic_copy))), 0) ) /twa_int_copy), "") -> 0.1878515715 | D64: =IF(INDEX(actual_rate_10m,,COLUMN()-2)<>"", SUM(D60:INDEX(peak_amount_10m,,no_applic_copy) *IF(((D58:INDEX(int_applic_begin_10m,,no_applic_copy)-D58)<twa_int_copy)*((D59:INDEX(int_applic_end_10m,,no_applic_copy)-D58)<=twa_int_copy), (D59:INDEX(int_applic_end_10m,,no_applic_copy)-D58:INDEX(int_applic_begin_10m,,no_applic_copy)) *(1-EXP(-k_deg_copy*(D59:INDEX(int_applic_end_10m,,no_applic_copy)-D58:INDEX(int_applic_begin_10m,,no_applic_copy)))) /(k_deg_copy*(D59:INDEX(int_applic_end_10m,,no_applic_copy)-D58:INDEX(int_applic_begin_10m,,no_applic_copy))), IF(((D58:INDEX(int_applic_begin_10m,,no_applic_copy)-D58)<twa_int_copy)+((D59:INDEX(int_applic_end_10m,,no_applic_copy)-D58)<=twa_int_copy), (D58+twa_int_copy-D58:INDEX(int_applic_begin_10m,,no_applic_copy)) *(1-EXP(-k_deg_copy*(D58+twa_int_copy-D58:INDEX(int_applic_begin_10m,,no_applic_copy)))) /(k_deg_copy*(D58+twa_int_copy-D58:INDEX(int_applic_begin_10m,,no_applic_copy))), 0) ) /twa_int_copy), "") -> 0.2313253134 | E64: =IF(INDEX(actual_rate_10m,,COLUMN()-2)<>"", SUM(E60:INDEX(peak_amount_10m,,no_applic_copy) *IF(((E58:INDEX(int_applic_begin_10m,,no_applic_copy)-E58)<twa_int_copy)*((E59:INDEX(int_applic_end_10m,,no_applic_copy)-E58)<=twa_int_copy), (E59:INDEX(int_applic_end_10m,,no_applic_copy)-E58:INDEX(int_applic_begin_10m,,no_applic_copy)) *(1-EXP(-k_deg_copy*(E59:INDEX(int_applic_end_10m,,no_applic_copy)-E58:INDEX(int_applic_begin_10m,,no_applic_copy)))) /(k_deg_copy*(E59:INDEX(int_applic_end_10m,,no_applic_copy)-E58:INDEX(int_applic_begin_10m,,no_applic_copy))), IF(((E58:INDEX(int_applic_begin_10m,,no_applic_copy)-E58)<twa_int_copy)+((E59:INDEX(int_applic_end_10m,,no_applic_copy)-E58)<=twa_int_copy), (E58+twa_int_copy-E58:INDEX(int_applic_begin_10m,,no_applic_copy)) *(1-EXP(-k_deg_copy*(E58+twa_int_copy-E58:INDEX(int_applic_begin_10m,,no_applic_copy)))) /(k_deg_copy*(E58+twa_int_copy-E58:INDEX(int_applic_begin_10m,,no_applic_copy))), 0) ) /twa_int_copy), "") -> 0.1843624206 | F64: =IF(INDEX(actual_rate_10m,,COLUMN()-2)<>"", SUM(F60:INDEX(peak_amount_10m,,no_applic_copy) *IF(((F58:INDEX(int_applic_begin_10m,,no_applic_copy)-F58)<twa_int_copy)*((F59:INDEX(int_applic_end_10m,,no_applic_copy)-F58)<=twa_int_copy), (F59:INDEX(int_applic_end_10m,,no_applic_copy)-F58:INDEX(int_applic_begin_10m,,no_applic_copy)) *(1-EXP(-k_deg_copy*(F59:INDEX(int_applic_end_10m,,no_applic_copy)-F58:INDEX(int_applic_begin_10m,,no_applic_copy)))) /(k_deg_copy*(F59:INDEX(int_applic_end_10m,,no_applic_copy)-F58:INDEX(int_applic_begin_10m,,no_applic_copy))), IF(((F58:INDEX(int_applic_begin_10m,,no_applic_copy)-F58)<twa_int_copy)+((F59:INDEX(int_applic_end_10m,,no_applic_copy)-F58)<=twa_int_copy), (F58+twa_int_copy-F58:INDEX(int_applic_begin_10m,,no_applic_copy)) *(1-EXP(-k_deg_copy*(F58+twa_int_copy-F58:INDEX(int_applic_begin_10m,,no_applic_copy)))) /(k_deg_copy*(F58+twa_int_copy-F58:INDEX(int_applic_begin_10m,,no_applic_copy))), 0) ) /twa_int_copy), "") ->  | G64: =IF(INDEX(actual_rate_10m,,COLUMN()-2)<>"", SUM(G60:INDEX(peak_amount_10m,,no_applic_copy) *IF(((G58:INDEX(int_applic_begin_10m,,no_applic_copy)-G58)<twa_int_copy)*((G59:INDEX(int_applic_end_10m,,no_applic_copy)-G58)<=twa_int_copy), (G59:INDEX(int_applic_end_10m,,no_applic_copy)-G58:INDEX(int_applic_begin_10m,,no_applic_copy)) *(1-EXP(-k_deg_copy*(G59:INDEX(int_applic_end_10m,,no_applic_copy)-G58:INDEX(int_applic_begin_10m,,no_applic_copy)))) /(k_deg_copy*(G59:INDEX(int_applic_end_10m,,no_applic_copy)-G58:INDEX(int_applic_begin_10m,,no_applic_copy))), IF(((G58:INDEX(int_applic_begin_10m,,no_applic_copy)-G58)<twa_int_copy)+((G59:INDEX(int_applic_end_10m,,no_applic_copy)-G58)<=twa_int_copy), (G58+twa_int_copy-G58:INDEX(int_applic_begin_10m,,no_applic_copy)) *(1-EXP(-k_deg_copy*(G58+twa_int_copy-G58:INDEX(int_applic_begin_10m,,no_applic_copy)))) /(k_deg_copy*(G58+twa_int_copy-G58:INDEX(int_applic_begin_10m,,no_applic_copy))), 0) ) /twa_int_copy), "") ->  | H64: =IF(INDEX(actual_rate_10m,,COLUMN()-2)<>"", SUM(H60:INDEX(peak_amount_10m,,no_applic_copy) *IF(((H58:INDEX(int_applic_begin_10m,,no_applic_copy)-H58)<twa_int_copy)*((H59:INDEX(int_applic_end_10m,,no_applic_copy)-H58)<=twa_int_copy), (H59:INDEX(int_applic_end_10m,,no_applic_copy)-H58:INDEX(int_applic_begin_10m,,no_applic_copy)) *(1-EXP(-k_deg_copy*(H59:INDEX(int_applic_end_10m,,no_applic_copy)-H58:INDEX(int_applic_begin_10m,,no_applic_copy)))) /(k_deg_copy*(H59:INDEX(int_applic_end_10m,,no_applic_copy)-H58:INDEX(int_applic_begin_10m,,no_applic_copy))), IF(((H58:INDEX(int_applic_begin_10m,,no_applic_copy)-H58)<twa_int_copy)+((H59:INDEX(int_applic_end_10m,,no_applic_copy)-H58)<=twa_int_copy), (H58+twa_int_copy-H58:INDEX(int_applic_begin_10m,,no_applic_copy)) *(1-EXP(-k_deg_copy*(H58+twa_int_copy-H58:INDEX(int_applic_begin_10m,,no_applic_copy)))) /(k_deg_copy*(H58+twa_int_copy-H58:INDEX(int_applic_begin_10m,,no_applic_copy))), 0) ) /twa_int_copy), "") ->  | I64: =IF(INDEX(actual_rate_10m,,COLUMN()-2)<>"", SUM(I60:INDEX(peak_amount_10m,,no_applic_copy) *IF(((I58:INDEX(int_applic_begin_10m,,no_applic_copy)-I58)<twa_int_copy)*((I59:INDEX(int_applic_end_10m,,no_applic_copy)-I58)<=twa_int_copy), (I59:INDEX(int_applic_end_10m,,no_applic_copy)-I58:INDEX(int_applic_begin_10m,,no_applic_copy)) *(1-EXP(-k_deg_copy*(I59:INDEX(int_applic_end_10m,,no_applic_copy)-I58:INDEX(int_applic_begin_10m,,no_applic_copy)))) /(k_deg_copy*(I59:INDEX(int_applic_end_10m,,no_applic_copy)-I58:INDEX(int_applic_begin_10m,,no_applic_copy))), IF(((I58:INDEX(int_applic_begin_10m,,no_applic_copy)-I58)<twa_int_copy)+((I59:INDEX(int_applic_end_10m,,no_applic_copy)-I58)<=twa_int_copy), (I58+twa_int_copy-I58:INDEX(int_applic_begin_10m,,no_applic_copy)) *(1-EXP(-k_deg_copy*(I58+twa_int_copy-I58:INDEX(int_applic_begin_10m,,no_applic_copy)))) /(k_deg_copy*(I58+twa_int_copy-I58:INDEX(int_applic_begin_10m,,no_applic_copy))), 0) ) /twa_int_copy), "") ->  | J64: =IF(INDEX(actual_rate_10m,,COLUMN()-2)<>"", SUM(J60:INDEX(peak_amount_10m,,no_applic_copy) *IF(((J58:INDEX(int_applic_begin_10m,,no_applic_copy)-J58)<twa_int_copy)*((J59:INDEX(int_applic_end_10m,,no_applic_copy)-J58)<=twa_int_copy), (J59:INDEX(int_applic_end_10m,,no_applic_copy)-J58:INDEX(int_applic_begin_10m,,no_applic_copy)) *(1-EXP(-k_deg_copy*(J59:INDEX(int_applic_end_10m,,no_applic_copy)-J58:INDEX(int_applic_begin_10m,,no_applic_copy)))) /(k_deg_copy*(J59:INDEX(int_applic_end_10m,,no_applic_copy)-J58:INDEX(int_applic_begin_10m,,no_applic_copy))), IF(((J58:INDEX(int_applic_begin_10m,,no_applic_copy)-J58)<twa_int_copy)+((J59:INDEX(int_applic_end_10m,,no_applic_copy)-J58)<=twa_int_copy), (J58+twa_int_copy-J58:INDEX(int_applic_begin_10m,,no_applic_copy)) *(1-EXP(-k_deg_copy*(J58+twa_int_copy-J58:INDEX(int_applic_begin_10m,,no_applic_copy)))) /(k_deg_copy*(J58+twa_int_copy-J58:INDEX(int_applic_begin_10m,,no_applic_copy))), 0) ) /twa_int_copy), "") ->  | K64: =IF(INDEX(actual_rate_10m,,COLUMN()-2)<>"", SUM(K60:INDEX(peak_amount_10m,,no_applic_copy) *IF(((K58:INDEX(int_applic_begin_10m,,no_applic_copy)-K58)<twa_int_copy)*((K59:INDEX(int_applic_end_10m,,no_applic_copy)-K58)<=twa_int_copy), (K59:INDEX(int_applic_end_10m,,no_applic_copy)-K58:INDEX(int_applic_begin_10m,,no_applic_copy)) *(1-EXP(-k_deg_copy*(K59:INDEX(int_applic_end_10m,,no_applic_copy)-K58:INDEX(int_applic_begin_10m,,no_applic_copy)))) /(k_deg_copy*(K59:INDEX(int_applic_end_10m,,no_applic_copy)-K58:INDEX(int_applic_begin_10m,,no_applic_copy))), IF(((K58:INDEX(int_applic_begin_10m,,no_applic_copy)-K58)<twa_int_copy)+((K59:INDEX(int_applic_end_10m,,no_applic_copy)-K58)<=twa_int_copy), (K58+twa_int_copy-K58:INDEX(int_applic_begin_10m,,no_applic_copy)) *(1-EXP(-k_deg_copy*(K58+twa_int_copy-K58:INDEX(int_applic_begin_10m,,no_applic_copy)))) /(k_deg_copy*(K58+twa_int_copy-K58:INDEX(int_applic_begin_10m,,no_applic_copy))), 0) ) /twa_int_copy), "") ->  | L64: =IF(INDEX(actual_rate_10m,,COLUMN()-2)<>"", SUM(L60:INDEX(peak_amount_10m,,no_applic_copy) *IF(((L58:INDEX(int_applic_begin_10m,,no_applic_copy)-L58)<twa_int_copy)*((L59:INDEX(int_applic_end_10m,,no_applic_copy)-L58)<=twa_int_copy), (L59:INDEX(int_applic_end_10m,,no_applic_copy)-L58:INDEX(int_applic_begin_10m,,no_applic_copy)) *(1-EXP(-k_deg_copy*(L59:INDEX(int_applic_end_10m,,no_applic_copy)-L58:INDEX(int_applic_begin_10m,,no_applic_copy)))) /(k_deg_copy*(L59:INDEX(int_applic_end_10m,,no_applic_copy)-L58:INDEX(int_applic_begin_10m,,no_applic_copy))), IF(((L58:INDEX(int_applic_begin_10m,,no_applic_copy)-L58)<twa_int_copy)+((L59:INDEX(int_applic_end_10m,,no_applic_copy)-L58)<=twa_int_copy), (L58+twa_int_copy-L58:INDEX(int_applic_begin_10m,,no_applic_copy)) *(1-EXP(-k_deg_copy*(L58+twa_int_copy-L58:INDEX(int_applic_begin_10m,,no_applic_copy)))) /(k_deg_copy*(L58+twa_int_copy-L58:INDEX(int_applic_begin_10m,,no_applic_copy))), 0) ) /twa_int_copy), "") ->  | M64: =IF(INDEX(actual_rate_10m,,COLUMN()-2)<>"", SUM(M60:INDEX(peak_amount_10m,,no_applic_copy) *IF(((M58:INDEX(int_applic_begin_10m,,no_applic_copy)-M58)<twa_int_copy)*((M59:INDEX(int_applic_end_10m,,no_applic_copy)-M58)<=twa_int_copy), (M59:INDEX(int_applic_end_10m,,no_applic_copy)-M58:INDEX(int_applic_begin_10m,,no_applic_copy)) *(1-EXP(-k_deg_copy*(M59:INDEX(int_applic_end_10m,,no_applic_copy)-M58:INDEX(int_applic_begin_10m,,no_applic_copy)))) /(k_deg_copy*(M59:INDEX(int_applic_end_10m,,no_applic_copy)-M58:INDEX(int_applic_begin_10m,,no_applic_copy))), IF(((M58:INDEX(int_applic_begin_10m,,no_applic_copy)-M58)<twa_int_copy)+((M59:INDEX(int_applic_end_10m,,no_applic_copy)-M58)<=twa_int_copy), (M58+twa_int_copy-M58:INDEX(int_applic_begin_10m,,no_applic_copy)) *(1-EXP(-k_deg_copy*(M58+twa_int_copy-M58:INDEX(int_applic_begin_10m,,no_applic_copy)))) /(k_deg_copy*(M58+twa_int_copy-M58:INDEX(int_applic_begin_10m,,no_applic_copy))), 0) ) /twa_int_copy), "") ->  | N64: =IF(INDEX(actual_rate_10m,,COLUMN()-2)<>"", SUM(N60:INDEX(peak_amount_10m,,no_applic_copy) *IF(((N58:INDEX(int_applic_begin_10m,,no_applic_copy)-N58)<twa_int_copy)*((N59:INDEX(int_applic_end_10m,,no_applic_copy)-N58)<=twa_int_copy), (N59:INDEX(int_applic_end_10m,,no_applic_copy)-N58:INDEX(int_applic_begin_10m,,no_applic_copy)) *(1-EXP(-k_deg_copy*(N59:INDEX(int_applic_end_10m,,no_applic_copy)-N58:INDEX(int_applic_begin_10m,,no_applic_copy)))) /(k_deg_copy*(N59:INDEX(int_applic_end_10m,,no_applic_copy)-N58:INDEX(int_applic_begin_10m,,no_applic_copy))), IF(((N58:INDEX(int_applic_begin_10m,,no_applic_copy)-N58)<twa_int_copy)+((N59:INDEX(int_applic_end_10m,,no_applic_copy)-N58)<=twa_int_copy), (N58+twa_int_copy-N58:INDEX(int_applic_begin_10m,,no_applic_copy)) *(1-EXP(-k_deg_copy*(N58+twa_int_copy-N58:INDEX(int_applic_begin_10m,,no_applic_copy)))) /(k_deg_copy*(N58+twa_int_copy-N58:INDEX(int_applic_begin_10m,,no_applic_copy))), 0) ) /twa_int_copy), "") -> 
B66: max. peak amount | C66: =MAX(peak_amount_10m) -> 0.35
B67: max. twa(sum) | C67: =MAX(twa_sum_10m) -> 0.2313253134
B70: 15 m distance
B71: begin interval | C71: =IF(interval_actual<>"",SUM(interval_actual1:INDEX(interval_actual,,COLUMN()-2))-interval_actual,IF(actual_rate_15m<>"",SUM(interval_actual1:INDEX(interval_actual,,COLUMN()-2)),"")) -> 0 | D71: 10 | E71: 20
B72: end interval | C72: =IF(interval_actual<>"",SUM(interval_actual1:INDEX(interval_actual,,COLUMN()-2)),IF(actual_rate_15m<>"",SUM(interval_actual1:INDEX(interval_actual,,COLUMN()-2))+twa_int_copy,"")) -> 10 | D72: 20 | E72: 41
B73: peak amount | C73: =IF(actual_rate_15m<>"",actual_rate_15m,"") -> 0.14 | D73: =IF(OFFSET(actual_rate_15m,,1)<>"",OFFSET(actual_rate_15m,,1)+final_amount_15m,"") -> 0.21 | E73: 0.245
B74: final amount | C74: =IF(actual_rate_15m<>"",peak_amount_15m*EXP(-k_deg_copy*IF(interval_actual<>"",interval_actual,twa_int_copy)),"") -> 0.07 | D74: 0.105 | E74: 0.05714827073
B76: twa calculation interval | C76: =IF(actual_rate_15m<>"",int_applic_begin_15m&"-"&int_applic_begin_15m+twa_int_copy&" d","") -> 0-21 d | D76: 10-31 d | E76: 20-41 d
B77: twa(sum) | C77: =IF(INDEX(actual_rate_15m,,COLUMN()-2)<>"", SUM(C73:INDEX(peak_amount_15m,,no_applic_copy) *IF(((C71:INDEX(int_applic_begin_15m,,no_applic_copy)-C71)<twa_int_copy)*((C72:INDEX(int_applic_end_15m,,no_applic_copy)-C71)<=twa_int_copy), (C72:INDEX(int_applic_end_15m,,no_applic_copy)-C71:INDEX(int_applic_begin_15m,,no_applic_copy)) *(1-EXP(-k_deg_copy*(C72:INDEX(int_applic_end_15m,,no_applic_copy)-C71:INDEX(int_applic_begin_15m,,no_applic_copy)))) /(k_deg_copy*(C72:INDEX(int_applic_end_15m,,no_applic_copy)-C71:INDEX(int_applic_begin_15m,,no_applic_copy))), IF(((C71:INDEX(int_applic_begin_15m,,no_applic_copy)-C71)<twa_int_copy)+((C72:INDEX(int_applic_end_15m,,no_applic_copy)-C71)<=twa_int_copy), (C71+twa_int_copy-C71:INDEX(int_applic_begin_15m,,no_applic_copy)) *(1-EXP(-k_deg_copy*(C71+twa_int_copy-C71:INDEX(int_applic_begin_15m,,no_applic_copy)))) /(k_deg_copy*(C71+twa_int_copy-C71:INDEX(int_applic_begin_15m,,no_applic_copy))), 0) ) /twa_int_copy), "") -> 0.1314961 | D77: =IF(INDEX(actual_rate_15m,,COLUMN()-2)<>"", SUM(D73:INDEX(peak_amount_15m,,no_applic_copy) *IF(((D71:INDEX(int_applic_begin_15m,,no_applic_copy)-D71)<twa_int_copy)*((D72:INDEX(int_applic_end_15m,,no_applic_copy)-D71)<=twa_int_copy), (D72:INDEX(int_applic_end_15m,,no_applic_copy)-D71:INDEX(int_applic_begin_15m,,no_applic_copy)) *(1-EXP(-k_deg_copy*(D72:INDEX(int_applic_end_15m,,no_applic_copy)-D71:INDEX(int_applic_begin_15m,,no_applic_copy)))) /(k_deg_copy*(D72:INDEX(int_applic_end_15m,,no_applic_copy)-D71:INDEX(int_applic_begin_15m,,no_applic_copy))), IF(((D71:INDEX(int_applic_begin_15m,,no_applic_copy)-D71)<twa_int_copy)+((D72:INDEX(int_applic_end_15m,,no_applic_copy)-D71)<=twa_int_copy), (D71+twa_int_copy-D71:INDEX(int_applic_begin_15m,,no_applic_copy)) *(1-EXP(-k_deg_copy*(D71+twa_int_copy-D71:INDEX(int_applic_begin_15m,,no_applic_copy)))) /(k_deg_copy*(D71+twa_int_copy-D71:INDEX(int_applic_begin_15m,,no_applic_copy))), 0) ) /twa_int_copy), "") -> 0.1619277194 | E77: =IF(INDEX(actual_rate_15m,,COLUMN()-2)<>"", SUM(E73:INDEX(peak_amount_15m,,no_applic_copy) *IF(((E71:INDEX(int_applic_begin_15m,,no_applic_copy)-E71)<twa_int_copy)*((E72:INDEX(int_applic_end_15m,,no_applic_copy)-E71)<=twa_int_copy), (E72:INDEX(int_applic_end_15m,,no_applic_copy)-E71:INDEX(int_applic_begin_15m,,no_applic_copy)) *(1-EXP(-k_deg_copy*(E72:INDEX(int_applic_end_15m,,no_applic_copy)-E71:INDEX(int_applic_begin_15m,,no_applic_copy)))) /(k_deg_copy*(E72:INDEX(int_applic_end_15m,,no_applic_copy)-E71:INDEX(int_applic_begin_15m,,no_applic_copy))), IF(((E71:INDEX(int_applic_begin_15m,,no_applic_copy)-E71)<twa_int_copy)+((E72:INDEX(int_applic_end_15m,,no_applic_copy)-E71)<=twa_int_copy), (E71+twa_int_copy-E71:INDEX(int_applic_begin_15m,,no_applic_copy)) *(1-EXP(-k_deg_copy*(E71+twa_int_copy-E71:INDEX(int_applic_begin_15m,,no_applic_copy)))) /(k_deg_copy*(E71+twa_int_copy-E71:INDEX(int_applic_begin_15m,,no_applic_copy))), 0) ) /twa_int_copy), "") -> 0.1290536944 | F77: =IF(INDEX(actual_rate_15m,,COLUMN()-2)<>"", SUM(F73:INDEX(peak_amount_15m,,no_applic_copy) *IF(((F71:INDEX(int_applic_begin_15m,,no_applic_copy)-F71)<twa_int_copy)*((F72:INDEX(int_applic_end_15m,,no_applic_copy)-F71)<=twa_int_copy), (F72:INDEX(int_applic_end_15m,,no_applic_copy)-F71:INDEX(int_applic_begin_15m,,no_applic_copy)) *(1-EXP(-k_deg_copy*(F72:INDEX(int_applic_end_15m,,no_applic_copy)-F71:INDEX(int_applic_begin_15m,,no_applic_copy)))) /(k_deg_copy*(F72:INDEX(int_applic_end_15m,,no_applic_copy)-F71:INDEX(int_applic_begin_15m,,no_applic_copy))), IF(((F71:INDEX(int_applic_begin_15m,,no_applic_copy)-F71)<twa_int_copy)+((F72:INDEX(int_applic_end_15m,,no_applic_copy)-F71)<=twa_int_copy), (F71+twa_int_copy-F71:INDEX(int_applic_begin_15m,,no_applic_copy)) *(1-EXP(-k_deg_copy*(F71+twa_int_copy-F71:INDEX(int_applic_begin_15m,,no_applic_copy)))) /(k_deg_copy*(F71+twa_int_copy-F71:INDEX(int_applic_begin_15m,,no_applic_copy))), 0) ) /twa_int_copy), "") ->  | G77: =IF(INDEX(actual_rate_15m,,COLUMN()-2)<>"", SUM(G73:INDEX(peak_amount_15m,,no_applic_copy) *IF(((G71:INDEX(int_applic_begin_15m,,no_applic_copy)-G71)<twa_int_copy)*((G72:INDEX(int_applic_end_15m,,no_applic_copy)-G71)<=twa_int_copy), (G72:INDEX(int_applic_end_15m,,no_applic_copy)-G71:INDEX(int_applic_begin_15m,,no_applic_copy)) *(1-EXP(-k_deg_copy*(G72:INDEX(int_applic_end_15m,,no_applic_copy)-G71:INDEX(int_applic_begin_15m,,no_applic_copy)))) /(k_deg_copy*(G72:INDEX(int_applic_end_15m,,no_applic_copy)-G71:INDEX(int_applic_begin_15m,,no_applic_copy))), IF(((G71:INDEX(int_applic_begin_15m,,no_applic_copy)-G71)<twa_int_copy)+((G72:INDEX(int_applic_end_15m,,no_applic_copy)-G71)<=twa_int_copy), (G71+twa_int_copy-G71:INDEX(int_applic_begin_15m,,no_applic_copy)) *(1-EXP(-k_deg_copy*(G71+twa_int_copy-G71:INDEX(int_applic_begin_15m,,no_applic_copy)))) /(k_deg_copy*(G71+twa_int_copy-G71:INDEX(int_applic_begin_15m,,no_applic_copy))), 0) ) /twa_int_copy), "") ->  | H77: =IF(INDEX(actual_rate_15m,,COLUMN()-2)<>"", SUM(H73:INDEX(peak_amount_15m,,no_applic_copy) *IF(((H71:INDEX(int_applic_begin_15m,,no_applic_copy)-H71)<twa_int_copy)*((H72:INDEX(int_applic_end_15m,,no_applic_copy)-H71)<=twa_int_copy), (H72:INDEX(int_applic_end_15m,,no_applic_copy)-H71:INDEX(int_applic_begin_15m,,no_applic_copy)) *(1-EXP(-k_deg_copy*(H72:INDEX(int_applic_end_15m,,no_applic_copy)-H71:INDEX(int_applic_begin_15m,,no_applic_copy)))) /(k_deg_copy*(H72:INDEX(int_applic_end_15m,,no_applic_copy)-H71:INDEX(int_applic_begin_15m,,no_applic_copy))), IF(((H71:INDEX(int_applic_begin_15m,,no_applic_copy)-H71)<twa_int_copy)+((H72:INDEX(int_applic_end_15m,,no_applic_copy)-H71)<=twa_int_copy), (H71+twa_int_copy-H71:INDEX(int_applic_begin_15m,,no_applic_copy)) *(1-EXP(-k_deg_copy*(H71+twa_int_copy-H71:INDEX(int_applic_begin_15m,,no_applic_copy)))) /(k_deg_copy*(H71+twa_int_copy-H71:INDEX(int_applic_begin_15m,,no_applic_copy))), 0) ) /twa_int_copy), "") ->  | I77: =IF(INDEX(actual_rate_15m,,COLUMN()-2)<>"", SUM(I73:INDEX(peak_amount_15m,,no_applic_copy) *IF(((I71:INDEX(int_applic_begin_15m,,no_applic_copy)-I71)<twa_int_copy)*((I72:INDEX(int_applic_end_15m,,no_applic_copy)-I71)<=twa_int_copy), (I72:INDEX(int_applic_end_15m,,no_applic_copy)-I71:INDEX(int_applic_begin_15m,,no_applic_copy)) *(1-EXP(-k_deg_copy*(I72:INDEX(int_applic_end_15m,,no_applic_copy)-I71:INDEX(int_applic_begin_15m,,no_applic_copy)))) /(k_deg_copy*(I72:INDEX(int_applic_end_15m,,no_applic_copy)-I71:INDEX(int_applic_begin_15m,,no_applic_copy))), IF(((I71:INDEX(int_applic_begin_15m,,no_applic_copy)-I71)<twa_int_copy)+((I72:INDEX(int_applic_end_15m,,no_applic_copy)-I71)<=twa_int_copy), (I71+twa_int_copy-I71:INDEX(int_applic_begin_15m,,no_applic_copy)) *(1-EXP(-k_deg_copy*(I71+twa_int_copy-I71:INDEX(int_applic_begin_15m,,no_applic_copy)))) /(k_deg_copy*(I71+twa_int_copy-I71:INDEX(int_applic_begin_15m,,no_applic_copy))), 0) ) /twa_int_copy), "") ->  | J77: =IF(INDEX(actual_rate_15m,,COLUMN()-2)<>"", SUM(J73:INDEX(peak_amount_15m,,no_applic_copy) *IF(((J71:INDEX(int_applic_begin_15m,,no_applic_copy)-J71)<twa_int_copy)*((J72:INDEX(int_applic_end_15m,,no_applic_copy)-J71)<=twa_int_copy), (J72:INDEX(int_applic_end_15m,,no_applic_copy)-J71:INDEX(int_applic_begin_15m,,no_applic_copy)) *(1-EXP(-k_deg_copy*(J72:INDEX(int_applic_end_15m,,no_applic_copy)-J71:INDEX(int_applic_begin_15m,,no_applic_copy)))) /(k_deg_copy*(J72:INDEX(int_applic_end_15m,,no_applic_copy)-J71:INDEX(int_applic_begin_15m,,no_applic_copy))), IF(((J71:INDEX(int_applic_begin_15m,,no_applic_copy)-J71)<twa_int_copy)+((J72:INDEX(int_applic_end_15m,,no_applic_copy)-J71)<=twa_int_copy), (J71+twa_int_copy-J71:INDEX(int_applic_begin_15m,,no_applic_copy)) *(1-EXP(-k_deg_copy*(J71+twa_int_copy-J71:INDEX(int_applic_begin_15m,,no_applic_copy)))) /(k_deg_copy*(J71+twa_int_copy-J71:INDEX(int_applic_begin_15m,,no_applic_copy))), 0) ) /twa_int_copy), "") ->  | K77: =IF(INDEX(actual_rate_15m,,COLUMN()-2)<>"", SUM(K73:INDEX(peak_amount_15m,,no_applic_copy) *IF(((K71:INDEX(int_applic_begin_15m,,no_applic_copy)-K71)<twa_int_copy)*((K72:INDEX(int_applic_end_15m,,no_applic_copy)-K71)<=twa_int_copy), (K72:INDEX(int_applic_end_15m,,no_applic_copy)-K71:INDEX(int_applic_begin_15m,,no_applic_copy)) *(1-EXP(-k_deg_copy*(K72:INDEX(int_applic_end_15m,,no_applic_copy)-K71:INDEX(int_applic_begin_15m,,no_applic_copy)))) /(k_deg_copy*(K72:INDEX(int_applic_end_15m,,no_applic_copy)-K71:INDEX(int_applic_begin_15m,,no_applic_copy))), IF(((K71:INDEX(int_applic_begin_15m,,no_applic_copy)-K71)<twa_int_copy)+((K72:INDEX(int_applic_end_15m,,no_applic_copy)-K71)<=twa_int_copy), (K71+twa_int_copy-K71:INDEX(int_applic_begin_15m,,no_applic_copy)) *(1-EXP(-k_deg_copy*(K71+twa_int_copy-K71:INDEX(int_applic_begin_15m,,no_applic_copy)))) /(k_deg_copy*(K71+twa_int_copy-K71:INDEX(int_applic_begin_15m,,no_applic_copy))), 0) ) /twa_int_copy), "") ->  | L77: =IF(INDEX(actual_rate_15m,,COLUMN()-2)<>"", SUM(L73:INDEX(peak_amount_15m,,no_applic_copy) *IF(((L71:INDEX(int_applic_begin_15m,,no_applic_copy)-L71)<twa_int_copy)*((L72:INDEX(int_applic_end_15m,,no_applic_copy)-L71)<=twa_int_copy), (L72:INDEX(int_applic_end_15m,,no_applic_copy)-L71:INDEX(int_applic_begin_15m,,no_applic_copy)) *(1-EXP(-k_deg_copy*(L72:INDEX(int_applic_end_15m,,no_applic_copy)-L71:INDEX(int_applic_begin_15m,,no_applic_copy)))) /(k_deg_copy*(L72:INDEX(int_applic_end_15m,,no_applic_copy)-L71:INDEX(int_applic_begin_15m,,no_applic_copy))), IF(((L71:INDEX(int_applic_begin_15m,,no_applic_copy)-L71)<twa_int_copy)+((L72:INDEX(int_applic_end_15m,,no_applic_copy)-L71)<=twa_int_copy), (L71+twa_int_copy-L71:INDEX(int_applic_begin_15m,,no_applic_copy)) *(1-EXP(-k_deg_copy*(L71+twa_int_copy-L71:INDEX(int_applic_begin_15m,,no_applic_copy)))) /(k_deg_copy*(L71+twa_int_copy-L71:INDEX(int_applic_begin_15m,,no_applic_copy))), 0) ) /twa_int_copy), "") ->  | M77: =IF(INDEX(actual_rate_15m,,COLUMN()-2)<>"", SUM(M73:INDEX(peak_amount_15m,,no_applic_copy) *IF(((M71:INDEX(int_applic_begin_15m,,no_applic_copy)-M71)<twa_int_copy)*((M72:INDEX(int_applic_end_15m,,no_applic_copy)-M71)<=twa_int_copy), (M72:INDEX(int_applic_end_15m,,no_applic_copy)-M71:INDEX(int_applic_begin_15m,,no_applic_copy)) *(1-EXP(-k_deg_copy*(M72:INDEX(int_applic_end_15m,,no_applic_copy)-M71:INDEX(int_applic_begin_15m,,no_applic_copy)))) /(k_deg_copy*(M72:INDEX(int_applic_end_15m,,no_applic_copy)-M71:INDEX(int_applic_begin_15m,,no_applic_copy))), IF(((M71:INDEX(int_applic_begin_15m,,no_applic_copy)-M71)<twa_int_copy)+((M72:INDEX(int_applic_end_15m,,no_applic_copy)-M71)<=twa_int_copy), (M71+twa_int_copy-M71:INDEX(int_applic_begin_15m,,no_applic_copy)) *(1-EXP(-k_deg_copy*(M71+twa_int_copy-M71:INDEX(int_applic_begin_15m,,no_applic_copy)))) /(k_deg_copy*(M71+twa_int_copy-M71:INDEX(int_applic_begin_15m,,no_applic_copy))), 0) ) /twa_int_copy), "") ->  | N77: =IF(INDEX(actual_rate_15m,,COLUMN()-2)<>"", SUM(N73:INDEX(peak_amount_15m,,no_applic_copy) *IF(((N71:INDEX(int_applic_begin_15m,,no_applic_copy)-N71)<twa_int_copy)*((N72:INDEX(int_applic_end_15m,,no_applic_copy)-N71)<=twa_int_copy), (N72:INDEX(int_applic_end_15m,,no_applic_copy)-N71:INDEX(int_applic_begin_15m,,no_applic_copy)) *(1-EXP(-k_deg_copy*(N72:INDEX(int_applic_end_15m,,no_applic_copy)-N71:INDEX(int_applic_begin_15m,,no_applic_copy)))) /(k_deg_copy*(N72:INDEX(int_applic_end_15m,,no_applic_copy)-N71:INDEX(int_applic_begin_15m,,no_applic_copy))), IF(((N71:INDEX(int_applic_begin_15m,,no_applic_copy)-N71)<twa_int_copy)+((N72:INDEX(int_applic_end_15m,,no_applic_copy)-N71)<=twa_int_copy), (N71+twa_int_copy-N71:INDEX(int_applic_begin_15m,,no_applic_copy)) *(1-EXP(-k_deg_copy*(N71+twa_int_copy-N71:INDEX(int_applic_begin_15m,,no_applic_copy)))) /(k_deg_copy*(N71+twa_int_copy-N71:INDEX(int_applic_begin_15m,,no_applic_copy))), 0) ) /twa_int_copy), "") -> 
B79: max. peak amount | C79: =MAX(peak_amount_15m) -> 0.245
B80: max. twa(sum) | C80: =MAX(twa_sum_15m) -> 0.1619277194
B83: 20 m distance
B84: begin interval | C84: =IF(interval_actual<>"",SUM(interval_actual1:INDEX(interval_actual,,COLUMN()-2))-interval_actual,IF(actual_rate_20m<>"",SUM(interval_actual1:INDEX(interval_actual,,COLUMN()-2)),"")) -> 0 | D84: 10 | E84: 20
B85: end interval | C85: =IF(interval_actual<>"",SUM(interval_actual1:INDEX(interval_actual,,COLUMN()-2)),IF(actual_rate_20m<>"",SUM(interval_actual1:INDEX(interval_actual,,COLUMN()-2))+twa_int_copy,"")) -> 10 | D85: 20 | E85: 41
B86: peak amount | C86: =IF(actual_rate_20m<>"",actual_rate_20m,"") -> 0.1 | D86: =IF(OFFSET(actual_rate_20m,,1)<>"",OFFSET(actual_rate_20m,,1)+final_amount_20m,"") -> 0.15 | E86: 0.175
B87: final amount | C87: =IF(actual_rate_20m<>"",peak_amount_20m*EXP(-k_deg_copy*IF(interval_actual<>"",interval_actual,twa_int_copy)),"") -> 0.05 | D87: 0.075 | E87: 0.04082019338
B89: twa calculation interval | C89: =IF(actual_rate_20m<>"",int_applic_begin_20m&"-"&int_applic_begin_20m+twa_int_copy&" d","") -> 0-21 d | D89: 10-31 d | E89: 20-41 d
B90: twa(sum) | C90: =IF(INDEX(actual_rate_20m,,COLUMN()-2)<>"", SUM(C86:INDEX(peak_amount_20m,,no_applic_copy) *IF(((C84:INDEX(int_applic_begin_20m,,no_applic_copy)-C84)<twa_int_copy)*((C85:INDEX(int_applic_end_20m,,no_applic_copy)-C84)<=twa_int_copy), (C85:INDEX(int_applic_end_20m,,no_applic_copy)-C84:INDEX(int_applic_begin_20m,,no_applic_copy)) *(1-EXP(-k_deg_copy*(C85:INDEX(int_applic_end_20m,,no_applic_copy)-C84:INDEX(int_applic_begin_20m,,no_applic_copy)))) /(k_deg_copy*(C85:INDEX(int_applic_end_20m,,no_applic_copy)-C84:INDEX(int_applic_begin_20m,,no_applic_copy))), IF(((C84:INDEX(int_applic_begin_20m,,no_applic_copy)-C84)<twa_int_copy)+((C85:INDEX(int_applic_end_20m,,no_applic_copy)-C84)<=twa_int_copy), (C84+twa_int_copy-C84:INDEX(int_applic_begin_20m,,no_applic_copy)) *(1-EXP(-k_deg_copy*(C84+twa_int_copy-C84:INDEX(int_applic_begin_20m,,no_applic_copy)))) /(k_deg_copy*(C84+twa_int_copy-C84:INDEX(int_applic_begin_20m,,no_applic_copy))), 0) ) /twa_int_copy), "") -> 0.09392578573 | D90: =IF(INDEX(actual_rate_20m,,COLUMN()-2)<>"", SUM(D86:INDEX(peak_amount_20m,,no_applic_copy) *IF(((D84:INDEX(int_applic_begin_20m,,no_applic_copy)-D84)<twa_int_copy)*((D85:INDEX(int_applic_end_20m,,no_applic_copy)-D84)<=twa_int_copy), (D85:INDEX(int_applic_end_20m,,no_applic_copy)-D84:INDEX(int_applic_begin_20m,,no_applic_copy)) *(1-EXP(-k_deg_copy*(D85:INDEX(int_applic_end_20m,,no_applic_copy)-D84:INDEX(int_applic_begin_20m,,no_applic_copy)))) /(k_deg_copy*(D85:INDEX(int_applic_end_20m,,no_applic_copy)-D84:INDEX(int_applic_begin_20m,,no_applic_copy))), IF(((D84:INDEX(int_applic_begin_20m,,no_applic_copy)-D84)<twa_int_copy)+((D85:INDEX(int_applic_end_20m,,no_applic_copy)-D84)<=twa_int_copy), (D84+twa_int_copy-D84:INDEX(int_applic_begin_20m,,no_applic_copy)) *(1-EXP(-k_deg_copy*(D84+twa_int_copy-D84:INDEX(int_applic_begin_20m,,no_applic_copy)))) /(k_deg_copy*(D84+twa_int_copy-D84:INDEX(int_applic_begin_20m,,no_applic_copy))), 0) ) /twa_int_copy), "") -> 0.1156626567 | E90: =IF(INDEX(actual_rate_20m,,COLUMN()-2)<>"", SUM(E86:INDEX(peak_amount_20m,,no_applic_copy) *IF(((E84:INDEX(int_applic_begin_20m,,no_applic_copy)-E84)<twa_int_copy)*((E85:INDEX(int_applic_end_20m,,no_applic_copy)-E84)<=twa_int_copy), (E85:INDEX(int_applic_end_20m,,no_applic_copy)-E84:INDEX(int_applic_begin_20m,,no_applic_copy)) *(1-EXP(-k_deg_copy*(E85:INDEX(int_applic_end_20m,,no_applic_copy)-E84:INDEX(int_applic_begin_20m,,no_applic_copy)))) /(k_deg_copy*(E85:INDEX(int_applic_end_20m,,no_applic_copy)-E84:INDEX(int_applic_begin_20m,,no_applic_copy))), IF(((E84:INDEX(int_applic_begin_20m,,no_applic_copy)-E84)<twa_int_copy)+((E85:INDEX(int_applic_end_20m,,no_applic_copy)-E84)<=twa_int_copy), (E84+twa_int_copy-E84:INDEX(int_applic_begin_20m,,no_applic_copy)) *(1-EXP(-k_deg_copy*(E84+twa_int_copy-E84:INDEX(int_applic_begin_20m,,no_applic_copy)))) /(k_deg_copy*(E84+twa_int_copy-E84:INDEX(int_applic_begin_20m,,no_applic_copy))), 0) ) /twa_int_copy), "") -> 0.09218121028 | F90: =IF(INDEX(actual_rate_20m,,COLUMN()-2)<>"", SUM(F86:INDEX(peak_amount_20m,,no_applic_copy) *IF(((F84:INDEX(int_applic_begin_20m,,no_applic_copy)-F84)<twa_int_copy)*((F85:INDEX(int_applic_end_20m,,no_applic_copy)-F84)<=twa_int_copy), (F85:INDEX(int_applic_end_20m,,no_applic_copy)-F84:INDEX(int_applic_begin_20m,,no_applic_copy)) *(1-EXP(-k_deg_copy*(F85:INDEX(int_applic_end_20m,,no_applic_copy)-F84:INDEX(int_applic_begin_20m,,no_applic_copy)))) /(k_deg_copy*(F85:INDEX(int_applic_end_20m,,no_applic_copy)-F84:INDEX(int_applic_begin_20m,,no_applic_copy))), IF(((F84:INDEX(int_applic_begin_20m,,no_applic_copy)-F84)<twa_int_copy)+((F85:INDEX(int_applic_end_20m,,no_applic_copy)-F84)<=twa_int_copy), (F84+twa_int_copy-F84:INDEX(int_applic_begin_20m,,no_applic_copy)) *(1-EXP(-k_deg_copy*(F84+twa_int_copy-F84:INDEX(int_applic_begin_20m,,no_applic_copy)))) /(k_deg_copy*(F84+twa_int_copy-F84:INDEX(int_applic_begin_20m,,no_applic_copy))), 0) ) /twa_int_copy), "") ->  | G90: =IF(INDEX(actual_rate_20m,,COLUMN()-2)<>"", SUM(G86:INDEX(peak_amount_20m,,no_applic_copy) *IF(((G84:INDEX(int_applic_begin_20m,,no_applic_copy)-G84)<twa_int_copy)*((G85:INDEX(int_applic_end_20m,,no_applic_copy)-G84)<=twa_int_copy), (G85:INDEX(int_applic_end_20m,,no_applic_copy)-G84:INDEX(int_applic_begin_20m,,no_applic_copy)) *(1-EXP(-k_deg_copy*(G85:INDEX(int_applic_end_20m,,no_applic_copy)-G84:INDEX(int_applic_begin_20m,,no_applic_copy)))) /(k_deg_copy*(G85:INDEX(int_applic_end_20m,,no_applic_copy)-G84:INDEX(int_applic_begin_20m,,no_applic_copy))), IF(((G84:INDEX(int_applic_begin_20m,,no_applic_copy)-G84)<twa_int_copy)+((G85:INDEX(int_applic_end_20m,,no_applic_copy)-G84)<=twa_int_copy), (G84+twa_int_copy-G84:INDEX(int_applic_begin_20m,,no_applic_copy)) *(1-EXP(-k_deg_copy*(G84+twa_int_copy-G84:INDEX(int_applic_begin_20m,,no_applic_copy)))) /(k_deg_copy*(G84+twa_int_copy-G84:INDEX(int_applic_begin_20m,,no_applic_copy))), 0) ) /twa_int_copy), "") ->  | H90: =IF(INDEX(actual_rate_20m,,COLUMN()-2)<>"", SUM(H86:INDEX(peak_amount_20m,,no_applic_copy) *IF(((H84:INDEX(int_applic_begin_20m,,no_applic_copy)-H84)<twa_int_copy)*((H85:INDEX(int_applic_end_20m,,no_applic_copy)-H84)<=twa_int_copy), (H85:INDEX(int_applic_end_20m,,no_applic_copy)-H84:INDEX(int_applic_begin_20m,,no_applic_copy)) *(1-EXP(-k_deg_copy*(H85:INDEX(int_applic_end_20m,,no_applic_copy)-H84:INDEX(int_applic_begin_20m,,no_applic_copy)))) /(k_deg_copy*(H85:INDEX(int_applic_end_20m,,no_applic_copy)-H84:INDEX(int_applic_begin_20m,,no_applic_copy))), IF(((H84:INDEX(int_applic_begin_20m,,no_applic_copy)-H84)<twa_int_copy)+((H85:INDEX(int_applic_end_20m,,no_applic_copy)-H84)<=twa_int_copy), (H84+twa_int_copy-H84:INDEX(int_applic_begin_20m,,no_applic_copy)) *(1-EXP(-k_deg_copy*(H84+twa_int_copy-H84:INDEX(int_applic_begin_20m,,no_applic_copy)))) /(k_deg_copy*(H84+twa_int_copy-H84:INDEX(int_applic_begin_20m,,no_applic_copy))), 0) ) /twa_int_copy), "") ->  | I90: =IF(INDEX(actual_rate_20m,,COLUMN()-2)<>"", SUM(I86:INDEX(peak_amount_20m,,no_applic_copy) *IF(((I84:INDEX(int_applic_begin_20m,,no_applic_copy)-I84)<twa_int_copy)*((I85:INDEX(int_applic_end_20m,,no_applic_copy)-I84)<=twa_int_copy), (I85:INDEX(int_applic_end_20m,,no_applic_copy)-I84:INDEX(int_applic_begin_20m,,no_applic_copy)) *(1-EXP(-k_deg_copy*(I85:INDEX(int_applic_end_20m,,no_applic_copy)-I84:INDEX(int_applic_begin_20m,,no_applic_copy)))) /(k_deg_copy*(I85:INDEX(int_applic_end_20m,,no_applic_copy)-I84:INDEX(int_applic_begin_20m,,no_applic_copy))), IF(((I84:INDEX(int_applic_begin_20m,,no_applic_copy)-I84)<twa_int_copy)+((I85:INDEX(int_applic_end_20m,,no_applic_copy)-I84)<=twa_int_copy), (I84+twa_int_copy-I84:INDEX(int_applic_begin_20m,,no_applic_copy)) *(1-EXP(-k_deg_copy*(I84+twa_int_copy-I84:INDEX(int_applic_begin_20m,,no_applic_copy)))) /(k_deg_copy*(I84+twa_int_copy-I84:INDEX(int_applic_begin_20m,,no_applic_copy))), 0) ) /twa_int_copy), "") ->  | J90: =IF(INDEX(actual_rate_20m,,COLUMN()-2)<>"", SUM(J86:INDEX(peak_amount_20m,,no_applic_copy) *IF(((J84:INDEX(int_applic_begin_20m,,no_applic_copy)-J84)<twa_int_copy)*((J85:INDEX(int_applic_end_20m,,no_applic_copy)-J84)<=twa_int_copy), (J85:INDEX(int_applic_end_20m,,no_applic_copy)-J84:INDEX(int_applic_begin_20m,,no_applic_copy)) *(1-EXP(-k_deg_copy*(J85:INDEX(int_applic_end_20m,,no_applic_copy)-J84:INDEX(int_applic_begin_20m,,no_applic_copy)))) /(k_deg_copy*(J85:INDEX(int_applic_end_20m,,no_applic_copy)-J84:INDEX(int_applic_begin_20m,,no_applic_copy))), IF(((J84:INDEX(int_applic_begin_20m,,no_applic_copy)-J84)<twa_int_copy)+((J85:INDEX(int_applic_end_20m,,no_applic_copy)-J84)<=twa_int_copy), (J84+twa_int_copy-J84:INDEX(int_applic_begin_20m,,no_applic_copy)) *(1-EXP(-k_deg_copy*(J84+twa_int_copy-J84:INDEX(int_applic_begin_20m,,no_applic_copy)))) /(k_deg_copy*(J84+twa_int_copy-J84:INDEX(int_applic_begin_20m,,no_applic_copy))), 0) ) /twa_int_copy), "") ->  | K90: =IF(INDEX(actual_rate_20m,,COLUMN()-2)<>"", SUM(K86:INDEX(peak_amount_20m,,no_applic_copy) *IF(((K84:INDEX(int_applic_begin_20m,,no_applic_copy)-K84)<twa_int_copy)*((K85:INDEX(int_applic_end_20m,,no_applic_copy)-K84)<=twa_int_copy), (K85:INDEX(int_applic_end_20m,,no_applic_copy)-K84:INDEX(int_applic_begin_20m,,no_applic_copy)) *(1-EXP(-k_deg_copy*(K85:INDEX(int_applic_end_20m,,no_applic_copy)-K84:INDEX(int_applic_begin_20m,,no_applic_copy)))) /(k_deg_copy*(K85:INDEX(int_applic_end_20m,,no_applic_copy)-K84:INDEX(int_applic_begin_20m,,no_applic_copy))), IF(((K84:INDEX(int_applic_begin_20m,,no_applic_copy)-K84)<twa_int_copy)+((K85:INDEX(int_applic_end_20m,,no_applic_copy)-K84)<=twa_int_copy), (K84+twa_int_copy-K84:INDEX(int_applic_begin_20m,,no_applic_copy)) *(1-EXP(-k_deg_copy*(K84+twa_int_copy-K84:INDEX(int_applic_begin_20m,,no_applic_copy)))) /(k_deg_copy*(K84+twa_int_copy-K84:INDEX(int_applic_begin_20m,,no_applic_copy))), 0) ) /twa_int_copy), "") ->  | L90: =IF(INDEX(actual_rate_20m,,COLUMN()-2)<>"", SUM(L86:INDEX(peak_amount_20m,,no_applic_copy) *IF(((L84:INDEX(int_applic_begin_20m,,no_applic_copy)-L84)<twa_int_copy)*((L85:INDEX(int_applic_end_20m,,no_applic_copy)-L84)<=twa_int_copy), (L85:INDEX(int_applic_end_20m,,no_applic_copy)-L84:INDEX(int_applic_begin_20m,,no_applic_copy)) *(1-EXP(-k_deg_copy*(L85:INDEX(int_applic_end_20m,,no_applic_copy)-L84:INDEX(int_applic_begin_20m,,no_applic_copy)))) /(k_deg_copy*(L85:INDEX(int_applic_end_20m,,no_applic_copy)-L84:INDEX(int_applic_begin_20m,,no_applic_copy))), IF(((L84:INDEX(int_applic_begin_20m,,no_applic_copy)-L84)<twa_int_copy)+((L85:INDEX(int_applic_end_20m,,no_applic_copy)-L84)<=twa_int_copy), (L84+twa_int_copy-L84:INDEX(int_applic_begin_20m,,no_applic_copy)) *(1-EXP(-k_deg_copy*(L84+twa_int_copy-L84:INDEX(int_applic_begin_20m,,no_applic_copy)))) /(k_deg_copy*(L84+twa_int_copy-L84:INDEX(int_applic_begin_20m,,no_applic_copy))), 0) ) /twa_int_copy), "") ->  | M90: =IF(INDEX(actual_rate_20m,,COLUMN()-2)<>"", SUM(M86:INDEX(peak_amount_20m,,no_applic_copy) *IF(((M84:INDEX(int_applic_begin_20m,,no_applic_copy)-M84)<twa_int_copy)*((M85:INDEX(int_applic_end_20m,,no_applic_copy)-M84)<=twa_int_copy), (M85:INDEX(int_applic_end_20m,,no_applic_copy)-M84:INDEX(int_applic_begin_20m,,no_applic_copy)) *(1-EXP(-k_deg_copy*(M85:INDEX(int_applic_end_20m,,no_applic_copy)-M84:INDEX(int_applic_begin_20m,,no_applic_copy)))) /(k_deg_copy*(M85:INDEX(int_applic_end_20m,,no_applic_copy)-M84:INDEX(int_applic_begin_20m,,no_applic_copy))), IF(((M84:INDEX(int_applic_begin_20m,,no_applic_copy)-M84)<twa_int_copy)+((M85:INDEX(int_applic_end_20m,,no_applic_copy)-M84)<=twa_int_copy), (M84+twa_int_copy-M84:INDEX(int_applic_begin_20m,,no_applic_copy)) *(1-EXP(-k_deg_copy*(M84+twa_int_copy-M84:INDEX(int_applic_begin_20m,,no_applic_copy)))) /(k_deg_copy*(M84+twa_int_copy-M84:INDEX(int_applic_begin_20m,,no_applic_copy))), 0) ) /twa_int_copy), "") ->  | N90: =IF(INDEX(actual_rate_20m,,COLUMN()-2)<>"", SUM(N86:INDEX(peak_amount_20m,,no_applic_copy) *IF(((N84:INDEX(int_applic_begin_20m,,no_applic_copy)-N84)<twa_int_copy)*((N85:INDEX(int_applic_end_20m,,no_applic_copy)-N84)<=twa_int_copy), (N85:INDEX(int_applic_end_20m,,no_applic_copy)-N84:INDEX(int_applic_begin_20m,,no_applic_copy)) *(1-EXP(-k_deg_copy*(N85:INDEX(int_applic_end_20m,,no_applic_copy)-N84:INDEX(int_applic_begin_20m,,no_applic_copy)))) /(k_deg_copy*(N85:INDEX(int_applic_end_20m,,no_applic_copy)-N84:INDEX(int_applic_begin_20m,,no_applic_copy))), IF(((N84:INDEX(int_applic_begin_20m,,no_applic_copy)-N84)<twa_int_copy)+((N85:INDEX(int_applic_end_20m,,no_applic_copy)-N84)<=twa_int_copy), (N84+twa_int_copy-N84:INDEX(int_applic_begin_20m,,no_applic_copy)) *(1-EXP(-k_deg_copy*(N84+twa_int_copy-N84:INDEX(int_applic_begin_20m,,no_applic_copy)))) /(k_deg_copy*(N84+twa_int_copy-N84:INDEX(int_applic_begin_20m,,no_applic_copy))), 0) ) /twa_int_copy), "") -> 
B92: max. peak amount | C92: =MAX(peak_amount_20m) -> 0.175
B93: max. twa(sum) | C93: =MAX(twa_sum_20m) -> 0.1156626567

Sheet drift_red_50 (hidden)
B3: drift reduction | C3: 0.5
B5: drift rate 1 m / 3 m | C5: =IF(no_applic_copy>=(COLUMN()-2), INDEX(act_applic_rate,COLUMN()-2) *VLOOKUP(INDEX(act_factor,COLUMN()-2),drift_percent_01m,IF(select_perc_type="MAF-crit",13,no_applic_copy)+2,0) *(1-drift_reduction), "") -> 1.005 | D5: 1.005 | E5: 1.005
B6: drift rate 5 m | C6: =IF(no_applic_copy>=(COLUMN()-2), INDEX(act_applic_rate,COLUMN()-2) *VLOOKUP(INDEX(act_factor,COLUMN()-2),drift_percent_05m,IF(select_perc_type="MAF-crit",13,no_applic_copy)+2,0) *(1-drift_reduction), "") -> 0.205 | D6: 0.205 | E6: 0.205
B7: drift rate 10 m | C7: =IF(no_applic_copy>=(COLUMN()-2), INDEX(act_applic_rate,COLUMN()-2) *VLOOKUP(INDEX(act_factor,COLUMN()-2),drift_percent_10m,IF(select_perc_type="MAF-crit",13,no_applic_copy)+2,0) *(1-drift_reduction), "") -> 0.1 | D7: 0.1 | E7: 0.1
B8: drift rate 15 m | C8: =IF(no_applic_copy>=(COLUMN()-2), INDEX(act_applic_rate,COLUMN()-2) *VLOOKUP(INDEX(act_factor,COLUMN()-2),drift_percent_15m,IF(select_perc_type="MAF-crit",13,no_applic_copy)+2,0) *(1-drift_reduction), "") -> 0.07 | D8: 0.07 | E8: 0.07
B9: drift rate 20 m | C9: =IF(no_applic_copy>=(COLUMN()-2), (INDEX(act_applic_rate,COLUMN()-2)) *VLOOKUP(INDEX(act_factor,COLUMN()-2),drift_percent_20m,IF(select_perc_type="MAF-crit",13,no_applic_copy)+2,0) *(1-drift_reduction), "") -> 0.05 | D9: 0.05 | E9: 0.05
B11: v/d rate 1 m / 3 m | C11: =IF(vd_applic_crit=(COLUMN()-2),vd_rate_final_01m,"") ->  | E11: 0
B12: v/d rate 5 m | C12: =IF(vd_applic_crit=(COLUMN()-2),vd_rate_final_05m,"") ->  | E12: 0
B13: v/d rate 10 m | C13: =IF(vd_applic_crit=(COLUMN()-2),vd_rate_final_10m,"") ->  | E13: 0
B14: v/d rate 15 m | C14: =IF(vd_applic_crit=(COLUMN()-2),vd_rate_final_15m,"") ->  | E14: 0
B15: v/d rate 20 m | C15: =IF(vd_applic_crit=(COLUMN()-2),vd_rate_final_20m,"") ->  | E15: 0
B17: actual rate 1 m / 3 m | C17: =IF(no_applic_copy>=(COLUMN()-2), IF(ISNUMBER(drift_rate_01m),drift_rate_01m,0) +IF(ISNUMBER(vd_rate_01m),vd_rate_01m,0), "") -> 1.005 | D17: 1.005 | E17: 1.005
B18: actual rate 5 m | C18: =IF(no_applic_copy>=(COLUMN()-2), IF(ISNUMBER(drift_rate_05m),drift_rate_05m,0) +IF(ISNUMBER(vd_rate_05m),vd_rate_05m,0), "") -> 0.205 | D18: 0.205 | E18: 0.205
B19: actual rate 10 m | C19: =IF(no_applic_copy>=(COLUMN()-2), IF(ISNUMBER(drift_rate_10m),drift_rate_10m,0) +IF(ISNUMBER(vd_rate_10m),vd_rate_10m,0), "") -> 0.1 | D19: 0.1 | E19: 0.1
B20: actual rate 15 m | C20: =IF(no_applic_copy>=(COLUMN()-2), IF(ISNUMBER(drift_rate_15m),drift_rate_15m,0) +IF(ISNUMBER(vd_rate_15m),vd_rate_15m,0), "") -> 0.07 | D20: 0.07 | E20: 0.07
B21: actual rate 20 m | C21: =IF(no_applic_copy>=(COLUMN()-2), IF(ISNUMBER(drift_rate_20m),drift_rate_20m,0) +IF(ISNUMBER(vd_rate_20m),vd_rate_20m,0), "") -> 0.05 | D21: 0.05 | E21: 0.05
B22: interval (d) | C22: =act_interval_applic -> 10 | D22: 10
B24: twa interval d | C24: =twa_int_value -> 21 | D24: # applic. | E24: =no_applic -> 3 | F24: k | G24: =k_deg -> 0.06931471806
C26: 1 m / 3 m | D26: 5 m | E26: 10 m | F26: 15 m | G26: 20 m
B27: max. peak amount | C27: =MAX(peak_amount_01m) -> 1.75875 | D27: =MAX(peak_amount_05m) -> 0.35875 | E27: =MAX(peak_amount_10m) -> 0.175 | F27: =MAX(peak_amount_15m) -> 0.1225 | G27: =MAX(peak_amount_20m) -> 0.0875
B28: max. twa(sum) | C28: =MAX(twa_sum_01m) -> 1.1624097 | D28: =MAX(twa_sum_05m) -> 0.2371084463 | E28: =MAX(twa_sum_10m) -> 0.1156626567 | F28: =MAX(twa_sum_15m) -> 0.0809638597 | G28: =MAX(twa_sum_20m) -> 0.05783132836
B31: 1 m / 3 m distance
B32: begin interval | C32: =IF(interval_actual<>"",SUM(interval_actual1:INDEX(interval_actual,,COLUMN()-2))-interval_actual,IF(actual_rate_01m<>"",SUM(interval_actual1:INDEX(interval_actual,,COLUMN()-2)),"")) -> 0 | D32: 10 | E32: 20
B33: end interval | C33: =IF(interval_actual<>"",SUM(interval_actual1:INDEX(interval_actual,,COLUMN()-2)),IF(actual_rate_01m<>"",SUM(interval_actual1:INDEX(interval_actual,,COLUMN()-2))+twa_int_copy,"")) -> 10 | D33: 20 | E33: 41
B34: peak amount | C34: =IF(actual_rate_01m<>"",actual_rate_01m,"") -> 1.005 | D34: =IF(OFFSET(actual_rate_01m,,1)<>"",OFFSET(actual_rate_01m,,1)+final_amount_01m,"") -> 1.5075 | E34: 1.75875
B35: final amount | C35: =IF(actual_rate_01m<>"",peak_amount_01m*EXP(-k_deg_copy*IF(interval_actual<>"",interval_actual,twa_int_copy)),"") -> 0.5025 | D35: 0.75375 | E35: 0.4102429435
B37: twa calculation interval | C37: =IF(actual_rate_01m<>"",int_applic_begin_01m&"-"&int_applic_begin_01m+twa_int_copy&" d","") -> 0-21 d | D37: 10-31 d | E37: 20-41 d
B38: twa(sum) | C38: =IF(INDEX(actual_rate_01m,,COLUMN()-2)<>"", SUM(C34:INDEX(peak_amount_01m,,no_applic_copy) *IF(((C32:INDEX(int_applic_begin_01m,,no_applic_copy)-C32)<twa_int_copy)*((C33:INDEX(int_applic_end_01m,,no_applic_copy)-C32)<=twa_int_copy), (C33:INDEX(int_applic_end_01m,,no_applic_copy)-C32:INDEX(int_applic_begin_01m,,no_applic_copy)) *(1-EXP(-k_deg_copy*(C33:INDEX(int_applic_end_01m,,no_applic_copy)-C32:INDEX(int_applic_begin_01m,,no_applic_copy)))) /(k_deg_copy*(C33:INDEX(int_applic_end_01m,,no_applic_copy)-C32:INDEX(int_applic_begin_01m,,no_applic_copy))), IF(((C32:INDEX(int_applic_begin_01m,,no_applic_copy)-C32)<twa_int_copy)+((C33:INDEX(int_applic_end_01m,,no_applic_copy)-C32)<=twa_int_copy), (C32+twa_int_copy-C32:INDEX(int_applic_begin_01m,,no_applic_copy)) *(1-EXP(-k_deg_copy*(C32+twa_int_copy-C32:INDEX(int_applic_begin_01m,,no_applic_copy)))) /(k_deg_copy*(C32+twa_int_copy-C32:INDEX(int_applic_begin_01m,,no_applic_copy))), 0) ) /twa_int_copy), "") -> 0.9439541466 | D38: =IF(INDEX(actual_rate_01m,,COLUMN()-2)<>"", SUM(D34:INDEX(peak_amount_01m,,no_applic_copy) *IF(((D32:INDEX(int_applic_begin_01m,,no_applic_copy)-D32)<twa_int_copy)*((D33:INDEX(int_applic_end_01m,,no_applic_copy)-D32)<=twa_int_copy), (D33:INDEX(int_applic_end_01m,,no_applic_copy)-D32:INDEX(int_applic_begin_01m,,no_applic_copy)) *(1-EXP(-k_deg_copy*(D33:INDEX(int_applic_end_01m,,no_applic_copy)-D32:INDEX(int_applic_begin_01m,,no_applic_copy)))) /(k_deg_copy*(D33:INDEX(int_applic_end_01m,,no_applic_copy)-D32:INDEX(int_applic_begin_01m,,no_applic_copy))), IF(((D32:INDEX(int_applic_begin_01m,,no_applic_copy)-D32)<twa_int_copy)+((D33:INDEX(int_applic_end_01m,,no_applic_copy)-D32)<=twa_int_copy), (D32+twa_int_copy-D32:INDEX(int_applic_begin_01m,,no_applic_copy)) *(1-EXP(-k_deg_copy*(D32+twa_int_copy-D32:INDEX(int_applic_begin_01m,,no_applic_copy)))) /(k_deg_copy*(D32+twa_int_copy-D32:INDEX(int_applic_begin_01m,,no_applic_copy))), 0) ) /twa_int_copy), "") -> 1.1624097 | E38: =IF(INDEX(actual_rate_01m,,COLUMN()-2)<>"", SUM(E34:INDEX(peak_amount_01m,,no_applic_copy) *IF(((E32:INDEX(int_applic_begin_01m,,no_applic_copy)-E32)<twa_int_copy)*((E33:INDEX(int_applic_end_01m,,no_applic_copy)-E32)<=twa_int_copy), (E33:INDEX(int_applic_end_01m,,no_applic_copy)-E32:INDEX(int_applic_begin_01m,,no_applic_copy)) *(1-EXP(-k_deg_copy*(E33:INDEX(int_applic_end_01m,,no_applic_copy)-E32:INDEX(int_applic_begin_01m,,no_applic_copy)))) /(k_deg_copy*(E33:INDEX(int_applic_end_01m,,no_applic_copy)-E32:INDEX(int_applic_begin_01m,,no_applic_copy))), IF(((E32:INDEX(int_applic_begin_01m,,no_applic_copy)-E32)<twa_int_copy)+((E33:INDEX(int_applic_end_01m,,no_applic_copy)-E32)<=twa_int_copy), (E32+twa_int_copy-E32:INDEX(int_applic_begin_01m,,no_applic_copy)) *(1-EXP(-k_deg_copy*(E32+twa_int_copy-E32:INDEX(int_applic_begin_01m,,no_applic_copy)))) /(k_deg_copy*(E32+twa_int_copy-E32:INDEX(int_applic_begin_01m,,no_applic_copy))), 0) ) /twa_int_copy), "") -> 0.9264211634 | F38: =IF(INDEX(actual_rate_01m,,COLUMN()-2)<>"", SUM(F34:INDEX(peak_amount_01m,,no_applic_copy) *IF(((F32:INDEX(int_applic_begin_01m,,no_applic_copy)-F32)<twa_int_copy)*((F33:INDEX(int_applic_end_01m,,no_applic_copy)-F32)<=twa_int_copy), (F33:INDEX(int_applic_end_01m,,no_applic_copy)-F32:INDEX(int_applic_begin_01m,,no_applic_copy)) *(1-EXP(-k_deg_copy*(F33:INDEX(int_applic_end_01m,,no_applic_copy)-F32:INDEX(int_applic_begin_01m,,no_applic_copy)))) /(k_deg_copy*(F33:INDEX(int_applic_end_01m,,no_applic_copy)-F32:INDEX(int_applic_begin_01m,,no_applic_copy))), IF(((F32:INDEX(int_applic_begin_01m,,no_applic_copy)-F32)<twa_int_copy)+((F33:INDEX(int_applic_end_01m,,no_applic_copy)-F32)<=twa_int_copy), (F32+twa_int_copy-F32:INDEX(int_applic_begin_01m,,no_applic_copy)) *(1-EXP(-k_deg_copy*(F32+twa_int_copy-F32:INDEX(int_applic_begin_01m,,no_applic_copy)))) /(k_deg_copy*(F32+twa_int_copy-F32:INDEX(int_applic_begin_01m,,no_applic_copy))), 0) ) /twa_int_copy), "") ->  | G38: =IF(INDEX(actual_rate_01m,,COLUMN()-2)<>"", SUM(G34:INDEX(peak_amount_01m,,no_applic_copy) *IF(((G32:INDEX(int_applic_begin_01m,,no_applic_copy)-G32)<twa_int_copy)*((G33:INDEX(int_applic_end_01m,,no_applic_copy)-G32)<=twa_int_copy), (G33:INDEX(int_applic_end_01m,,no_applic_copy)-G32:INDEX(int_applic_begin_01m,,no_applic_copy)) *(1-EXP(-k_deg_copy*(G33:INDEX(int_applic_end_01m,,no_applic_copy)-G32:INDEX(int_applic_begin_01m,,no_applic_copy)))) /(k_deg_copy*(G33:INDEX(int_applic_end_01m,,no_applic_copy)-G32:INDEX(int_applic_begin_01m,,no_applic_copy))), IF(((G32:INDEX(int_applic_begin_01m,,no_applic_copy)-G32)<twa_int_copy)+((G33:INDEX(int_applic_end_01m,,no_applic_copy)-G32)<=twa_int_copy), (G32+twa_int_copy-G32:INDEX(int_applic_begin_01m,,no_applic_copy)) *(1-EXP(-k_deg_copy*(G32+twa_int_copy-G32:INDEX(int_applic_begin_01m,,no_applic_copy)))) /(k_deg_copy*(G32+twa_int_copy-G32:INDEX(int_applic_begin_01m,,no_applic_copy))), 0) ) /twa_int_copy), "") ->  | H38: =IF(INDEX(actual_rate_01m,,COLUMN()-2)<>"", SUM(H34:INDEX(peak_amount_01m,,no_applic_copy) *IF(((H32:INDEX(int_applic_begin_01m,,no_applic_copy)-H32)<twa_int_copy)*((H33:INDEX(int_applic_end_01m,,no_applic_copy)-H32)<=twa_int_copy), (H33:INDEX(int_applic_end_01m,,no_applic_copy)-H32:INDEX(int_applic_begin_01m,,no_applic_copy)) *(1-EXP(-k_deg_copy*(H33:INDEX(int_applic_end_01m,,no_applic_copy)-H32:INDEX(int_applic_begin_01m,,no_applic_copy)))) /(k_deg_copy*(H33:INDEX(int_applic_end_01m,,no_applic_copy)-H32:INDEX(int_applic_begin_01m,,no_applic_copy))), IF(((H32:INDEX(int_applic_begin_01m,,no_applic_copy)-H32)<twa_int_copy)+((H33:INDEX(int_applic_end_01m,,no_applic_copy)-H32)<=twa_int_copy), (H32+twa_int_copy-H32:INDEX(int_applic_begin_01m,,no_applic_copy)) *(1-EXP(-k_deg_copy*(H32+twa_int_copy-H32:INDEX(int_applic_begin_01m,,no_applic_copy)))) /(k_deg_copy*(H32+twa_int_copy-H32:INDEX(int_applic_begin_01m,,no_applic_copy))), 0) ) /twa_int_copy), "") ->  | I38: =IF(INDEX(actual_rate_01m,,COLUMN()-2)<>"", SUM(I34:INDEX(peak_amount_01m,,no_applic_copy) *IF(((I32:INDEX(int_applic_begin_01m,,no_applic_copy)-I32)<twa_int_copy)*((I33:INDEX(int_applic_end_01m,,no_applic_copy)-I32)<=twa_int_copy), (I33:INDEX(int_applic_end_01m,,no_applic_copy)-I32:INDEX(int_applic_begin_01m,,no_applic_copy)) *(1-EXP(-k_deg_copy*(I33:INDEX(int_applic_end_01m,,no_applic_copy)-I32:INDEX(int_applic_begin_01m,,no_applic_copy)))) /(k_deg_copy*(I33:INDEX(int_applic_end_01m,,no_applic_copy)-I32:INDEX(int_applic_begin_01m,,no_applic_copy))), IF(((I32:INDEX(int_applic_begin_01m,,no_applic_copy)-I32)<twa_int_copy)+((I33:INDEX(int_applic_end_01m,,no_applic_copy)-I32)<=twa_int_copy), (I32+twa_int_copy-I32:INDEX(int_applic_begin_01m,,no_applic_copy)) *(1-EXP(-k_deg_copy*(I32+twa_int_copy-I32:INDEX(int_applic_begin_01m,,no_applic_copy)))) /(k_deg_copy*(I32+twa_int_copy-I32:INDEX(int_applic_begin_01m,,no_applic_copy))), 0) ) /twa_int_copy), "") ->  | J38: =IF(INDEX(actual_rate_01m,,COLUMN()-2)<>"", SUM(J34:INDEX(peak_amount_01m,,no_applic_copy) *IF(((J32:INDEX(int_applic_begin_01m,,no_applic_copy)-J32)<twa_int_copy)*((J33:INDEX(int_applic_end_01m,,no_applic_copy)-J32)<=twa_int_copy), (J33:INDEX(int_applic_end_01m,,no_applic_copy)-J32:INDEX(int_applic_begin_01m,,no_applic_copy)) *(1-EXP(-k_deg_copy*(J33:INDEX(int_applic_end_01m,,no_applic_copy)-J32:INDEX(int_applic_begin_01m,,no_applic_copy)))) /(k_deg_copy*(J33:INDEX(int_applic_end_01m,,no_applic_copy)-J32:INDEX(int_applic_begin_01m,,no_applic_copy))), IF(((J32:INDEX(int_applic_begin_01m,,no_applic_copy)-J32)<twa_int_copy)+((J33:INDEX(int_applic_end_01m,,no_applic_copy)-J32)<=twa_int_copy), (J32+twa_int_copy-J32:INDEX(int_applic_begin_01m,,no_applic_copy)) *(1-EXP(-k_deg_copy*(J32+twa_int_copy-J32:INDEX(int_applic_begin_01m,,no_applic_copy)))) /(k_deg_copy*(J32+twa_int_copy-J32:INDEX(int_applic_begin_01m,,no_applic_copy))), 0) ) /twa_int_copy), "") ->  | K38: =IF(INDEX(actual_rate_01m,,COLUMN()-2)<>"", SUM(K34:INDEX(peak_amount_01m,,no_applic_copy) *IF(((K32:INDEX(int_applic_begin_01m,,no_applic_copy)-K32)<twa_int_copy)*((K33:INDEX(int_applic_end_01m,,no_applic_copy)-K32)<=twa_int_copy), (K33:INDEX(int_applic_end_01m,,no_applic_copy)-K32:INDEX(int_applic_begin_01m,,no_applic_copy)) *(1-EXP(-k_deg_copy*(K33:INDEX(int_applic_end_01m,,no_applic_copy)-K32:INDEX(int_applic_begin_01m,,no_applic_copy)))) /(k_deg_copy*(K33:INDEX(int_applic_end_01m,,no_applic_copy)-K32:INDEX(int_applic_begin_01m,,no_applic_copy))), IF(((K32:INDEX(int_applic_begin_01m,,no_applic_copy)-K32)<twa_int_copy)+((K33:INDEX(int_applic_end_01m,,no_applic_copy)-K32)<=twa_int_copy), (K32+twa_int_copy-K32:INDEX(int_applic_begin_01m,,no_applic_copy)) *(1-EXP(-k_deg_copy*(K32+twa_int_copy-K32:INDEX(int_applic_begin_01m,,no_applic_copy)))) /(k_deg_copy*(K32+twa_int_copy-K32:INDEX(int_applic_begin_01m,,no_applic_copy))), 0) ) /twa_int_copy), "") ->  | L38: =IF(INDEX(actual_rate_01m,,COLUMN()-2)<>"", SUM(L34:INDEX(peak_amount_01m,,no_applic_copy) *IF(((L32:INDEX(int_applic_begin_01m,,no_applic_copy)-L32)<twa_int_copy)*((L33:INDEX(int_applic_end_01m,,no_applic_copy)-L32)<=twa_int_copy), (L33:INDEX(int_applic_end_01m,,no_applic_copy)-L32:INDEX(int_applic_begin_01m,,no_applic_copy)) *(1-EXP(-k_deg_copy*(L33:INDEX(int_applic_end_01m,,no_applic_copy)-L32:INDEX(int_applic_begin_01m,,no_applic_copy)))) /(k_deg_copy*(L33:INDEX(int_applic_end_01m,,no_applic_copy)-L32:INDEX(int_applic_begin_01m,,no_applic_copy))), IF(((L32:INDEX(int_applic_begin_01m,,no_applic_copy)-L32)<twa_int_copy)+((L33:INDEX(int_applic_end_01m,,no_applic_copy)-L32)<=twa_int_copy), (L32+twa_int_copy-L32:INDEX(int_applic_begin_01m,,no_applic_copy)) *(1-EXP(-k_deg_copy*(L32+twa_int_copy-L32:INDEX(int_applic_begin_01m,,no_applic_copy)))) /(k_deg_copy*(L32+twa_int_copy-L32:INDEX(int_applic_begin_01m,,no_applic_copy))), 0) ) /twa_int_copy), "") ->  | M38: =IF(INDEX(actual_rate_01m,,COLUMN()-2)<>"", SUM(M34:INDEX(peak_amount_01m,,no_applic_copy) *IF(((M32:INDEX(int_applic_begin_01m,,no_applic_copy)-M32)<twa_int_copy)*((M33:INDEX(int_applic_end_01m,,no_applic_copy)-M32)<=twa_int_copy), (M33:INDEX(int_applic_end_01m,,no_applic_copy)-M32:INDEX(int_applic_begin_01m,,no_applic_copy)) *(1-EXP(-k_deg_copy*(M33:INDEX(int_applic_end_01m,,no_applic_copy)-M32:INDEX(int_applic_begin_01m,,no_applic_copy)))) /(k_deg_copy*(M33:INDEX(int_applic_end_01m,,no_applic_copy)-M32:INDEX(int_applic_begin_01m,,no_applic_copy))), IF(((M32:INDEX(int_applic_begin_01m,,no_applic_copy)-M32)<twa_int_copy)+((M33:INDEX(int_applic_end_01m,,no_applic_copy)-M32)<=twa_int_copy), (M32+twa_int_copy-M32:INDEX(int_applic_begin_01m,,no_applic_copy)) *(1-EXP(-k_deg_copy*(M32+twa_int_copy-M32:INDEX(int_applic_begin_01m,,no_applic_copy)))) /(k_deg_copy*(M32+twa_int_copy-M32:INDEX(int_applic_begin_01m,,no_applic_copy))), 0) ) /twa_int_copy), "") ->  | N38: =IF(INDEX(actual_rate_01m,,COLUMN()-2)<>"", SUM(N34:INDEX(peak_amount_01m,,no_applic_copy) *IF(((N32:INDEX(int_applic_begin_01m,,no_applic_copy)-N32)<twa_int_copy)*((N33:INDEX(int_applic_end_01m,,no_applic_copy)-N32)<=twa_int_copy), (N33:INDEX(int_applic_end_01m,,no_applic_copy)-N32:INDEX(int_applic_begin_01m,,no_applic_copy)) *(1-EXP(-k_deg_copy*(N33:INDEX(int_applic_end_01m,,no_applic_copy)-N32:INDEX(int_applic_begin_01m,,no_applic_copy)))) /(k_deg_copy*(N33:INDEX(int_applic_end_01m,,no_applic_copy)-N32:INDEX(int_applic_begin_01m,,no_applic_copy))), IF(((N32:INDEX(int_applic_begin_01m,,no_applic_copy)-N32)<twa_int_copy)+((N33:INDEX(int_applic_end_01m,,no_applic_copy)-N32)<=twa_int_copy), (N32+twa_int_copy-N32:INDEX(int_applic_begin_01m,,no_applic_copy)) *(1-EXP(-k_deg_copy*(N32+twa_int_copy-N32:INDEX(int_applic_begin_01m,,no_applic_copy)))) /(k_deg_copy*(N32+twa_int_copy-N32:INDEX(int_applic_begin_01m,,no_applic_copy))), 0) ) /twa_int_copy), "") -> 
B40: max. peak amount | C40: =MAX(peak_amount_01m) -> 1.75875
B41: max. twa(sum) | C41: =MAX(twa_sum_01m) -> 1.1624097
B44: 5 m distance
B45: begin interval | C45: =IF(interval_actual<>"",SUM(interval_actual1:INDEX(interval_actual,,COLUMN()-2))-interval_actual,IF(actual_rate_05m<>"",SUM(interval_actual1:INDEX(interval_actual,,COLUMN()-2)),"")) -> 0 | D45: 10 | E45: 20
B46: end interval | C46: =IF(interval_actual<>"",SUM(interval_actual1:INDEX(interval_actual,,COLUMN()-2)),IF(actual_rate_05m<>"",SUM(interval_actual1:INDEX(interval_actual,,COLUMN()-2))+twa_int_copy,"")) -> 10 | D46: 20 | E46: 41
B47: peak amount | C47: =IF(actual_rate_05m<>"",actual_rate_05m,"") -> 0.205 | D47: =IF(OFFSET(actual_rate_05m,,1)<>"",OFFSET(actual_rate_05m,,1)+final_amount_05m,"") -> 0.3075 | E47: 0.35875
B48: final amount | C48: =IF(actual_rate_05m<>"",peak_amount_05m*EXP(-k_deg_copy*IF(interval_actual<>"",interval_actual,twa_int_copy)),"") -> 0.1025 | D48: 0.15375 | E48: 0.08368139643
B50: twa calculation interval | C50: =IF(actual_rate_05m<>"",int_applic_begin_05m&"-"&int_applic_begin_05m+twa_int_copy&" d","") -> 0-21 d | D50: 10-31 d | E50: 20-41 d
B51: twa(sum) | C51: =IF(INDEX(actual_rate_05m,,COLUMN()-2)<>"", SUM(C47:INDEX(peak_amount_05m,,no_applic_copy) *IF(((C45:INDEX(int_applic_begin_05m,,no_applic_copy)-C45)<twa_int_copy)*((C46:INDEX(int_applic_end_05m,,no_applic_copy)-C45)<=twa_int_copy), (C46:INDEX(int_applic_end_05m,,no_applic_copy)-C45:INDEX(int_applic_begin_05m,,no_applic_copy)) *(1-EXP(-k_deg_copy*(C46:INDEX(int_applic_end_05m,,no_applic_copy)-C45:INDEX(int_applic_begin_05m,,no_applic_copy)))) /(k_deg_copy*(C46:INDEX(int_applic_end_05m,,no_applic_copy)-C45:INDEX(int_applic_begin_05m,,no_applic_copy))), IF(((C45:INDEX(int_applic_begin_05m,,no_applic_copy)-C45)<twa_int_copy)+((C46:INDEX(int_applic_end_05m,,no_applic_copy)-C45)<=twa_int_copy), (C45+twa_int_copy-C45:INDEX(int_applic_begin_05m,,no_applic_copy)) *(1-EXP(-k_deg_copy*(C45+twa_int_copy-C45:INDEX(int_applic_begin_05m,,no_applic_copy)))) /(k_deg_copy*(C45+twa_int_copy-C45:INDEX(int_applic_begin_05m,,no_applic_copy))), 0) ) /twa_int_copy), "") -> 0.1925478608 | D51: =IF(INDEX(actual_rate_05m,,COLUMN()-2)<>"", SUM(D47:INDEX(peak_amount_05m,,no_applic_copy) *IF(((D45:INDEX(int_applic_begin_05m,,no_applic_copy)-D45)<twa_int_copy)*((D46:INDEX(int_applic_end_05m,,no_applic_copy)-D45)<=twa_int_copy), (D46:INDEX(int_applic_end_05m,,no_applic_copy)-D45:INDEX(int_applic_begin_05m,,no_applic_copy)) *(1-EXP(-k_deg_copy*(D46:INDEX(int_applic_end_05m,,no_applic_copy)-D45:INDEX(int_applic_begin_05m,,no_applic_copy)))) /(k_deg_copy*(D46:INDEX(int_applic_end_05m,,no_applic_copy)-D45:INDEX(int_applic_begin_05m,,no_applic_copy))), IF(((D45:INDEX(int_applic_begin_05m,,no_applic_copy)-D45)<twa_int_copy)+((D46:INDEX(int_applic_end_05m,,no_applic_copy)-D45)<=twa_int_copy), (D45+twa_int_copy-D45:INDEX(int_applic_begin_05m,,no_applic_copy)) *(1-EXP(-k_deg_copy*(D45+twa_int_copy-D45:INDEX(int_applic_begin_05m,,no_applic_copy)))) /(k_deg_copy*(D45+twa_int_copy-D45:INDEX(int_applic_begin_05m,,no_applic_copy))), 0) ) /twa_int_copy), "") -> 0.2371084463 | E51: =IF(INDEX(actual_rate_05m,,COLUMN()-2)<>"", SUM(E47:INDEX(peak_amount_05m,,no_applic_copy) *IF(((E45:INDEX(int_applic_begin_05m,,no_applic_copy)-E45)<twa_int_copy)*((E46:INDEX(int_applic_end_05m,,no_applic_copy)-E45)<=twa_int_copy), (E46:INDEX(int_applic_end_05m,,no_applic_copy)-E45:INDEX(int_applic_begin_05m,,no_applic_copy)) *(1-EXP(-k_deg_copy*(E46:INDEX(int_applic_end_05m,,no_applic_copy)-E45:INDEX(int_applic_begin_05m,,no_applic_copy)))) /(k_deg_copy*(E46:INDEX(int_applic_end_05m,,no_applic_copy)-E45:INDEX(int_applic_begin_05m,,no_applic_copy))), IF(((E45:INDEX(int_applic_begin_05m,,no_applic_copy)-E45)<twa_int_copy)+((E46:INDEX(int_applic_end_05m,,no_applic_copy)-E45)<=twa_int_copy), (E45+twa_int_copy-E45:INDEX(int_applic_begin_05m,,no_applic_copy)) *(1-EXP(-k_deg_copy*(E45+twa_int_copy-E45:INDEX(int_applic_begin_05m,,no_applic_copy)))) /(k_deg_copy*(E45+twa_int_copy-E45:INDEX(int_applic_begin_05m,,no_applic_copy))), 0) ) /twa_int_copy), "") -> 0.1889714811 | F51: =IF(INDEX(actual_rate_05m,,COLUMN()-2)<>"", SUM(F47:INDEX(peak_amount_05m,,no_applic_copy) *IF(((F45:INDEX(int_applic_begin_05m,,no_applic_copy)-F45)<twa_int_copy)*((F46:INDEX(int_applic_end_05m,,no_applic_copy)-F45)<=twa_int_copy), (F46:INDEX(int_applic_end_05m,,no_applic_copy)-F45:INDEX(int_applic_begin_05m,,no_applic_copy)) *(1-EXP(-k_deg_copy*(F46:INDEX(int_applic_end_05m,,no_applic_copy)-F45:INDEX(int_applic_begin_05m,,no_applic_copy)))) /(k_deg_copy*(F46:INDEX(int_applic_end_05m,,no_applic_copy)-F45:INDEX(int_applic_begin_05m,,no_applic_copy))), IF(((F45:INDEX(int_applic_begin_05m,,no_applic_copy)-F45)<twa_int_copy)+((F46:INDEX(int_applic_end_05m,,no_applic_copy)-F45)<=twa_int_copy), (F45+twa_int_copy-F45:INDEX(int_applic_begin_05m,,no_applic_copy)) *(1-EXP(-k_deg_copy*(F45+twa_int_copy-F45:INDEX(int_applic_begin_05m,,no_applic_copy)))) /(k_deg_copy*(F45+twa_int_copy-F45:INDEX(int_applic_begin_05m,,no_applic_copy))), 0) ) /twa_int_copy), "") ->  | G51: =IF(INDEX(actual_rate_05m,,COLUMN()-2)<>"", SUM(G47:INDEX(peak_amount_05m,,no_applic_copy) *IF(((G45:INDEX(int_applic_begin_05m,,no_applic_copy)-G45)<twa_int_copy)*((G46:INDEX(int_applic_end_05m,,no_applic_copy)-G45)<=twa_int_copy), (G46:INDEX(int_applic_end_05m,,no_applic_copy)-G45:INDEX(int_applic_begin_05m,,no_applic_copy)) *(1-EXP(-k_deg_copy*(G46:INDEX(int_applic_end_05m,,no_applic_copy)-G45:INDEX(int_applic_begin_05m,,no_applic_copy)))) /(k_deg_copy*(G46:INDEX(int_applic_end_05m,,no_applic_copy)-G45:INDEX(int_applic_begin_05m,,no_applic_copy))), IF(((G45:INDEX(int_applic_begin_05m,,no_applic_copy)-G45)<twa_int_copy)+((G46:INDEX(int_applic_end_05m,,no_applic_copy)-G45)<=twa_int_copy), (G45+twa_int_copy-G45:INDEX(int_applic_begin_05m,,no_applic_copy)) *(1-EXP(-k_deg_copy*(G45+twa_int_copy-G45:INDEX(int_applic_begin_05m,,no_applic_copy)))) /(k_deg_copy*(G45+twa_int_copy-G45:INDEX(int_applic_begin_05m,,no_applic_copy))), 0) ) /twa_int_copy), "") ->  | H51: =IF(INDEX(actual_rate_05m,,COLUMN()-2)<>"", SUM(H47:INDEX(peak_amount_05m,,no_applic_copy) *IF(((H45:INDEX(int_applic_begin_05m,,no_applic_copy)-H45)<twa_int_copy)*((H46:INDEX(int_applic_end_05m,,no_applic_copy)-H45)<=twa_int_copy), (H46:INDEX(int_applic_end_05m,,no_applic_copy)-H45:INDEX(int_applic_begin_05m,,no_applic_copy)) *(1-EXP(-k_deg_copy*(H46:INDEX(int_applic_end_05m,,no_applic_copy)-H45:INDEX(int_applic_begin_05m,,no_applic_copy)))) /(k_deg_copy*(H46:INDEX(int_applic_end_05m,,no_applic_copy)-H45:INDEX(int_applic_begin_05m,,no_applic_copy))), IF(((H45:INDEX(int_applic_begin_05m,,no_applic_copy)-H45)<twa_int_copy)+((H46:INDEX(int_applic_end_05m,,no_applic_copy)-H45)<=twa_int_copy), (H45+twa_int_copy-H45:INDEX(int_applic_begin_05m,,no_applic_copy)) *(1-EXP(-k_deg_copy*(H45+twa_int_copy-H45:INDEX(int_applic_begin_05m,,no_applic_copy)))) /(k_deg_copy*(H45+twa_int_copy-H45:INDEX(int_applic_begin_05m,,no_applic_copy))), 0) ) /twa_int_copy), "") ->  | I51: =IF(INDEX(actual_rate_05m,,COLUMN()-2)<>"", SUM(I47:INDEX(peak_amount_05m,,no_applic_copy) *IF(((I45:INDEX(int_applic_begin_05m,,no_applic_copy)-I45)<twa_int_copy)*((I46:INDEX(int_applic_end_05m,,no_applic_copy)-I45)<=twa_int_copy), (I46:INDEX(int_applic_end_05m,,no_applic_copy)-I45:INDEX(int_applic_begin_05m,,no_applic_copy)) *(1-EXP(-k_deg_copy*(I46:INDEX(int_applic_end_05m,,no_applic_copy)-I45:INDEX(int_applic_begin_05m,,no_applic_copy)))) /(k_deg_copy*(I46:INDEX(int_applic_end_05m,,no_applic_copy)-I45:INDEX(int_applic_begin_05m,,no_applic_copy))), IF(((I45:INDEX(int_applic_begin_05m,,no_applic_copy)-I45)<twa_int_copy)+((I46:INDEX(int_applic_end_05m,,no_applic_copy)-I45)<=twa_int_copy), (I45+twa_int_copy-I45:INDEX(int_applic_begin_05m,,no_applic_copy)) *(1-EXP(-k_deg_copy*(I45+twa_int_copy-I45:INDEX(int_applic_begin_05m,,no_applic_copy)))) /(k_deg_copy*(I45+twa_int_copy-I45:INDEX(int_applic_begin_05m,,no_applic_copy))), 0) ) /twa_int_copy), "") ->  | J51: =IF(INDEX(actual_rate_05m,,COLUMN()-2)<>"", SUM(J47:INDEX(peak_amount_05m,,no_applic_copy) *IF(((J45:INDEX(int_applic_begin_05m,,no_applic_copy)-J45)<twa_int_copy)*((J46:INDEX(int_applic_end_05m,,no_applic_copy)-J45)<=twa_int_copy), (J46:INDEX(int_applic_end_05m,,no_applic_copy)-J45:INDEX(int_applic_begin_05m,,no_applic_copy)) *(1-EXP(-k_deg_copy*(J46:INDEX(int_applic_end_05m,,no_applic_copy)-J45:INDEX(int_applic_begin_05m,,no_applic_copy)))) /(k_deg_copy*(J46:INDEX(int_applic_end_05m,,no_applic_copy)-J45:INDEX(int_applic_begin_05m,,no_applic_copy))), IF(((J45:INDEX(int_applic_begin_05m,,no_applic_copy)-J45)<twa_int_copy)+((J46:INDEX(int_applic_end_05m,,no_applic_copy)-J45)<=twa_int_copy), (J45+twa_int_copy-J45:INDEX(int_applic_begin_05m,,no_applic_copy)) *(1-EXP(-k_deg_copy*(J45+twa_int_copy-J45:INDEX(int_applic_begin_05m,,no_applic_copy)))) /(k_deg_copy*(J45+twa_int_copy-J45:INDEX(int_applic_begin_05m,,no_applic_copy))), 0) ) /twa_int_copy), "") ->  | K51: =IF(INDEX(actual_rate_05m,,COLUMN()-2)<>"", SUM(K47:INDEX(peak_amount_05m,,no_applic_copy) *IF(((K45:INDEX(int_applic_begin_05m,,no_applic_copy)-K45)<twa_int_copy)*((K46:INDEX(int_applic_end_05m,,no_applic_copy)-K45)<=twa_int_copy), (K46:INDEX(int_applic_end_05m,,no_applic_copy)-K45:INDEX(int_applic_begin_05m,,no_applic_copy)) *(1-EXP(-k_deg_copy*(K46:INDEX(int_applic_end_05m,,no_applic_copy)-K45:INDEX(int_applic_begin_05m,,no_applic_copy)))) /(k_deg_copy*(K46:INDEX(int_applic_end_05m,,no_applic_copy)-K45:INDEX(int_applic_begin_05m,,no_applic_copy))), IF(((K45:INDEX(int_applic_begin_05m,,no_applic_copy)-K45)<twa_int_copy)+((K46:INDEX(int_applic_end_05m,,no_applic_copy)-K45)<=twa_int_copy), (K45+twa_int_copy-K45:INDEX(int_applic_begin_05m,,no_applic_copy)) *(1-EXP(-k_deg_copy*(K45+twa_int_copy-K45:INDEX(int_applic_begin_05m,,no_applic_copy)))) /(k_deg_copy*(K45+twa_int_copy-K45:INDEX(int_applic_begin_05m,,no_applic_copy))), 0) ) /twa_int_copy), "") ->  | L51: =IF(INDEX(actual_rate_05m,,COLUMN()-2)<>"", SUM(L47:INDEX(peak_amount_05m,,no_applic_copy) *IF(((L45:INDEX(int_applic_begin_05m,,no_applic_copy)-L45)<twa_int_copy)*((L46:INDEX(int_applic_end_05m,,no_applic_copy)-L45)<=twa_int_copy), (L46:INDEX(int_applic_end_05m,,no_applic_copy)-L45:INDEX(int_applic_begin_05m,,no_applic_copy)) *(1-EXP(-k_deg_copy*(L46:INDEX(int_applic_end_05m,,no_applic_copy)-L45:INDEX(int_applic_begin_05m,,no_applic_copy)))) /(k_deg_copy*(L46:INDEX(int_applic_end_05m,,no_applic_copy)-L45:INDEX(int_applic_begin_05m,,no_applic_copy))), IF(((L45:INDEX(int_applic_begin_05m,,no_applic_copy)-L45)<twa_int_copy)+((L46:INDEX(int_applic_end_05m,,no_applic_copy)-L45)<=twa_int_copy), (L45+twa_int_copy-L45:INDEX(int_applic_begin_05m,,no_applic_copy)) *(1-EXP(-k_deg_copy*(L45+twa_int_copy-L45:INDEX(int_applic_begin_05m,,no_applic_copy)))) /(k_deg_copy*(L45+twa_int_copy-L45:INDEX(int_applic_begin_05m,,no_applic_copy))), 0) ) /twa_int_copy), "") ->  | M51: =IF(INDEX(actual_rate_05m,,COLUMN()-2)<>"", SUM(M47:INDEX(peak_amount_05m,,no_applic_copy) *IF(((M45:INDEX(int_applic_begin_05m,,no_applic_copy)-M45)<twa_int_copy)*((M46:INDEX(int_applic_end_05m,,no_applic_copy)-M45)<=twa_int_copy), (M46:INDEX(int_applic_end_05m,,no_applic_copy)-M45:INDEX(int_applic_begin_05m,,no_applic_copy)) *(1-EXP(-k_deg_copy*(M46:INDEX(int_applic_end_05m,,no_applic_copy)-M45:INDEX(int_applic_begin_05m,,no_applic_copy)))) /(k_deg_copy*(M46:INDEX(int_applic_end_05m,,no_applic_copy)-M45:INDEX(int_applic_begin_05m,,no_applic_copy))), IF(((M45:INDEX(int_applic_begin_05m,,no_applic_copy)-M45)<twa_int_copy)+((M46:INDEX(int_applic_end_05m,,no_applic_copy)-M45)<=twa_int_copy), (M45+twa_int_copy-M45:INDEX(int_applic_begin_05m,,no_applic_copy)) *(1-EXP(-k_deg_copy*(M45+twa_int_copy-M45:INDEX(int_applic_begin_05m,,no_applic_copy)))) /(k_deg_copy*(M45+twa_int_copy-M45:INDEX(int_applic_begin_05m,,no_applic_copy))), 0) ) /twa_int_copy), "") ->  | N51: =IF(INDEX(actual_rate_05m,,COLUMN()-2)<>"", SUM(N47:INDEX(peak_amount_05m,,no_applic_copy) *IF(((N45:INDEX(int_applic_begin_05m,,no_applic_copy)-N45)<twa_int_copy)*((N46:INDEX(int_applic_end_05m,,no_applic_copy)-N45)<=twa_int_copy), (N46:INDEX(int_applic_end_05m,,no_applic_copy)-N45:INDEX(int_applic_begin_05m,,no_applic_copy)) *(1-EXP(-k_deg_copy*(N46:INDEX(int_applic_end_05m,,no_applic_copy)-N45:INDEX(int_applic_begin_05m,,no_applic_copy)))) /(k_deg_copy*(N46:INDEX(int_applic_end_05m,,no_applic_copy)-N45:INDEX(int_applic_begin_05m,,no_applic_copy))), IF(((N45:INDEX(int_applic_begin_05m,,no_applic_copy)-N45)<twa_int_copy)+((N46:INDEX(int_applic_end_05m,,no_applic_copy)-N45)<=twa_int_copy), (N45+twa_int_copy-N45:INDEX(int_applic_begin_05m,,no_applic_copy)) *(1-EXP(-k_deg_copy*(N45+twa_int_copy-N45:INDEX(int_applic_begin_05m,,no_applic_copy)))) /(k_deg_copy*(N45+twa_int_copy-N45:INDEX(int_applic_begin_05m,,no_applic_copy))), 0) ) /twa_int_copy), "") -> 
B53: max. peak amount | C53: =MAX(peak_amount_05m) -> 0.35875
B54: max. twa(sum) | C54: =MAX(twa_sum_05m) -> 0.2371084463
B57: 10 m distance
B58: begin interval | C58: =IF(interval_actual<>"",SUM(interval_actual1:INDEX(interval_actual,,COLUMN()-2))-interval_actual,IF(actual_rate_10m<>"",SUM(interval_actual1:INDEX(interval_actual,,COLUMN()-2)),"")) -> 0 | D58: 10 | E58: 20
B59: end interval | C59: =IF(interval_actual<>"",SUM(interval_actual1:INDEX(interval_actual,,COLUMN()-2)),IF(actual_rate_10m<>"",SUM(interval_actual1:INDEX(interval_actual,,COLUMN()-2))+twa_int_copy,"")) -> 10 | D59: 20 | E59: 41
B60: peak amount | C60: =IF(actual_rate_10m<>"",actual_rate_10m,"") -> 0.1 | D60: =IF(OFFSET(actual_rate_10m,,1)<>"",OFFSET(actual_rate_10m,,1)+final_amount_10m,"") -> 0.15 | E60: 0.175
B61: final amount | C61: =IF(actual_rate_10m<>"",peak_amount_10m*EXP(-k_deg_copy*IF(interval_actual<>"",interval_actual,twa_int_copy)),"") -> 0.05 | D61: 0.075 | E61: 0.04082019338
B63: twa calculation interval | C63: =IF(actual_rate_10m<>"",int_applic_begin_10m&"-"&int_applic_begin_10m+twa_int_copy&" d","") -> 0-21 d | D63: 10-31 d | E63: 20-41 d
B64: twa(sum) | C64: =IF(INDEX(actual_rate_10m,,COLUMN()-2)<>"", SUM(C60:INDEX(peak_amount_10m,,no_applic_copy) *IF(((C58:INDEX(int_applic_begin_10m,,no_applic_copy)-C58)<twa_int_copy)*((C59:INDEX(int_applic_end_10m,,no_applic_copy)-C58)<=twa_int_copy), (C59:INDEX(int_applic_end_10m,,no_applic_copy)-C58:INDEX(int_applic_begin_10m,,no_applic_copy)) *(1-EXP(-k_deg_copy*(C59:INDEX(int_applic_end_10m,,no_applic_copy)-C58:INDEX(int_applic_begin_10m,,no_applic_copy)))) /(k_deg_copy*(C59:INDEX(int_applic_end_10m,,no_applic_copy)-C58:INDEX(int_applic_begin_10m,,no_applic_copy))), IF(((C58:INDEX(int_applic_begin_10m,,no_applic_copy)-C58)<twa_int_copy)+((C59:INDEX(int_applic_end_10m,,no_applic_copy)-C58)<=twa_int_copy), (C58+twa_int_copy-C58:INDEX(int_applic_begin_10m,,no_applic_copy)) *(1-EXP(-k_deg_copy*(C58+twa_int_copy-C58:INDEX(int_applic_begin_10m,,no_applic_copy)))) /(k_deg_copy*(C58+twa_int_copy-C58:INDEX(int_applic_begin_10m,,no_applic_copy))), 0) ) /twa_int_copy), "") -> 0.09392578573 | D64: =IF(INDEX(actual_rate_10m,,COLUMN()-2)<>"", SUM(D60:INDEX(peak_amount_10m,,no_applic_copy) *IF(((D58:INDEX(int_applic_begin_10m,,no_applic_copy)-D58)<twa_int_copy)*((D59:INDEX(int_applic_end_10m,,no_applic_copy)-D58)<=twa_int_copy), (D59:INDEX(int_applic_end_10m,,no_applic_copy)-D58:INDEX(int_applic_begin_10m,,no_applic_copy)) *(1-EXP(-k_deg_copy*(D59:INDEX(int_applic_end_10m,,no_applic_copy)-D58:INDEX(int_applic_begin_10m,,no_applic_copy)))) /(k_deg_copy*(D59:INDEX(int_applic_end_10m,,no_applic_copy)-D58:INDEX(int_applic_begin_10m,,no_applic_copy))), IF(((D58:INDEX(int_applic_begin_10m,,no_applic_copy)-D58)<twa_int_copy)+((D59:INDEX(int_applic_end_10m,,no_applic_copy)-D58)<=twa_int_copy), (D58+twa_int_copy-D58:INDEX(int_applic_begin_10m,,no_applic_copy)) *(1-EXP(-k_deg_copy*(D58+twa_int_copy-D58:INDEX(int_applic_begin_10m,,no_applic_copy)))) /(k_deg_copy*(D58+twa_int_copy-D58:INDEX(int_applic_begin_10m,,no_applic_copy))), 0) ) /twa_int_copy), "") -> 0.1156626567 | E64: =IF(INDEX(actual_rate_10m,,COLUMN()-2)<>"", SUM(E60:INDEX(peak_amount_10m,,no_applic_copy) *IF(((E58:INDEX(int_applic_begin_10m,,no_applic_copy)-E58)<twa_int_copy)*((E59:INDEX(int_applic_end_10m,,no_applic_copy)-E58)<=twa_int_copy), (E59:INDEX(int_applic_end_10m,,no_applic_copy)-E58:INDEX(int_applic_begin_10m,,no_applic_copy)) *(1-EXP(-k_deg_copy*(E59:INDEX(int_applic_end_10m,,no_applic_copy)-E58:INDEX(int_applic_begin_10m,,no_applic_copy)))) /(k_deg_copy*(E59:INDEX(int_applic_end_10m,,no_applic_copy)-E58:INDEX(int_applic_begin_10m,,no_applic_copy))), IF(((E58:INDEX(int_applic_begin_10m,,no_applic_copy)-E58)<twa_int_copy)+((E59:INDEX(int_applic_end_10m,,no_applic_copy)-E58)<=twa_int_copy), (E58+twa_int_copy-E58:INDEX(int_applic_begin_10m,,no_applic_copy)) *(1-EXP(-k_deg_copy*(E58+twa_int_copy-E58:INDEX(int_applic_begin_10m,,no_applic_copy)))) /(k_deg_copy*(E58+twa_int_copy-E58:INDEX(int_applic_begin_10m,,no_applic_copy))), 0) ) /twa_int_copy), "") -> 0.09218121028 | F64: =IF(INDEX(actual_rate_10m,,COLUMN()-2)<>"", SUM(F60:INDEX(peak_amount_10m,,no_applic_copy) *IF(((F58:INDEX(int_applic_begin_10m,,no_applic_copy)-F58)<twa_int_copy)*((F59:INDEX(int_applic_end_10m,,no_applic_copy)-F58)<=twa_int_copy), (F59:INDEX(int_applic_end_10m,,no_applic_copy)-F58:INDEX(int_applic_begin_10m,,no_applic_copy)) *(1-EXP(-k_deg_copy*(F59:INDEX(int_applic_end_10m,,no_applic_copy)-F58:INDEX(int_applic_begin_10m,,no_applic_copy)))) /(k_deg_copy*(F59:INDEX(int_applic_end_10m,,no_applic_copy)-F58:INDEX(int_applic_begin_10m,,no_applic_copy))), IF(((F58:INDEX(int_applic_begin_10m,,no_applic_copy)-F58)<twa_int_copy)+((F59:INDEX(int_applic_end_10m,,no_applic_copy)-F58)<=twa_int_copy), (F58+twa_int_copy-F58:INDEX(int_applic_begin_10m,,no_applic_copy)) *(1-EXP(-k_deg_copy*(F58+twa_int_copy-F58:INDEX(int_applic_begin_10m,,no_applic_copy)))) /(k_deg_copy*(F58+twa_int_copy-F58:INDEX(int_applic_begin_10m,,no_applic_copy))), 0) ) /twa_int_copy), "") ->  | G64: =IF(INDEX(actual_rate_10m,,COLUMN()-2)<>"", SUM(G60:INDEX(peak_amount_10m,,no_applic_copy) *IF(((G58:INDEX(int_applic_begin_10m,,no_applic_copy)-G58)<twa_int_copy)*((G59:INDEX(int_applic_end_10m,,no_applic_copy)-G58)<=twa_int_copy), (G59:INDEX(int_applic_end_10m,,no_applic_copy)-G58:INDEX(int_applic_begin_10m,,no_applic_copy)) *(1-EXP(-k_deg_copy*(G59:INDEX(int_applic_end_10m,,no_applic_copy)-G58:INDEX(int_applic_begin_10m,,no_applic_copy)))) /(k_deg_copy*(G59:INDEX(int_applic_end_10m,,no_applic_copy)-G58:INDEX(int_applic_begin_10m,,no_applic_copy))), IF(((G58:INDEX(int_applic_begin_10m,,no_applic_copy)-G58)<twa_int_copy)+((G59:INDEX(int_applic_end_10m,,no_applic_copy)-G58)<=twa_int_copy), (G58+twa_int_copy-G58:INDEX(int_applic_begin_10m,,no_applic_copy)) *(1-EXP(-k_deg_copy*(G58+twa_int_copy-G58:INDEX(int_applic_begin_10m,,no_applic_copy)))) /(k_deg_copy*(G58+twa_int_copy-G58:INDEX(int_applic_begin_10m,,no_applic_copy))), 0) ) /twa_int_copy), "") ->  | H64: =IF(INDEX(actual_rate_10m,,COLUMN()-2)<>"", SUM(H60:INDEX(peak_amount_10m,,no_applic_copy) *IF(((H58:INDEX(int_applic_begin_10m,,no_applic_copy)-H58)<twa_int_copy)*((H59:INDEX(int_applic_end_10m,,no_applic_copy)-H58)<=twa_int_copy), (H59:INDEX(int_applic_end_10m,,no_applic_copy)-H58:INDEX(int_applic_begin_10m,,no_applic_copy)) *(1-EXP(-k_deg_copy*(H59:INDEX(int_applic_end_10m,,no_applic_copy)-H58:INDEX(int_applic_begin_10m,,no_applic_copy)))) /(k_deg_copy*(H59:INDEX(int_applic_end_10m,,no_applic_copy)-H58:INDEX(int_applic_begin_10m,,no_applic_copy))), IF(((H58:INDEX(int_applic_begin_10m,,no_applic_copy)-H58)<twa_int_copy)+((H59:INDEX(int_applic_end_10m,,no_applic_copy)-H58)<=twa_int_copy), (H58+twa_int_copy-H58:INDEX(int_applic_begin_10m,,no_applic_copy)) *(1-EXP(-k_deg_copy*(H58+twa_int_copy-H58:INDEX(int_applic_begin_10m,,no_applic_copy)))) /(k_deg_copy*(H58+twa_int_copy-H58:INDEX(int_applic_begin_10m,,no_applic_copy))), 0) ) /twa_int_copy), "") ->  | I64: =IF(INDEX(actual_rate_10m,,COLUMN()-2)<>"", SUM(I60:INDEX(peak_amount_10m,,no_applic_copy) *IF(((I58:INDEX(int_applic_begin_10m,,no_applic_copy)-I58)<twa_int_copy)*((I59:INDEX(int_applic_end_10m,,no_applic_copy)-I58)<=twa_int_copy), (I59:INDEX(int_applic_end_10m,,no_applic_copy)-I58:INDEX(int_applic_begin_10m,,no_applic_copy)) *(1-EXP(-k_deg_copy*(I59:INDEX(int_applic_end_10m,,no_applic_copy)-I58:INDEX(int_applic_begin_10m,,no_applic_copy)))) /(k_deg_copy*(I59:INDEX(int_applic_end_10m,,no_applic_copy)-I58:INDEX(int_applic_begin_10m,,no_applic_copy))), IF(((I58:INDEX(int_applic_begin_10m,,no_applic_copy)-I58)<twa_int_copy)+((I59:INDEX(int_applic_end_10m,,no_applic_copy)-I58)<=twa_int_copy), (I58+twa_int_copy-I58:INDEX(int_applic_begin_10m,,no_applic_copy)) *(1-EXP(-k_deg_copy*(I58+twa_int_copy-I58:INDEX(int_applic_begin_10m,,no_applic_copy)))) /(k_deg_copy*(I58+twa_int_copy-I58:INDEX(int_applic_begin_10m,,no_applic_copy))), 0) ) /twa_int_copy), "") ->  | J64: =IF(INDEX(actual_rate_10m,,COLUMN()-2)<>"", SUM(J60:INDEX(peak_amount_10m,,no_applic_copy) *IF(((J58:INDEX(int_applic_begin_10m,,no_applic_copy)-J58)<twa_int_copy)*((J59:INDEX(int_applic_end_10m,,no_applic_copy)-J58)<=twa_int_copy), (J59:INDEX(int_applic_end_10m,,no_applic_copy)-J58:INDEX(int_applic_begin_10m,,no_applic_copy)) *(1-EXP(-k_deg_copy*(J59:INDEX(int_applic_end_10m,,no_applic_copy)-J58:INDEX(int_applic_begin_10m,,no_applic_copy)))) /(k_deg_copy*(J59:INDEX(int_applic_end_10m,,no_applic_copy)-J58:INDEX(int_applic_begin_10m,,no_applic_copy))), IF(((J58:INDEX(int_applic_begin_10m,,no_applic_copy)-J58)<twa_int_copy)+((J59:INDEX(int_applic_end_10m,,no_applic_copy)-J58)<=twa_int_copy), (J58+twa_int_copy-J58:INDEX(int_applic_begin_10m,,no_applic_copy)) *(1-EXP(-k_deg_copy*(J58+twa_int_copy-J58:INDEX(int_applic_begin_10m,,no_applic_copy)))) /(k_deg_copy*(J58+twa_int_copy-J58:INDEX(int_applic_begin_10m,,no_applic_copy))), 0) ) /twa_int_copy), "") ->  | K64: =IF(INDEX(actual_rate_10m,,COLUMN()-2)<>"", SUM(K60:INDEX(peak_amount_10m,,no_applic_copy) *IF(((K58:INDEX(int_applic_begin_10m,,no_applic_copy)-K58)<twa_int_copy)*((K59:INDEX(int_applic_end_10m,,no_applic_copy)-K58)<=twa_int_copy), (K59:INDEX(int_applic_end_10m,,no_applic_copy)-K58:INDEX(int_applic_begin_10m,,no_applic_copy)) *(1-EXP(-k_deg_copy*(K59:INDEX(int_applic_end_10m,,no_applic_copy)-K58:INDEX(int_applic_begin_10m,,no_applic_copy)))) /(k_deg_copy*(K59:INDEX(int_applic_end_10m,,no_applic_copy)-K58:INDEX(int_applic_begin_10m,,no_applic_copy))), IF(((K58:INDEX(int_applic_begin_10m,,no_applic_copy)-K58)<twa_int_copy)+((K59:INDEX(int_applic_end_10m,,no_applic_copy)-K58)<=twa_int_copy), (K58+twa_int_copy-K58:INDEX(int_applic_begin_10m,,no_applic_copy)) *(1-EXP(-k_deg_copy*(K58+twa_int_copy-K58:INDEX(int_applic_begin_10m,,no_applic_copy)))) /(k_deg_copy*(K58+twa_int_copy-K58:INDEX(int_applic_begin_10m,,no_applic_copy))), 0) ) /twa_int_copy), "") ->  | L64: =IF(INDEX(actual_rate_10m,,COLUMN()-2)<>"", SUM(L60:INDEX(peak_amount_10m,,no_applic_copy) *IF(((L58:INDEX(int_applic_begin_10m,,no_applic_copy)-L58)<twa_int_copy)*((L59:INDEX(int_applic_end_10m,,no_applic_copy)-L58)<=twa_int_copy), (L59:INDEX(int_applic_end_10m,,no_applic_copy)-L58:INDEX(int_applic_begin_10m,,no_applic_copy)) *(1-EXP(-k_deg_copy*(L59:INDEX(int_applic_end_10m,,no_applic_copy)-L58:INDEX(int_applic_begin_10m,,no_applic_copy)))) /(k_deg_copy*(L59:INDEX(int_applic_end_10m,,no_applic_copy)-L58:INDEX(int_applic_begin_10m,,no_applic_copy))), IF(((L58:INDEX(int_applic_begin_10m,,no_applic_copy)-L58)<twa_int_copy)+((L59:INDEX(int_applic_end_10m,,no_applic_copy)-L58)<=twa_int_copy), (L58+twa_int_copy-L58:INDEX(int_applic_begin_10m,,no_applic_copy)) *(1-EXP(-k_deg_copy*(L58+twa_int_copy-L58:INDEX(int_applic_begin_10m,,no_applic_copy)))) /(k_deg_copy*(L58+twa_int_copy-L58:INDEX(int_applic_begin_10m,,no_applic_copy))), 0) ) /twa_int_copy), "") ->  | M64: =IF(INDEX(actual_rate_10m,,COLUMN()-2)<>"", SUM(M60:INDEX(peak_amount_10m,,no_applic_copy) *IF(((M58:INDEX(int_applic_begin_10m,,no_applic_copy)-M58)<twa_int_copy)*((M59:INDEX(int_applic_end_10m,,no_applic_copy)-M58)<=twa_int_copy), (M59:INDEX(int_applic_end_10m,,no_applic_copy)-M58:INDEX(int_applic_begin_10m,,no_applic_copy)) *(1-EXP(-k_deg_copy*(M59:INDEX(int_applic_end_10m,,no_applic_copy)-M58:INDEX(int_applic_begin_10m,,no_applic_copy)))) /(k_deg_copy*(M59:INDEX(int_applic_end_10m,,no_applic_copy)-M58:INDEX(int_applic_begin_10m,,no_applic_copy))), IF(((M58:INDEX(int_applic_begin_10m,,no_applic_copy)-M58)<twa_int_copy)+((M59:INDEX(int_applic_end_10m,,no_applic_copy)-M58)<=twa_int_copy), (M58+twa_int_copy-M58:INDEX(int_applic_begin_10m,,no_applic_copy)) *(1-EXP(-k_deg_copy*(M58+twa_int_copy-M58:INDEX(int_applic_begin_10m,,no_applic_copy)))) /(k_deg_copy*(M58+twa_int_copy-M58:INDEX(int_applic_begin_10m,,no_applic_copy))), 0) ) /twa_int_copy), "") ->  | N64: =IF(INDEX(actual_rate_10m,,COLUMN()-2)<>"", SUM(N60:INDEX(peak_amount_10m,,no_applic_copy) *IF(((N58:INDEX(int_applic_begin_10m,,no_applic_copy)-N58)<twa_int_copy)*((N59:INDEX(int_applic_end_10m,,no_applic_copy)-N58)<=twa_int_copy), (N59:INDEX(int_applic_end_10m,,no_applic_copy)-N58:INDEX(int_applic_begin_10m,,no_applic_copy)) *(1-EXP(-k_deg_copy*(N59:INDEX(int_applic_end_10m,,no_applic_copy)-N58:INDEX(int_applic_begin_10m,,no_applic_copy)))) /(k_deg_copy*(N59:INDEX(int_applic_end_10m,,no_applic_copy)-N58:INDEX(int_applic_begin_10m,,no_applic_copy))), IF(((N58:INDEX(int_applic_begin_10m,,no_applic_copy)-N58)<twa_int_copy)+((N59:INDEX(int_applic_end_10m,,no_applic_copy)-N58)<=twa_int_copy), (N58+twa_int_copy-N58:INDEX(int_applic_begin_10m,,no_applic_copy)) *(1-EXP(-k_deg_copy*(N58+twa_int_copy-N58:INDEX(int_applic_begin_10m,,no_applic_copy)))) /(k_deg_copy*(N58+twa_int_copy-N58:INDEX(int_applic_begin_10m,,no_applic_copy))), 0) ) /twa_int_copy), "") -> 
B66: max. peak amount | C66: =MAX(peak_amount_10m) -> 0.175
B67: max. twa(sum) | C67: =MAX(twa_sum_10m) -> 0.1156626567
B70: 15 m distance
B71: begin interval | C71: =IF(interval_actual<>"",SUM(interval_actual1:INDEX(interval_actual,,COLUMN()-2))-interval_actual,IF(actual_rate_15m<>"",SUM(interval_actual1:INDEX(interval_actual,,COLUMN()-2)),"")) -> 0 | D71: 10 | E71: 20
B72: end interval | C72: =IF(interval_actual<>"",SUM(interval_actual1:INDEX(interval_actual,,COLUMN()-2)),IF(actual_rate_15m<>"",SUM(interval_actual1:INDEX(interval_actual,,COLUMN()-2))+twa_int_copy,"")) -> 10 | D72: 20 | E72: 41
B73: peak amount | C73: =IF(actual_rate_15m<>"",actual_rate_15m,"") -> 0.07 | D73: =IF(OFFSET(actual_rate_15m,,1)<>"",OFFSET(actual_rate_15m,,1)+final_amount_15m,"") -> 0.105 | E73: 0.1225
B74: final amount | C74: =IF(actual_rate_15m<>"",peak_amount_15m*EXP(-k_deg_copy*IF(interval_actual<>"",interval_actual,twa_int_copy)),"") -> 0.035 | D74: 0.0525 | E74: 0.02857413537
B76: twa calculation interval | C76: =IF(actual_rate_15m<>"",int_applic_begin_15m&"-"&int_applic_begin_15m+twa_int_copy&" d","") -> 0-21 d | D76: 10-31 d | E76: 20-41 d
B77: twa(sum) | C77: =IF(INDEX(actual_rate_15m,,COLUMN()-2)<>"", SUM(C73:INDEX(peak_amount_15m,,no_applic_copy) *IF(((C71:INDEX(int_applic_begin_15m,,no_applic_copy)-C71)<twa_int_copy)*((C72:INDEX(int_applic_end_15m,,no_applic_copy)-C71)<=twa_int_copy), (C72:INDEX(int_applic_end_15m,,no_applic_copy)-C71:INDEX(int_applic_begin_15m,,no_applic_copy)) *(1-EXP(-k_deg_copy*(C72:INDEX(int_applic_end_15m,,no_applic_copy)-C71:INDEX(int_applic_begin_15m,,no_applic_copy)))) /(k_deg_copy*(C72:INDEX(int_applic_end_15m,,no_applic_copy)-C71:INDEX(int_applic_begin_15m,,no_applic_copy))), IF(((C71:INDEX(int_applic_begin_15m,,no_applic_copy)-C71)<twa_int_copy)+((C72:INDEX(int_applic_end_15m,,no_applic_copy)-C71)<=twa_int_copy), (C71+twa_int_copy-C71:INDEX(int_applic_begin_15m,,no_applic_copy)) *(1-EXP(-k_deg_copy*(C71+twa_int_copy-C71:INDEX(int_applic_begin_15m,,no_applic_copy)))) /(k_deg_copy*(C71+twa_int_copy-C71:INDEX(int_applic_begin_15m,,no_applic_copy))), 0) ) /twa_int_copy), "") -> 0.06574805001 | D77: =IF(INDEX(actual_rate_15m,,COLUMN()-2)<>"", SUM(D73:INDEX(peak_amount_15m,,no_applic_copy) *IF(((D71:INDEX(int_applic_begin_15m,,no_applic_copy)-D71)<twa_int_copy)*((D72:INDEX(int_applic_end_15m,,no_applic_copy)-D71)<=twa_int_copy), (D72:INDEX(int_applic_end_15m,,no_applic_copy)-D71:INDEX(int_applic_begin_15m,,no_applic_copy)) *(1-EXP(-k_deg_copy*(D72:INDEX(int_applic_end_15m,,no_applic_copy)-D71:INDEX(int_applic_begin_15m,,no_applic_copy)))) /(k_deg_copy*(D72:INDEX(int_applic_end_15m,,no_applic_copy)-D71:INDEX(int_applic_begin_15m,,no_applic_copy))), IF(((D71:INDEX(int_applic_begin_15m,,no_applic_copy)-D71)<twa_int_copy)+((D72:INDEX(int_applic_end_15m,,no_applic_copy)-D71)<=twa_int_copy), (D71+twa_int_copy-D71:INDEX(int_applic_begin_15m,,no_applic_copy)) *(1-EXP(-k_deg_copy*(D71+twa_int_copy-D71:INDEX(int_applic_begin_15m,,no_applic_copy)))) /(k_deg_copy*(D71+twa_int_copy-D71:INDEX(int_applic_begin_15m,,no_applic_copy))), 0) ) /twa_int_copy), "") -> 0.0809638597 | E77: =IF(INDEX(actual_rate_15m,,COLUMN()-2)<>"", SUM(E73:INDEX(peak_amount_15m,,no_applic_copy) *IF(((E71:INDEX(int_applic_begin_15m,,no_applic_copy)-E71)<twa_int_copy)*((E72:INDEX(int_applic_end_15m,,no_applic_copy)-E71)<=twa_int_copy), (E72:INDEX(int_applic_end_15m,,no_applic_copy)-E71:INDEX(int_applic_begin_15m,,no_applic_copy)) *(1-EXP(-k_deg_copy*(E72:INDEX(int_applic_end_15m,,no_applic_copy)-E71:INDEX(int_applic_begin_15m,,no_applic_copy)))) /(k_deg_copy*(E72:INDEX(int_applic_end_15m,,no_applic_copy)-E71:INDEX(int_applic_begin_15m,,no_applic_copy))), IF(((E71:INDEX(int_applic_begin_15m,,no_applic_copy)-E71)<twa_int_copy)+((E72:INDEX(int_applic_end_15m,,no_applic_copy)-E71)<=twa_int_copy), (E71+twa_int_copy-E71:INDEX(int_applic_begin_15m,,no_applic_copy)) *(1-EXP(-k_deg_copy*(E71+twa_int_copy-E71:INDEX(int_applic_begin_15m,,no_applic_copy)))) /(k_deg_copy*(E71+twa_int_copy-E71:INDEX(int_applic_begin_15m,,no_applic_copy))), 0) ) /twa_int_copy), "") -> 0.0645268472 | F77: =IF(INDEX(actual_rate_15m,,COLUMN()-2)<>"", SUM(F73:INDEX(peak_amount_15m,,no_applic_copy) *IF(((F71:INDEX(int_applic_begin_15m,,no_applic_copy)-F71)<twa_int_copy)*((F72:INDEX(int_applic_end_15m,,no_applic_copy)-F71)<=twa_int_copy), (F72:INDEX(int_applic_end_15m,,no_applic_copy)-F71:INDEX(int_applic_begin_15m,,no_applic_copy)) *(1-EXP(-k_deg_copy*(F72:INDEX(int_applic_end_15m,,no_applic_copy)-F71:INDEX(int_applic_begin_15m,,no_applic_copy)))) /(k_deg_copy*(F72:INDEX(int_applic_end_15m,,no_applic_copy)-F71:INDEX(int_applic_begin_15m,,no_applic_copy))), IF(((F71:INDEX(int_applic_begin_15m,,no_applic_copy)-F71)<twa_int_copy)+((F72:INDEX(int_applic_end_15m,,no_applic_copy)-F71)<=twa_int_copy), (F71+twa_int_copy-F71:INDEX(int_applic_begin_15m,,no_applic_copy)) *(1-EXP(-k_deg_copy*(F71+twa_int_copy-F71:INDEX(int_applic_begin_15m,,no_applic_copy)))) /(k_deg_copy*(F71+twa_int_copy-F71:INDEX(int_applic_begin_15m,,no_applic_copy))), 0) ) /twa_int_copy), "") ->  | G77: =IF(INDEX(actual_rate_15m,,COLUMN()-2)<>"", SUM(G73:INDEX(peak_amount_15m,,no_applic_copy) *IF(((G71:INDEX(int_applic_begin_15m,,no_applic_copy)-G71)<twa_int_copy)*((G72:INDEX(int_applic_end_15m,,no_applic_copy)-G71)<=twa_int_copy), (G72:INDEX(int_applic_end_15m,,no_applic_copy)-G71:INDEX(int_applic_begin_15m,,no_applic_copy)) *(1-EXP(-k_deg_copy*(G72:INDEX(int_applic_end_15m,,no_applic_copy)-G71:INDEX(int_applic_begin_15m,,no_applic_copy)))) /(k_deg_copy*(G72:INDEX(int_applic_end_15m,,no_applic_copy)-G71:INDEX(int_applic_begin_15m,,no_applic_copy))), IF(((G71:INDEX(int_applic_begin_15m,,no_applic_copy)-G71)<twa_int_copy)+((G72:INDEX(int_applic_end_15m,,no_applic_copy)-G71)<=twa_int_copy), (G71+twa_int_copy-G71:INDEX(int_applic_begin_15m,,no_applic_copy)) *(1-EXP(-k_deg_copy*(G71+twa_int_copy-G71:INDEX(int_applic_begin_15m,,no_applic_copy)))) /(k_deg_copy*(G71+twa_int_copy-G71:INDEX(int_applic_begin_15m,,no_applic_copy))), 0) ) /twa_int_copy), "") ->  | H77: =IF(INDEX(actual_rate_15m,,COLUMN()-2)<>"", SUM(H73:INDEX(peak_amount_15m,,no_applic_copy) *IF(((H71:INDEX(int_applic_begin_15m,,no_applic_copy)-H71)<twa_int_copy)*((H72:INDEX(int_applic_end_15m,,no_applic_copy)-H71)<=twa_int_copy), (H72:INDEX(int_applic_end_15m,,no_applic_copy)-H71:INDEX(int_applic_begin_15m,,no_applic_copy)) *(1-EXP(-k_deg_copy*(H72:INDEX(int_applic_end_15m,,no_applic_copy)-H71:INDEX(int_applic_begin_15m,,no_applic_copy)))) /(k_deg_copy*(H72:INDEX(int_applic_end_15m,,no_applic_copy)-H71:INDEX(int_applic_begin_15m,,no_applic_copy))), IF(((H71:INDEX(int_applic_begin_15m,,no_applic_copy)-H71)<twa_int_copy)+((H72:INDEX(int_applic_end_15m,,no_applic_copy)-H71)<=twa_int_copy), (H71+twa_int_copy-H71:INDEX(int_applic_begin_15m,,no_applic_copy)) *(1-EXP(-k_deg_copy*(H71+twa_int_copy-H71:INDEX(int_applic_begin_15m,,no_applic_copy)))) /(k_deg_copy*(H71+twa_int_copy-H71:INDEX(int_applic_begin_15m,,no_applic_copy))), 0) ) /twa_int_copy), "") ->  | I77: =IF(INDEX(actual_rate_15m,,COLUMN()-2)<>"", SUM(I73:INDEX(peak_amount_15m,,no_applic_copy) *IF(((I71:INDEX(int_applic_begin_15m,,no_applic_copy)-I71)<twa_int_copy)*((I72:INDEX(int_applic_end_15m,,no_applic_copy)-I71)<=twa_int_copy), (I72:INDEX(int_applic_end_15m,,no_applic_copy)-I71:INDEX(int_applic_begin_15m,,no_applic_copy)) *(1-EXP(-k_deg_copy*(I72:INDEX(int_applic_end_15m,,no_applic_copy)-I71:INDEX(int_applic_begin_15m,,no_applic_copy)))) /(k_deg_copy*(I72:INDEX(int_applic_end_15m,,no_applic_copy)-I71:INDEX(int_applic_begin_15m,,no_applic_copy))), IF(((I71:INDEX(int_applic_begin_15m,,no_applic_copy)-I71)<twa_int_copy)+((I72:INDEX(int_applic_end_15m,,no_applic_copy)-I71)<=twa_int_copy), (I71+twa_int_copy-I71:INDEX(int_applic_begin_15m,,no_applic_copy)) *(1-EXP(-k_deg_copy*(I71+twa_int_copy-I71:INDEX(int_applic_begin_15m,,no_applic_copy)))) /(k_deg_copy*(I71+twa_int_copy-I71:INDEX(int_applic_begin_15m,,no_applic_copy))), 0) ) /twa_int_copy), "") ->  | J77: =IF(INDEX(actual_rate_15m,,COLUMN()-2)<>"", SUM(J73:INDEX(peak_amount_15m,,no_applic_copy) *IF(((J71:INDEX(int_applic_begin_15m,,no_applic_copy)-J71)<twa_int_copy)*((J72:INDEX(int_applic_end_15m,,no_applic_copy)-J71)<=twa_int_copy), (J72:INDEX(int_applic_end_15m,,no_applic_copy)-J71:INDEX(int_applic_begin_15m,,no_applic_copy)) *(1-EXP(-k_deg_copy*(J72:INDEX(int_applic_end_15m,,no_applic_copy)-J71:INDEX(int_applic_begin_15m,,no_applic_copy)))) /(k_deg_copy*(J72:INDEX(int_applic_end_15m,,no_applic_copy)-J71:INDEX(int_applic_begin_15m,,no_applic_copy))), IF(((J71:INDEX(int_applic_begin_15m,,no_applic_copy)-J71)<twa_int_copy)+((J72:INDEX(int_applic_end_15m,,no_applic_copy)-J71)<=twa_int_copy), (J71+twa_int_copy-J71:INDEX(int_applic_begin_15m,,no_applic_copy)) *(1-EXP(-k_deg_copy*(J71+twa_int_copy-J71:INDEX(int_applic_begin_15m,,no_applic_copy)))) /(k_deg_copy*(J71+twa_int_copy-J71:INDEX(int_applic_begin_15m,,no_applic_copy))), 0) ) /twa_int_copy), "") ->  | K77: =IF(INDEX(actual_rate_15m,,COLUMN()-2)<>"", SUM(K73:INDEX(peak_amount_15m,,no_applic_copy) *IF(((K71:INDEX(int_applic_begin_15m,,no_applic_copy)-K71)<twa_int_copy)*((K72:INDEX(int_applic_end_15m,,no_applic_copy)-K71)<=twa_int_copy), (K72:INDEX(int_applic_end_15m,,no_applic_copy)-K71:INDEX(int_applic_begin_15m,,no_applic_copy)) *(1-EXP(-k_deg_copy*(K72:INDEX(int_applic_end_15m,,no_applic_copy)-K71:INDEX(int_applic_begin_15m,,no_applic_copy)))) /(k_deg_copy*(K72:INDEX(int_applic_end_15m,,no_applic_copy)-K71:INDEX(int_applic_begin_15m,,no_applic_copy))), IF(((K71:INDEX(int_applic_begin_15m,,no_applic_copy)-K71)<twa_int_copy)+((K72:INDEX(int_applic_end_15m,,no_applic_copy)-K71)<=twa_int_copy), (K71+twa_int_copy-K71:INDEX(int_applic_begin_15m,,no_applic_copy)) *(1-EXP(-k_deg_copy*(K71+twa_int_copy-K71:INDEX(int_applic_begin_15m,,no_applic_copy)))) /(k_deg_copy*(K71+twa_int_copy-K71:INDEX(int_applic_begin_15m,,no_applic_copy))), 0) ) /twa_int_copy), "") ->  | L77: =IF(INDEX(actual_rate_15m,,COLUMN()-2)<>"", SUM(L73:INDEX(peak_amount_15m,,no_applic_copy) *IF(((L71:INDEX(int_applic_begin_15m,,no_applic_copy)-L71)<twa_int_copy)*((L72:INDEX(int_applic_end_15m,,no_applic_copy)-L71)<=twa_int_copy), (L72:INDEX(int_applic_end_15m,,no_applic_copy)-L71:INDEX(int_applic_begin_15m,,no_applic_copy)) *(1-EXP(-k_deg_copy*(L72:INDEX(int_applic_end_15m,,no_applic_copy)-L71:INDEX(int_applic_begin_15m,,no_applic_copy)))) /(k_deg_copy*(L72:INDEX(int_applic_end_15m,,no_applic_copy)-L71:INDEX(int_applic_begin_15m,,no_applic_copy))), IF(((L71:INDEX(int_applic_begin_15m,,no_applic_copy)-L71)<twa_int_copy)+((L72:INDEX(int_applic_end_15m,,no_applic_copy)-L71)<=twa_int_copy), (L71+twa_int_copy-L71:INDEX(int_applic_begin_15m,,no_applic_copy)) *(1-EXP(-k_deg_copy*(L71+twa_int_copy-L71:INDEX(int_applic_begin_15m,,no_applic_copy)))) /(k_deg_copy*(L71+twa_int_copy-L71:INDEX(int_applic_begin_15m,,no_applic_copy))), 0) ) /twa_int_copy), "") ->  | M77: =IF(INDEX(actual_rate_15m,,COLUMN()-2)<>"", SUM(M73:INDEX(peak_amount_15m,,no_applic_copy) *IF(((M71:INDEX(int_applic_begin_15m,,no_applic_copy)-M71)<twa_int_copy)*((M72:INDEX(int_applic_end_15m,,no_applic_copy)-M71)<=twa_int_copy), (M72:INDEX(int_applic_end_15m,,no_applic_copy)-M71:INDEX(int_applic_begin_15m,,no_applic_copy)) *(1-EXP(-k_deg_copy*(M72:INDEX(int_applic_end_15m,,no_applic_copy)-M71:INDEX(int_applic_begin_15m,,no_applic_copy)))) /(k_deg_copy*(M72:INDEX(int_applic_end_15m,,no_applic_copy)-M71:INDEX(int_applic_begin_15m,,no_applic_copy))), IF(((M71:INDEX(int_applic_begin_15m,,no_applic_copy)-M71)<twa_int_copy)+((M72:INDEX(int_applic_end_15m,,no_applic_copy)-M71)<=twa_int_copy), (M71+twa_int_copy-M71:INDEX(int_applic_begin_15m,,no_applic_copy)) *(1-EXP(-k_deg_copy*(M71+twa_int_copy-M71:INDEX(int_applic_begin_15m,,no_applic_copy)))) /(k_deg_copy*(M71+twa_int_copy-M71:INDEX(int_applic_begin_15m,,no_applic_copy))), 0) ) /twa_int_copy), "") ->  | N77: =IF(INDEX(actual_rate_15m,,COLUMN()-2)<>"", SUM(N73:INDEX(peak_amount_15m,,no_applic_copy) *IF(((N71:INDEX(int_applic_begin_15m,,no_applic_copy)-N71)<twa_int_copy)*((N72:INDEX(int_applic_end_15m,,no_applic_copy)-N71)<=twa_int_copy), (N72:INDEX(int_applic_end_15m,,no_applic_copy)-N71:INDEX(int_applic_begin_15m,,no_applic_copy)) *(1-EXP(-k_deg_copy*(N72:INDEX(int_applic_end_15m,,no_applic_copy)-N71:INDEX(int_applic_begin_15m,,no_applic_copy)))) /(k_deg_copy*(N72:INDEX(int_applic_end_15m,,no_applic_copy)-N71:INDEX(int_applic_begin_15m,,no_applic_copy))), IF(((N71:INDEX(int_applic_begin_15m,,no_applic_copy)-N71)<twa_int_copy)+((N72:INDEX(int_applic_end_15m,,no_applic_copy)-N71)<=twa_int_copy), (N71+twa_int_copy-N71:INDEX(int_applic_begin_15m,,no_applic_copy)) *(1-EXP(-k_deg_copy*(N71+twa_int_copy-N71:INDEX(int_applic_begin_15m,,no_applic_copy)))) /(k_deg_copy*(N71+twa_int_copy-N71:INDEX(int_applic_begin_15m,,no_applic_copy))), 0) ) /twa_int_copy), "") -> 
B79: max. peak amount | C79: =MAX(peak_amount_15m) -> 0.1225
B80: max. twa(sum) | C80: =MAX(twa_sum_15m) -> 0.0809638597
B83: 20 m distance
B84: begin interval | C84: =IF(interval_actual<>"",SUM(interval_actual1:INDEX(interval_actual,,COLUMN()-2))-interval_actual,IF(actual_rate_20m<>"",SUM(interval_actual1:INDEX(interval_actual,,COLUMN()-2)),"")) -> 0 | D84: 10 | E84: 20
B85: end interval | C85: =IF(interval_actual<>"",SUM(interval_actual1:INDEX(interval_actual,,COLUMN()-2)),IF(actual_rate_20m<>"",SUM(interval_actual1:INDEX(interval_actual,,COLUMN()-2))+twa_int_copy,"")) -> 10 | D85: 20 | E85: 41
B86: peak amount | C86: =IF(actual_rate_20m<>"",actual_rate_20m,"") -> 0.05 | D86: =IF(OFFSET(actual_rate_20m,,1)<>"",OFFSET(actual_rate_20m,,1)+final_amount_20m,"") -> 0.075 | E86: 0.0875
B87: final amount | C87: =IF(actual_rate_20m<>"",peak_amount_20m*EXP(-k_deg_copy*IF(interval_actual<>"",interval_actual,twa_int_copy)),"") -> 0.025 | D87: 0.0375 | E87: 0.02041009669
B89: twa calculation interval | C89: =IF(actual_rate_20m<>"",int_applic_begin_20m&"-"&int_applic_begin_20m+twa_int_copy&" d","") -> 0-21 d | D89: 10-31 d | E89: 20-41 d
B90: twa(sum) | C90: =IF(INDEX(actual_rate_20m,,COLUMN()-2)<>"", SUM(C86:INDEX(peak_amount_20m,,no_applic_copy) *IF(((C84:INDEX(int_applic_begin_20m,,no_applic_copy)-C84)<twa_int_copy)*((C85:INDEX(int_applic_end_20m,,no_applic_copy)-C84)<=twa_int_copy), (C85:INDEX(int_applic_end_20m,,no_applic_copy)-C84:INDEX(int_applic_begin_20m,,no_applic_copy)) *(1-EXP(-k_deg_copy*(C85:INDEX(int_applic_end_20m,,no_applic_copy)-C84:INDEX(int_applic_begin_20m,,no_applic_copy)))) /(k_deg_copy*(C85:INDEX(int_applic_end_20m,,no_applic_copy)-C84:INDEX(int_applic_begin_20m,,no_applic_copy))), IF(((C84:INDEX(int_applic_begin_20m,,no_applic_copy)-C84)<twa_int_copy)+((C85:INDEX(int_applic_end_20m,,no_applic_copy)-C84)<=twa_int_copy), (C84+twa_int_copy-C84:INDEX(int_applic_begin_20m,,no_applic_copy)) *(1-EXP(-k_deg_copy*(C84+twa_int_copy-C84:INDEX(int_applic_begin_20m,,no_applic_copy)))) /(k_deg_copy*(C84+twa_int_copy-C84:INDEX(int_applic_begin_20m,,no_applic_copy))), 0) ) /twa_int_copy), "") -> 0.04696289287 | D90: =IF(INDEX(actual_rate_20m,,COLUMN()-2)<>"", SUM(D86:INDEX(peak_amount_20m,,no_applic_copy) *IF(((D84:INDEX(int_applic_begin_20m,,no_applic_copy)-D84)<twa_int_copy)*((D85:INDEX(int_applic_end_20m,,no_applic_copy)-D84)<=twa_int_copy), (D85:INDEX(int_applic_end_20m,,no_applic_copy)-D84:INDEX(int_applic_begin_20m,,no_applic_copy)) *(1-EXP(-k_deg_copy*(D85:INDEX(int_applic_end_20m,,no_applic_copy)-D84:INDEX(int_applic_begin_20m,,no_applic_copy)))) /(k_deg_copy*(D85:INDEX(int_applic_end_20m,,no_applic_copy)-D84:INDEX(int_applic_begin_20m,,no_applic_copy))), IF(((D84:INDEX(int_applic_begin_20m,,no_applic_copy)-D84)<twa_int_copy)+((D85:INDEX(int_applic_end_20m,,no_applic_copy)-D84)<=twa_int_copy), (D84+twa_int_copy-D84:INDEX(int_applic_begin_20m,,no_applic_copy)) *(1-EXP(-k_deg_copy*(D84+twa_int_copy-D84:INDEX(int_applic_begin_20m,,no_applic_copy)))) /(k_deg_copy*(D84+twa_int_copy-D84:INDEX(int_applic_begin_20m,,no_applic_copy))), 0) ) /twa_int_copy), "") -> 0.05783132836 | E90: =IF(INDEX(actual_rate_20m,,COLUMN()-2)<>"", SUM(E86:INDEX(peak_amount_20m,,no_applic_copy) *IF(((E84:INDEX(int_applic_begin_20m,,no_applic_copy)-E84)<twa_int_copy)*((E85:INDEX(int_applic_end_20m,,no_applic_copy)-E84)<=twa_int_copy), (E85:INDEX(int_applic_end_20m,,no_applic_copy)-E84:INDEX(int_applic_begin_20m,,no_applic_copy)) *(1-EXP(-k_deg_copy*(E85:INDEX(int_applic_end_20m,,no_applic_copy)-E84:INDEX(int_applic_begin_20m,,no_applic_copy)))) /(k_deg_copy*(E85:INDEX(int_applic_end_20m,,no_applic_copy)-E84:INDEX(int_applic_begin_20m,,no_applic_copy))), IF(((E84:INDEX(int_applic_begin_20m,,no_applic_copy)-E84)<twa_int_copy)+((E85:INDEX(int_applic_end_20m,,no_applic_copy)-E84)<=twa_int_copy), (E84+twa_int_copy-E84:INDEX(int_applic_begin_20m,,no_applic_copy)) *(1-EXP(-k_deg_copy*(E84+twa_int_copy-E84:INDEX(int_applic_begin_20m,,no_applic_copy)))) /(k_deg_copy*(E84+twa_int_copy-E84:INDEX(int_applic_begin_20m,,no_applic_copy))), 0) ) /twa_int_copy), "") -> 0.04609060514 | F90: =IF(INDEX(actual_rate_20m,,COLUMN()-2)<>"", SUM(F86:INDEX(peak_amount_20m,,no_applic_copy) *IF(((F84:INDEX(int_applic_begin_20m,,no_applic_copy)-F84)<twa_int_copy)*((F85:INDEX(int_applic_end_20m,,no_applic_copy)-F84)<=twa_int_copy), (F85:INDEX(int_applic_end_20m,,no_applic_copy)-F84:INDEX(int_applic_begin_20m,,no_applic_copy)) *(1-EXP(-k_deg_copy*(F85:INDEX(int_applic_end_20m,,no_applic_copy)-F84:INDEX(int_applic_begin_20m,,no_applic_copy)))) /(k_deg_copy*(F85:INDEX(int_applic_end_20m,,no_applic_copy)-F84:INDEX(int_applic_begin_20m,,no_applic_copy))), IF(((F84:INDEX(int_applic_begin_20m,,no_applic_copy)-F84)<twa_int_copy)+((F85:INDEX(int_applic_end_20m,,no_applic_copy)-F84)<=twa_int_copy), (F84+twa_int_copy-F84:INDEX(int_applic_begin_20m,,no_applic_copy)) *(1-EXP(-k_deg_copy*(F84+twa_int_copy-F84:INDEX(int_applic_begin_20m,,no_applic_copy)))) /(k_deg_copy*(F84+twa_int_copy-F84:INDEX(int_applic_begin_20m,,no_applic_copy))), 0) ) /twa_int_copy), "") ->  | G90: =IF(INDEX(actual_rate_20m,,COLUMN()-2)<>"", SUM(G86:INDEX(peak_amount_20m,,no_applic_copy) *IF(((G84:INDEX(int_applic_begin_20m,,no_applic_copy)-G84)<twa_int_copy)*((G85:INDEX(int_applic_end_20m,,no_applic_copy)-G84)<=twa_int_copy), (G85:INDEX(int_applic_end_20m,,no_applic_copy)-G84:INDEX(int_applic_begin_20m,,no_applic_copy)) *(1-EXP(-k_deg_copy*(G85:INDEX(int_applic_end_20m,,no_applic_copy)-G84:INDEX(int_applic_begin_20m,,no_applic_copy)))) /(k_deg_copy*(G85:INDEX(int_applic_end_20m,,no_applic_copy)-G84:INDEX(int_applic_begin_20m,,no_applic_copy))), IF(((G84:INDEX(int_applic_begin_20m,,no_applic_copy)-G84)<twa_int_copy)+((G85:INDEX(int_applic_end_20m,,no_applic_copy)-G84)<=twa_int_copy), (G84+twa_int_copy-G84:INDEX(int_applic_begin_20m,,no_applic_copy)) *(1-EXP(-k_deg_copy*(G84+twa_int_copy-G84:INDEX(int_applic_begin_20m,,no_applic_copy)))) /(k_deg_copy*(G84+twa_int_copy-G84:INDEX(int_applic_begin_20m,,no_applic_copy))), 0) ) /twa_int_copy), "") ->  | H90: =IF(INDEX(actual_rate_20m,,COLUMN()-2)<>"", SUM(H86:INDEX(peak_amount_20m,,no_applic_copy) *IF(((H84:INDEX(int_applic_begin_20m,,no_applic_copy)-H84)<twa_int_copy)*((H85:INDEX(int_applic_end_20m,,no_applic_copy)-H84)<=twa_int_copy), (H85:INDEX(int_applic_end_20m,,no_applic_copy)-H84:INDEX(int_applic_begin_20m,,no_applic_copy)) *(1-EXP(-k_deg_copy*(H85:INDEX(int_applic_end_20m,,no_applic_copy)-H84:INDEX(int_applic_begin_20m,,no_applic_copy)))) /(k_deg_copy*(H85:INDEX(int_applic_end_20m,,no_applic_copy)-H84:INDEX(int_applic_begin_20m,,no_applic_copy))), IF(((H84:INDEX(int_applic_begin_20m,,no_applic_copy)-H84)<twa_int_copy)+((H85:INDEX(int_applic_end_20m,,no_applic_copy)-H84)<=twa_int_copy), (H84+twa_int_copy-H84:INDEX(int_applic_begin_20m,,no_applic_copy)) *(1-EXP(-k_deg_copy*(H84+twa_int_copy-H84:INDEX(int_applic_begin_20m,,no_applic_copy)))) /(k_deg_copy*(H84+twa_int_copy-H84:INDEX(int_applic_begin_20m,,no_applic_copy))), 0) ) /twa_int_copy), "") ->  | I90: =IF(INDEX(actual_rate_20m,,COLUMN()-2)<>"", SUM(I86:INDEX(peak_amount_20m,,no_applic_copy) *IF(((I84:INDEX(int_applic_begin_20m,,no_applic_copy)-I84)<twa_int_copy)*((I85:INDEX(int_applic_end_20m,,no_applic_copy)-I84)<=twa_int_copy), (I85:INDEX(int_applic_end_20m,,no_applic_copy)-I84:INDEX(int_applic_begin_20m,,no_applic_copy)) *(1-EXP(-k_deg_copy*(I85:INDEX(int_applic_end_20m,,no_applic_copy)-I84:INDEX(int_applic_begin_20m,,no_applic_copy)))) /(k_deg_copy*(I85:INDEX(int_applic_end_20m,,no_applic_copy)-I84:INDEX(int_applic_begin_20m,,no_applic_copy))), IF(((I84:INDEX(int_applic_begin_20m,,no_applic_copy)-I84)<twa_int_copy)+((I85:INDEX(int_applic_end_20m,,no_applic_copy)-I84)<=twa_int_copy), (I84+twa_int_copy-I84:INDEX(int_applic_begin_20m,,no_applic_copy)) *(1-EXP(-k_deg_copy*(I84+twa_int_copy-I84:INDEX(int_applic_begin_20m,,no_applic_copy)))) /(k_deg_copy*(I84+twa_int_copy-I84:INDEX(int_applic_begin_20m,,no_applic_copy))), 0) ) /twa_int_copy), "") ->  | J90: =IF(INDEX(actual_rate_20m,,COLUMN()-2)<>"", SUM(J86:INDEX(peak_amount_20m,,no_applic_copy) *IF(((J84:INDEX(int_applic_begin_20m,,no_applic_copy)-J84)<twa_int_copy)*((J85:INDEX(int_applic_end_20m,,no_applic_copy)-J84)<=twa_int_copy), (J85:INDEX(int_applic_end_20m,,no_applic_copy)-J84:INDEX(int_applic_begin_20m,,no_applic_copy)) *(1-EXP(-k_deg_copy*(J85:INDEX(int_applic_end_20m,,no_applic_copy)-J84:INDEX(int_applic_begin_20m,,no_applic_copy)))) /(k_deg_copy*(J85:INDEX(int_applic_end_20m,,no_applic_copy)-J84:INDEX(int_applic_begin_20m,,no_applic_copy))), IF(((J84:INDEX(int_applic_begin_20m,,no_applic_copy)-J84)<twa_int_copy)+((J85:INDEX(int_applic_end_20m,,no_applic_copy)-J84)<=twa_int_copy), (J84+twa_int_copy-J84:INDEX(int_applic_begin_20m,,no_applic_copy)) *(1-EXP(-k_deg_copy*(J84+twa_int_copy-J84:INDEX(int_applic_begin_20m,,no_applic_copy)))) /(k_deg_copy*(J84+twa_int_copy-J84:INDEX(int_applic_begin_20m,,no_applic_copy))), 0) ) /twa_int_copy), "") ->  | K90: =IF(INDEX(actual_rate_20m,,COLUMN()-2)<>"", SUM(K86:INDEX(peak_amount_20m,,no_applic_copy) *IF(((K84:INDEX(int_applic_begin_20m,,no_applic_copy)-K84)<twa_int_copy)*((K85:INDEX(int_applic_end_20m,,no_applic_copy)-K84)<=twa_int_copy), (K85:INDEX(int_applic_end_20m,,no_applic_copy)-K84:INDEX(int_applic_begin_20m,,no_applic_copy)) *(1-EXP(-k_deg_copy*(K85:INDEX(int_applic_end_20m,,no_applic_copy)-K84:INDEX(int_applic_begin_20m,,no_applic_copy)))) /(k_deg_copy*(K85:INDEX(int_applic_end_20m,,no_applic_copy)-K84:INDEX(int_applic_begin_20m,,no_applic_copy))), IF(((K84:INDEX(int_applic_begin_20m,,no_applic_copy)-K84)<twa_int_copy)+((K85:INDEX(int_applic_end_20m,,no_applic_copy)-K84)<=twa_int_copy), (K84+twa_int_copy-K84:INDEX(int_applic_begin_20m,,no_applic_copy)) *(1-EXP(-k_deg_copy*(K84+twa_int_copy-K84:INDEX(int_applic_begin_20m,,no_applic_copy)))) /(k_deg_copy*(K84+twa_int_copy-K84:INDEX(int_applic_begin_20m,,no_applic_copy))), 0) ) /twa_int_copy), "") ->  | L90: =IF(INDEX(actual_rate_20m,,COLUMN()-2)<>"", SUM(L86:INDEX(peak_amount_20m,,no_applic_copy) *IF(((L84:INDEX(int_applic_begin_20m,,no_applic_copy)-L84)<twa_int_copy)*((L85:INDEX(int_applic_end_20m,,no_applic_copy)-L84)<=twa_int_copy), (L85:INDEX(int_applic_end_20m,,no_applic_copy)-L84:INDEX(int_applic_begin_20m,,no_applic_copy)) *(1-EXP(-k_deg_copy*(L85:INDEX(int_applic_end_20m,,no_applic_copy)-L84:INDEX(int_applic_begin_20m,,no_applic_copy)))) /(k_deg_copy*(L85:INDEX(int_applic_end_20m,,no_applic_copy)-L84:INDEX(int_applic_begin_20m,,no_applic_copy))), IF(((L84:INDEX(int_applic_begin_20m,,no_applic_copy)-L84)<twa_int_copy)+((L85:INDEX(int_applic_end_20m,,no_applic_copy)-L84)<=twa_int_copy), (L84+twa_int_copy-L84:INDEX(int_applic_begin_20m,,no_applic_copy)) *(1-EXP(-k_deg_copy*(L84+twa_int_copy-L84:INDEX(int_applic_begin_20m,,no_applic_copy)))) /(k_deg_copy*(L84+twa_int_copy-L84:INDEX(int_applic_begin_20m,,no_applic_copy))), 0) ) /twa_int_copy), "") ->  | M90: =IF(INDEX(actual_rate_20m,,COLUMN()-2)<>"", SUM(M86:INDEX(peak_amount_20m,,no_applic_copy) *IF(((M84:INDEX(int_applic_begin_20m,,no_applic_copy)-M84)<twa_int_copy)*((M85:INDEX(int_applic_end_20m,,no_applic_copy)-M84)<=twa_int_copy), (M85:INDEX(int_applic_end_20m,,no_applic_copy)-M84:INDEX(int_applic_begin_20m,,no_applic_copy)) *(1-EXP(-k_deg_copy*(M85:INDEX(int_applic_end_20m,,no_applic_copy)-M84:INDEX(int_applic_begin_20m,,no_applic_copy)))) /(k_deg_copy*(M85:INDEX(int_applic_end_20m,,no_applic_copy)-M84:INDEX(int_applic_begin_20m,,no_applic_copy))), IF(((M84:INDEX(int_applic_begin_20m,,no_applic_copy)-M84)<twa_int_copy)+((M85:INDEX(int_applic_end_20m,,no_applic_copy)-M84)<=twa_int_copy), (M84+twa_int_copy-M84:INDEX(int_applic_begin_20m,,no_applic_copy)) *(1-EXP(-k_deg_copy*(M84+twa_int_copy-M84:INDEX(int_applic_begin_20m,,no_applic_copy)))) /(k_deg_copy*(M84+twa_int_copy-M84:INDEX(int_applic_begin_20m,,no_applic_copy))), 0) ) /twa_int_copy), "") ->  | N90: =IF(INDEX(actual_rate_20m,,COLUMN()-2)<>"", SUM(N86:INDEX(peak_amount_20m,,no_applic_copy) *IF(((N84:INDEX(int_applic_begin_20m,,no_applic_copy)-N84)<twa_int_copy)*((N85:INDEX(int_applic_end_20m,,no_applic_copy)-N84)<=twa_int_copy), (N85:INDEX(int_applic_end_20m,,no_applic_copy)-N84:INDEX(int_applic_begin_20m,,no_applic_copy)) *(1-EXP(-k_deg_copy*(N85:INDEX(int_applic_end_20m,,no_applic_copy)-N84:INDEX(int_applic_begin_20m,,no_applic_copy)))) /(k_deg_copy*(N85:INDEX(int_applic_end_20m,,no_applic_copy)-N84:INDEX(int_applic_begin_20m,,no_applic_copy))), IF(((N84:INDEX(int_applic_begin_20m,,no_applic_copy)-N84)<twa_int_copy)+((N85:INDEX(int_applic_end_20m,,no_applic_copy)-N84)<=twa_int_copy), (N84+twa_int_copy-N84:INDEX(int_applic_begin_20m,,no_applic_copy)) *(1-EXP(-k_deg_copy*(N84+twa_int_copy-N84:INDEX(int_applic_begin_20m,,no_applic_copy)))) /(k_deg_copy*(N84+twa_int_copy-N84:INDEX(int_applic_begin_20m,,no_applic_copy))), 0) ) /twa_int_copy), "") -> 
B92: max. peak amount | C92: =MAX(peak_amount_20m) -> 0.0875
B93: max. twa(sum) | C93: =MAX(twa_sum_20m) -> 0.05783132836

Sheet drift_red_75 (hidden)
B3: drift reduction | C3: 0.75
B5: drift rate 1 m / 3 m | C5: =IF(no_applic_copy>=(COLUMN()-2), INDEX(act_applic_rate,COLUMN()-2) *VLOOKUP(INDEX(act_factor,COLUMN()-2),drift_percent_01m,IF(select_perc_type="MAF-crit",13,no_applic_copy)+2,0) *(1-drift_reduction), "") -> 0.5025 | D5: 0.5025 | E5: 0.5025
B6: drift rate 5 m | C6: =IF(no_applic_copy>=(COLUMN()-2), INDEX(act_applic_rate,COLUMN()-2) *VLOOKUP(INDEX(act_factor,COLUMN()-2),drift_percent_05m,IF(select_perc_type="MAF-crit",13,no_applic_copy)+2,0) *(1-drift_reduction), "") -> 0.1025 | D6: 0.1025 | E6: 0.1025
B7: drift rate 10 m | C7: =IF(no_applic_copy>=(COLUMN()-2), INDEX(act_applic_rate,COLUMN()-2) *VLOOKUP(INDEX(act_factor,COLUMN()-2),drift_percent_10m,IF(select_perc_type="MAF-crit",13,no_applic_copy)+2,0) *(1-drift_reduction), "") -> 0.05 | D7: 0.05 | E7: 0.05
B8: drift rate 15 m | C8: =IF(no_applic_copy>=(COLUMN()-2), INDEX(act_applic_rate,COLUMN()-2) *VLOOKUP(INDEX(act_factor,COLUMN()-2),drift_percent_15m,IF(select_perc_type="MAF-crit",13,no_applic_copy)+2,0) *(1-drift_reduction), "") -> 0.035 | D8: 0.035 | E8: 0.035
B9: drift rate 20 m | C9: =IF(no_applic_copy>=(COLUMN()-2), (INDEX(act_applic_rate,COLUMN()-2)) *VLOOKUP(INDEX(act_factor,COLUMN()-2),drift_percent_20m,IF(select_perc_type="MAF-crit",13,no_applic_copy)+2,0) *(1-drift_reduction), "") -> 0.025 | D9: 0.025 | E9: 0.025
B11: v/d rate 1 m / 3 m | C11: =IF(vd_applic_crit=(COLUMN()-2),vd_rate_final_01m,"") ->  | E11: 0
B12: v/d rate 5 m | C12: =IF(vd_applic_crit=(COLUMN()-2),vd_rate_final_05m,"") ->  | E12: 0
B13: v/d rate 10 m | C13: =IF(vd_applic_crit=(COLUMN()-2),vd_rate_final_10m,"") ->  | E13: 0
B14: v/d rate 15 m | C14: =IF(vd_applic_crit=(COLUMN()-2),vd_rate_final_15m,"") ->  | E14: 0
B15: v/d rate 20 m | C15: =IF(vd_applic_crit=(COLUMN()-2),vd_rate_final_20m,"") ->  | E15: 0
B17: actual rate 1 m / 3 m | C17: =IF(no_applic_copy>=(COLUMN()-2), IF(ISNUMBER(drift_rate_01m),drift_rate_01m,0) +IF(ISNUMBER(vd_rate_01m),vd_rate_01m,0), "") -> 0.5025 | D17: 0.5025 | E17: 0.5025
B18: actual rate 5 m | C18: =IF(no_applic_copy>=(COLUMN()-2), IF(ISNUMBER(drift_rate_05m),drift_rate_05m,0) +IF(ISNUMBER(vd_rate_05m),vd_rate_05m,0), "") -> 0.1025 | D18: 0.1025 | E18: 0.1025
B19: actual rate 10 m | C19: =IF(no_applic_copy>=(COLUMN()-2), IF(ISNUMBER(drift_rate_10m),drift_rate_10m,0) +IF(ISNUMBER(vd_rate_10m),vd_rate_10m,0), "") -> 0.05 | D19: 0.05 | E19: 0.05
B20: actual rate 15 m | C20: =IF(no_applic_copy>=(COLUMN()-2), IF(ISNUMBER(drift_rate_15m),drift_rate_15m,0) +IF(ISNUMBER(vd_rate_15m),vd_rate_15m,0), "") -> 0.035 | D20: 0.035 | E20: 0.035
B21: actual rate 20 m | C21: =IF(no_applic_copy>=(COLUMN()-2), IF(ISNUMBER(drift_rate_20m),drift_rate_20m,0) +IF(ISNUMBER(vd_rate_20m),vd_rate_20m,0), "") -> 0.025 | D21: 0.025 | E21: 0.025
B22: interval (d) | C22: =act_interval_applic -> 10 | D22: 10
B24: twa interval d | C24: =twa_int_value -> 21 | D24: # applic. | E24: =no_applic -> 3 | F24: k | G24: =k_deg -> 0.06931471806
C26: 1 m / 3 m | D26: 5 m | E26: 10 m | F26: 15 m | G26: 20 m
B27: max. peak amount | C27: =MAX(peak_amount_01m) -> 0.879375 | D27: =MAX(peak_amount_05m) -> 0.179375 | E27: =MAX(peak_amount_10m) -> 0.0875 | F27: =MAX(peak_amount_15m) -> 0.06125 | G27: =MAX(peak_amount_20m) -> 0.04375
B28: max. twa(sum) | C28: =MAX(twa_sum_01m) -> 0.58120485 | D28: =MAX(twa_sum_05m) -> 0.1185542231 | E28: =MAX(twa_sum_10m) -> 0.05783132836 | F28: =MAX(twa_sum_15m) -> 0.04048192985 | G28: =MAX(twa_sum_20m) -> 0.02891566418
B31: 1 m / 3 m distance
B32: begin interval | C32: =IF(interval_actual<>"",SUM(interval_actual1:INDEX(interval_actual,,COLUMN()-2))-interval_actual,IF(actual_rate_01m<>"",SUM(interval_actual1:INDEX(interval_actual,,COLUMN()-2)),"")) -> 0 | D32: 10 | E32: 20
B33: end interval | C33: =IF(interval_actual<>"",SUM(interval_actual1:INDEX(interval_actual,,COLUMN()-2)),IF(actual_rate_01m<>"",SUM(interval_actual1:INDEX(interval_actual,,COLUMN()-2))+twa_int_copy,"")) -> 10 | D33: 20 | E33: 41
B34: peak amount | C34: =IF(actual_rate_01m<>"",actual_rate_01m,"") -> 0.5025 | D34: =IF(OFFSET(actual_rate_01m,,1)<>"",OFFSET(actual_rate_01m,,1)+final_amount_01m,"") -> 0.75375 | E34: 0.879375
B35: final amount | C35: =IF(actual_rate_01m<>"",peak_amount_01m*EXP(-k_deg_copy*IF(interval_actual<>"",interval_actual,twa_int_copy)),"") -> 0.25125 | D35: 0.376875 | E35: 0.2051214717
B37: twa calculation interval | C37: =IF(actual_rate_01m<>"",int_applic_begin_01m&"-"&int_applic_begin_01m+twa_int_copy&" d","") -> 0-21 d | D37: 10-31 d | E37: 20-41 d
B38: twa(sum) | C38: =IF(INDEX(actual_rate_01m,,COLUMN()-2)<>"", SUM(C34:INDEX(peak_amount_01m,,no_applic_copy) *IF(((C32:INDEX(int_applic_begin_01m,,no_applic_copy)-C32)<twa_int_copy)*((C33:INDEX(int_applic_end_01m,,no_applic_copy)-C32)<=twa_int_copy), (C33:INDEX(int_applic_end_01m,,no_applic_copy)-C32:INDEX(int_applic_begin_01m,,no_applic_copy)) *(1-EXP(-k_deg_copy*(C33:INDEX(int_applic_end_01m,,no_applic_copy)-C32:INDEX(int_applic_begin_01m,,no_applic_copy)))) /(k_deg_copy*(C33:INDEX(int_applic_end_01m,,no_applic_copy)-C32:INDEX(int_applic_begin_01m,,no_applic_copy))), IF(((C32:INDEX(int_applic_begin_01m,,no_applic_copy)-C32)<twa_int_copy)+((C33:INDEX(int_applic_end_01m,,no_applic_copy)-C32)<=twa_int_copy), (C32+twa_int_copy-C32:INDEX(int_applic_begin_01m,,no_applic_copy)) *(1-EXP(-k_deg_copy*(C32+twa_int_copy-C32:INDEX(int_applic_begin_01m,,no_applic_copy)))) /(k_deg_copy*(C32+twa_int_copy-C32:INDEX(int_applic_begin_01m,,no_applic_copy))), 0) ) /twa_int_copy), "") -> 0.4719770733 | D38: =IF(INDEX(actual_rate_01m,,COLUMN()-2)<>"", SUM(D34:INDEX(peak_amount_01m,,no_applic_copy) *IF(((D32:INDEX(int_applic_begin_01m,,no_applic_copy)-D32)<twa_int_copy)*((D33:INDEX(int_applic_end_01m,,no_applic_copy)-D32)<=twa_int_copy), (D33:INDEX(int_applic_end_01m,,no_applic_copy)-D32:INDEX(int_applic_begin_01m,,no_applic_copy)) *(1-EXP(-k_deg_copy*(D33:INDEX(int_applic_end_01m,,no_applic_copy)-D32:INDEX(int_applic_begin_01m,,no_applic_copy)))) /(k_deg_copy*(D33:INDEX(int_applic_end_01m,,no_applic_copy)-D32:INDEX(int_applic_begin_01m,,no_applic_copy))), IF(((D32:INDEX(int_applic_begin_01m,,no_applic_copy)-D32)<twa_int_copy)+((D33:INDEX(int_applic_end_01m,,no_applic_copy)-D32)<=twa_int_copy), (D32+twa_int_copy-D32:INDEX(int_applic_begin_01m,,no_applic_copy)) *(1-EXP(-k_deg_copy*(D32+twa_int_copy-D32:INDEX(int_applic_begin_01m,,no_applic_copy)))) /(k_deg_copy*(D32+twa_int_copy-D32:INDEX(int_applic_begin_01m,,no_applic_copy))), 0) ) /twa_int_copy), "") -> 0.58120485 | E38: =IF(INDEX(actual_rate_01m,,COLUMN()-2)<>"", SUM(E34:INDEX(peak_amount_01m,,no_applic_copy) *IF(((E32:INDEX(int_applic_begin_01m,,no_applic_copy)-E32)<twa_int_copy)*((E33:INDEX(int_applic_end_01m,,no_applic_copy)-E32)<=twa_int_copy), (E33:INDEX(int_applic_end_01m,,no_applic_copy)-E32:INDEX(int_applic_begin_01m,,no_applic_copy)) *(1-EXP(-k_deg_copy*(E33:INDEX(int_applic_end_01m,,no_applic_copy)-E32:INDEX(int_applic_begin_01m,,no_applic_copy)))) /(k_deg_copy*(E33:INDEX(int_applic_end_01m,,no_applic_copy)-E32:INDEX(int_applic_begin_01m,,no_applic_copy))), IF(((E32:INDEX(int_applic_begin_01m,,no_applic_copy)-E32)<twa_int_copy)+((E33:INDEX(int_applic_end_01m,,no_applic_copy)-E32)<=twa_int_copy), (E32+twa_int_copy-E32:INDEX(int_applic_begin_01m,,no_applic_copy)) *(1-EXP(-k_deg_copy*(E32+twa_int_copy-E32:INDEX(int_applic_begin_01m,,no_applic_copy)))) /(k_deg_copy*(E32+twa_int_copy-E32:INDEX(int_applic_begin_01m,,no_applic_copy))), 0) ) /twa_int_copy), "") -> 0.4632105817 | F38: =IF(INDEX(actual_rate_01m,,COLUMN()-2)<>"", SUM(F34:INDEX(peak_amount_01m,,no_applic_copy) *IF(((F32:INDEX(int_applic_begin_01m,,no_applic_copy)-F32)<twa_int_copy)*((F33:INDEX(int_applic_end_01m,,no_applic_copy)-F32)<=twa_int_copy), (F33:INDEX(int_applic_end_01m,,no_applic_copy)-F32:INDEX(int_applic_begin_01m,,no_applic_copy)) *(1-EXP(-k_deg_copy*(F33:INDEX(int_applic_end_01m,,no_applic_copy)-F32:INDEX(int_applic_begin_01m,,no_applic_copy)))) /(k_deg_copy*(F33:INDEX(int_applic_end_01m,,no_applic_copy)-F32:INDEX(int_applic_begin_01m,,no_applic_copy))), IF(((F32:INDEX(int_applic_begin_01m,,no_applic_copy)-F32)<twa_int_copy)+((F33:INDEX(int_applic_end_01m,,no_applic_copy)-F32)<=twa_int_copy), (F32+twa_int_copy-F32:INDEX(int_applic_begin_01m,,no_applic_copy)) *(1-EXP(-k_deg_copy*(F32+twa_int_copy-F32:INDEX(int_applic_begin_01m,,no_applic_copy)))) /(k_deg_copy*(F32+twa_int_copy-F32:INDEX(int_applic_begin_01m,,no_applic_copy))), 0) ) /twa_int_copy), "") ->  | G38: =IF(INDEX(actual_rate_01m,,COLUMN()-2)<>"", SUM(G34:INDEX(peak_amount_01m,,no_applic_copy) *IF(((G32:INDEX(int_applic_begin_01m,,no_applic_copy)-G32)<twa_int_copy)*((G33:INDEX(int_applic_end_01m,,no_applic_copy)-G32)<=twa_int_copy), (G33:INDEX(int_applic_end_01m,,no_applic_copy)-G32:INDEX(int_applic_begin_01m,,no_applic_copy)) *(1-EXP(-k_deg_copy*(G33:INDEX(int_applic_end_01m,,no_applic_copy)-G32:INDEX(int_applic_begin_01m,,no_applic_copy)))) /(k_deg_copy*(G33:INDEX(int_applic_end_01m,,no_applic_copy)-G32:INDEX(int_applic_begin_01m,,no_applic_copy))), IF(((G32:INDEX(int_applic_begin_01m,,no_applic_copy)-G32)<twa_int_copy)+((G33:INDEX(int_applic_end_01m,,no_applic_copy)-G32)<=twa_int_copy), (G32+twa_int_copy-G32:INDEX(int_applic_begin_01m,,no_applic_copy)) *(1-EXP(-k_deg_copy*(G32+twa_int_copy-G32:INDEX(int_applic_begin_01m,,no_applic_copy)))) /(k_deg_copy*(G32+twa_int_copy-G32:INDEX(int_applic_begin_01m,,no_applic_copy))), 0) ) /twa_int_copy), "") ->  | H38: =IF(INDEX(actual_rate_01m,,COLUMN()-2)<>"", SUM(H34:INDEX(peak_amount_01m,,no_applic_copy) *IF(((H32:INDEX(int_applic_begin_01m,,no_applic_copy)-H32)<twa_int_copy)*((H33:INDEX(int_applic_end_01m,,no_applic_copy)-H32)<=twa_int_copy), (H33:INDEX(int_applic_end_01m,,no_applic_copy)-H32:INDEX(int_applic_begin_01m,,no_applic_copy)) *(1-EXP(-k_deg_copy*(H33:INDEX(int_applic_end_01m,,no_applic_copy)-H32:INDEX(int_applic_begin_01m,,no_applic_copy)))) /(k_deg_copy*(H33:INDEX(int_applic_end_01m,,no_applic_copy)-H32:INDEX(int_applic_begin_01m,,no_applic_copy))), IF(((H32:INDEX(int_applic_begin_01m,,no_applic_copy)-H32)<twa_int_copy)+((H33:INDEX(int_applic_end_01m,,no_applic_copy)-H32)<=twa_int_copy), (H32+twa_int_copy-H32:INDEX(int_applic_begin_01m,,no_applic_copy)) *(1-EXP(-k_deg_copy*(H32+twa_int_copy-H32:INDEX(int_applic_begin_01m,,no_applic_copy)))) /(k_deg_copy*(H32+twa_int_copy-H32:INDEX(int_applic_begin_01m,,no_applic_copy))), 0) ) /twa_int_copy), "") ->  | I38: =IF(INDEX(actual_rate_01m,,COLUMN()-2)<>"", SUM(I34:INDEX(peak_amount_01m,,no_applic_copy) *IF(((I32:INDEX(int_applic_begin_01m,,no_applic_copy)-I32)<twa_int_copy)*((I33:INDEX(int_applic_end_01m,,no_applic_copy)-I32)<=twa_int_copy), (I33:INDEX(int_applic_end_01m,,no_applic_copy)-I32:INDEX(int_applic_begin_01m,,no_applic_copy)) *(1-EXP(-k_deg_copy*(I33:INDEX(int_applic_end_01m,,no_applic_copy)-I32:INDEX(int_applic_begin_01m,,no_applic_copy)))) /(k_deg_copy*(I33:INDEX(int_applic_end_01m,,no_applic_copy)-I32:INDEX(int_applic_begin_01m,,no_applic_copy))), IF(((I32:INDEX(int_applic_begin_01m,,no_applic_copy)-I32)<twa_int_copy)+((I33:INDEX(int_applic_end_01m,,no_applic_copy)-I32)<=twa_int_copy), (I32+twa_int_copy-I32:INDEX(int_applic_begin_01m,,no_applic_copy)) *(1-EXP(-k_deg_copy*(I32+twa_int_copy-I32:INDEX(int_applic_begin_01m,,no_applic_copy)))) /(k_deg_copy*(I32+twa_int_copy-I32:INDEX(int_applic_begin_01m,,no_applic_copy))), 0) ) /twa_int_copy), "") ->  | J38: =IF(INDEX(actual_rate_01m,,COLUMN()-2)<>"", SUM(J34:INDEX(peak_amount_01m,,no_applic_copy) *IF(((J32:INDEX(int_applic_begin_01m,,no_applic_copy)-J32)<twa_int_copy)*((J33:INDEX(int_applic_end_01m,,no_applic_copy)-J32)<=twa_int_copy), (J33:INDEX(int_applic_end_01m,,no_applic_copy)-J32:INDEX(int_applic_begin_01m,,no_applic_copy)) *(1-EXP(-k_deg_copy*(J33:INDEX(int_applic_end_01m,,no_applic_copy)-J32:INDEX(int_applic_begin_01m,,no_applic_copy)))) /(k_deg_copy*(J33:INDEX(int_applic_end_01m,,no_applic_copy)-J32:INDEX(int_applic_begin_01m,,no_applic_copy))), IF(((J32:INDEX(int_applic_begin_01m,,no_applic_copy)-J32)<twa_int_copy)+((J33:INDEX(int_applic_end_01m,,no_applic_copy)-J32)<=twa_int_copy), (J32+twa_int_copy-J32:INDEX(int_applic_begin_01m,,no_applic_copy)) *(1-EXP(-k_deg_copy*(J32+twa_int_copy-J32:INDEX(int_applic_begin_01m,,no_applic_copy)))) /(k_deg_copy*(J32+twa_int_copy-J32:INDEX(int_applic_begin_01m,,no_applic_copy))), 0) ) /twa_int_copy), "") ->  | K38: =IF(INDEX(actual_rate_01m,,COLUMN()-2)<>"", SUM(K34:INDEX(peak_amount_01m,,no_applic_copy) *IF(((K32:INDEX(int_applic_begin_01m,,no_applic_copy)-K32)<twa_int_copy)*((K33:INDEX(int_applic_end_01m,,no_applic_copy)-K32)<=twa_int_copy), (K33:INDEX(int_applic_end_01m,,no_applic_copy)-K32:INDEX(int_applic_begin_01m,,no_applic_copy)) *(1-EXP(-k_deg_copy*(K33:INDEX(int_applic_end_01m,,no_applic_copy)-K32:INDEX(int_applic_begin_01m,,no_applic_copy)))) /(k_deg_copy*(K33:INDEX(int_applic_end_01m,,no_applic_copy)-K32:INDEX(int_applic_begin_01m,,no_applic_copy))), IF(((K32:INDEX(int_applic_begin_01m,,no_applic_copy)-K32)<twa_int_copy)+((K33:INDEX(int_applic_end_01m,,no_applic_copy)-K32)<=twa_int_copy), (K32+twa_int_copy-K32:INDEX(int_applic_begin_01m,,no_applic_copy)) *(1-EXP(-k_deg_copy*(K32+twa_int_copy-K32:INDEX(int_applic_begin_01m,,no_applic_copy)))) /(k_deg_copy*(K32+twa_int_copy-K32:INDEX(int_applic_begin_01m,,no_applic_copy))), 0) ) /twa_int_copy), "") ->  | L38: =IF(INDEX(actual_rate_01m,,COLUMN()-2)<>"", SUM(L34:INDEX(peak_amount_01m,,no_applic_copy) *IF(((L32:INDEX(int_applic_begin_01m,,no_applic_copy)-L32)<twa_int_copy)*((L33:INDEX(int_applic_end_01m,,no_applic_copy)-L32)<=twa_int_copy), (L33:INDEX(int_applic_end_01m,,no_applic_copy)-L32:INDEX(int_applic_begin_01m,,no_applic_copy)) *(1-EXP(-k_deg_copy*(L33:INDEX(int_applic_end_01m,,no_applic_copy)-L32:INDEX(int_applic_begin_01m,,no_applic_copy)))) /(k_deg_copy*(L33:INDEX(int_applic_end_01m,,no_applic_copy)-L32:INDEX(int_applic_begin_01m,,no_applic_copy))), IF(((L32:INDEX(int_applic_begin_01m,,no_applic_copy)-L32)<twa_int_copy)+((L33:INDEX(int_applic_end_01m,,no_applic_copy)-L32)<=twa_int_copy), (L32+twa_int_copy-L32:INDEX(int_applic_begin_01m,,no_applic_copy)) *(1-EXP(-k_deg_copy*(L32+twa_int_copy-L32:INDEX(int_applic_begin_01m,,no_applic_copy)))) /(k_deg_copy*(L32+twa_int_copy-L32:INDEX(int_applic_begin_01m,,no_applic_copy))), 0) ) /twa_int_copy), "") ->  | M38: =IF(INDEX(actual_rate_01m,,COLUMN()-2)<>"", SUM(M34:INDEX(peak_amount_01m,,no_applic_copy) *IF(((M32:INDEX(int_applic_begin_01m,,no_applic_copy)-M32)<twa_int_copy)*((M33:INDEX(int_applic_end_01m,,no_applic_copy)-M32)<=twa_int_copy), (M33:INDEX(int_applic_end_01m,,no_applic_copy)-M32:INDEX(int_applic_begin_01m,,no_applic_copy)) *(1-EXP(-k_deg_copy*(M33:INDEX(int_applic_end_01m,,no_applic_copy)-M32:INDEX(int_applic_begin_01m,,no_applic_copy)))) /(k_deg_copy*(M33:INDEX(int_applic_end_01m,,no_applic_copy)-M32:INDEX(int_applic_begin_01m,,no_applic_copy))), IF(((M32:INDEX(int_applic_begin_01m,,no_applic_copy)-M32)<twa_int_copy)+((M33:INDEX(int_applic_end_01m,,no_applic_copy)-M32)<=twa_int_copy), (M32+twa_int_copy-M32:INDEX(int_applic_begin_01m,,no_applic_copy)) *(1-EXP(-k_deg_copy*(M32+twa_int_copy-M32:INDEX(int_applic_begin_01m,,no_applic_copy)))) /(k_deg_copy*(M32+twa_int_copy-M32:INDEX(int_applic_begin_01m,,no_applic_copy))), 0) ) /twa_int_copy), "") ->  | N38: =IF(INDEX(actual_rate_01m,,COLUMN()-2)<>"", SUM(N34:INDEX(peak_amount_01m,,no_applic_copy) *IF(((N32:INDEX(int_applic_begin_01m,,no_applic_copy)-N32)<twa_int_copy)*((N33:INDEX(int_applic_end_01m,,no_applic_copy)-N32)<=twa_int_copy), (N33:INDEX(int_applic_end_01m,,no_applic_copy)-N32:INDEX(int_applic_begin_01m,,no_applic_copy)) *(1-EXP(-k_deg_copy*(N33:INDEX(int_applic_end_01m,,no_applic_copy)-N32:INDEX(int_applic_begin_01m,,no_applic_copy)))) /(k_deg_copy*(N33:INDEX(int_applic_end_01m,,no_applic_copy)-N32:INDEX(int_applic_begin_01m,,no_applic_copy))), IF(((N32:INDEX(int_applic_begin_01m,,no_applic_copy)-N32)<twa_int_copy)+((N33:INDEX(int_applic_end_01m,,no_applic_copy)-N32)<=twa_int_copy), (N32+twa_int_copy-N32:INDEX(int_applic_begin_01m,,no_applic_copy)) *(1-EXP(-k_deg_copy*(N32+twa_int_copy-N32:INDEX(int_applic_begin_01m,,no_applic_copy)))) /(k_deg_copy*(N32+twa_int_copy-N32:INDEX(int_applic_begin_01m,,no_applic_copy))), 0) ) /twa_int_copy), "") -> 
B40: max. peak amount | C40: =MAX(peak_amount_01m) -> 0.879375
B41: max. twa(sum) | C41: =MAX(twa_sum_01m) -> 0.58120485
B44: 5 m distance
B45: begin interval | C45: =IF(interval_actual<>"",SUM(interval_actual1:INDEX(interval_actual,,COLUMN()-2))-interval_actual,IF(actual_rate_05m<>"",SUM(interval_actual1:INDEX(interval_actual,,COLUMN()-2)),"")) -> 0 | D45: 10 | E45: 20
B46: end interval | C46: =IF(interval_actual<>"",SUM(interval_actual1:INDEX(interval_actual,,COLUMN()-2)),IF(actual_rate_05m<>"",SUM(interval_actual1:INDEX(interval_actual,,COLUMN()-2))+twa_int_copy,"")) -> 10 | D46: 20 | E46: 41
B47: peak amount | C47: =IF(actual_rate_05m<>"",actual_rate_05m,"") -> 0.1025 | D47: =IF(OFFSET(actual_rate_05m,,1)<>"",OFFSET(actual_rate_05m,,1)+final_amount_05m,"") -> 0.15375 | E47: 0.179375
B48: final amount | C48: =IF(actual_rate_05m<>"",peak_amount_05m*EXP(-k_deg_copy*IF(interval_actual<>"",interval_actual,twa_int_copy)),"") -> 0.05125 | D48: 0.076875 | E48: 0.04184069821
B50: twa calculation interval | C50: =IF(actual_rate_05m<>"",int_applic_begin_05m&"-"&int_applic_begin_05m+twa_int_copy&" d","") -> 0-21 d | D50: 10-31 d | E50: 20-41 d
B51: twa(sum) | C51: =IF(INDEX(actual_rate_05m,,COLUMN()-2)<>"", SUM(C47:INDEX(peak_amount_05m,,no_applic_copy) *IF(((C45:INDEX(int_applic_begin_05m,,no_applic_copy)-C45)<twa_int_copy)*((C46:INDEX(int_applic_end_05m,,no_applic_copy)-C45)<=twa_int_copy), (C46:INDEX(int_applic_end_05m,,no_applic_copy)-C45:INDEX(int_applic_begin_05m,,no_applic_copy)) *(1-EXP(-k_deg_copy*(C46:INDEX(int_applic_end_05m,,no_applic_copy)-C45:INDEX(int_applic_begin_05m,,no_applic_copy)))) /(k_deg_copy*(C46:INDEX(int_applic_end_05m,,no_applic_copy)-C45:INDEX(int_applic_begin_05m,,no_applic_copy))), IF(((C45:INDEX(int_applic_begin_05m,,no_applic_copy)-C45)<twa_int_copy)+((C46:INDEX(int_applic_end_05m,,no_applic_copy)-C45)<=twa_int_copy), (C45+twa_int_copy-C45:INDEX(int_applic_begin_05m,,no_applic_copy)) *(1-EXP(-k_deg_copy*(C45+twa_int_copy-C45:INDEX(int_applic_begin_05m,,no_applic_copy)))) /(k_deg_copy*(C45+twa_int_copy-C45:INDEX(int_applic_begin_05m,,no_applic_copy))), 0) ) /twa_int_copy), "") -> 0.09627393038 | D51: =IF(INDEX(actual_rate_05m,,COLUMN()-2)<>"", SUM(D47:INDEX(peak_amount_05m,,no_applic_copy) *IF(((D45:INDEX(int_applic_begin_05m,,no_applic_copy)-D45)<twa_int_copy)*((D46:INDEX(int_applic_end_05m,,no_applic_copy)-D45)<=twa_int_copy), (D46:INDEX(int_applic_end_05m,,no_applic_copy)-D45:INDEX(int_applic_begin_05m,,no_applic_copy)) *(1-EXP(-k_deg_copy*(D46:INDEX(int_applic_end_05m,,no_applic_copy)-D45:INDEX(int_applic_begin_05m,,no_applic_copy)))) /(k_deg_copy*(D46:INDEX(int_applic_end_05m,,no_applic_copy)-D45:INDEX(int_applic_begin_05m,,no_applic_copy))), IF(((D45:INDEX(int_applic_begin_05m,,no_applic_copy)-D45)<twa_int_copy)+((D46:INDEX(int_applic_end_05m,,no_applic_copy)-D45)<=twa_int_copy), (D45+twa_int_copy-D45:INDEX(int_applic_begin_05m,,no_applic_copy)) *(1-EXP(-k_deg_copy*(D45+twa_int_copy-D45:INDEX(int_applic_begin_05m,,no_applic_copy)))) /(k_deg_copy*(D45+twa_int_copy-D45:INDEX(int_applic_begin_05m,,no_applic_copy))), 0) ) /twa_int_copy), "") -> 0.1185542231 | E51: =IF(INDEX(actual_rate_05m,,COLUMN()-2)<>"", SUM(E47:INDEX(peak_amount_05m,,no_applic_copy) *IF(((E45:INDEX(int_applic_begin_05m,,no_applic_copy)-E45)<twa_int_copy)*((E46:INDEX(int_applic_end_05m,,no_applic_copy)-E45)<=twa_int_copy), (E46:INDEX(int_applic_end_05m,,no_applic_copy)-E45:INDEX(int_applic_begin_05m,,no_applic_copy)) *(1-EXP(-k_deg_copy*(E46:INDEX(int_applic_end_05m,,no_applic_copy)-E45:INDEX(int_applic_begin_05m,,no_applic_copy)))) /(k_deg_copy*(E46:INDEX(int_applic_end_05m,,no_applic_copy)-E45:INDEX(int_applic_begin_05m,,no_applic_copy))), IF(((E45:INDEX(int_applic_begin_05m,,no_applic_copy)-E45)<twa_int_copy)+((E46:INDEX(int_applic_end_05m,,no_applic_copy)-E45)<=twa_int_copy), (E45+twa_int_copy-E45:INDEX(int_applic_begin_05m,,no_applic_copy)) *(1-EXP(-k_deg_copy*(E45+twa_int_copy-E45:INDEX(int_applic_begin_05m,,no_applic_copy)))) /(k_deg_copy*(E45+twa_int_copy-E45:INDEX(int_applic_begin_05m,,no_applic_copy))), 0) ) /twa_int_copy), "") -> 0.09448574054 | F51: =IF(INDEX(actual_rate_05m,,COLUMN()-2)<>"", SUM(F47:INDEX(peak_amount_05m,,no_applic_copy) *IF(((F45:INDEX(int_applic_begin_05m,,no_applic_copy)-F45)<twa_int_copy)*((F46:INDEX(int_applic_end_05m,,no_applic_copy)-F45)<=twa_int_copy), (F46:INDEX(int_applic_end_05m,,no_applic_copy)-F45:INDEX(int_applic_begin_05m,,no_applic_copy)) *(1-EXP(-k_deg_copy*(F46:INDEX(int_applic_end_05m,,no_applic_copy)-F45:INDEX(int_applic_begin_05m,,no_applic_copy)))) /(k_deg_copy*(F46:INDEX(int_applic_end_05m,,no_applic_copy)-F45:INDEX(int_applic_begin_05m,,no_applic_copy))), IF(((F45:INDEX(int_applic_begin_05m,,no_applic_copy)-F45)<twa_int_copy)+((F46:INDEX(int_applic_end_05m,,no_applic_copy)-F45)<=twa_int_copy), (F45+twa_int_copy-F45:INDEX(int_applic_begin_05m,,no_applic_copy)) *(1-EXP(-k_deg_copy*(F45+twa_int_copy-F45:INDEX(int_applic_begin_05m,,no_applic_copy)))) /(k_deg_copy*(F45+twa_int_copy-F45:INDEX(int_applic_begin_05m,,no_applic_copy))), 0) ) /twa_int_copy), "") ->  | G51: =IF(INDEX(actual_rate_05m,,COLUMN()-2)<>"", SUM(G47:INDEX(peak_amount_05m,,no_applic_copy) *IF(((G45:INDEX(int_applic_begin_05m,,no_applic_copy)-G45)<twa_int_copy)*((G46:INDEX(int_applic_end_05m,,no_applic_copy)-G45)<=twa_int_copy), (G46:INDEX(int_applic_end_05m,,no_applic_copy)-G45:INDEX(int_applic_begin_05m,,no_applic_copy)) *(1-EXP(-k_deg_copy*(G46:INDEX(int_applic_end_05m,,no_applic_copy)-G45:INDEX(int_applic_begin_05m,,no_applic_copy)))) /(k_deg_copy*(G46:INDEX(int_applic_end_05m,,no_applic_copy)-G45:INDEX(int_applic_begin_05m,,no_applic_copy))), IF(((G45:INDEX(int_applic_begin_05m,,no_applic_copy)-G45)<twa_int_copy)+((G46:INDEX(int_applic_end_05m,,no_applic_copy)-G45)<=twa_int_copy), (G45+twa_int_copy-G45:INDEX(int_applic_begin_05m,,no_applic_copy)) *(1-EXP(-k_deg_copy*(G45+twa_int_copy-G45:INDEX(int_applic_begin_05m,,no_applic_copy)))) /(k_deg_copy*(G45+twa_int_copy-G45:INDEX(int_applic_begin_05m,,no_applic_copy))), 0) ) /twa_int_copy), "") ->  | H51: =IF(INDEX(actual_rate_05m,,COLUMN()-2)<>"", SUM(H47:INDEX(peak_amount_05m,,no_applic_copy) *IF(((H45:INDEX(int_applic_begin_05m,,no_applic_copy)-H45)<twa_int_copy)*((H46:INDEX(int_applic_end_05m,,no_applic_copy)-H45)<=twa_int_copy), (H46:INDEX(int_applic_end_05m,,no_applic_copy)-H45:INDEX(int_applic_begin_05m,,no_applic_copy)) *(1-EXP(-k_deg_copy*(H46:INDEX(int_applic_end_05m,,no_applic_copy)-H45:INDEX(int_applic_begin_05m,,no_applic_copy)))) /(k_deg_copy*(H46:INDEX(int_applic_end_05m,,no_applic_copy)-H45:INDEX(int_applic_begin_05m,,no_applic_copy))), IF(((H45:INDEX(int_applic_begin_05m,,no_applic_copy)-H45)<twa_int_copy)+((H46:INDEX(int_applic_end_05m,,no_applic_copy)-H45)<=twa_int_copy), (H45+twa_int_copy-H45:INDEX(int_applic_begin_05m,,no_applic_copy)) *(1-EXP(-k_deg_copy*(H45+twa_int_copy-H45:INDEX(int_applic_begin_05m,,no_applic_copy)))) /(k_deg_copy*(H45+twa_int_copy-H45:INDEX(int_applic_begin_05m,,no_applic_copy))), 0) ) /twa_int_copy), "") ->  | I51: =IF(INDEX(actual_rate_05m,,COLUMN()-2)<>"", SUM(I47:INDEX(peak_amount_05m,,no_applic_copy) *IF(((I45:INDEX(int_applic_begin_05m,,no_applic_copy)-I45)<twa_int_copy)*((I46:INDEX(int_applic_end_05m,,no_applic_copy)-I45)<=twa_int_copy), (I46:INDEX(int_applic_end_05m,,no_applic_copy)-I45:INDEX(int_applic_begin_05m,,no_applic_copy)) *(1-EXP(-k_deg_copy*(I46:INDEX(int_applic_end_05m,,no_applic_copy)-I45:INDEX(int_applic_begin_05m,,no_applic_copy)))) /(k_deg_copy*(I46:INDEX(int_applic_end_05m,,no_applic_copy)-I45:INDEX(int_applic_begin_05m,,no_applic_copy))), IF(((I45:INDEX(int_applic_begin_05m,,no_applic_copy)-I45)<twa_int_copy)+((I46:INDEX(int_applic_end_05m,,no_applic_copy)-I45)<=twa_int_copy), (I45+twa_int_copy-I45:INDEX(int_applic_begin_05m,,no_applic_copy)) *(1-EXP(-k_deg_copy*(I45+twa_int_copy-I45:INDEX(int_applic_begin_05m,,no_applic_copy)))) /(k_deg_copy*(I45+twa_int_copy-I45:INDEX(int_applic_begin_05m,,no_applic_copy))), 0) ) /twa_int_copy), "") ->  | J51: =IF(INDEX(actual_rate_05m,,COLUMN()-2)<>"", SUM(J47:INDEX(peak_amount_05m,,no_applic_copy) *IF(((J45:INDEX(int_applic_begin_05m,,no_applic_copy)-J45)<twa_int_copy)*((J46:INDEX(int_applic_end_05m,,no_applic_copy)-J45)<=twa_int_copy), (J46:INDEX(int_applic_end_05m,,no_applic_copy)-J45:INDEX(int_applic_begin_05m,,no_applic_copy)) *(1-EXP(-k_deg_copy*(J46:INDEX(int_applic_end_05m,,no_applic_copy)-J45:INDEX(int_applic_begin_05m,,no_applic_copy)))) /(k_deg_copy*(J46:INDEX(int_applic_end_05m,,no_applic_copy)-J45:INDEX(int_applic_begin_05m,,no_applic_copy))), IF(((J45:INDEX(int_applic_begin_05m,,no_applic_copy)-J45)<twa_int_copy)+((J46:INDEX(int_applic_end_05m,,no_applic_copy)-J45)<=twa_int_copy), (J45+twa_int_copy-J45:INDEX(int_applic_begin_05m,,no_applic_copy)) *(1-EXP(-k_deg_copy*(J45+twa_int_copy-J45:INDEX(int_applic_begin_05m,,no_applic_copy)))) /(k_deg_copy*(J45+twa_int_copy-J45:INDEX(int_applic_begin_05m,,no_applic_copy))), 0) ) /twa_int_copy), "") ->  | K51: =IF(INDEX(actual_rate_05m,,COLUMN()-2)<>"", SUM(K47:INDEX(peak_amount_05m,,no_applic_copy) *IF(((K45:INDEX(int_applic_begin_05m,,no_applic_copy)-K45)<twa_int_copy)*((K46:INDEX(int_applic_end_05m,,no_applic_copy)-K45)<=twa_int_copy), (K46:INDEX(int_applic_end_05m,,no_applic_copy)-K45:INDEX(int_applic_begin_05m,,no_applic_copy)) *(1-EXP(-k_deg_copy*(K46:INDEX(int_applic_end_05m,,no_applic_copy)-K45:INDEX(int_applic_begin_05m,,no_applic_copy)))) /(k_deg_copy*(K46:INDEX(int_applic_end_05m,,no_applic_copy)-K45:INDEX(int_applic_begin_05m,,no_applic_copy))), IF(((K45:INDEX(int_applic_begin_05m,,no_applic_copy)-K45)<twa_int_copy)+((K46:INDEX(int_applic_end_05m,,no_applic_copy)-K45)<=twa_int_copy), (K45+twa_int_copy-K45:INDEX(int_applic_begin_05m,,no_applic_copy)) *(1-EXP(-k_deg_copy*(K45+twa_int_copy-K45:INDEX(int_applic_begin_05m,,no_applic_copy)))) /(k_deg_copy*(K45+twa_int_copy-K45:INDEX(int_applic_begin_05m,,no_applic_copy))), 0) ) /twa_int_copy), "") ->  | L51: =IF(INDEX(actual_rate_05m,,COLUMN()-2)<>"", SUM(L47:INDEX(peak_amount_05m,,no_applic_copy) *IF(((L45:INDEX(int_applic_begin_05m,,no_applic_copy)-L45)<twa_int_copy)*((L46:INDEX(int_applic_end_05m,,no_applic_copy)-L45)<=twa_int_copy), (L46:INDEX(int_applic_end_05m,,no_applic_copy)-L45:INDEX(int_applic_begin_05m,,no_applic_copy)) *(1-EXP(-k_deg_copy*(L46:INDEX(int_applic_end_05m,,no_applic_copy)-L45:INDEX(int_applic_begin_05m,,no_applic_copy)))) /(k_deg_copy*(L46:INDEX(int_applic_end_05m,,no_applic_copy)-L45:INDEX(int_applic_begin_05m,,no_applic_copy))), IF(((L45:INDEX(int_applic_begin_05m,,no_applic_copy)-L45)<twa_int_copy)+((L46:INDEX(int_applic_end_05m,,no_applic_copy)-L45)<=twa_int_copy), (L45+twa_int_copy-L45:INDEX(int_applic_begin_05m,,no_applic_copy)) *(1-EXP(-k_deg_copy*(L45+twa_int_copy-L45:INDEX(int_applic_begin_05m,,no_applic_copy)))) /(k_deg_copy*(L45+twa_int_copy-L45:INDEX(int_applic_begin_05m,,no_applic_copy))), 0) ) /twa_int_copy), "") ->  | M51: =IF(INDEX(actual_rate_05m,,COLUMN()-2)<>"", SUM(M47:INDEX(peak_amount_05m,,no_applic_copy) *IF(((M45:INDEX(int_applic_begin_05m,,no_applic_copy)-M45)<twa_int_copy)*((M46:INDEX(int_applic_end_05m,,no_applic_copy)-M45)<=twa_int_copy), (M46:INDEX(int_applic_end_05m,,no_applic_copy)-M45:INDEX(int_applic_begin_05m,,no_applic_copy)) *(1-EXP(-k_deg_copy*(M46:INDEX(int_applic_end_05m,,no_applic_copy)-M45:INDEX(int_applic_begin_05m,,no_applic_copy)))) /(k_deg_copy*(M46:INDEX(int_applic_end_05m,,no_applic_copy)-M45:INDEX(int_applic_begin_05m,,no_applic_copy))), IF(((M45:INDEX(int_applic_begin_05m,,no_applic_copy)-M45)<twa_int_copy)+((M46:INDEX(int_applic_end_05m,,no_applic_copy)-M45)<=twa_int_copy), (M45+twa_int_copy-M45:INDEX(int_applic_begin_05m,,no_applic_copy)) *(1-EXP(-k_deg_copy*(M45+twa_int_copy-M45:INDEX(int_applic_begin_05m,,no_applic_copy)))) /(k_deg_copy*(M45+twa_int_copy-M45:INDEX(int_applic_begin_05m,,no_applic_copy))), 0) ) /twa_int_copy), "") ->  | N51: =IF(INDEX(actual_rate_05m,,COLUMN()-2)<>"", SUM(N47:INDEX(peak_amount_05m,,no_applic_copy) *IF(((N45:INDEX(int_applic_begin_05m,,no_applic_copy)-N45)<twa_int_copy)*((N46:INDEX(int_applic_end_05m,,no_applic_copy)-N45)<=twa_int_copy), (N46:INDEX(int_applic_end_05m,,no_applic_copy)-N45:INDEX(int_applic_begin_05m,,no_applic_copy)) *(1-EXP(-k_deg_copy*(N46:INDEX(int_applic_end_05m,,no_applic_copy)-N45:INDEX(int_applic_begin_05m,,no_applic_copy)))) /(k_deg_copy*(N46:INDEX(int_applic_end_05m,,no_applic_copy)-N45:INDEX(int_applic_begin_05m,,no_applic_copy))), IF(((N45:INDEX(int_applic_begin_05m,,no_applic_copy)-N45)<twa_int_copy)+((N46:INDEX(int_applic_end_05m,,no_applic_copy)-N45)<=twa_int_copy), (N45+twa_int_copy-N45:INDEX(int_applic_begin_05m,,no_applic_copy)) *(1-EXP(-k_deg_copy*(N45+twa_int_copy-N45:INDEX(int_applic_begin_05m,,no_applic_copy)))) /(k_deg_copy*(N45+twa_int_copy-N45:INDEX(int_applic_begin_05m,,no_applic_copy))), 0) ) /twa_int_copy), "") -> 
B53: max. peak amount | C53: =MAX(peak_amount_05m) -> 0.179375
B54: max. twa(sum) | C54: =MAX(twa_sum_05m) -> 0.1185542231
B57: 10 m distance
B58: begin interval | C58: =IF(interval_actual<>"",SUM(interval_actual1:INDEX(interval_actual,,COLUMN()-2))-interval_actual,IF(actual_rate_10m<>"",SUM(interval_actual1:INDEX(interval_actual,,COLUMN()-2)),"")) -> 0 | D58: 10 | E58: 20
B59: end interval | C59: =IF(interval_actual<>"",SUM(interval_actual1:INDEX(interval_actual,,COLUMN()-2)),IF(actual_rate_10m<>"",SUM(interval_actual1:INDEX(interval_actual,,COLUMN()-2))+twa_int_copy,"")) -> 10 | D59: 20 | E59: 41
B60: peak amount | C60: =IF(actual_rate_10m<>"",actual_rate_10m,"") -> 0.05 | D60: =IF(OFFSET(actual_rate_10m,,1)<>"",OFFSET(actual_rate_10m,,1)+final_amount_10m,"") -> 0.075 | E60: 0.0875
B61: final amount | C61: =IF(actual_rate_10m<>"",peak_amount_10m*EXP(-k_deg_copy*IF(interval_actual<>"",interval_actual,twa_int_copy)),"") -> 0.025 | D61: 0.0375 | E61: 0.02041009669
B63: twa calculation interval | C63: =IF(actual_rate_10m<>"",int_applic_begin_10m&"-"&int_applic_begin_10m+twa_int_copy&" d","") -> 0-21 d | D63: 10-31 d | E63: 20-41 d
B64: twa(sum) | C64: =IF(INDEX(actual_rate_10m,,COLUMN()-2)<>"", SUM(C60:INDEX(peak_amount_10m,,no_applic_copy) *IF(((C58:INDEX(int_applic_begin_10m,,no_applic_copy)-C58)<twa_int_copy)*((C59:INDEX(int_applic_end_10m,,no_applic_copy)-C58)<=twa_int_copy), (C59:INDEX(int_applic_end_10m,,no_applic_copy)-C58:INDEX(int_applic_begin_10m,,no_applic_copy)) *(1-EXP(-k_deg_copy*(C59:INDEX(int_applic_end_10m,,no_applic_copy)-C58:INDEX(int_applic_begin_10m,,no_applic_copy)))) /(k_deg_copy*(C59:INDEX(int_applic_end_10m,,no_applic_copy)-C58:INDEX(int_applic_begin_10m,,no_applic_copy))), IF(((C58:INDEX(int_applic_begin_10m,,no_applic_copy)-C58)<twa_int_copy)+((C59:INDEX(int_applic_end_10m,,no_applic_copy)-C58)<=twa_int_copy), (C58+twa_int_copy-C58:INDEX(int_applic_begin_10m,,no_applic_copy)) *(1-EXP(-k_deg_copy*(C58+twa_int_copy-C58:INDEX(int_applic_begin_10m,,no_applic_copy)))) /(k_deg_copy*(C58+twa_int_copy-C58:INDEX(int_applic_begin_10m,,no_applic_copy))), 0) ) /twa_int_copy), "") -> 0.04696289287 | D64: =IF(INDEX(actual_rate_10m,,COLUMN()-2)<>"", SUM(D60:INDEX(peak_amount_10m,,no_applic_copy) *IF(((D58:INDEX(int_applic_begin_10m,,no_applic_copy)-D58)<twa_int_copy)*((D59:INDEX(int_applic_end_10m,,no_applic_copy)-D58)<=twa_int_copy), (D59:INDEX(int_applic_end_10m,,no_applic_copy)-D58:INDEX(int_applic_begin_10m,,no_applic_copy)) *(1-EXP(-k_deg_copy*(D59:INDEX(int_applic_end_10m,,no_applic_copy)-D58:INDEX(int_applic_begin_10m,,no_applic_copy)))) /(k_deg_copy*(D59:INDEX(int_applic_end_10m,,no_applic_copy)-D58:INDEX(int_applic_begin_10m,,no_applic_copy))), IF(((D58:INDEX(int_applic_begin_10m,,no_applic_copy)-D58)<twa_int_copy)+((D59:INDEX(int_applic_end_10m,,no_applic_copy)-D58)<=twa_int_copy), (D58+twa_int_copy-D58:INDEX(int_applic_begin_10m,,no_applic_copy)) *(1-EXP(-k_deg_copy*(D58+twa_int_copy-D58:INDEX(int_applic_begin_10m,,no_applic_copy)))) /(k_deg_copy*(D58+twa_int_copy-D58:INDEX(int_applic_begin_10m,,no_applic_copy))), 0) ) /twa_int_copy), "") -> 0.05783132836 | E64: =IF(INDEX(actual_rate_10m,,COLUMN()-2)<>"", SUM(E60:INDEX(peak_amount_10m,,no_applic_copy) *IF(((E58:INDEX(int_applic_begin_10m,,no_applic_copy)-E58)<twa_int_copy)*((E59:INDEX(int_applic_end_10m,,no_applic_copy)-E58)<=twa_int_copy), (E59:INDEX(int_applic_end_10m,,no_applic_copy)-E58:INDEX(int_applic_begin_10m,,no_applic_copy)) *(1-EXP(-k_deg_copy*(E59:INDEX(int_applic_end_10m,,no_applic_copy)-E58:INDEX(int_applic_begin_10m,,no_applic_copy)))) /(k_deg_copy*(E59:INDEX(int_applic_end_10m,,no_applic_copy)-E58:INDEX(int_applic_begin_10m,,no_applic_copy))), IF(((E58:INDEX(int_applic_begin_10m,,no_applic_copy)-E58)<twa_int_copy)+((E59:INDEX(int_applic_end_10m,,no_applic_copy)-E58)<=twa_int_copy), (E58+twa_int_copy-E58:INDEX(int_applic_begin_10m,,no_applic_copy)) *(1-EXP(-k_deg_copy*(E58+twa_int_copy-E58:INDEX(int_applic_begin_10m,,no_applic_copy)))) /(k_deg_copy*(E58+twa_int_copy-E58:INDEX(int_applic_begin_10m,,no_applic_copy))), 0) ) /twa_int_copy), "") -> 0.04609060514 | F64: =IF(INDEX(actual_rate_10m,,COLUMN()-2)<>"", SUM(F60:INDEX(peak_amount_10m,,no_applic_copy) *IF(((F58:INDEX(int_applic_begin_10m,,no_applic_copy)-F58)<twa_int_copy)*((F59:INDEX(int_applic_end_10m,,no_applic_copy)-F58)<=twa_int_copy), (F59:INDEX(int_applic_end_10m,,no_applic_copy)-F58:INDEX(int_applic_begin_10m,,no_applic_copy)) *(1-EXP(-k_deg_copy*(F59:INDEX(int_applic_end_10m,,no_applic_copy)-F58:INDEX(int_applic_begin_10m,,no_applic_copy)))) /(k_deg_copy*(F59:INDEX(int_applic_end_10m,,no_applic_copy)-F58:INDEX(int_applic_begin_10m,,no_applic_copy))), IF(((F58:INDEX(int_applic_begin_10m,,no_applic_copy)-F58)<twa_int_copy)+((F59:INDEX(int_applic_end_10m,,no_applic_copy)-F58)<=twa_int_copy), (F58+twa_int_copy-F58:INDEX(int_applic_begin_10m,,no_applic_copy)) *(1-EXP(-k_deg_copy*(F58+twa_int_copy-F58:INDEX(int_applic_begin_10m,,no_applic_copy)))) /(k_deg_copy*(F58+twa_int_copy-F58:INDEX(int_applic_begin_10m,,no_applic_copy))), 0) ) /twa_int_copy), "") ->  | G64: =IF(INDEX(actual_rate_10m,,COLUMN()-2)<>"", SUM(G60:INDEX(peak_amount_10m,,no_applic_copy) *IF(((G58:INDEX(int_applic_begin_10m,,no_applic_copy)-G58)<twa_int_copy)*((G59:INDEX(int_applic_end_10m,,no_applic_copy)-G58)<=twa_int_copy), (G59:INDEX(int_applic_end_10m,,no_applic_copy)-G58:INDEX(int_applic_begin_10m,,no_applic_copy)) *(1-EXP(-k_deg_copy*(G59:INDEX(int_applic_end_10m,,no_applic_copy)-G58:INDEX(int_applic_begin_10m,,no_applic_copy)))) /(k_deg_copy*(G59:INDEX(int_applic_end_10m,,no_applic_copy)-G58:INDEX(int_applic_begin_10m,,no_applic_copy))), IF(((G58:INDEX(int_applic_begin_10m,,no_applic_copy)-G58)<twa_int_copy)+((G59:INDEX(int_applic_end_10m,,no_applic_copy)-G58)<=twa_int_copy), (G58+twa_int_copy-G58:INDEX(int_applic_begin_10m,,no_applic_copy)) *(1-EXP(-k_deg_copy*(G58+twa_int_copy-G58:INDEX(int_applic_begin_10m,,no_applic_copy)))) /(k_deg_copy*(G58+twa_int_copy-G58:INDEX(int_applic_begin_10m,,no_applic_copy))), 0) ) /twa_int_copy), "") ->  | H64: =IF(INDEX(actual_rate_10m,,COLUMN()-2)<>"", SUM(H60:INDEX(peak_amount_10m,,no_applic_copy) *IF(((H58:INDEX(int_applic_begin_10m,,no_applic_copy)-H58)<twa_int_copy)*((H59:INDEX(int_applic_end_10m,,no_applic_copy)-H58)<=twa_int_copy), (H59:INDEX(int_applic_end_10m,,no_applic_copy)-H58:INDEX(int_applic_begin_10m,,no_applic_copy)) *(1-EXP(-k_deg_copy*(H59:INDEX(int_applic_end_10m,,no_applic_copy)-H58:INDEX(int_applic_begin_10m,,no_applic_copy)))) /(k_deg_copy*(H59:INDEX(int_applic_end_10m,,no_applic_copy)-H58:INDEX(int_applic_begin_10m,,no_applic_copy))), IF(((H58:INDEX(int_applic_begin_10m,,no_applic_copy)-H58)<twa_int_copy)+((H59:INDEX(int_applic_end_10m,,no_applic_copy)-H58)<=twa_int_copy), (H58+twa_int_copy-H58:INDEX(int_applic_begin_10m,,no_applic_copy)) *(1-EXP(-k_deg_copy*(H58+twa_int_copy-H58:INDEX(int_applic_begin_10m,,no_applic_copy)))) /(k_deg_copy*(H58+twa_int_copy-H58:INDEX(int_applic_begin_10m,,no_applic_copy))), 0) ) /twa_int_copy), "") ->  | I64: =IF(INDEX(actual_rate_10m,,COLUMN()-2)<>"", SUM(I60:INDEX(peak_amount_10m,,no_applic_copy) *IF(((I58:INDEX(int_applic_begin_10m,,no_applic_copy)-I58)<twa_int_copy)*((I59:INDEX(int_applic_end_10m,,no_applic_copy)-I58)<=twa_int_copy), (I59:INDEX(int_applic_end_10m,,no_applic_copy)-I58:INDEX(int_applic_begin_10m,,no_applic_copy)) *(1-EXP(-k_deg_copy*(I59:INDEX(int_applic_end_10m,,no_applic_copy)-I58:INDEX(int_applic_begin_10m,,no_applic_copy)))) /(k_deg_copy*(I59:INDEX(int_applic_end_10m,,no_applic_copy)-I58:INDEX(int_applic_begin_10m,,no_applic_copy))), IF(((I58:INDEX(int_applic_begin_10m,,no_applic_copy)-I58)<twa_int_copy)+((I59:INDEX(int_applic_end_10m,,no_applic_copy)-I58)<=twa_int_copy), (I58+twa_int_copy-I58:INDEX(int_applic_begin_10m,,no_applic_copy)) *(1-EXP(-k_deg_copy*(I58+twa_int_copy-I58:INDEX(int_applic_begin_10m,,no_applic_copy)))) /(k_deg_copy*(I58+twa_int_copy-I58:INDEX(int_applic_begin_10m,,no_applic_copy))), 0) ) /twa_int_copy), "") ->  | J64: =IF(INDEX(actual_rate_10m,,COLUMN()-2)<>"", SUM(J60:INDEX(peak_amount_10m,,no_applic_copy) *IF(((J58:INDEX(int_applic_begin_10m,,no_applic_copy)-J58)<twa_int_copy)*((J59:INDEX(int_applic_end_10m,,no_applic_copy)-J58)<=twa_int_copy), (J59:INDEX(int_applic_end_10m,,no_applic_copy)-J58:INDEX(int_applic_begin_10m,,no_applic_copy)) *(1-EXP(-k_deg_copy*(J59:INDEX(int_applic_end_10m,,no_applic_copy)-J58:INDEX(int_applic_begin_10m,,no_applic_copy)))) /(k_deg_copy*(J59:INDEX(int_applic_end_10m,,no_applic_copy)-J58:INDEX(int_applic_begin_10m,,no_applic_copy))), IF(((J58:INDEX(int_applic_begin_10m,,no_applic_copy)-J58)<twa_int_copy)+((J59:INDEX(int_applic_end_10m,,no_applic_copy)-J58)<=twa_int_copy), (J58+twa_int_copy-J58:INDEX(int_applic_begin_10m,,no_applic_copy)) *(1-EXP(-k_deg_copy*(J58+twa_int_copy-J58:INDEX(int_applic_begin_10m,,no_applic_copy)))) /(k_deg_copy*(J58+twa_int_copy-J58:INDEX(int_applic_begin_10m,,no_applic_copy))), 0) ) /twa_int_copy), "") ->  | K64: =IF(INDEX(actual_rate_10m,,COLUMN()-2)<>"", SUM(K60:INDEX(peak_amount_10m,,no_applic_copy) *IF(((K58:INDEX(int_applic_begin_10m,,no_applic_copy)-K58)<twa_int_copy)*((K59:INDEX(int_applic_end_10m,,no_applic_copy)-K58)<=twa_int_copy), (K59:INDEX(int_applic_end_10m,,no_applic_copy)-K58:INDEX(int_applic_begin_10m,,no_applic_copy)) *(1-EXP(-k_deg_copy*(K59:INDEX(int_applic_end_10m,,no_applic_copy)-K58:INDEX(int_applic_begin_10m,,no_applic_copy)))) /(k_deg_copy*(K59:INDEX(int_applic_end_10m,,no_applic_copy)-K58:INDEX(int_applic_begin_10m,,no_applic_copy))), IF(((K58:INDEX(int_applic_begin_10m,,no_applic_copy)-K58)<twa_int_copy)+((K59:INDEX(int_applic_end_10m,,no_applic_copy)-K58)<=twa_int_copy), (K58+twa_int_copy-K58:INDEX(int_applic_begin_10m,,no_applic_copy)) *(1-EXP(-k_deg_copy*(K58+twa_int_copy-K58:INDEX(int_applic_begin_10m,,no_applic_copy)))) /(k_deg_copy*(K58+twa_int_copy-K58:INDEX(int_applic_begin_10m,,no_applic_copy))), 0) ) /twa_int_copy), "") ->  | L64: =IF(INDEX(actual_rate_10m,,COLUMN()-2)<>"", SUM(L60:INDEX(peak_amount_10m,,no_applic_copy) *IF(((L58:INDEX(int_applic_begin_10m,,no_applic_copy)-L58)<twa_int_copy)*((L59:INDEX(int_applic_end_10m,,no_applic_copy)-L58)<=twa_int_copy), (L59:INDEX(int_applic_end_10m,,no_applic_copy)-L58:INDEX(int_applic_begin_10m,,no_applic_copy)) *(1-EXP(-k_deg_copy*(L59:INDEX(int_applic_end_10m,,no_applic_copy)-L58:INDEX(int_applic_begin_10m,,no_applic_copy)))) /(k_deg_copy*(L59:INDEX(int_applic_end_10m,,no_applic_copy)-L58:INDEX(int_applic_begin_10m,,no_applic_copy))), IF(((L58:INDEX(int_applic_begin_10m,,no_applic_copy)-L58)<twa_int_copy)+((L59:INDEX(int_applic_end_10m,,no_applic_copy)-L58)<=twa_int_copy), (L58+twa_int_copy-L58:INDEX(int_applic_begin_10m,,no_applic_copy)) *(1-EXP(-k_deg_copy*(L58+twa_int_copy-L58:INDEX(int_applic_begin_10m,,no_applic_copy)))) /(k_deg_copy*(L58+twa_int_copy-L58:INDEX(int_applic_begin_10m,,no_applic_copy))), 0) ) /twa_int_copy), "") ->  | M64: =IF(INDEX(actual_rate_10m,,COLUMN()-2)<>"", SUM(M60:INDEX(peak_amount_10m,,no_applic_copy) *IF(((M58:INDEX(int_applic_begin_10m,,no_applic_copy)-M58)<twa_int_copy)*((M59:INDEX(int_applic_end_10m,,no_applic_copy)-M58)<=twa_int_copy), (M59:INDEX(int_applic_end_10m,,no_applic_copy)-M58:INDEX(int_applic_begin_10m,,no_applic_copy)) *(1-EXP(-k_deg_copy*(M59:INDEX(int_applic_end_10m,,no_applic_copy)-M58:INDEX(int_applic_begin_10m,,no_applic_copy)))) /(k_deg_copy*(M59:INDEX(int_applic_end_10m,,no_applic_copy)-M58:INDEX(int_applic_begin_10m,,no_applic_copy))), IF(((M58:INDEX(int_applic_begin_10m,,no_applic_copy)-M58)<twa_int_copy)+((M59:INDEX(int_applic_end_10m,,no_applic_copy)-M58)<=twa_int_copy), (M58+twa_int_copy-M58:INDEX(int_applic_begin_10m,,no_applic_copy)) *(1-EXP(-k_deg_copy*(M58+twa_int_copy-M58:INDEX(int_applic_begin_10m,,no_applic_copy)))) /(k_deg_copy*(M58+twa_int_copy-M58:INDEX(int_applic_begin_10m,,no_applic_copy))), 0) ) /twa_int_copy), "") ->  | N64: =IF(INDEX(actual_rate_10m,,COLUMN()-2)<>"", SUM(N60:INDEX(peak_amount_10m,,no_applic_copy) *IF(((N58:INDEX(int_applic_begin_10m,,no_applic_copy)-N58)<twa_int_copy)*((N59:INDEX(int_applic_end_10m,,no_applic_copy)-N58)<=twa_int_copy), (N59:INDEX(int_applic_end_10m,,no_applic_copy)-N58:INDEX(int_applic_begin_10m,,no_applic_copy)) *(1-EXP(-k_deg_copy*(N59:INDEX(int_applic_end_10m,,no_applic_copy)-N58:INDEX(int_applic_begin_10m,,no_applic_copy)))) /(k_deg_copy*(N59:INDEX(int_applic_end_10m,,no_applic_copy)-N58:INDEX(int_applic_begin_10m,,no_applic_copy))), IF(((N58:INDEX(int_applic_begin_10m,,no_applic_copy)-N58)<twa_int_copy)+((N59:INDEX(int_applic_end_10m,,no_applic_copy)-N58)<=twa_int_copy), (N58+twa_int_copy-N58:INDEX(int_applic_begin_10m,,no_applic_copy)) *(1-EXP(-k_deg_copy*(N58+twa_int_copy-N58:INDEX(int_applic_begin_10m,,no_applic_copy)))) /(k_deg_copy*(N58+twa_int_copy-N58:INDEX(int_applic_begin_10m,,no_applic_copy))), 0) ) /twa_int_copy), "") -> 
B66: max. peak amount | C66: =MAX(peak_amount_10m) -> 0.0875
B67: max. twa(sum) | C67: =MAX(twa_sum_10m) -> 0.05783132836
B70: 15 m distance
B71: begin interval | C71: =IF(interval_actual<>"",SUM(interval_actual1:INDEX(interval_actual,,COLUMN()-2))-interval_actual,IF(actual_rate_15m<>"",SUM(interval_actual1:INDEX(interval_actual,,COLUMN()-2)),"")) -> 0 | D71: 10 | E71: 20
B72: end interval | C72: =IF(interval_actual<>"",SUM(interval_actual1:INDEX(interval_actual,,COLUMN()-2)),IF(actual_rate_15m<>"",SUM(interval_actual1:INDEX(interval_actual,,COLUMN()-2))+twa_int_copy,"")) -> 10 | D72: 20 | E72: 41
B73: peak amount | C73: =IF(actual_rate_15m<>"",actual_rate_15m,"") -> 0.035 | D73: =IF(OFFSET(actual_rate_15m,,1)<>"",OFFSET(actual_rate_15m,,1)+final_amount_15m,"") -> 0.0525 | E73: 0.06125
B74: final amount | C74: =IF(actual_rate_15m<>"",peak_amount_15m*EXP(-k_deg_copy*IF(interval_actual<>"",interval_actual,twa_int_copy)),"") -> 0.0175 | D74: 0.02625 | E74: 0.01428706768
B76: twa calculation interval | C76: =IF(actual_rate_15m<>"",int_applic_begin_15m&"-"&int_applic_begin_15m+twa_int_copy&" d","") -> 0-21 d | D76: 10-31 d | E76: 20-41 d
B77: twa(sum) | C77: =IF(INDEX(actual_rate_15m,,COLUMN()-2)<>"", SUM(C73:INDEX(peak_amount_15m,,no_applic_copy) *IF(((C71:INDEX(int_applic_begin_15m,,no_applic_copy)-C71)<twa_int_copy)*((C72:INDEX(int_applic_end_15m,,no_applic_copy)-C71)<=twa_int_copy), (C72:INDEX(int_applic_end_15m,,no_applic_copy)-C71:INDEX(int_applic_begin_15m,,no_applic_copy)) *(1-EXP(-k_deg_copy*(C72:INDEX(int_applic_end_15m,,no_applic_copy)-C71:INDEX(int_applic_begin_15m,,no_applic_copy)))) /(k_deg_copy*(C72:INDEX(int_applic_end_15m,,no_applic_copy)-C71:INDEX(int_applic_begin_15m,,no_applic_copy))), IF(((C71:INDEX(int_applic_begin_15m,,no_applic_copy)-C71)<twa_int_copy)+((C72:INDEX(int_applic_end_15m,,no_applic_copy)-C71)<=twa_int_copy), (C71+twa_int_copy-C71:INDEX(int_applic_begin_15m,,no_applic_copy)) *(1-EXP(-k_deg_copy*(C71+twa_int_copy-C71:INDEX(int_applic_begin_15m,,no_applic_copy)))) /(k_deg_copy*(C71+twa_int_copy-C71:INDEX(int_applic_begin_15m,,no_applic_copy))), 0) ) /twa_int_copy), "") -> 0.03287402501 | D77: =IF(INDEX(actual_rate_15m,,COLUMN()-2)<>"", SUM(D73:INDEX(peak_amount_15m,,no_applic_copy) *IF(((D71:INDEX(int_applic_begin_15m,,no_applic_copy)-D71)<twa_int_copy)*((D72:INDEX(int_applic_end_15m,,no_applic_copy)-D71)<=twa_int_copy), (D72:INDEX(int_applic_end_15m,,no_applic_copy)-D71:INDEX(int_applic_begin_15m,,no_applic_copy)) *(1-EXP(-k_deg_copy*(D72:INDEX(int_applic_end_15m,,no_applic_copy)-D71:INDEX(int_applic_begin_15m,,no_applic_copy)))) /(k_deg_copy*(D72:INDEX(int_applic_end_15m,,no_applic_copy)-D71:INDEX(int_applic_begin_15m,,no_applic_copy))), IF(((D71:INDEX(int_applic_begin_15m,,no_applic_copy)-D71)<twa_int_copy)+((D72:INDEX(int_applic_end_15m,,no_applic_copy)-D71)<=twa_int_copy), (D71+twa_int_copy-D71:INDEX(int_applic_begin_15m,,no_applic_copy)) *(1-EXP(-k_deg_copy*(D71+twa_int_copy-D71:INDEX(int_applic_begin_15m,,no_applic_copy)))) /(k_deg_copy*(D71+twa_int_copy-D71:INDEX(int_applic_begin_15m,,no_applic_copy))), 0) ) /twa_int_copy), "") -> 0.04048192985 | E77: =IF(INDEX(actual_rate_15m,,COLUMN()-2)<>"", SUM(E73:INDEX(peak_amount_15m,,no_applic_copy) *IF(((E71:INDEX(int_applic_begin_15m,,no_applic_copy)-E71)<twa_int_copy)*((E72:INDEX(int_applic_end_15m,,no_applic_copy)-E71)<=twa_int_copy), (E72:INDEX(int_applic_end_15m,,no_applic_copy)-E71:INDEX(int_applic_begin_15m,,no_applic_copy)) *(1-EXP(-k_deg_copy*(E72:INDEX(int_applic_end_15m,,no_applic_copy)-E71:INDEX(int_applic_begin_15m,,no_applic_copy)))) /(k_deg_copy*(E72:INDEX(int_applic_end_15m,,no_applic_copy)-E71:INDEX(int_applic_begin_15m,,no_applic_copy))), IF(((E71:INDEX(int_applic_begin_15m,,no_applic_copy)-E71)<twa_int_copy)+((E72:INDEX(int_applic_end_15m,,no_applic_copy)-E71)<=twa_int_copy), (E71+twa_int_copy-E71:INDEX(int_applic_begin_15m,,no_applic_copy)) *(1-EXP(-k_deg_copy*(E71+twa_int_copy-E71:INDEX(int_applic_begin_15m,,no_applic_copy)))) /(k_deg_copy*(E71+twa_int_copy-E71:INDEX(int_applic_begin_15m,,no_applic_copy))), 0) ) /twa_int_copy), "") -> 0.0322634236 | F77: =IF(INDEX(actual_rate_15m,,COLUMN()-2)<>"", SUM(F73:INDEX(peak_amount_15m,,no_applic_copy) *IF(((F71:INDEX(int_applic_begin_15m,,no_applic_copy)-F71)<twa_int_copy)*((F72:INDEX(int_applic_end_15m,,no_applic_copy)-F71)<=twa_int_copy), (F72:INDEX(int_applic_end_15m,,no_applic_copy)-F71:INDEX(int_applic_begin_15m,,no_applic_copy)) *(1-EXP(-k_deg_copy*(F72:INDEX(int_applic_end_15m,,no_applic_copy)-F71:INDEX(int_applic_begin_15m,,no_applic_copy)))) /(k_deg_copy*(F72:INDEX(int_applic_end_15m,,no_applic_copy)-F71:INDEX(int_applic_begin_15m,,no_applic_copy))), IF(((F71:INDEX(int_applic_begin_15m,,no_applic_copy)-F71)<twa_int_copy)+((F72:INDEX(int_applic_end_15m,,no_applic_copy)-F71)<=twa_int_copy), (F71+twa_int_copy-F71:INDEX(int_applic_begin_15m,,no_applic_copy)) *(1-EXP(-k_deg_copy*(F71+twa_int_copy-F71:INDEX(int_applic_begin_15m,,no_applic_copy)))) /(k_deg_copy*(F71+twa_int_copy-F71:INDEX(int_applic_begin_15m,,no_applic_copy))), 0) ) /twa_int_copy), "") ->  | G77: =IF(INDEX(actual_rate_15m,,COLUMN()-2)<>"", SUM(G73:INDEX(peak_amount_15m,,no_applic_copy) *IF(((G71:INDEX(int_applic_begin_15m,,no_applic_copy)-G71)<twa_int_copy)*((G72:INDEX(int_applic_end_15m,,no_applic_copy)-G71)<=twa_int_copy), (G72:INDEX(int_applic_end_15m,,no_applic_copy)-G71:INDEX(int_applic_begin_15m,,no_applic_copy)) *(1-EXP(-k_deg_copy*(G72:INDEX(int_applic_end_15m,,no_applic_copy)-G71:INDEX(int_applic_begin_15m,,no_applic_copy)))) /(k_deg_copy*(G72:INDEX(int_applic_end_15m,,no_applic_copy)-G71:INDEX(int_applic_begin_15m,,no_applic_copy))), IF(((G71:INDEX(int_applic_begin_15m,,no_applic_copy)-G71)<twa_int_copy)+((G72:INDEX(int_applic_end_15m,,no_applic_copy)-G71)<=twa_int_copy), (G71+twa_int_copy-G71:INDEX(int_applic_begin_15m,,no_applic_copy)) *(1-EXP(-k_deg_copy*(G71+twa_int_copy-G71:INDEX(int_applic_begin_15m,,no_applic_copy)))) /(k_deg_copy*(G71+twa_int_copy-G71:INDEX(int_applic_begin_15m,,no_applic_copy))), 0) ) /twa_int_copy), "") ->  | H77: =IF(INDEX(actual_rate_15m,,COLUMN()-2)<>"", SUM(H73:INDEX(peak_amount_15m,,no_applic_copy) *IF(((H71:INDEX(int_applic_begin_15m,,no_applic_copy)-H71)<twa_int_copy)*((H72:INDEX(int_applic_end_15m,,no_applic_copy)-H71)<=twa_int_copy), (H72:INDEX(int_applic_end_15m,,no_applic_copy)-H71:INDEX(int_applic_begin_15m,,no_applic_copy)) *(1-EXP(-k_deg_copy*(H72:INDEX(int_applic_end_15m,,no_applic_copy)-H71:INDEX(int_applic_begin_15m,,no_applic_copy)))) /(k_deg_copy*(H72:INDEX(int_applic_end_15m,,no_applic_copy)-H71:INDEX(int_applic_begin_15m,,no_applic_copy))), IF(((H71:INDEX(int_applic_begin_15m,,no_applic_copy)-H71)<twa_int_copy)+((H72:INDEX(int_applic_end_15m,,no_applic_copy)-H71)<=twa_int_copy), (H71+twa_int_copy-H71:INDEX(int_applic_begin_15m,,no_applic_copy)) *(1-EXP(-k_deg_copy*(H71+twa_int_copy-H71:INDEX(int_applic_begin_15m,,no_applic_copy)))) /(k_deg_copy*(H71+twa_int_copy-H71:INDEX(int_applic_begin_15m,,no_applic_copy))), 0) ) /twa_int_copy), "") ->  | I77: =IF(INDEX(actual_rate_15m,,COLUMN()-2)<>"", SUM(I73:INDEX(peak_amount_15m,,no_applic_copy) *IF(((I71:INDEX(int_applic_begin_15m,,no_applic_copy)-I71)<twa_int_copy)*((I72:INDEX(int_applic_end_15m,,no_applic_copy)-I71)<=twa_int_copy), (I72:INDEX(int_applic_end_15m,,no_applic_copy)-I71:INDEX(int_applic_begin_15m,,no_applic_copy)) *(1-EXP(-k_deg_copy*(I72:INDEX(int_applic_end_15m,,no_applic_copy)-I71:INDEX(int_applic_begin_15m,,no_applic_copy)))) /(k_deg_copy*(I72:INDEX(int_applic_end_15m,,no_applic_copy)-I71:INDEX(int_applic_begin_15m,,no_applic_copy))), IF(((I71:INDEX(int_applic_begin_15m,,no_applic_copy)-I71)<twa_int_copy)+((I72:INDEX(int_applic_end_15m,,no_applic_copy)-I71)<=twa_int_copy), (I71+twa_int_copy-I71:INDEX(int_applic_begin_15m,,no_applic_copy)) *(1-EXP(-k_deg_copy*(I71+twa_int_copy-I71:INDEX(int_applic_begin_15m,,no_applic_copy)))) /(k_deg_copy*(I71+twa_int_copy-I71:INDEX(int_applic_begin_15m,,no_applic_copy))), 0) ) /twa_int_copy), "") ->  | J77: =IF(INDEX(actual_rate_15m,,COLUMN()-2)<>"", SUM(J73:INDEX(peak_amount_15m,,no_applic_copy) *IF(((J71:INDEX(int_applic_begin_15m,,no_applic_copy)-J71)<twa_int_copy)*((J72:INDEX(int_applic_end_15m,,no_applic_copy)-J71)<=twa_int_copy), (J72:INDEX(int_applic_end_15m,,no_applic_copy)-J71:INDEX(int_applic_begin_15m,,no_applic_copy)) *(1-EXP(-k_deg_copy*(J72:INDEX(int_applic_end_15m,,no_applic_copy)-J71:INDEX(int_applic_begin_15m,,no_applic_copy)))) /(k_deg_copy*(J72:INDEX(int_applic_end_15m,,no_applic_copy)-J71:INDEX(int_applic_begin_15m,,no_applic_copy))), IF(((J71:INDEX(int_applic_begin_15m,,no_applic_copy)-J71)<twa_int_copy)+((J72:INDEX(int_applic_end_15m,,no_applic_copy)-J71)<=twa_int_copy), (J71+twa_int_copy-J71:INDEX(int_applic_begin_15m,,no_applic_copy)) *(1-EXP(-k_deg_copy*(J71+twa_int_copy-J71:INDEX(int_applic_begin_15m,,no_applic_copy)))) /(k_deg_copy*(J71+twa_int_copy-J71:INDEX(int_applic_begin_15m,,no_applic_copy))), 0) ) /twa_int_copy), "") ->  | K77: =IF(INDEX(actual_rate_15m,,COLUMN()-2)<>"", SUM(K73:INDEX(peak_amount_15m,,no_applic_copy) *IF(((K71:INDEX(int_applic_begin_15m,,no_applic_copy)-K71)<twa_int_copy)*((K72:INDEX(int_applic_end_15m,,no_applic_copy)-K71)<=twa_int_copy), (K72:INDEX(int_applic_end_15m,,no_applic_copy)-K71:INDEX(int_applic_begin_15m,,no_applic_copy)) *(1-EXP(-k_deg_copy*(K72:INDEX(int_applic_end_15m,,no_applic_copy)-K71:INDEX(int_applic_begin_15m,,no_applic_copy)))) /(k_deg_copy*(K72:INDEX(int_applic_end_15m,,no_applic_copy)-K71:INDEX(int_applic_begin_15m,,no_applic_copy))), IF(((K71:INDEX(int_applic_begin_15m,,no_applic_copy)-K71)<twa_int_copy)+((K72:INDEX(int_applic_end_15m,,no_applic_copy)-K71)<=twa_int_copy), (K71+twa_int_copy-K71:INDEX(int_applic_begin_15m,,no_applic_copy)) *(1-EXP(-k_deg_copy*(K71+twa_int_copy-K71:INDEX(int_applic_begin_15m,,no_applic_copy)))) /(k_deg_copy*(K71+twa_int_copy-K71:INDEX(int_applic_begin_15m,,no_applic_copy))), 0) ) /twa_int_copy), "") ->  | L77: =IF(INDEX(actual_rate_15m,,COLUMN()-2)<>"", SUM(L73:INDEX(peak_amount_15m,,no_applic_copy) *IF(((L71:INDEX(int_applic_begin_15m,,no_applic_copy)-L71)<twa_int_copy)*((L72:INDEX(int_applic_end_15m,,no_applic_copy)-L71)<=twa_int_copy), (L72:INDEX(int_applic_end_15m,,no_applic_copy)-L71:INDEX(int_applic_begin_15m,,no_applic_copy)) *(1-EXP(-k_deg_copy*(L72:INDEX(int_applic_end_15m,,no_applic_copy)-L71:INDEX(int_applic_begin_15m,,no_applic_copy)))) /(k_deg_copy*(L72:INDEX(int_applic_end_15m,,no_applic_copy)-L71:INDEX(int_applic_begin_15m,,no_applic_copy))), IF(((L71:INDEX(int_applic_begin_15m,,no_applic_copy)-L71)<twa_int_copy)+((L72:INDEX(int_applic_end_15m,,no_applic_copy)-L71)<=twa_int_copy), (L71+twa_int_copy-L71:INDEX(int_applic_begin_15m,,no_applic_copy)) *(1-EXP(-k_deg_copy*(L71+twa_int_copy-L71:INDEX(int_applic_begin_15m,,no_applic_copy)))) /(k_deg_copy*(L71+twa_int_copy-L71:INDEX(int_applic_begin_15m,,no_applic_copy))), 0) ) /twa_int_copy), "") ->  | M77: =IF(INDEX(actual_rate_15m,,COLUMN()-2)<>"", SUM(M73:INDEX(peak_amount_15m,,no_applic_copy) *IF(((M71:INDEX(int_applic_begin_15m,,no_applic_copy)-M71)<twa_int_copy)*((M72:INDEX(int_applic_end_15m,,no_applic_copy)-M71)<=twa_int_copy), (M72:INDEX(int_applic_end_15m,,no_applic_copy)-M71:INDEX(int_applic_begin_15m,,no_applic_copy)) *(1-EXP(-k_deg_copy*(M72:INDEX(int_applic_end_15m,,no_applic_copy)-M71:INDEX(int_applic_begin_15m,,no_applic_copy)))) /(k_deg_copy*(M72:INDEX(int_applic_end_15m,,no_applic_copy)-M71:INDEX(int_applic_begin_15m,,no_applic_copy))), IF(((M71:INDEX(int_applic_begin_15m,,no_applic_copy)-M71)<twa_int_copy)+((M72:INDEX(int_applic_end_15m,,no_applic_copy)-M71)<=twa_int_copy), (M71+twa_int_copy-M71:INDEX(int_applic_begin_15m,,no_applic_copy)) *(1-EXP(-k_deg_copy*(M71+twa_int_copy-M71:INDEX(int_applic_begin_15m,,no_applic_copy)))) /(k_deg_copy*(M71+twa_int_copy-M71:INDEX(int_applic_begin_15m,,no_applic_copy))), 0) ) /twa_int_copy), "") ->  | N77: =IF(INDEX(actual_rate_15m,,COLUMN()-2)<>"", SUM(N73:INDEX(peak_amount_15m,,no_applic_copy) *IF(((N71:INDEX(int_applic_begin_15m,,no_applic_copy)-N71)<twa_int_copy)*((N72:INDEX(int_applic_end_15m,,no_applic_copy)-N71)<=twa_int_copy), (N72:INDEX(int_applic_end_15m,,no_applic_copy)-N71:INDEX(int_applic_begin_15m,,no_applic_copy)) *(1-EXP(-k_deg_copy*(N72:INDEX(int_applic_end_15m,,no_applic_copy)-N71:INDEX(int_applic_begin_15m,,no_applic_copy)))) /(k_deg_copy*(N72:INDEX(int_applic_end_15m,,no_applic_copy)-N71:INDEX(int_applic_begin_15m,,no_applic_copy))), IF(((N71:INDEX(int_applic_begin_15m,,no_applic_copy)-N71)<twa_int_copy)+((N72:INDEX(int_applic_end_15m,,no_applic_copy)-N71)<=twa_int_copy), (N71+twa_int_copy-N71:INDEX(int_applic_begin_15m,,no_applic_copy)) *(1-EXP(-k_deg_copy*(N71+twa_int_copy-N71:INDEX(int_applic_begin_15m,,no_applic_copy)))) /(k_deg_copy*(N71+twa_int_copy-N71:INDEX(int_applic_begin_15m,,no_applic_copy))), 0) ) /twa_int_copy), "") -> 
B79: max. peak amount | C79: =MAX(peak_amount_15m) -> 0.06125
B80: max. twa(sum) | C80: =MAX(twa_sum_15m) -> 0.04048192985
B83: 20 m distance
B84: begin interval | C84: =IF(interval_actual<>"",SUM(interval_actual1:INDEX(interval_actual,,COLUMN()-2))-interval_actual,IF(actual_rate_20m<>"",SUM(interval_actual1:INDEX(interval_actual,,COLUMN()-2)),"")) -> 0 | D84: 10 | E84: 20
B85: end interval | C85: =IF(interval_actual<>"",SUM(interval_actual1:INDEX(interval_actual,,COLUMN()-2)),IF(actual_rate_20m<>"",SUM(interval_actual1:INDEX(interval_actual,,COLUMN()-2))+twa_int_copy,"")) -> 10 | D85: 20 | E85: 41
B86: peak amount | C86: =IF(actual_rate_20m<>"",actual_rate_20m,"") -> 0.025 | D86: =IF(OFFSET(actual_rate_20m,,1)<>"",OFFSET(actual_rate_20m,,1)+final_amount_20m,"") -> 0.0375 | E86: 0.04375
B87: final amount | C87: =IF(actual_rate_20m<>"",peak_amount_20m*EXP(-k_deg_copy*IF(interval_actual<>"",interval_actual,twa_int_copy)),"") -> 0.0125 | D87: 0.01875 | E87: 0.01020504834
